{"text_format":"1","workbook":"xlsx","n_sheets":8,"sheets":["1. INFORMACION ACUMULADA","BogData","2. PAA","3. CONSOLIDADO","4. INSTRUCTIVO","Proposito_programa","Tipo","Eje_Pilar_Prop1"],"not_rendered":{"charts":0,"images":1,"macros":1,"external_links":0,"defined_names":15,"comments":1,"pivot_tables":0},"unopened":[],"bounds":{"document_bytes":16777216,"sheet_cells":100000,"rows_first":2000,"rows_last":500,"rows_between":2000,"halvings":0,"cell_chars":16384,"cell_head_chars":4096},"cells_cut":0,"cells_raw":0,"read":"whole","date_system":"1900"}

{"sheet":"1. INFORMACION ACUMULADA","index":0,"n_rows":337,"n_cols":43,"rows_kept":337,"cut":false,"hidden":false,"merged":[[1,1,1,38],[2,1,2,38],[4,1,4,4],[4,9,4,11],[4,15,4,16],[4,23,4,38],[5,1,5,4],[5,9,5,11],[5,34,5,35],[6,1,6,4],[6,9,6,11],[6,34,6,35],[7,34,7,35],[8,1,8,4],[8,7,8,8],[8,11,9,16],[8,34,8,35],[9,1,9,4],[9,6,9,8],[9,34,9,35],[10,38,10,41],[11,3,11,4],[11,9,11,13],[11,16,11,21],[11,38,11,41],[10,1,10,21],[10,22,10,27],[10,28,10,33],[10,34,10,37],[5,36,5,42],[6,36,6,42],[7,36,7,42],[8,36,8,42],[9,36,9,42]]}
[]
[null,"VEEDURIA DISTRITAL - INFORMACIÓN GESTION CONTRACTUAL"]
[null,"DEL 1 DE ENERO AL 31 DE DICIEMBRE DE 2021"]
[]
[null,"1. Entidad",null,null,null,null,null,null,"2. Sector"]
[null,"3. Presupuesto Disponible Inversión Directa PREDIS (BOGDATA)",null,null,null,"FONDO DE DESARROLLO LOCAL DE CHAPINERO",null,null,"5. Presupuesto Disponible Funcionamiento PREDIS (BOGDATA)",null,null,null,null,null,null,null,null,null,null,null,null,null,null,null,null,null,null,null,null,null,null,null,null,null,"9. Nombre de quien diligencia el formato",null,"JIMENA MARIA CARDONA DIAZ"]
[null,"4. Presupuesto Comprometido de Inversión Directa según PREDIS (BOGDATA)",null,null,null,null,null,null,"6. Presupuesto Comprometido Funcionamiento según PREDIS (BOGDATA)",null,null,null,null,null,null,null,null,null,null,null,null,null,null,null,null,null,null,null,null,null,null,null,null,null,"Cargo",null,"PROFESIONAL UNIVERSITARIO"]
[null,null,null,null,null,null,null,null,null,null,null,null,null,null,null,null,null,null,null,null,null,null,null,null,null,null,null,null,null,null,null,null,null,null,"Dependencia",null,"CONTRATACIÓN"]
[null,"7. Presupuesto Disponible Operación (Régimen Privado)",null,null,null,null,null,null,null,null,null,null,null,null,null,null,null,null,null,null,null,null,null,null,null,null,null,null,null,null,null,null,null,null,"Teléfono",null,"320-6172448"]
[null,"8. Presupuesto Comprometido Operación mediante contratos",null,null,null,null,null,null,null,null,null,null,null,null,null,null,null,null,null,null,null,null,null,null,null,null,null,null,null,null,null,null,null,null,"Correo Electrónico",null,"jimena.cardona@gobiernobogota.gov.co"]
[null,"1- INFORMACION GENERAL",null,null,null,null,null,null,null,null,null,null,null,null,null,null,null,null,null,null,null,null,"2- INFORMACION FINANCIERA",null,null,null,null,null,"3 - PLAZOS ",null,null,null,null,null,"4. CESION",null,null,null,"5. ESTADO",null,null,null,"6. %  Avance y/o cumplimiento"]
[null,1,2,3,null,4,5,6,7,8,null,null,null,null,9,10,11,null,null,null,null,null,12,13,14,15,16,17,18,19,20,21,22,23,24,25,26,27,28,null,null,null,29]
["Cuenta contrato","Número Contrato","Año","Número de proceso contractual \nSECOP","Link proceso SECOP","Tipo de contrato ","Modalidad de Selección","Procedimiento o causal","Objeto","Afectación","Plan de Desarrollo Distrital","Número Programa","Equivalencia número de programa","Propósito","Número Proyecto","Número de proponentes","Número  de Identificación del contratista\n(Cédula o NIT sin puntos, comas ni caracteres especiales y sin digito de verificación)","Nombre del contratista\n  (según el caso: nombres y apellidos o Razón social y Tipo societario)","Naturaleza Jurídica","Número  de Identificación del integrante del Consorcio o U.T.\n(Cédula o NIT sin puntos, comas ni caracteres especiales y sin digito de verificación)","Nombre del Integrante del Consorcio o U.T. y Tipo societario\n (Según el caso: nombres y apellidos o razón social y tipo societario)","% Participación (indicar solo el numero del porcentaje, sin caracteres especiales)","Valor Inicial del contrato","Valor total reducciones \n(En valor negativo)","Número de adiciones","Valor total de adiciones ","Valor Final ","Giros (Valor en pesos)","Fecha de suscripción (DD/MM/AAAA)","Fecha de inicio (DD/MM/AAAA)","Fecha de terminación (DD/MM/AAAA)","Plazo en días","Número de prórrogas","Prorroga en días","Número  de Identificación del cesionario\n(NIT sin digito de verificación)","Nombre cesionario","Fecha cesión\n(DD/MM/AAAA)","Valor cesión","Celebrado o por iniciar","En Ejecución","Terminado","Liquidado","% Avance y/o Cumplimiento"]
[1,1,2021,"FDLCH-CPS-001-2021","https://community.secop.gov.co/Public/Tendering/OpportunityDetail/Index?noticeUID=CO1.NTC.1698059&isFromPublicArea=True&isModal=true&asPopupView=true","Contratos de prestación de servicios profesionales y de apoyo a la gestión","Contratación directa","Prestación de servicios profesionales y de apoyo a la gestión, o para la ejecución de trabajos artísticos que sólo puedan encomendarse a determinadas personas naturales;","Prestar sevicios profesionales especializados para apoyar la organización y estructuracion d ela gestión precontractual, contractual y postcontractual que adelante el Fondo de Desarrollo Local de Chapinero.","Inversión","Un Nuevo Contrato Social y Ambiental para la Bogotá del Siglo XXI",57,{"$f":"IF(ISERROR(VLOOKUP(L14,Proposito_programa!$C$2:$E$59,2,FALSE)),\" \",VLOOKUP(L14,Proposito_programa!$C$2:$E$59,2,FALSE))","v":"Gestión pública local"},{"$f":"IF(ISERROR(VLOOKUP(L14,Proposito_programa!$C$2:$E$59,3,FALSE)),\" \",VLOOKUP(L14,Proposito_programa!$C$2:$E$59,3,FALSE))","v":"Propósito 5: Construir Bogotá - Región con gobierno abierto, transparente y ciudadanía consciente"},"133011605570000001741",1,79580307,"CESAR FRUTO CORREDOR GOMEZ","Persona Natural",null,null,null,54560000,null,1,24779333,{"$f":"+W14+X14+Z14","v":79339333},69109333,"2021-01-26","2021-01-27","2022-01-15",240,1,{"$f":"+AG14*30","v":30},null,null,null,null,null,"X",null,null,{"$f":"IF(ISERROR(AB14/AA14),\"-\",(AB14/AA14))","v":0.87106017137804781}]
[1,2,2021,"FDLCH-CPS-002-2021","https://community.secop.gov.co/Directory/Profile/705394302","Contratos de prestación de servicios profesionales y de apoyo a la gestión","Contratación directa","Prestación de servicios profesionales y de apoyo a la gestión, o para la ejecución de trabajos artísticos que sólo puedan encomendarse a determinadas personas naturales;","Prestar servicios profesionales para apoyar la gestión precontractual, contractual y postcontractual que adelante el Fondo de Desarrollo Local de Chapinero.","Inversión","Un Nuevo Contrato Social y Ambiental para la Bogotá del Siglo XXI",57,{"$f":"IF(ISERROR(VLOOKUP(L15,Proposito_programa!$C$2:$E$59,2,FALSE)),\" \",VLOOKUP(L15,Proposito_programa!$C$2:$E$59,2,FALSE))","v":"Gestión pública local"},{"$f":"IF(ISERROR(VLOOKUP(L15,Proposito_programa!$C$2:$E$59,3,FALSE)),\" \",VLOOKUP(L15,Proposito_programa!$C$2:$E$59,3,FALSE))","v":"Propósito 5: Construir Bogotá - Región con gobierno abierto, transparente y ciudadanía consciente"},"133011605570000001741",1,1078368894,"JENNYFER PAOLA GALVIS TORRES","Persona Natural",null,null,null,24000000,null,1,12000000,36000000,36000000,"2021-01-26","2021-01-27","2021-09-10",150,1,{"$f":"+AG15*30","v":30},null,null,null,null,null,null,"X",null,1]
[1,3,2021,"FDLCH-CPS-003-2021","https://community.secop.gov.co/Public/Tendering/OpportunityDetail/Index?noticeUID=CO1.NTC.1703032&isFromPublicArea=True&isModal=true&asPopupView=true","Contratos de prestación de servicios profesionales y de apoyo a la gestión","Contratación directa","Prestación de servicios profesionales y de apoyo a la gestión, o para la ejecución de trabajos artísticos que sólo puedan encomendarse a determinadas personas naturales;","Prestar los servicios personales necesarios para la conducción de los vehículos que conforman el parque automotor en propiedad o custodia del Fondo de Desarrollo Local de Chapinero, y el transporte de servidores públicos para la realización de las actividades misionales de la Alcaldía Local de Chapinero.","Inversión","Un Nuevo Contrato Social y Ambiental para la Bogotá del Siglo XXI",57,{"$f":"IF(ISERROR(VLOOKUP(L16,Proposito_programa!$C$2:$E$59,2,FALSE)),\" \",VLOOKUP(L16,Proposito_programa!$C$2:$E$59,2,FALSE))","v":"Gestión pública local"},{"$f":"IF(ISERROR(VLOOKUP(L16,Proposito_programa!$C$2:$E$59,3,FALSE)),\" \",VLOOKUP(L16,Proposito_programa!$C$2:$E$59,3,FALSE))","v":"Propósito 5: Construir Bogotá - Región con gobierno abierto, transparente y ciudadanía consciente"},"133011605570000001741",1,1018445848,"JUAN DAVID CHICACAUSA SALAS","Persona Natural",null,null,null,9600000,null,1,4800000,14400000,14400000,"2021-01-27","2021-01-28","2021-08-03",120,1,30,null,null,null,null,null,null,"X",null,1]
[1,4,2021,"FDLCH-CPS-004-2021","https://community.secop.gov.co/Public/Tendering/OpportunityDetail/Index?noticeUID=CO1.NTC.1707240&isFromPublicArea=True&isModal=true&asPopupView=true","Contratos de prestación de servicios profesionales y de apoyo a la gestión","Contratación directa","Prestación de servicios profesionales y de apoyo a la gestión, o para la ejecución de trabajos artísticos que sólo puedan encomendarse a determinadas personas naturales;","Prestar servicios técnicos para apoyar la gestión y ejecución de las actividades administrativas que se adelantan en el Despacho de la Alcaldía Local de Chapinero para el cumplimiento de las metas y objetivos del Plan de Desarrollo Local","Inversión","Un Nuevo Contrato Social y Ambiental para la Bogotá del Siglo XXI",57,{"$f":"IF(ISERROR(VLOOKUP(L17,Proposito_programa!$C$2:$E$59,2,FALSE)),\" \",VLOOKUP(L17,Proposito_programa!$C$2:$E$59,2,FALSE))","v":"Gestión pública local"},{"$f":"IF(ISERROR(VLOOKUP(L17,Proposito_programa!$C$2:$E$59,3,FALSE)),\" \",VLOOKUP(L17,Proposito_programa!$C$2:$E$59,3,FALSE))","v":"Propósito 5: Construir Bogotá - Región con gobierno abierto, transparente y ciudadanía consciente"},"133011605570000001741",1,1091663411,"JUAN PABLO SANJUAN ARIAS","Persona Natural",null,null,null,16200000,null,null,null,16200000,16200000,"2021-01-28","2021-01-28","2021-07-27",180,null,0,null,null,null,null,null,null,"X",null,1]
[1,5,2021,"FDLCH-CPS-005-2021","https://community.secop.gov.co/Public/Tendering/OpportunityDetail/Index?noticeUID=CO1.NTC.1707109&isFromPublicArea=True&isModal=true&asPopupView=true","Contratos de prestación de servicios profesionales y de apoyo a la gestión","Contratación directa","Prestación de servicios profesionales y de apoyo a la gestión, o para la ejecución de trabajos artísticos que sólo puedan encomendarse a determinadas personas naturales;","Prestar servicios profesionales especializados de apoyo al área de Gestión del Desarrollo Local, en la articulación, estructuración y seguimiento del proceso de planeación estratégica local, desarrollando actividades relacionadas con la formulación, seguimiento, terminación y cierre de proyectos de inversión, así como la estructuración, ejecución y cierre de los Planes de Desarrollo Local","Inversión","Un Nuevo Contrato Social y Ambiental para la Bogotá del Siglo XXI",57,{"$f":"IF(ISERROR(VLOOKUP(L18,Proposito_programa!$C$2:$E$59,2,FALSE)),\" \",VLOOKUP(L18,Proposito_programa!$C$2:$E$59,2,FALSE))","v":"Gestión pública local"},{"$f":"IF(ISERROR(VLOOKUP(L18,Proposito_programa!$C$2:$E$59,3,FALSE)),\" \",VLOOKUP(L18,Proposito_programa!$C$2:$E$59,3,FALSE))","v":"Propósito 5: Construir Bogotá - Región con gobierno abierto, transparente y ciudadanía consciente"},"133011605570000001741",1,1022331685,"NELSON MAURICIO REY PEÑA","Persona Natural",null,null,null,56000000,null,1,25433333,81433333,74200000,"2021-01-28","2021-01-28","2022-01-15",240,1,30,null,null,null,null,null,"X",null,null,0.91117478883002367]
[1,6,2021,"FDLCH-CPS-006-2021","https://community.secop.gov.co/Public/Tendering/OpportunityDetail/Index?noticeUID=CO1.NTC.1708823&isFromPublicArea=True&isModal=true&asPopupView=true","Contratos de prestación de servicios profesionales y de apoyo a la gestión","Contratación directa","Prestación de servicios profesionales y de apoyo a la gestión, o para la ejecución de trabajos artísticos que sólo puedan encomendarse a determinadas personas naturales;","Prestar servicios personales para apoyar actividades operativas y administrativas de la gestión precontractual, contractual y postcontractual que adelante el Fondo de Desarrollo Local de Chapinero “","Inversión","Un Nuevo Contrato Social y Ambiental para la Bogotá del Siglo XXI",57,{"$f":"IF(ISERROR(VLOOKUP(L19,Proposito_programa!$C$2:$E$59,2,FALSE)),\" \",VLOOKUP(L19,Proposito_programa!$C$2:$E$59,2,FALSE))","v":"Gestión pública local"},{"$f":"IF(ISERROR(VLOOKUP(L19,Proposito_programa!$C$2:$E$59,3,FALSE)),\" \",VLOOKUP(L19,Proposito_programa!$C$2:$E$59,3,FALSE))","v":"Propósito 5: Construir Bogotá - Región con gobierno abierto, transparente y ciudadanía consciente"},"133011605570000001741",1,5229337,"MARTHA YANETH VASQUEZ FIGUEROA","Persona Natural",null,null,null,11000000,null,1,5500000,16500000,16500000,"2021-01-28","2021-01-29","2021-09-12",150,1,30,null,null,null,null,null,null,"X",null,1]
[1,7,2021,"FDLCH-CPS-007-2021","https://community.secop.gov.co/Public/Tendering/OpportunityDetail/Index?noticeUID=CO1.NTC.1708710&isFromPublicArea=True&isModal=true&asPopupView=true","Contratos de prestación de servicios profesionales y de apoyo a la gestión","Contratación directa","Prestación de servicios profesionales y de apoyo a la gestión, o para la ejecución de trabajos artísticos que sólo puedan encomendarse a determinadas personas naturales;","Prestar servicios de apoyo a la gestión para asistir logística y administrativamente al Despacho de la Alcaldía Local de Chapinero","Inversión","Un Nuevo Contrato Social y Ambiental para la Bogotá del Siglo XXI",57,{"$f":"IF(ISERROR(VLOOKUP(L20,Proposito_programa!$C$2:$E$59,2,FALSE)),\" \",VLOOKUP(L20,Proposito_programa!$C$2:$E$59,2,FALSE))","v":"Gestión pública local"},{"$f":"IF(ISERROR(VLOOKUP(L20,Proposito_programa!$C$2:$E$59,3,FALSE)),\" \",VLOOKUP(L20,Proposito_programa!$C$2:$E$59,3,FALSE))","v":"Propósito 5: Construir Bogotá - Región con gobierno abierto, transparente y ciudadanía consciente"},"133011605570000001741",1,73159185,"GERMAN ENRIQUE CASTILLO CORREA","Persona Natural",null,null,null,12600000,null,null,null,12600000,12600000,"2021-01-28","2021-01-29","2021-07-28",180,null,0,null,null,null,null,null,null,"X",null,1]
[1,8,2021,"FDLCH-CPS-008-2021","https://community.secop.gov.co/Public/Tendering/OpportunityDetail/Index?noticeUID=CO1.NTC.1708921&isFromPublicArea=True&isModal=true&asPopupView=true","Contratos de prestación de servicios profesionales y de apoyo a la gestión","Contratación directa","Prestación de servicios profesionales y de apoyo a la gestión, o para la ejecución de trabajos artísticos que sólo puedan encomendarse a determinadas personas naturales;","Prestar servicios profesionales para apoyar la gestión precontractual, contractual y postcontractual que adelante el Fondo de Desarrollo Local de Chapinero “","Inversión","Un Nuevo Contrato Social y Ambiental para la Bogotá del Siglo XXI",57,{"$f":"IF(ISERROR(VLOOKUP(L21,Proposito_programa!$C$2:$E$59,2,FALSE)),\" \",VLOOKUP(L21,Proposito_programa!$C$2:$E$59,2,FALSE))","v":"Gestión pública local"},{"$f":"IF(ISERROR(VLOOKUP(L21,Proposito_programa!$C$2:$E$59,3,FALSE)),\" \",VLOOKUP(L21,Proposito_programa!$C$2:$E$59,3,FALSE))","v":"Propósito 5: Construir Bogotá - Región con gobierno abierto, transparente y ciudadanía consciente"},"133011605570000001741",1,1094248111,"YEINI RAQUEL BLANCO MENDOZA","Persona Natural",null,null,null,24000000,null,1,12000000,36000000,36000000,"2021-01-28","2021-01-29","2021-09-12",150,1,30,null,null,null,null,null,null,"X",null,1]
[1,9,2021,"FDLCH-CPS-009-2021","https://community.secop.gov.co/Public/Tendering/OpportunityDetail/Index?noticeUID=CO1.NTC.1708277&isFromPublicArea=True&isModal=true&asPopupView=true","Contratos de prestación de servicios profesionales y de apoyo a la gestión","Contratación directa","Prestación de servicios profesionales y de apoyo a la gestión, o para la ejecución de trabajos artísticos que sólo puedan encomendarse a determinadas personas naturales;","Prestar servicios profesionales para apoyar la gestión precontractual, contractual y postcontractual que adelante el Fondo de Desarrollo Local de Chapinero “","Inversión","Un Nuevo Contrato Social y Ambiental para la Bogotá del Siglo XXI",57,{"$f":"IF(ISERROR(VLOOKUP(L22,Proposito_programa!$C$2:$E$59,2,FALSE)),\" \",VLOOKUP(L22,Proposito_programa!$C$2:$E$59,2,FALSE))","v":"Gestión pública local"},{"$f":"IF(ISERROR(VLOOKUP(L22,Proposito_programa!$C$2:$E$59,3,FALSE)),\" \",VLOOKUP(L22,Proposito_programa!$C$2:$E$59,3,FALSE))","v":"Propósito 5: Construir Bogotá - Región con gobierno abierto, transparente y ciudadanía consciente"},"133011605570000001841",1,79696907,"JUAN CARLOS GOMEZ MELGAREJO","Persona Natural",null,null,null,56000000,null,1,24966667,80966667,70466667,"2021-01-29","2021-01-29","2022-01-14",240,1,30,null,null,null,null,null,"X",null,null,0.87031700341573892]
[1,10,2021,"FDLCH-CPS-010-2021","https://community.secop.gov.co/Public/Tendering/OpportunityDetail/Index?noticeUID=CO1.NTC.1719798&isFromPublicArea=True&isModal=true&asPopupView=true","Contratos de prestación de servicios profesionales y de apoyo a la gestión","Contratación directa","Prestación de servicios profesionales y de apoyo a la gestión, o para la ejecución de trabajos artísticos que sólo puedan encomendarse a determinadas personas naturales;","Prestar los servicios personales necesarios para la conducción de los vehículos que conforman el parque automotor en propiedad u custodia del fondo de Desarrollo Local de Chapinero y el transporte de servidores públicos para la realización de las actividades misionales de la Alcaldía Local de Chapinero","Inversión","Un Nuevo Contrato Social y Ambiental para la Bogotá del Siglo XXI",57,{"$f":"IF(ISERROR(VLOOKUP(L23,Proposito_programa!$C$2:$E$59,2,FALSE)),\" \",VLOOKUP(L23,Proposito_programa!$C$2:$E$59,2,FALSE))","v":"Gestión pública local"},{"$f":"IF(ISERROR(VLOOKUP(L23,Proposito_programa!$C$2:$E$59,3,FALSE)),\" \",VLOOKUP(L23,Proposito_programa!$C$2:$E$59,3,FALSE))","v":"Propósito 5: Construir Bogotá - Región con gobierno abierto, transparente y ciudadanía consciente"},"133011605570000001741",1,3220879,"BENEDICTO VANEGAS CASTELLANOS","Persona Natural",null,null,null,9600000,null,1,4800000,14400000,14400000,"2021-01-29","2021-02-03","2021-08-01",120,1,30,null,null,null,null,null,null,"X",null,1]
[1,11,2021,"FDLCH-CPS-011-2021","https://community.secop.gov.co/Public/Tendering/OpportunityDetail/Index?noticeUID=CO1.NTC.1714517&isFromPublicArea=True&isModal=true&asPopupView=true","Contratos de prestación de servicios profesionales y de apoyo a la gestión","Contratación directa","Prestación de servicios profesionales y de apoyo a la gestión, o para la ejecución de trabajos artísticos que sólo puedan encomendarse a determinadas personas naturales;","Prestación de servicios personales de apoyo a la gestión necesarios para el apoyo en la ejecución de actividades administrativas y operativas adelantadas en la Junta Administradora Local de Chapinero.","Inversión","Un Nuevo Contrato Social y Ambiental para la Bogotá del Siglo XXI",57,{"$f":"IF(ISERROR(VLOOKUP(L24,Proposito_programa!$C$2:$E$59,2,FALSE)),\" \",VLOOKUP(L24,Proposito_programa!$C$2:$E$59,2,FALSE))","v":"Gestión pública local"},{"$f":"IF(ISERROR(VLOOKUP(L24,Proposito_programa!$C$2:$E$59,3,FALSE)),\" \",VLOOKUP(L24,Proposito_programa!$C$2:$E$59,3,FALSE))","v":"Propósito 5: Construir Bogotá - Región con gobierno abierto, transparente y ciudadanía consciente"},"133011605570000001741",1,51968302,"DIANA SOFIA MELO CASTRO","Persona Natural",null,null,null,7440000,null,1,3720000,11160000,11160000,"2021-02-01","2021-02-02","2021-06-15",90,1,30,null,null,null,null,null,null,"X",null,1]
[1,12,2021,"FDLCH-CPS-012-2021","https://community.secop.gov.co/Public/Tendering/OpportunityDetail/Index?noticeUID=CO1.NTC.1715126&isFromPublicArea=True&isModal=true&asPopupView=true","Contratos de prestación de servicios profesionales y de apoyo a la gestión","Contratación directa","Prestación de servicios profesionales y de apoyo a la gestión, o para la ejecución de trabajos artísticos que sólo puedan encomendarse a determinadas personas naturales;","Prestar servicios profesionales para apoyar jurídicamente la ejecución de las acciones requeridas para la depuración de las actuaciones administrativas que cursan en la Alcaldía Local.","Inversión","Un Nuevo Contrato Social y Ambiental para la Bogotá del Siglo XXI",57,{"$f":"IF(ISERROR(VLOOKUP(L25,Proposito_programa!$C$2:$E$59,2,FALSE)),\" \",VLOOKUP(L25,Proposito_programa!$C$2:$E$59,2,FALSE))","v":"Gestión pública local"},{"$f":"IF(ISERROR(VLOOKUP(L25,Proposito_programa!$C$2:$E$59,3,FALSE)),\" \",VLOOKUP(L25,Proposito_programa!$C$2:$E$59,3,FALSE))","v":"Propósito 5: Construir Bogotá - Región con gobierno abierto, transparente y ciudadanía consciente"},"133011605570000001841",1,1012402727,"NATHALY TORRES TORRES","Persona Natural",null,null,null,26100000,null,1,13050000,39150000,39150000,"2021-01-29","2021-02-01","2021-10-31",180,1,30,null,null,null,null,null,null,"X",null,1]
[1,13,2021,"FDLCH-CPS-013-2021","https://community.secop.gov.co/Public/Tendering/OpportunityDetail/Index?noticeUID=CO1.NTC.1715456&isFromPublicArea=True&isModal=true&asPopupView=true","Contratos de prestación de servicios profesionales y de apoyo a la gestión","Contratación directa","Prestación de servicios profesionales y de apoyo a la gestión, o para la ejecución de trabajos artísticos que sólo puedan encomendarse a determinadas personas naturales;","Prestar los servicios profesionales para apoyar el área Gestión del Desarrollo Local en las actividades contables requeridas por el Fondo de Desarrollo Local de Chapinero.","Inversión","Un Nuevo Contrato Social y Ambiental para la Bogotá del Siglo XXI",57,{"$f":"IF(ISERROR(VLOOKUP(L26,Proposito_programa!$C$2:$E$59,2,FALSE)),\" \",VLOOKUP(L26,Proposito_programa!$C$2:$E$59,2,FALSE))","v":"Gestión pública local"},{"$f":"IF(ISERROR(VLOOKUP(L26,Proposito_programa!$C$2:$E$59,3,FALSE)),\" \",VLOOKUP(L26,Proposito_programa!$C$2:$E$59,3,FALSE))","v":"Propósito 5: Construir Bogotá - Región con gobierno abierto, transparente y ciudadanía consciente"},"133011605570000001741",1,7141790,"LEONARDO OROZCO MARTINEZ MARTINEZ","Persona Natural",null,null,null,18000000,null,1,9000000,27000000,27000000,"2021-01-29","2021-02-01","2021-07-31",120,1,30,null,null,null,null,null,null,"X",null,1]
[1,14,2021,"FDLCH-CPS-014-2021","https://community.secop.gov.co/Public/Tendering/OpportunityDetail/Index?noticeUID=CO1.NTC.1725754&isFromPublicArea=True&isModal=true&asPopupView=true","Contratos de prestación de servicios profesionales y de apoyo a la gestión","Contratación directa","Prestación de servicios profesionales y de apoyo a la gestión, o para la ejecución de trabajos artísticos que sólo puedan encomendarse a determinadas personas naturales;","Prestar servicios profesionales especializados para apoyar la gestión jurídica del Despacho de la Alcaldía Local de Chapinero y la de las dependencias que la conforman","Inversión","Un Nuevo Contrato Social y Ambiental para la Bogotá del Siglo XXI",57,{"$f":"IF(ISERROR(VLOOKUP(L27,Proposito_programa!$C$2:$E$59,2,FALSE)),\" \",VLOOKUP(L27,Proposito_programa!$C$2:$E$59,2,FALSE))","v":"Gestión pública local"},{"$f":"IF(ISERROR(VLOOKUP(L27,Proposito_programa!$C$2:$E$59,3,FALSE)),\" \",VLOOKUP(L27,Proposito_programa!$C$2:$E$59,3,FALSE))","v":"Propósito 5: Construir Bogotá - Región con gobierno abierto, transparente y ciudadanía consciente"},"133011605570000001741",1,1085933782,"KAREN DANIELA ROSER NARVAEZ","Persona Natural",null,null,null,54560000,null,1,22733333,77293333,67745333,"2021-02-02","2021-02-03","2022-01-22",240,1,30,null,null,null,null,null,null,"X",null,0.87647058770256425]
[1,15,2021,"FDLCH-CPS-015-2021","https://community.secop.gov.co/Public/Tendering/OpportunityDetail/Index?noticeUID=CO1.NTC.1730011&isFromPublicArea=True&isModal=true&asPopupView=true","Contratos de prestación de servicios profesionales y de apoyo a la gestión","Contratación directa","Prestación de servicios profesionales y de apoyo a la gestión, o para la ejecución de trabajos artísticos que sólo puedan encomendarse a determinadas personas naturales;","Prestación de servicios personales de apoyo a la gestión necesarios para el apoyo en la ejecución de actividades administrativas y operativas adelantadas en la Junta Administradora Local de Chapinero.","Inversión","Un Nuevo Contrato Social y Ambiental para la Bogotá del Siglo XXI",57,{"$f":"IF(ISERROR(VLOOKUP(L28,Proposito_programa!$C$2:$E$59,2,FALSE)),\" \",VLOOKUP(L28,Proposito_programa!$C$2:$E$59,2,FALSE))","v":"Gestión pública local"},{"$f":"IF(ISERROR(VLOOKUP(L28,Proposito_programa!$C$2:$E$59,3,FALSE)),\" \",VLOOKUP(L28,Proposito_programa!$C$2:$E$59,3,FALSE))","v":"Propósito 5: Construir Bogotá - Región con gobierno abierto, transparente y ciudadanía consciente"},"133011605570000001741",1,52523548,"SANDRA MILENA GOMEZ SALAZAR","Persona Natural",null,null,null,7440000,null,null,null,7440000,7274667,"2021-02-03","2021-02-03","2021-05-02",90,null,0,null,null,null,null,null,null,"X",null,0.97777782258064516]
[1,16,2021,"FDLCH-CPS-016-2021","https://community.secop.gov.co/Public/Tendering/OpportunityDetail/Index?noticeUID=CO1.NTC.1726935&isFromPublicArea=True&isModal=true&asPopupView=true","Contratos de prestación de servicios profesionales y de apoyo a la gestión","Contratación directa","Prestación de servicios profesionales y de apoyo a la gestión, o para la ejecución de trabajos artísticos que sólo puedan encomendarse a determinadas personas naturales;","Prestar servicios profesionales para apoyar en la gestión de los asuntos relacionados con espacio publico más seguro mediante actuaciones que garanticen la seguridad ciudadana, convivencia y prevención de conflictividades, violencias y delitos en la localidad de conformidad con el marco normativo vigente","Inversión","Un Nuevo Contrato Social y Ambiental para la Bogotá del Siglo XXI",45,{"$f":"IF(ISERROR(VLOOKUP(L29,Proposito_programa!$C$2:$E$59,2,FALSE)),\" \",VLOOKUP(L29,Proposito_programa!$C$2:$E$59,2,FALSE))","v":"Espacio público más seguro y construido colectivamente"},{"$f":"IF(ISERROR(VLOOKUP(L29,Proposito_programa!$C$2:$E$59,3,FALSE)),\" \",VLOOKUP(L29,Proposito_programa!$C$2:$E$59,3,FALSE))","v":"Propósito 3: Inspirar confianza y legitimidad para vivir sin miedo y ser epicentro de cultura ciudadana, paz y reconciliación"},"133011603450000001736",1,79720862,"IVAN GUILLERMO RAMIREZ REYES","Persona Natural",null,null,null,27500000,null,null,null,27500000,27500000,"2021-02-02","2021-02-03","2021-07-02",150,null,0,null,null,null,null,null,null,"X",null,1]
[1,17,2021,"FDLCH-CPS-017-2021","https://community.secop.gov.co/Public/Tendering/OpportunityDetail/Index?noticeUID=CO1.NTC.1735194&isFromPublicArea=True&isModal=true&asPopupView=true","Contratos de prestación de servicios profesionales y de apoyo a la gestión","Contratación directa","Prestación de servicios profesionales y de apoyo a la gestión, o para la ejecución de trabajos artísticos que sólo puedan encomendarse a determinadas personas naturales;","Prestar servicios de apoyo a la gestión para desarrollar las actividades de radicación, gestión de correspondencia y de la documentación que expide, se allega y controla la Alcaldía Local de Chapinero.","Inversión","Un Nuevo Contrato Social y Ambiental para la Bogotá del Siglo XXI",57,{"$f":"IF(ISERROR(VLOOKUP(L30,Proposito_programa!$C$2:$E$59,2,FALSE)),\" \",VLOOKUP(L30,Proposito_programa!$C$2:$E$59,2,FALSE))","v":"Gestión pública local"},{"$f":"IF(ISERROR(VLOOKUP(L30,Proposito_programa!$C$2:$E$59,3,FALSE)),\" \",VLOOKUP(L30,Proposito_programa!$C$2:$E$59,3,FALSE))","v":"Propósito 5: Construir Bogotá - Región con gobierno abierto, transparente y ciudadanía consciente"},"133011605570000001741",1,1031147236,"DEISY YINETH FRANCO PENAGOS","Persona Natural",null,null,null,14400000,null,null,null,14400000,14400000,"2021-02-04","2021-02-05","2021-08-04",180,null,0,null,null,null,null,null,null,"X",null,1]
[1,18,2021,"FDLCH-CPS-018-2021","https://community.secop.gov.co/Public/Tendering/OpportunityDetail/Index?noticeUID=CO1.NTC.1751644&isFromPublicArea=True&isModal=true&asPopupView=true","Contratos de prestación de servicios profesionales y de apoyo a la gestión","Contratación directa","Prestación de servicios profesionales y de apoyo a la gestión, o para la ejecución de trabajos artísticos que sólo puedan encomendarse a determinadas personas naturales;","Prestar los servicios personales necesarios para la conducción de los vehículos que conforman el parque automotor en propiedad o custodia del Fondo de Desarrollo Local de Chapinero, y el transporte de servidores públicos para la realización de las actividades misionales de la Alcaldía Local de Chapinero.","Inversión","Un Nuevo Contrato Social y Ambiental para la Bogotá del Siglo XXI",57,{"$f":"IF(ISERROR(VLOOKUP(L31,Proposito_programa!$C$2:$E$59,2,FALSE)),\" \",VLOOKUP(L31,Proposito_programa!$C$2:$E$59,2,FALSE))","v":"Gestión pública local"},{"$f":"IF(ISERROR(VLOOKUP(L31,Proposito_programa!$C$2:$E$59,3,FALSE)),\" \",VLOOKUP(L31,Proposito_programa!$C$2:$E$59,3,FALSE))","v":"Propósito 5: Construir Bogotá - Región con gobierno abierto, transparente y ciudadanía consciente"},"133011605570000001741",1,80157713,"FERNANDO MEDINA MONTERO","Persona Natural",null,null,null,9600000,null,1,4800000,14400000,14400000,"2021-02-06","2021-02-11","2021-08-10",120,1,30,null,null,null,null,null,null,"X",null,1]
[1,19,2021,"FDLCH-CPS-019-2021","https://community.secop.gov.co/Public/Tendering/OpportunityDetail/Index?noticeUID=CO1.NTC.1734656&isFromPublicArea=True&isModal=true&asPopupView=true","Contratos de prestación de servicios profesionales y de apoyo a la gestión","Contratación directa","Prestación de servicios profesionales y de apoyo a la gestión, o para la ejecución de trabajos artísticos que sólo puedan encomendarse a determinadas personas naturales;","Prestar servicios de apoyo a la gestión para desarrollar las actividades de radicación, gestión de correspondencia y de la documentación que expide, se allega y controlan las Inspecciones de Policía de la Alcaldía Local de Chapinero.","Inversión","Un Nuevo Contrato Social y Ambiental para la Bogotá del Siglo XXI",57,{"$f":"IF(ISERROR(VLOOKUP(L32,Proposito_programa!$C$2:$E$59,2,FALSE)),\" \",VLOOKUP(L32,Proposito_programa!$C$2:$E$59,2,FALSE))","v":"Gestión pública local"},{"$f":"IF(ISERROR(VLOOKUP(L32,Proposito_programa!$C$2:$E$59,3,FALSE)),\" \",VLOOKUP(L32,Proposito_programa!$C$2:$E$59,3,FALSE))","v":"Propósito 5: Construir Bogotá - Región con gobierno abierto, transparente y ciudadanía consciente"},"133011605570000001741",1,1063134906,"VANESA ALEXANDRA JIMENEZ ARTEAGA","Persona Natural",null,null,null,8800000,null,1,4400000,13200000,13200000,"2021-02-04","2021-02-10","2021-08-09",120,1,30,null,null,null,null,null,null,"X",null,1]
[1,20,2021,"FDLCH-CPS-020-2021","https://community.secop.gov.co/Public/Tendering/OpportunityDetail/Index?noticeUID=CO1.NTC.1738831&isFromPublicArea=True&isModal=true&asPopupView=true","Contratos de prestación de servicios profesionales y de apoyo a la gestión","Contratación directa","Prestación de servicios profesionales y de apoyo a la gestión, o para la ejecución de trabajos artísticos que sólo puedan encomendarse a determinadas personas naturales;","Prestar Servicios profesionales para la gestión, formulación, desarrollo y seguimiento del proyecto de inversión chapinero siembra esperanza","Inversión","Un Nuevo Contrato Social y Ambiental para la Bogotá del Siglo XXI",24,{"$f":"IF(ISERROR(VLOOKUP(L33,Proposito_programa!$C$2:$E$59,2,FALSE)),\" \",VLOOKUP(L33,Proposito_programa!$C$2:$E$59,2,FALSE))","v":"Bogotá región emprendedora e innovadora"},{"$f":"IF(ISERROR(VLOOKUP(L33,Proposito_programa!$C$2:$E$59,3,FALSE)),\" \",VLOOKUP(L33,Proposito_programa!$C$2:$E$59,3,FALSE))","v":"Propósito 1: Hacer un nuevo contrato social para incrementar la inclusión social, productiva y política"},"133011601240000001631",1,1030542408,"JOHN ELKIN FEO DUITAMA","Persona Natural",null,null,null,24000000,null,1,12000000,36000000,32160000,"2021-02-05","2021-02-10","2021-09-24",150,1,30,null,null,null,null,null,null,"X",null,0.89333333333333331]
[1,21,2021,"FDLCH-CPS-021-2021","https://community.secop.gov.co/Public/Tendering/OpportunityDetail/Index?noticeUID=CO1.NTC.1751429&isFromPublicArea=True&isModal=true&asPopupView=true","Contratos de prestación de servicios profesionales y de apoyo a la gestión","Contratación directa","Prestación de servicios profesionales y de apoyo a la gestión, o para la ejecución de trabajos artísticos que sólo puedan encomendarse a determinadas personas naturales;","Prestar servicios profesionales para la gestión, formulación, desarrollo y seguimiento del proyecto de inversión proyecto chapinero sostenible y consciente.","Inversión","Un Nuevo Contrato Social y Ambiental para la Bogotá del Siglo XXI",38,{"$f":"IF(ISERROR(VLOOKUP(L34,Proposito_programa!$C$2:$E$59,2,FALSE)),\" \",VLOOKUP(L34,Proposito_programa!$C$2:$E$59,2,FALSE))","v":"Ecoeficiencia, reciclaje, manejo de residuos e inclusión de la población recicladora"},{"$f":"IF(ISERROR(VLOOKUP(L34,Proposito_programa!$C$2:$E$59,3,FALSE)),\" \",VLOOKUP(L34,Proposito_programa!$C$2:$E$59,3,FALSE))","v":"Propósito 2 : Cambiar Nuestros Hábitos de Vida para Reverdecer a Bogotá y Adaptarnos y Mitigar la Crisis Climática"},"133011602380000001728",1,1019031184,"RAYMOND ALEXANDER JIMENEZ ARTEAGA","Persona Natural",null,null,null,24000000,null,1,12000000,36000000,36000000,"2021-02-10","2021-02-11","2021-09-25",150,1,30,null,null,null,null,null,null,"X",null,1]
[1,22,2021,"FDLCH-CPS-022-2021","https://community.secop.gov.co/Public/Tendering/OpportunityDetail/Index?noticeUID=CO1.NTC.1751112&isFromPublicArea=True&isModal=true&asPopupView=true","Contratos de prestación de servicios profesionales y de apoyo a la gestión","Contratación directa","Prestación de servicios profesionales y de apoyo a la gestión, o para la ejecución de trabajos artísticos que sólo puedan encomendarse a determinadas personas naturales;","Prestar servicios profesionales para coordinar, liderar y asesorar los planes y estrategias de comunicación interna y externa para la divulgación de los programas, proyectos y actividades de la Alcaldía Local","Inversión","Un Nuevo Contrato Social y Ambiental para la Bogotá del Siglo XXI",57,{"$f":"IF(ISERROR(VLOOKUP(L35,Proposito_programa!$C$2:$E$59,2,FALSE)),\" \",VLOOKUP(L35,Proposito_programa!$C$2:$E$59,2,FALSE))","v":"Gestión pública local"},{"$f":"IF(ISERROR(VLOOKUP(L35,Proposito_programa!$C$2:$E$59,3,FALSE)),\" \",VLOOKUP(L35,Proposito_programa!$C$2:$E$59,3,FALSE))","v":"Propósito 5: Construir Bogotá - Región con gobierno abierto, transparente y ciudadanía consciente"},"133011605570000001741",1,1026283792,"ESTEFANIA AYALA QUICENO","Persona Natural",null,null,null,33000000,-27683333,null,null,5316667,5316667,"2021-02-05","2021-02-10","2021-03-08",180,null,0,null,null,null,null,null,null,"X",null,1]
[1,23,2021,"FDLCH-CPS-023-2021","https://community.secop.gov.co/Public/Tendering/OpportunityDetail/Index?noticeUID=CO1.NTC.1739072&isFromPublicArea=True&isModal=true&asPopupView=true","Contratos de prestación de servicios profesionales y de apoyo a la gestión","Contratación directa","Prestación de servicios profesionales y de apoyo a la gestión, o para la ejecución de trabajos artísticos que sólo puedan encomendarse a determinadas personas naturales;","Prestar servicios profesionales para apoyar el cubrimiento de las actividades, cronogramas y agenda de la Alcaldía local a nivel interno y externo, así́ como la generación de contenidos periodísticos","Inversión","Un Nuevo Contrato Social y Ambiental para la Bogotá del Siglo XXI",57,{"$f":"IF(ISERROR(VLOOKUP(L36,Proposito_programa!$C$2:$E$59,2,FALSE)),\" \",VLOOKUP(L36,Proposito_programa!$C$2:$E$59,2,FALSE))","v":"Gestión pública local"},{"$f":"IF(ISERROR(VLOOKUP(L36,Proposito_programa!$C$2:$E$59,3,FALSE)),\" \",VLOOKUP(L36,Proposito_programa!$C$2:$E$59,3,FALSE))","v":"Propósito 5: Construir Bogotá - Región con gobierno abierto, transparente y ciudadanía consciente"},"133011605570000001741",1,1019110016,"JUAN SEBASTIAN CASTRO VANEGAS","Persona Natural",null,null,null,20000000,null,1,10000000,30000000,30000000,"2021-02-10","2021-02-10","2021-09-24",150,1,30,null,null,null,null,null,null,"X",null,1]
[1,24,2021,"FDLCH-CPS-024-2021","https://community.secop.gov.co/Public/Tendering/OpportunityDetail/Index?noticeUID=CO1.NTC.1752906&isFromPublicArea=True&isModal=true&asPopupView=true","Contratos de prestación de servicios profesionales y de apoyo a la gestión","Contratación directa","Prestación de servicios profesionales y de apoyo a la gestión, o para la ejecución de trabajos artísticos que sólo puedan encomendarse a determinadas personas naturales;","Prestar servicios de apoyo a las labores de entrega y recibo de las comunicaciones emitidas o recibidas por las Inspecciones de Policía de la Localidad.","Inversión","Un Nuevo Contrato Social y Ambiental para la Bogotá del Siglo XXI",57,{"$f":"IF(ISERROR(VLOOKUP(L37,Proposito_programa!$C$2:$E$59,2,FALSE)),\" \",VLOOKUP(L37,Proposito_programa!$C$2:$E$59,2,FALSE))","v":"Gestión pública local"},{"$f":"IF(ISERROR(VLOOKUP(L37,Proposito_programa!$C$2:$E$59,3,FALSE)),\" \",VLOOKUP(L37,Proposito_programa!$C$2:$E$59,3,FALSE))","v":"Propósito 5: Construir Bogotá - Región con gobierno abierto, transparente y ciudadanía consciente"},"133011605570000001741",1,1019024025,"EFRAIN ANDRES MONROY CEPEDA","Persona Natural",null,null,null,11500000,null,1,5750000,17250000,17250000,"2021-02-10","2021-02-11","2021-09-25",150,1,30,null,null,null,null,null,null,"X",null,1]
[1,25,2021,"FDLCH-CPS-025-2021","https://community.secop.gov.co/Public/Tendering/OpportunityDetail/Index?noticeUID=CO1.NTC.1770277&isFromPublicArea=True&isModal=true&asPopupView=true","Contratos de prestación de servicios profesionales y de apoyo a la gestión","Contratación directa","Prestación de servicios profesionales y de apoyo a la gestión, o para la ejecución de trabajos artísticos que sólo puedan encomendarse a determinadas personas naturales;","Prestar servicios profesionales para apoyar técnicamente las distintas etapas de los procesos de competencia de las inspecciones de policía de la localidad de chapinero, según reparto","Inversión","Un Nuevo Contrato Social y Ambiental para la Bogotá del Siglo XXI",57,{"$f":"IF(ISERROR(VLOOKUP(L38,Proposito_programa!$C$2:$E$59,2,FALSE)),\" \",VLOOKUP(L38,Proposito_programa!$C$2:$E$59,2,FALSE))","v":"Gestión pública local"},{"$f":"IF(ISERROR(VLOOKUP(L38,Proposito_programa!$C$2:$E$59,3,FALSE)),\" \",VLOOKUP(L38,Proposito_programa!$C$2:$E$59,3,FALSE))","v":"Propósito 5: Construir Bogotá - Región con gobierno abierto, transparente y ciudadanía consciente"},"133011605570000001841",1,80429650,"EXCELINO ROMERO CASTAÑEDA","Persona Natural",null,null,null,18400000,null,1,9200000,27600000,27600000,"2021-02-17","2021-02-17","2021-08-16",120,1,30,null,null,null,null,null,null,"X",null,1]
[1,26,2021,"FDLCH-CPS-026-2021","https://community.secop.gov.co/Public/Tendering/OpportunityDetail/Index?noticeUID=CO1.NTC.1757731&isFromPublicArea=True&isModal=true&asPopupView=true","Contratos de prestación de servicios profesionales y de apoyo a la gestión","Contratación directa","Prestación de servicios profesionales y de apoyo a la gestión, o para la ejecución de trabajos artísticos que sólo puedan encomendarse a determinadas personas naturales;","Prestar los servicios profesionales para la gestión, formulación, desarrollo, seguimiento y evaluación del proyecto de inversión CHAPINERO CONSTRUYE TEJIDO CULTURAL”.","Inversión","Un Nuevo Contrato Social y Ambiental para la Bogotá del Siglo XXI",24,{"$f":"IF(ISERROR(VLOOKUP(L39,Proposito_programa!$C$2:$E$59,2,FALSE)),\" \",VLOOKUP(L39,Proposito_programa!$C$2:$E$59,2,FALSE))","v":"Bogotá región emprendedora e innovadora"},{"$f":"IF(ISERROR(VLOOKUP(L39,Proposito_programa!$C$2:$E$59,3,FALSE)),\" \",VLOOKUP(L39,Proposito_programa!$C$2:$E$59,3,FALSE))","v":"Propósito 1: Hacer un nuevo contrato social para incrementar la inclusión social, productiva y política"},"133011601240000001853",1,79728807,"HOSMAN HERNAN ARIAS GUTIERREZ","Persona Natural",null,null,null,26500000,null,1,13250000,39750000,39750000,"2021-02-12","2021-02-12","2021-09-26",150,1,30,null,null,null,null,null,null,"X",null,1]
[1,27,2021,"FDLCH-CPS-027-2021","https://community.secop.gov.co/Public/Tendering/OpportunityDetail/Index?noticeUID=CO1.NTC.1757416&isFromPublicArea=True&isModal=true&asPopupView=true","Contratos de prestación de servicios profesionales y de apoyo a la gestión","Contratación directa","Prestación de servicios profesionales y de apoyo a la gestión, o para la ejecución de trabajos artísticos que sólo puedan encomendarse a determinadas personas naturales;","Prestar servicios profesionales para el apoyo al área de gestión del desarrollo local de la Alcaldía Local de Chapinero en la formulación, gestión, ejecución y seguimiento de los contratos derivados del proyecto Chapinero Productivo y emprendedor, la Estrategia de Mitigación y Reactivación Económica, EMRE Local y la supervisión de contratos que le sean asignados.","Inversión","Un Nuevo Contrato Social y Ambiental para la Bogotá del Siglo XXI",6,{"$f":"IF(ISERROR(VLOOKUP(L40,Proposito_programa!$C$2:$E$59,2,FALSE)),\" \",VLOOKUP(L40,Proposito_programa!$C$2:$E$59,2,FALSE))","v":"Sistema Distrital de Cuidado"},{"$f":"IF(ISERROR(VLOOKUP(L40,Proposito_programa!$C$2:$E$59,3,FALSE)),\" \",VLOOKUP(L40,Proposito_programa!$C$2:$E$59,3,FALSE))","v":"Propósito 1: Hacer un nuevo contrato social para incrementar la inclusión social, productiva y política"},"133011601060000001671",1,1032381420,"JENNIFER TORRES TORRES","Persona Natural",null,null,null,37200000,null,1,18600000,55800000,55800000,"2021-02-11","2021-02-12","2021-11-11",180,1,30,null,null,null,null,null,null,"X",null,1]
[1,28,2021,"FDLCH-CPS-028-2021","https://community.secop.gov.co/Public/Tendering/OpportunityDetail/Index?noticeUID=CO1.NTC.1760534&isFromPublicArea=True&isModal=true&asPopupView=true","Contratos de prestación de servicios profesionales y de apoyo a la gestión","Contratación directa","Prestación de servicios profesionales y de apoyo a la gestión, o para la ejecución de trabajos artísticos que sólo puedan encomendarse a determinadas personas naturales;","Prestar servicios profesionales para la gestión, formulación, desarrollo, seguimiento y evaluación del Proyecto “Chapinero territorio para vivir sin miedo","Inversión","Un Nuevo Contrato Social y Ambiental para la Bogotá del Siglo XXI",48,{"$f":"IF(ISERROR(VLOOKUP(L41,Proposito_programa!$C$2:$E$59,2,FALSE)),\" \",VLOOKUP(L41,Proposito_programa!$C$2:$E$59,2,FALSE))","v":"Plataforma institucional para la seguridad y justicia"},{"$f":"IF(ISERROR(VLOOKUP(L41,Proposito_programa!$C$2:$E$59,3,FALSE)),\" \",VLOOKUP(L41,Proposito_programa!$C$2:$E$59,3,FALSE))","v":"Propósito 3: Inspirar confianza y legitimidad para vivir sin miedo y ser epicentro de cultura ciudadana, paz y reconciliación"},"133011603480000001740",1,52904967,"ANGELA CRISTINA CARVAJAL TOVAR","Persona Natural",null,null,null,34200000,null,1,17100000,51300000,37240000,"2021-02-12","2021-02-15","2022-03-18",180,1,30,null,null,null,null,null,null,"X",null,0.72592592592592597]
[1,29,2021,"FDLCH-CPS-029-2021","https://community.secop.gov.co/Public/Tendering/OpportunityDetail/Index?noticeUID=CO1.NTC.1760310&isFromPublicArea=True&isModal=true&asPopupView=true","Contratos de prestación de servicios profesionales y de apoyo a la gestión","Contratación directa","Prestación de servicios profesionales y de apoyo a la gestión, o para la ejecución de trabajos artísticos que sólo puedan encomendarse a determinadas personas naturales;","Prestar los servicios profesionales para la gestión, formulación, desarrollo, seguimiento y evaluación del proyecto de inversión “Chapinero espacio para hábitos saludables” en el componente “construcción y/o conservación de los parques vecinales y/o de bolsillo”.","Inversión","Un Nuevo Contrato Social y Ambiental para la Bogotá del Siglo XXI",33,{"$f":"IF(ISERROR(VLOOKUP(L42,Proposito_programa!$C$2:$E$59,2,FALSE)),\" \",VLOOKUP(L42,Proposito_programa!$C$2:$E$59,2,FALSE))","v":"Más árboles y más y mejor espacio público"},{"$f":"IF(ISERROR(VLOOKUP(L42,Proposito_programa!$C$2:$E$59,3,FALSE)),\" \",VLOOKUP(L42,Proposito_programa!$C$2:$E$59,3,FALSE))","v":"Propósito 2 : Cambiar Nuestros Hábitos de Vida para Reverdecer a Bogotá y Adaptarnos y Mitigar la Crisis Climática"},"133011602330000001723",1,79268761,"MAURICIO BOHORQUEZ ESCOBAR","Persona Natural",null,null,null,33000000,null,null,null,33000000,33000000,"2021-02-12","2021-02-12","2021-08-11",180,null,0,null,null,null,null,null,null,"X",null,1]
[1,30,2021,"FDLCH-CPS030","https://community.secop.gov.co/Public/Tendering/OpportunityDetail/Index?noticeUID=CO1.NTC.1779387&isFromPublicArea=True&isModal=true&asPopupView=true","Contratos de prestación de servicios profesionales y de apoyo a la gestión","Contratación directa","Prestación de servicios profesionales y de apoyo a la gestión, o para la ejecución de trabajos artísticos que sólo puedan encomendarse a determinadas personas naturales;","Prestar servicios profesionales para la gestión, planeación, seguimiento, mitigación y respuesta a situaciones y escenarios de emergencia, en marco del fortalecimiento de la gestión local de los riesgos y la adaptación al cambio climático","Inversión","Un Nuevo Contrato Social y Ambiental para la Bogotá del Siglo XXI",57,{"$f":"IF(ISERROR(VLOOKUP(L43,Proposito_programa!$C$2:$E$59,2,FALSE)),\" \",VLOOKUP(L43,Proposito_programa!$C$2:$E$59,2,FALSE))","v":"Gestión pública local"},{"$f":"IF(ISERROR(VLOOKUP(L43,Proposito_programa!$C$2:$E$59,3,FALSE)),\" \",VLOOKUP(L43,Proposito_programa!$C$2:$E$59,3,FALSE))","v":"Propósito 5: Construir Bogotá - Región con gobierno abierto, transparente y ciudadanía consciente"},"133011605570000001741",1,80220756,"LUIS EDUARDO CRUZ SANCHEZ","Persona Natural",null,null,null,17200000,null,1,8600000,25800000,23506667,"2021-02-15","2021-03-04","2021-09-16",120,1,30,null,null,null,null,null,null,"X",null,0.9111111240310078]
[1,31,2021,"FDLCH-CPS-031-2021","https://community.secop.gov.co/Public/Tendering/OpportunityDetail/Index?noticeUID=CO1.NTC.1768237&isFromPublicArea=True&isModal=true&asPopupView=true","Contratos de prestación de servicios profesionales y de apoyo a la gestión","Contratación directa","Prestación de servicios profesionales y de apoyo a la gestión, o para la ejecución de trabajos artísticos que sólo puedan encomendarse a determinadas personas naturales;","Prestar los servicios de apoyo a la gestión administrativa y asistencial a las Inspecciones de Policía de la Localidad","Inversión","Un Nuevo Contrato Social y Ambiental para la Bogotá del Siglo XXI",57,{"$f":"IF(ISERROR(VLOOKUP(L44,Proposito_programa!$C$2:$E$59,2,FALSE)),\" \",VLOOKUP(L44,Proposito_programa!$C$2:$E$59,2,FALSE))","v":"Gestión pública local"},{"$f":"IF(ISERROR(VLOOKUP(L44,Proposito_programa!$C$2:$E$59,3,FALSE)),\" \",VLOOKUP(L44,Proposito_programa!$C$2:$E$59,3,FALSE))","v":"Propósito 5: Construir Bogotá - Región con gobierno abierto, transparente y ciudadanía consciente"},"133011605570000001841",1,1032462820,"JENNIFER VANNESA DIAZ NIÑO","Persona Natural",null,null,null,8000000,null,null,null,8000000,8000000,"2021-02-17","2021-02-18","2021-06-17",120,null,0,null,null,null,null,null,null,"X",null,1]
[1,32,2021,"FDLCH-CPS-032-2021","https://community.secop.gov.co/Public/Tendering/OpportunityDetail/Index?noticeUID=CO1.NTC.1767955&isFromPublicArea=True&isModal=true&asPopupView=true","Contratos de prestación de servicios profesionales y de apoyo a la gestión","Contratación directa","Prestación de servicios profesionales y de apoyo a la gestión, o para la ejecución de trabajos artísticos que sólo puedan encomendarse a determinadas personas naturales;","Prestar los servicios profesionales de apoyo jurídico en la ejecución de las acciones requeridas para el trámite e impulso procesal de las actuaciones, contravenciones y/o querellas que cursen en las inspecciones de policía de la localidad","Inversión","Un Nuevo Contrato Social y Ambiental para la Bogotá del Siglo XXI",57,{"$f":"IF(ISERROR(VLOOKUP(L45,Proposito_programa!$C$2:$E$59,2,FALSE)),\" \",VLOOKUP(L45,Proposito_programa!$C$2:$E$59,2,FALSE))","v":"Gestión pública local"},{"$f":"IF(ISERROR(VLOOKUP(L45,Proposito_programa!$C$2:$E$59,3,FALSE)),\" \",VLOOKUP(L45,Proposito_programa!$C$2:$E$59,3,FALSE))","v":"Propósito 5: Construir Bogotá - Región con gobierno abierto, transparente y ciudadanía consciente"},"133011605570000001841",1,3058039,"VIDAL ROBERTO MENDEZ LASPRIELLA","Persona Natural",null,null,null,17600000,null,null,null,17600000,17600000,"2021-02-15","2021-02-16","2021-06-15",120,null,0,null,null,null,null,null,null,"X",null,1]
[1,33,2021,"FDLCH-CPS-033-2021","https://community.secop.gov.co/Public/Tendering/OpportunityDetail/Index?noticeUID=CO1.NTC.1770181&isFromPublicArea=True&isModal=true&asPopupView=true","Contratos de prestación de servicios profesionales y de apoyo a la gestión","Contratación directa","Prestación de servicios profesionales y de apoyo a la gestión, o para la ejecución de trabajos artísticos que sólo puedan encomendarse a determinadas personas naturales;","Prestar servicios profesionales para apoyar técnicamente las distintas etapas de los procesos de competencia de las inspecciones de policía de la localidad de chapinero según reparto.","Inversión","Un Nuevo Contrato Social y Ambiental para la Bogotá del Siglo XXI",57,{"$f":"IF(ISERROR(VLOOKUP(L46,Proposito_programa!$C$2:$E$59,2,FALSE)),\" \",VLOOKUP(L46,Proposito_programa!$C$2:$E$59,2,FALSE))","v":"Gestión pública local"},{"$f":"IF(ISERROR(VLOOKUP(L46,Proposito_programa!$C$2:$E$59,3,FALSE)),\" \",VLOOKUP(L46,Proposito_programa!$C$2:$E$59,3,FALSE))","v":"Propósito 5: Construir Bogotá - Región con gobierno abierto, transparente y ciudadanía consciente"},"133011605570000001841",1,80926066,"OMAR DAVID LAVERDE CABRERA","Persona Natural",null,null,null,18400000,null,1,9200000,27600000,27600000,"2021-02-17","2021-02-18","2021-08-17",120,1,30,null,null,null,null,null,null,"X",null,1]
[1,34,2021,"FDLCH-CPS-034-2021","https://community.secop.gov.co/Public/Tendering/OpportunityDetail/Index?noticeUID=CO1.NTC.1772099&isFromPublicArea=True&isModal=true&asPopupView=true","Contratos de prestación de servicios profesionales y de apoyo a la gestión","Contratación directa","Prestación de servicios profesionales y de apoyo a la gestión, o para la ejecución de trabajos artísticos que sólo puedan encomendarse a determinadas personas naturales;","Prestar los servicios profesionales de apoyo jurídico en la ejecución de las acciones requeridas para el trámite e impulso procesal de las actuaciones, contravenciones y/o querellas que cursen en las inspecciones de policía de la localidad","Inversión","Un Nuevo Contrato Social y Ambiental para la Bogotá del Siglo XXI",57,{"$f":"IF(ISERROR(VLOOKUP(L47,Proposito_programa!$C$2:$E$59,2,FALSE)),\" \",VLOOKUP(L47,Proposito_programa!$C$2:$E$59,2,FALSE))","v":"Gestión pública local"},{"$f":"IF(ISERROR(VLOOKUP(L47,Proposito_programa!$C$2:$E$59,3,FALSE)),\" \",VLOOKUP(L47,Proposito_programa!$C$2:$E$59,3,FALSE))","v":"Propósito 5: Construir Bogotá - Región con gobierno abierto, transparente y ciudadanía consciente"},"133011605570000001841",1,53139176,"DENNIS NATALIA BERNAL RAMIREZ","Persona Natural",null,null,null,17600000,null,1,8800000,26400000,26400000,"2021-02-17","2021-02-18","2021-08-17",120,1,30,null,null,null,null,null,null,"X",null,1]
[1,35,2021,"FDLCH-CPS-035-2021","https://community.secop.gov.co/Public/Tendering/OpportunityDetail/Index?noticeUID=CO1.NTC.1775965&isFromPublicArea=True&isModal=true&asPopupView=true","Contratos de prestación de servicios profesionales y de apoyo a la gestión","Contratación directa","Prestación de servicios profesionales y de apoyo a la gestión, o para la ejecución de trabajos artísticos que sólo puedan encomendarse a determinadas personas naturales;","Prestar los servicios profesionales de apoyo jurídico en la ejecución de las acciones requeridas para el trámite e impulso procesal de las actuaciones, contravenciones y/o querellas que cursen en las inspecciones de policía de la localidad","Inversión","Un Nuevo Contrato Social y Ambiental para la Bogotá del Siglo XXI",57,{"$f":"IF(ISERROR(VLOOKUP(L48,Proposito_programa!$C$2:$E$59,2,FALSE)),\" \",VLOOKUP(L48,Proposito_programa!$C$2:$E$59,2,FALSE))","v":"Gestión pública local"},{"$f":"IF(ISERROR(VLOOKUP(L48,Proposito_programa!$C$2:$E$59,3,FALSE)),\" \",VLOOKUP(L48,Proposito_programa!$C$2:$E$59,3,FALSE))","v":"Propósito 5: Construir Bogotá - Región con gobierno abierto, transparente y ciudadanía consciente"},"133011605570000001841",1,79297494,"WILLIAM JAVIER RIVERA MENDOZA","Persona Natural",null,null,null,17600000,null,1,8800000,26400000,26400000,"2021-02-17","2021-02-18","2021-08-17",120,1,30,null,null,null,null,null,null,"X",null,1]
[1,36,2021,"FDLCH-CPS-036-2021","https://community.secop.gov.co/Public/Tendering/OpportunityDetail/Index?noticeUID=CO1.NTC.1785144&isFromPublicArea=True&isModal=true&asPopupView=true","Contratos de prestación de servicios profesionales y de apoyo a la gestión","Contratación directa","Prestación de servicios profesionales y de apoyo a la gestión, o para la ejecución de trabajos artísticos que sólo puedan encomendarse a determinadas personas naturales;","Prestar los servicios de apoyo a la gestión en la implementación, atención, verificación, soporte y acompañamiento de los procesos y/o actuaciones administrativas que requieran el uso de aplicativos y/o herramientas vituales en la localidad de Chapinero","Inversión","Un Nuevo Contrato Social y Ambiental para la Bogotá del Siglo XXI",57,{"$f":"IF(ISERROR(VLOOKUP(L49,Proposito_programa!$C$2:$E$59,2,FALSE)),\" \",VLOOKUP(L49,Proposito_programa!$C$2:$E$59,2,FALSE))","v":"Gestión pública local"},{"$f":"IF(ISERROR(VLOOKUP(L49,Proposito_programa!$C$2:$E$59,3,FALSE)),\" \",VLOOKUP(L49,Proposito_programa!$C$2:$E$59,3,FALSE))","v":"Propósito 5: Construir Bogotá - Región con gobierno abierto, transparente y ciudadanía consciente"},"133011605570000001741",1,79840425,"JUAN ESTEBAN RODRIGUEZ GONZALEZ","Persona Natural",null,null,null,8800000,null,null,null,8800000,586667,"2021-02-19","2021-02-23","2021-07-10",120,1,30,null,null,null,null,null,null,"X",null,6.666670454545455E-2]
[1,37,2021,"FDLCH-CPS-037-2021","https://community.secop.gov.co/Public/Tendering/OpportunityDetail/Index?noticeUID=CO1.NTC.1789152&isFromPublicArea=True&isModal=true&asPopupView=true","Contratos de prestación de servicios profesionales y de apoyo a la gestión","Contratación directa","Prestación de servicios profesionales y de apoyo a la gestión, o para la ejecución de trabajos artísticos que sólo puedan encomendarse a determinadas personas naturales;","Prestar servicios profesionales para apoyar técnicamente las distintas etapas de los procesos de competencia de las inspecciones de policía de la localidad de chapinero según reparto.","Inversión","Un Nuevo Contrato Social y Ambiental para la Bogotá del Siglo XXI",57,{"$f":"IF(ISERROR(VLOOKUP(L50,Proposito_programa!$C$2:$E$59,2,FALSE)),\" \",VLOOKUP(L50,Proposito_programa!$C$2:$E$59,2,FALSE))","v":"Gestión pública local"},{"$f":"IF(ISERROR(VLOOKUP(L50,Proposito_programa!$C$2:$E$59,3,FALSE)),\" \",VLOOKUP(L50,Proposito_programa!$C$2:$E$59,3,FALSE))","v":"Propósito 5: Construir Bogotá - Región con gobierno abierto, transparente y ciudadanía consciente"},"133011605570000001841",1,72040774,"JORGE ENRIQUE SOLIOS MARTINEZ","Persona Natural",null,null,null,18400000,null,1,9200000,27600000,27600000,"2021-02-23","2021-02-24","2021-08-23",120,1,30,null,null,null,null,null,null,"X",null,1]
[1,38,2021,"FDLCH-CPS-038-2021","https://community.secop.gov.co/Public/Tendering/OpportunityDetail/Index?noticeUID=CO1.NTC.1792281&isFromPublicArea=True&isModal=true&asPopupView=true","Contratos de prestación de servicios profesionales y de apoyo a la gestión","Contratación directa","Prestación de servicios profesionales y de apoyo a la gestión, o para la ejecución de trabajos artísticos que sólo puedan encomendarse a determinadas personas naturales;","Prestar servicios personales para apoyar actividades operativas y administrativas de la gestión precontractual, contractual y postcontractual que adelante el fondo de desarrollo local de chapinero","Inversión","Un Nuevo Contrato Social y Ambiental para la Bogotá del Siglo XXI",57,{"$f":"IF(ISERROR(VLOOKUP(L51,Proposito_programa!$C$2:$E$59,2,FALSE)),\" \",VLOOKUP(L51,Proposito_programa!$C$2:$E$59,2,FALSE))","v":"Gestión pública local"},{"$f":"IF(ISERROR(VLOOKUP(L51,Proposito_programa!$C$2:$E$59,3,FALSE)),\" \",VLOOKUP(L51,Proposito_programa!$C$2:$E$59,3,FALSE))","v":"Propósito 5: Construir Bogotá - Región con gobierno abierto, transparente y ciudadanía consciente"},"133011605570000001741",1,52733935,"PAOLA YUREXY QUIROGA CUBILLOS","Persona Natural",null,null,null,12500000,null,1,6250000,18750000,18750000,"2021-02-23","2021-02-25","2021-10-09",150,1,30,null,null,null,null,null,null,"X",null,1]
[1,39,2021,"FDLCH-CPS-039-2021","https://community.secop.gov.co/Public/Tendering/OpportunityDetail/Index?noticeUID=CO1.NTC.1797446&isFromPublicArea=True&isModal=true&asPopupView=true","Contratos de prestación de servicios profesionales y de apoyo a la gestión","Contratación directa","Prestación de servicios profesionales y de apoyo a la gestión, o para la ejecución de trabajos artísticos que sólo puedan encomendarse a determinadas personas naturales;","Prestar servicios de apoyo a la gestión en la ejecución de las actividades administrativas y documentales relacionadas con la gestión policiva en la Alcaldía Local de Chapinero","Inversión","Un Nuevo Contrato Social y Ambiental para la Bogotá del Siglo XXI",57,{"$f":"IF(ISERROR(VLOOKUP(L52,Proposito_programa!$C$2:$E$59,2,FALSE)),\" \",VLOOKUP(L52,Proposito_programa!$C$2:$E$59,2,FALSE))","v":"Gestión pública local"},{"$f":"IF(ISERROR(VLOOKUP(L52,Proposito_programa!$C$2:$E$59,3,FALSE)),\" \",VLOOKUP(L52,Proposito_programa!$C$2:$E$59,3,FALSE))","v":"Propósito 5: Construir Bogotá - Región con gobierno abierto, transparente y ciudadanía consciente"},"133011605570000001841",1,79955421,"PAULO CESAR RAMIREZ INFANTE","Persona Natural",null,null,null,12000000,null,null,null,12000000,8400000,"2021-02-25","2021-02-25","2021-10-24",120,null,0,null,null,null,null,null,null,"X",null,0.7]
[1,40,2021,"FDLCH-CPS-040-2021","https://community.secop.gov.co/Public/Tendering/OpportunityDetail/Index?noticeUID=CO1.NTC.1797477&isFromPublicArea=True&isModal=true&asPopupView=true","Contratos de prestación de servicios profesionales y de apoyo a la gestión","Contratación directa","Prestación de servicios profesionales y de apoyo a la gestión, o para la ejecución de trabajos artísticos que sólo puedan encomendarse a determinadas personas naturales;","Prestar los servicios profesionales de apoyo a la gestión para la planeación, gestión, formulación, desarrollo, seguimiento y evaluación del proyecto de inversión \"en chapinero todas contamos\", en atención al fortalecimiento de la capacidad de gestión del Fondo de Desarrollo Local.","Inversión","Un Nuevo Contrato Social y Ambiental para la Bogotá del Siglo XXI",40,{"$f":"IF(ISERROR(VLOOKUP(L53,Proposito_programa!$C$2:$E$59,2,FALSE)),\" \",VLOOKUP(L53,Proposito_programa!$C$2:$E$59,2,FALSE))","v":"Más mujeres viven una vida libre de violencias, se sienten seguras y acceden con confianza al sistema de justicia"},{"$f":"IF(ISERROR(VLOOKUP(L53,Proposito_programa!$C$2:$E$59,3,FALSE)),\" \",VLOOKUP(L53,Proposito_programa!$C$2:$E$59,3,FALSE))","v":"Propósito 3: Inspirar confianza y legitimidad para vivir sin miedo y ser epicentro de cultura ciudadana, paz y reconciliación"},"133011603400000002035",1,53108000,"LEIDY VIVIANA ORTIZ GUEVARA","Persona Natural",null,null,null,22500000,null,1,11250000,33750000,33750000,"2021-02-25","2021-02-25","2021-10-09",150,1,30,null,null,null,null,null,null,"X",null,1]
[1,41,2021,"FDLCH-CPS-041-2021","https://community.secop.gov.co/Public/Tendering/OpportunityDetail/Index?noticeUID=CO1.NTC.1797843&isFromPublicArea=True&isModal=true&asPopupView=true","Contratos de prestación de servicios profesionales y de apoyo a la gestión","Contratación directa","Prestación de servicios profesionales y de apoyo a la gestión, o para la ejecución de trabajos artísticos que sólo puedan encomendarse a determinadas personas naturales;","Prestar servicios de apoyo a la gestión en la ejecución de las actividades administrativas y documentales relacionadas con la gestión policiva en la Alcaldía Local de Chapinero.","Inversión","Un Nuevo Contrato Social y Ambiental para la Bogotá del Siglo XXI",57,{"$f":"IF(ISERROR(VLOOKUP(L54,Proposito_programa!$C$2:$E$59,2,FALSE)),\" \",VLOOKUP(L54,Proposito_programa!$C$2:$E$59,2,FALSE))","v":"Gestión pública local"},{"$f":"IF(ISERROR(VLOOKUP(L54,Proposito_programa!$C$2:$E$59,3,FALSE)),\" \",VLOOKUP(L54,Proposito_programa!$C$2:$E$59,3,FALSE))","v":"Propósito 5: Construir Bogotá - Región con gobierno abierto, transparente y ciudadanía consciente"},"133011605570000001841",1,51765934,"MARIA DIACLIN RODRIGUEZ PULECIO","Persona Natural",null,null,null,12000000,null,null,null,12000000,12000000,"2021-02-25","2021-02-25","2021-08-24",180,null,0,null,null,null,null,null,null,"X",null,1]
[1,42,2021,"FDLCH-CPS-042-2021","https://community.secop.gov.co/Public/Tendering/OpportunityDetail/Index?noticeUID=CO1.NTC.1799812&isFromPublicArea=True&isModal=true&asPopupView=true","Contratos de prestación de servicios profesionales y de apoyo a la gestión","Contratación directa","Prestación de servicios profesionales y de apoyo a la gestión, o para la ejecución de trabajos artísticos que sólo puedan encomendarse a determinadas personas naturales;","Prestar servicios profesionales para apoyar la gestión jurídica en la ejecución de las acciones requedias para el trámite e impulso procesal de las actuaciones administrativas y de inspección, vigilancia y control de competencia de la Alcaldía Local de Chapinero en Cerros Orientales, zona de reserva forestal protectoa, polígonos de monitoreo, áreas de ocupación pública prioritaria, franja de adecuación y zonas de especial protección ambiental.","Inversión","Un Nuevo Contrato Social y Ambiental para la Bogotá del Siglo XXI",57,{"$f":"IF(ISERROR(VLOOKUP(L55,Proposito_programa!$C$2:$E$59,2,FALSE)),\" \",VLOOKUP(L55,Proposito_programa!$C$2:$E$59,2,FALSE))","v":"Gestión pública local"},{"$f":"IF(ISERROR(VLOOKUP(L55,Proposito_programa!$C$2:$E$59,3,FALSE)),\" \",VLOOKUP(L55,Proposito_programa!$C$2:$E$59,3,FALSE))","v":"Propósito 5: Construir Bogotá - Región con gobierno abierto, transparente y ciudadanía consciente"},"133011605570000001841",1,1049605314,"SARA CAROLINA OLIVEROS ACOSTA","Persona Natural",null,null,null,25000000,null,null,null,25000000,25000000,"2021-02-25","2021-02-25","2021-07-24",150,null,0,null,null,null,null,null,null,"X",null,1]
[1,43,2021,"FDLCH-CPS-043-2021","https://community.secop.gov.co/Public/Tendering/OpportunityDetail/Index?noticeUID=CO1.NTC.1797852&isFromPublicArea=True&isModal=true&asPopupView=true","Contratos de prestación de servicios profesionales y de apoyo a la gestión","Contratación directa","Prestación de servicios profesionales y de apoyo a la gestión, o para la ejecución de trabajos artísticos que sólo puedan encomendarse a determinadas personas naturales;","Prestar los sevicios profesionales para la gestión, formulación, desarrollo, seguimiento y evaluación de inversión chapinero modelo de movilidad inteligente y apoyo a la supervisión de contratos que le sean asignados.","Inversión","Un Nuevo Contrato Social y Ambiental para la Bogotá del Siglo XXI",49,{"$f":"IF(ISERROR(VLOOKUP(L56,Proposito_programa!$C$2:$E$59,2,FALSE)),\" \",VLOOKUP(L56,Proposito_programa!$C$2:$E$59,2,FALSE))","v":"Movilidad segura, sostenible y accesible"},{"$f":"IF(ISERROR(VLOOKUP(L56,Proposito_programa!$C$2:$E$59,3,FALSE)),\" \",VLOOKUP(L56,Proposito_programa!$C$2:$E$59,3,FALSE))","v":"Propósito 4: Hacer de Bogotá Región un modelo de movilidad multimodal, incluyente y sostenible"},"133011604490000001734",1,1073535479,"JAIME HERNANDO PRIETO ALVAREZ","Persona Natural",null,null,null,52000000,null,2,18416667,70416667,63050000,"2021-02-25","2021-02-25","2022-01-18",240,2,60,null,null,null,null,null,"X",null,null,0.89538461114610834]
[1,44,2021,"FDLCH-CPS-044-2021","https://community.secop.gov.co/Public/Tendering/OpportunityDetail/Index?noticeUID=CO1.NTC.1799604&isFromPublicArea=True&isModal=true&asPopupView=true","Contratos de prestación de servicios profesionales y de apoyo a la gestión","Contratación directa","Prestación de servicios profesionales y de apoyo a la gestión, o para la ejecución de trabajos artísticos que sólo puedan encomendarse a determinadas personas naturales;","Prestar servicios profesionales de apoyo jurídico en la ejecución de las acciones requeridad para el trámite e impulso procesal de las actuaciones administrativas y de cobro persuasivo de competencia de la Alcaldía Local de Chapinero.","Inversión","Un Nuevo Contrato Social y Ambiental para la Bogotá del Siglo XXI",57,{"$f":"IF(ISERROR(VLOOKUP(L57,Proposito_programa!$C$2:$E$59,2,FALSE)),\" \",VLOOKUP(L57,Proposito_programa!$C$2:$E$59,2,FALSE))","v":"Gestión pública local"},{"$f":"IF(ISERROR(VLOOKUP(L57,Proposito_programa!$C$2:$E$59,3,FALSE)),\" \",VLOOKUP(L57,Proposito_programa!$C$2:$E$59,3,FALSE))","v":"Propósito 5: Construir Bogotá - Región con gobierno abierto, transparente y ciudadanía consciente"},"133011605570000001841",1,1010190690,"ADRIANA ANDREA ARCHILA MOSCOSO","Persona Natural",null,null,null,13083000,null,1,6541500,19624500,19624500,"2021-02-25","2021-02-25","2021-07-09",90,1,30,null,null,null,null,null,null,"X",null,1]
[1,45,2021,"FDLCH-CPS-045-2021","https://community.secop.gov.co/Public/Tendering/OpportunityDetail/Index?noticeUID=CO1.NTC.1805230&isFromPublicArea=True&isModal=true&asPopupView=true","Contratos de prestación de servicios profesionales y de apoyo a la gestión","Contratación directa","Prestación de servicios profesionales y de apoyo a la gestión, o para la ejecución de trabajos artísticos que sólo puedan encomendarse a determinadas personas naturales;","Prestar servicios de apoyo a la gestión en la ejecución de las actividades administrativas y documentales relacionadas con la gestión policiva en la Alcaldía Local de Chapinero.","Inversión","Un Nuevo Contrato Social y Ambiental para la Bogotá del Siglo XXI",57,{"$f":"IF(ISERROR(VLOOKUP(L58,Proposito_programa!$C$2:$E$59,2,FALSE)),\" \",VLOOKUP(L58,Proposito_programa!$C$2:$E$59,2,FALSE))","v":"Gestión pública local"},{"$f":"IF(ISERROR(VLOOKUP(L58,Proposito_programa!$C$2:$E$59,3,FALSE)),\" \",VLOOKUP(L58,Proposito_programa!$C$2:$E$59,3,FALSE))","v":"Propósito 5: Construir Bogotá - Región con gobierno abierto, transparente y ciudadanía consciente"},"133011605570000001841",1,52253361,"OLGA LUCIA OBANDO CHACA","Persona Natural",null,null,null,12000000,null,1,6000000,18000000,18000000,"2021-02-24","2021-03-01","2021-11-30",180,1,30,null,null,null,null,null,null,"X",null,1]
[1,46,2021,"FDLCH-CPS-046-2021","https://community.secop.gov.co/Public/Tendering/OpportunityDetail/Index?noticeUID=CO1.NTC.1800902&isFromPublicArea=True&isModal=true&asPopupView=true","Contratos de prestación de servicios profesionales y de apoyo a la gestión","Contratación directa","Prestación de servicios profesionales y de apoyo a la gestión, o para la ejecución de trabajos artísticos que sólo puedan encomendarse a determinadas personas naturales;","Apoyar al Alcalde Local en la promoción, acompañamiento, coordinación y atención de las instancias de coordinación interinstitucionales y las instancias de participación locales, así como los procesos comunitarios en la localidad","Inversión","Un Nuevo Contrato Social y Ambiental para la Bogotá del Siglo XXI",57,{"$f":"IF(ISERROR(VLOOKUP(L59,Proposito_programa!$C$2:$E$59,2,FALSE)),\" \",VLOOKUP(L59,Proposito_programa!$C$2:$E$59,2,FALSE))","v":"Gestión pública local"},{"$f":"IF(ISERROR(VLOOKUP(L59,Proposito_programa!$C$2:$E$59,3,FALSE)),\" \",VLOOKUP(L59,Proposito_programa!$C$2:$E$59,3,FALSE))","v":"Propósito 5: Construir Bogotá - Región con gobierno abierto, transparente y ciudadanía consciente"},"133011605570000001741",1,1026276743,"LAURA MALAGIGI GOMEZ","Persona Natural",null,null,null,16000000,null,1,8000000,24000000,24000000,"2021-02-25","2021-02-26","2021-08-25",120,1,30,null,null,null,null,null,null,"X",null,1]
[1,47,2021,"FDLCH-CPS-047-2021","https://community.secop.gov.co/Public/Tendering/OpportunityDetail/Index?noticeUID=CO1.NTC.1797824&isFromPublicArea=True&isModal=true&asPopupView=true","Contratos de prestación de servicios profesionales y de apoyo a la gestión","Contratación directa","Prestación de servicios profesionales y de apoyo a la gestión, o para la ejecución de trabajos artísticos que sólo puedan encomendarse a determinadas personas naturales;","Prestación de servicios profesionales para la gestión, formulación, desarrollo, seguimiento y evaluación del proyecto de inversión local “Jóvenes comprometidos por Chapinero”, así como el apoyo a la supervisión de los contrataos que le sean asignados por el Alcalde Local","Inversión","Un Nuevo Contrato Social y Ambiental para la Bogotá del Siglo XXI",17,{"$f":"IF(ISERROR(VLOOKUP(L60,Proposito_programa!$C$2:$E$59,2,FALSE)),\" \",VLOOKUP(L60,Proposito_programa!$C$2:$E$59,2,FALSE))","v":"Jóvenes con capacidades: Proyecto de vida para la ciudadanía, la innovación y el trabajo del siglo XXI"},{"$f":"IF(ISERROR(VLOOKUP(L60,Proposito_programa!$C$2:$E$59,3,FALSE)),\" \",VLOOKUP(L60,Proposito_programa!$C$2:$E$59,3,FALSE))","v":"Propósito 1: Hacer un nuevo contrato social para incrementar la inclusión social, productiva y política"},"133011601170000001695",1,1090489409,"CARLOS ARTURO BARBOSA PEREZ","Persona Natural",null,null,null,22000000,null,1,11000000,33000000,33000000,"2021-02-24","2021-02-25","2021-10-09",150,1,30,null,null,null,null,null,null,"X",null,1]
[1,48,2021,"FDLCH-CPS-048-2021","https://community.secop.gov.co/Public/Tendering/OpportunityDetail/Index?noticeUID=CO1.NTC.1799412&isFromPublicArea=True&isModal=true&asPopupView=true","Contratos de prestación de servicios profesionales y de apoyo a la gestión","Contratación directa","Prestación de servicios profesionales y de apoyo a la gestión, o para la ejecución de trabajos artísticos que sólo puedan encomendarse a determinadas personas naturales;","Prestar los servicios profesionales de apoyo a la gestión para la formulación, desarrollo y seguimiento de las actividades derivadas del proyecto de inversión chapinero modelo de movilidad inteligente","Inversión","Un Nuevo Contrato Social y Ambiental para la Bogotá del Siglo XXI",49,{"$f":"IF(ISERROR(VLOOKUP(L61,Proposito_programa!$C$2:$E$59,2,FALSE)),\" \",VLOOKUP(L61,Proposito_programa!$C$2:$E$59,2,FALSE))","v":"Movilidad segura, sostenible y accesible"},{"$f":"IF(ISERROR(VLOOKUP(L61,Proposito_programa!$C$2:$E$59,3,FALSE)),\" \",VLOOKUP(L61,Proposito_programa!$C$2:$E$59,3,FALSE))","v":"Propósito 4: Hacer de Bogotá Región un modelo de movilidad multimodal, incluyente y sostenible"},"133011604490000001734",1,1015470441,"RICARDO ANDRES SANCHEZ VARGAS","Persona Natural",null,null,null,21805000,null,1,10902500,32707500,32707500,"2021-02-25","2021-02-26","2021-10-10",150,1,30,null,null,null,null,null,null,"X",null,1]
[1,49,2021,"FDLCH-CPS-049-2021","https://community.secop.gov.co/Public/Tendering/OpportunityDetail/Index?noticeUID=CO1.NTC.1809314&isFromPublicArea=True&isModal=true&asPopupView=true","Contratos de prestación de servicios profesionales y de apoyo a la gestión","Contratación directa","Prestación de servicios profesionales y de apoyo a la gestión, o para la ejecución de trabajos artísticos que sólo puedan encomendarse a determinadas personas naturales;","Prestar los servicios profesionales para apoyar el área de Gestión del Desarrollo Local de la Alcaldía Local de Chapinero, en la formulación, gestión, ejecución y apoyo a la supervisión de los proyectos relacionados con la prevención, atención de la violencia intrafamiliar y sexual y la eliminación de las violencias basadas en género","Inversión","Un Nuevo Contrato Social y Ambiental para la Bogotá del Siglo XXI",6,{"$f":"IF(ISERROR(VLOOKUP(L62,Proposito_programa!$C$2:$E$59,2,FALSE)),\" \",VLOOKUP(L62,Proposito_programa!$C$2:$E$59,2,FALSE))","v":"Sistema Distrital de Cuidado"},{"$f":"IF(ISERROR(VLOOKUP(L62,Proposito_programa!$C$2:$E$59,3,FALSE)),\" \",VLOOKUP(L62,Proposito_programa!$C$2:$E$59,3,FALSE))","v":"Propósito 1: Hacer un nuevo contrato social para incrementar la inclusión social, productiva y política"},"133011601060000001710",1,52515541,"BELLA ELOISA KAROLINA MORENO BRIONES","Persona Natural",null,null,null,33000000,-183334,null,null,32816666,32816666,"2021-02-25","2021-03-02","2021-09-01",180,null,0,null,null,null,null,null,null,"X",null,1]
[1,50,2021,"FDLCH-CPS-050-2021","https://community.secop.gov.co/Public/Tendering/OpportunityDetail/Index?noticeUID=CO1.NTC.1812054&isFromPublicArea=True&isModal=true&asPopupView=true","Contratos de prestación de servicios profesionales y de apoyo a la gestión","Contratación directa","Prestación de servicios profesionales y de apoyo a la gestión, o para la ejecución de trabajos artísticos que sólo puedan encomendarse a determinadas personas naturales;","Prestar los servicios profesionales de apoyo a la gestión para la formulación, desarrollo y seguimiento de las actividades derivadas del proyecto de inversión chapinero modelo de movilidad inteligente","Inversión","Un Nuevo Contrato Social y Ambiental para la Bogotá del Siglo XXI",49,{"$f":"IF(ISERROR(VLOOKUP(L63,Proposito_programa!$C$2:$E$59,2,FALSE)),\" \",VLOOKUP(L63,Proposito_programa!$C$2:$E$59,2,FALSE))","v":"Movilidad segura, sostenible y accesible"},{"$f":"IF(ISERROR(VLOOKUP(L63,Proposito_programa!$C$2:$E$59,3,FALSE)),\" \",VLOOKUP(L63,Proposito_programa!$C$2:$E$59,3,FALSE))","v":"Propósito 4: Hacer de Bogotá Región un modelo de movilidad multimodal, incluyente y sostenible"},"133011604490000001734",1,1033722125,"MAIVEL DANIELA VELASQUEZ RICO","Persona Natural",null,null,null,21805000,null,1,10902500,32707500,30236267,"2021-03-01","2021-03-03","2021-10-17",150,1,30,null,null,null,null,null,null,"X",null,0.92444445463578695]
[1,51,2021,"FDLCH-CPS-051-2021","https://community.secop.gov.co/Public/Tendering/OpportunityDetail/Index?noticeUID=CO1.NTC.1799698&isFromPublicArea=True&isModal=true&asPopupView=true","Contratos de prestación de servicios profesionales y de apoyo a la gestión","Contratación directa","Prestación de servicios profesionales y de apoyo a la gestión, o para la ejecución de trabajos artísticos que sólo puedan encomendarse a determinadas personas naturales;","Prestar los servicios profesionales de apoyo a la gestión para la formulación, desarrollo y seguimiento de las actividades derivadas del proyecto de inversión chapinero modelo de movilidad inteligente","Inversión","Un Nuevo Contrato Social y Ambiental para la Bogotá del Siglo XXI",49,{"$f":"IF(ISERROR(VLOOKUP(L64,Proposito_programa!$C$2:$E$59,2,FALSE)),\" \",VLOOKUP(L64,Proposito_programa!$C$2:$E$59,2,FALSE))","v":"Movilidad segura, sostenible y accesible"},{"$f":"IF(ISERROR(VLOOKUP(L64,Proposito_programa!$C$2:$E$59,3,FALSE)),\" \",VLOOKUP(L64,Proposito_programa!$C$2:$E$59,3,FALSE))","v":"Propósito 4: Hacer de Bogotá Región un modelo de movilidad multimodal, incluyente y sostenible"},"133011604490000001734",1,1070011854,"SANDRA PAOLA SALAMANCA RIAÑO","Persona Natural",null,null,null,21805000,null,1,10902500,32707500,32707500,"2021-02-25","2021-03-01","2021-10-15",150,1,30,null,null,null,null,null,null,"X",null,1]
[1,52,2021,"FDLCH-CPS-052-2021","https://community.secop.gov.co/Public/Tendering/OpportunityDetail/Index?noticeUID=CO1.NTC.1800575&isFromPublicArea=True&isModal=true&asPopupView=true","Contratos de prestación de servicios profesionales y de apoyo a la gestión","Contratación directa","Prestación de servicios profesionales y de apoyo a la gestión, o para la ejecución de trabajos artísticos que sólo puedan encomendarse a determinadas personas naturales;","Apoyar jurídicamente la ejecución de las acciones requeridas para la depuración de las actuaciones administrativas que cursan en la Alcaldía Local","Inversión","Un Nuevo Contrato Social y Ambiental para la Bogotá del Siglo XXI",57,{"$f":"IF(ISERROR(VLOOKUP(L65,Proposito_programa!$C$2:$E$59,2,FALSE)),\" \",VLOOKUP(L65,Proposito_programa!$C$2:$E$59,2,FALSE))","v":"Gestión pública local"},{"$f":"IF(ISERROR(VLOOKUP(L65,Proposito_programa!$C$2:$E$59,3,FALSE)),\" \",VLOOKUP(L65,Proposito_programa!$C$2:$E$59,3,FALSE))","v":"Propósito 5: Construir Bogotá - Región con gobierno abierto, transparente y ciudadanía consciente"},"133011605570000001841",1,1022327851,"JUAN CAMILO RAMIREZ PINTO","Persona Natural",null,null,null,26400000,null,1,13200000,39600000,35200000,"2021-02-26","2021-03-01","2021-11-30",180,1,30,null,null,null,null,null,null,"X",null,0.88888888888888884]
[1,53,2021,"FDLCH-CPS-053-2021","https://community.secop.gov.co/Public/Tendering/OpportunityDetail/Index?noticeUID=CO1.NTC.1805518&isFromPublicArea=True&isModal=true&asPopupView=true","Contratos de prestación de servicios profesionales y de apoyo a la gestión","Contratación directa","Prestación de servicios profesionales y de apoyo a la gestión, o para la ejecución de trabajos artísticos que sólo puedan encomendarse a determinadas personas naturales;","Prestar los servicios profesionales para apoyar el área de Gestión del Desarrollo local de la Alcaldía Local de Chapinero, en la formulación, gestión, ejecución y apoyo a la supervisión de los proyectos relacionados con los temas de salud, en cumplimiento de las metas y objetivos del Plan de Desarrollo Local","Inversión","Un Nuevo Contrato Social y Ambiental para la Bogotá del Siglo XXI",6,{"$f":"IF(ISERROR(VLOOKUP(L66,Proposito_programa!$C$2:$E$59,2,FALSE)),\" \",VLOOKUP(L66,Proposito_programa!$C$2:$E$59,2,FALSE))","v":"Sistema Distrital de Cuidado"},{"$f":"IF(ISERROR(VLOOKUP(L66,Proposito_programa!$C$2:$E$59,3,FALSE)),\" \",VLOOKUP(L66,Proposito_programa!$C$2:$E$59,3,FALSE))","v":"Propósito 1: Hacer un nuevo contrato social para incrementar la inclusión social, productiva y política"},"133011601060000002024",1,53037864,"DIANA CAROLINA MORENO RINCON","Persona Natural",null,null,null,30000000,null,null,null,30000000,30000000,"2021-03-01","2021-03-01","2021-08-31",180,null,0,null,null,null,null,null,null,"X",null,1]
[1,54,2021,"FDLCH-CPS-054-2021","https://community.secop.gov.co/Public/Tendering/OpportunityDetail/Index?noticeUID=CO1.NTC.1805379&isFromPublicArea=True&isModal=true&asPopupView=true","Contratos de prestación de servicios profesionales y de apoyo a la gestión","Contratación directa","Prestación de servicios profesionales y de apoyo a la gestión, o para la ejecución de trabajos artísticos que sólo puedan encomendarse a determinadas personas naturales;","Prestar servicios profesionales para apoyar al área de Gestión del Desarrollo Local de la Alcaldía Local de Chapinero, en la gestión, formulación, desarrollo, seguimiento y evaluación del proyecto de inversión “Chapinero es Primera Infancia” del programa Educación inicial: Bases Sólidas para la vida.","Inversión","Un Nuevo Contrato Social y Ambiental para la Bogotá del Siglo XXI",12,{"$f":"IF(ISERROR(VLOOKUP(L67,Proposito_programa!$C$2:$E$59,2,FALSE)),\" \",VLOOKUP(L67,Proposito_programa!$C$2:$E$59,2,FALSE))","v":"Educación inicial: Bases sólidas para la vida."},{"$f":"IF(ISERROR(VLOOKUP(L67,Proposito_programa!$C$2:$E$59,3,FALSE)),\" \",VLOOKUP(L67,Proposito_programa!$C$2:$E$59,3,FALSE))","v":"Propósito 1: Hacer un nuevo contrato social para incrementar la inclusión social, productiva y política"},"133011601120000001830",1,52312234,"CLAUDIA MARCELA LOPEZ SERRATO","Persona Natural",null,null,null,33000000,null,null,null,33000000,33000000,"2021-03-01","2021-03-01","2021-08-31",180,null,0,null,null,null,null,null,null,"X",null,1]
[1,55,2021,"FDLCH-CPS-055-2021","https://community.secop.gov.co/Public/Tendering/OpportunityDetail/Index?noticeUID=CO1.NTC.1822001&isFromPublicArea=True&isModal=true&asPopupView=true","Contratos de prestación de servicios profesionales y de apoyo a la gestión","Contratación directa","Prestación de servicios profesionales y de apoyo a la gestión, o para la ejecución de trabajos artísticos que sólo puedan encomendarse a determinadas personas naturales;","Prestar srvicios profesionales para apoyar a los responsable se integrantes de los procesos en la implementación de herramientas de gestión, siguiendo los lineamientos metodológios establecidos por la oficina asesora de planeación de la Secretaria Distrital de Gobierno.","Inversión","Un Nuevo Contrato Social y Ambiental para la Bogotá del Siglo XXI",57,{"$f":"IF(ISERROR(VLOOKUP(L68,Proposito_programa!$C$2:$E$59,2,FALSE)),\" \",VLOOKUP(L68,Proposito_programa!$C$2:$E$59,2,FALSE))","v":"Gestión pública local"},{"$f":"IF(ISERROR(VLOOKUP(L68,Proposito_programa!$C$2:$E$59,3,FALSE)),\" \",VLOOKUP(L68,Proposito_programa!$C$2:$E$59,3,FALSE))","v":"Propósito 5: Construir Bogotá - Región con gobierno abierto, transparente y ciudadanía consciente"},"133011605570000001741",1,1030525081,"BLANCA LEIDY NAVARRO DOMINGUEZ","Persona Natural",null,null,null,27000000,null,null,null,27000000,27000000,"2021-03-08","2021-03-08","2021-09-07",180,null,0,null,null,null,null,null,null,"X",null,1]
[1,56,2021,"FDLCH-CPS-056-2021","https://community.secop.gov.co/Public/Tendering/OpportunityDetail/Index?noticeUID=CO1.NTC.1835293&isFromPublicArea=True&isModal=true&asPopupView=true","Contratos de prestación de servicios profesionales y de apoyo a la gestión","Contratación directa","Prestación de servicios profesionales y de apoyo a la gestión, o para la ejecución de trabajos artísticos que sólo puedan encomendarse a determinadas personas naturales;","Prestar servicios profesionales para la administración, soporte técnico y correcto funcionamiento de la infraestructura tecnológica en propiedad o custodia de la Alcaldía Local de Chapinero, así como la formulación de proyectos relacionados","Inversión","Un Nuevo Contrato Social y Ambiental para la Bogotá del Siglo XXI",57,{"$f":"IF(ISERROR(VLOOKUP(L69,Proposito_programa!$C$2:$E$59,2,FALSE)),\" \",VLOOKUP(L69,Proposito_programa!$C$2:$E$59,2,FALSE))","v":"Gestión pública local"},{"$f":"IF(ISERROR(VLOOKUP(L69,Proposito_programa!$C$2:$E$59,3,FALSE)),\" \",VLOOKUP(L69,Proposito_programa!$C$2:$E$59,3,FALSE))","v":"Propósito 5: Construir Bogotá - Región con gobierno abierto, transparente y ciudadanía consciente"},"133011605570000001741",1,1014217289,"JONATHAN FERNANDO ESCAMILLA RIAÑO","Persona Natural",null,null,null,16000000,null,null,null,16000000,14666667,"2021-03-10","2021-03-11","2021-07-10",120,null,0,null,null,null,null,null,null,"X",null,0.91666668750000002]
[1,57,2021,"FDLCH-CPS-057-2021","https://community.secop.gov.co/Public/Tendering/OpportunityDetail/Index?noticeUID=CO1.NTC.1803517&isFromPublicArea=True&isModal=true&asPopupView=true","Contratos de prestación de servicios profesionales y de apoyo a la gestión","Contratación directa","Prestación de servicios profesionales y de apoyo a la gestión, o para la ejecución de trabajos artísticos que sólo puedan encomendarse a determinadas personas naturales;","Prestar servicios profesionales para apoyar técnicamente las actuaciones administrativas, impulso procesal y de inspección, vigilancia y control de competencia de la alcaldía local de chapinero","Inversión","Un Nuevo Contrato Social y Ambiental para la Bogotá del Siglo XXI",57,{"$f":"IF(ISERROR(VLOOKUP(L70,Proposito_programa!$C$2:$E$59,2,FALSE)),\" \",VLOOKUP(L70,Proposito_programa!$C$2:$E$59,2,FALSE))","v":"Gestión pública local"},{"$f":"IF(ISERROR(VLOOKUP(L70,Proposito_programa!$C$2:$E$59,3,FALSE)),\" \",VLOOKUP(L70,Proposito_programa!$C$2:$E$59,3,FALSE))","v":"Propósito 5: Construir Bogotá - Región con gobierno abierto, transparente y ciudadanía consciente"},"133011605570000001841",1,1030625256,"ANDRES FELIPE RAMOS ARENAS","Persona Natural",null,null,null,27600000,null,null,null,27600000,27600000,"2021-02-26","2021-03-01","2021-08-31",180,null,0,null,null,null,null,null,null,"X",null,1]
[1,58,2021,"FDLCH-CPS-058-2021","https://community.secop.gov.co/Public/Tendering/OpportunityDetail/Index?noticeUID=CO1.NTC.1805829&isFromPublicArea=True&isModal=true&asPopupView=true","Contratos de prestación de servicios profesionales y de apoyo a la gestión","Contratación directa","Prestación de servicios profesionales y de apoyo a la gestión, o para la ejecución de trabajos artísticos que sólo puedan encomendarse a determinadas personas naturales;","Prestar servicios profesionales para apoyar técnicamente las actuaciones administrativas, impulso procesal y de inspección, vigilancia y control de competencia de la alcaldía local de chapinero","Inversión","Un Nuevo Contrato Social y Ambiental para la Bogotá del Siglo XXI",57,{"$f":"IF(ISERROR(VLOOKUP(L71,Proposito_programa!$C$2:$E$59,2,FALSE)),\" \",VLOOKUP(L71,Proposito_programa!$C$2:$E$59,2,FALSE))","v":"Gestión pública local"},{"$f":"IF(ISERROR(VLOOKUP(L71,Proposito_programa!$C$2:$E$59,3,FALSE)),\" \",VLOOKUP(L71,Proposito_programa!$C$2:$E$59,3,FALSE))","v":"Propósito 5: Construir Bogotá - Región con gobierno abierto, transparente y ciudadanía consciente"},"133011605570000001841",1,52533394,"MARICELA PALACIO RODRIGUEZ","Persona Natural",null,null,null,27600000,null,null,null,27600000,27140000,"2021-03-02","2021-03-04","2021-09-03",180,null,0,null,null,null,null,null,null,"X",null,0.98333333333333328]
[1,59,2021,"FDLCH-CPS-059-2021","https://community.secop.gov.co/Public/Tendering/OpportunityDetail/Index?noticeUID=CO1.NTC.1805645&isFromPublicArea=True&isModal=true&asPopupView=true","Contratos de prestación de servicios profesionales y de apoyo a la gestión","Contratación directa","Prestación de servicios profesionales y de apoyo a la gestión, o para la ejecución de trabajos artísticos que sólo puedan encomendarse a determinadas personas naturales;","Prestar servicios profesionales para apoyar técnicamente las actuaciones administrativas, impulso procesal y de inspección, vigilancia y control de competencia de la alcaldía local de chapinero","Inversión","Un Nuevo Contrato Social y Ambiental para la Bogotá del Siglo XXI",57,{"$f":"IF(ISERROR(VLOOKUP(L72,Proposito_programa!$C$2:$E$59,2,FALSE)),\" \",VLOOKUP(L72,Proposito_programa!$C$2:$E$59,2,FALSE))","v":"Gestión pública local"},{"$f":"IF(ISERROR(VLOOKUP(L72,Proposito_programa!$C$2:$E$59,3,FALSE)),\" \",VLOOKUP(L72,Proposito_programa!$C$2:$E$59,3,FALSE))","v":"Propósito 5: Construir Bogotá - Región con gobierno abierto, transparente y ciudadanía consciente"},"133011605570000001841",1,80825882,"CARLOS ANDRES GIL RUEDA","Persona Natural",null,null,null,27600000,null,null,null,27600000,26526667,"2021-03-02","2021-03-08","2021-09-07",180,null,0,null,null,null,null,null,null,"X",null,0.96111112318840575]
[1,60,2021,"FDLCH-CPS-060-2021","https://community.secop.gov.co/Public/Tendering/OpportunityDetail/Index?noticeUID=CO1.NTC.1805832&isFromPublicArea=True&isModal=true&asPopupView=true","Contratos de prestación de servicios profesionales y de apoyo a la gestión","Contratación directa","Prestación de servicios profesionales y de apoyo a la gestión, o para la ejecución de trabajos artísticos que sólo puedan encomendarse a determinadas personas naturales;","Prestar servicios profesionales para apoyar técnicamente las actuaciones administrativas, impulso procesal y de inspección, vigilancia y control de competencia de la alcaldía local de chapinero","Inversión","Un Nuevo Contrato Social y Ambiental para la Bogotá del Siglo XXI",57,{"$f":"IF(ISERROR(VLOOKUP(L73,Proposito_programa!$C$2:$E$59,2,FALSE)),\" \",VLOOKUP(L73,Proposito_programa!$C$2:$E$59,2,FALSE))","v":"Gestión pública local"},{"$f":"IF(ISERROR(VLOOKUP(L73,Proposito_programa!$C$2:$E$59,3,FALSE)),\" \",VLOOKUP(L73,Proposito_programa!$C$2:$E$59,3,FALSE))","v":"Propósito 5: Construir Bogotá - Región con gobierno abierto, transparente y ciudadanía consciente"},"133011605570000001841",1,80799927,"SALOMON RODRIGUEZ LAGUNA","Persona Natural",null,null,null,27600000,null,null,null,27600000,27140000,"2021-03-02","2021-03-04","2021-09-03",180,null,0,null,null,null,null,null,null,"X",null,0.98333333333333328]
[1,61,2021,"FDLCH-CPS-061-2021","https://community.secop.gov.co/Directory/Profile/703274274","Contratos de prestación de servicios profesionales y de apoyo a la gestión","Contratación directa","Prestación de servicios profesionales y de apoyo a la gestión, o para la ejecución de trabajos artísticos que sólo puedan encomendarse a determinadas personas naturales;","Apoyar en las tareas operativas de carácter archivístico desarrolladas en la Alcaldía Local de Chapinero para garantizar la aplicación correcta de los procedimientos técnicos","Inversión","Un Nuevo Contrato Social y Ambiental para la Bogotá del Siglo XXI",57,{"$f":"IF(ISERROR(VLOOKUP(L74,Proposito_programa!$C$2:$E$59,2,FALSE)),\" \",VLOOKUP(L74,Proposito_programa!$C$2:$E$59,2,FALSE))","v":"Gestión pública local"},{"$f":"IF(ISERROR(VLOOKUP(L74,Proposito_programa!$C$2:$E$59,3,FALSE)),\" \",VLOOKUP(L74,Proposito_programa!$C$2:$E$59,3,FALSE))","v":"Propósito 5: Construir Bogotá - Región con gobierno abierto, transparente y ciudadanía consciente"},"133011605570000001741",1,52423626,"DIANA PAOLA OVALLE RODRIGUEZ","Persona Natural",null,null,null,16000000,null,1,8000000,24000000,24000000,"2021-03-02","2021-03-04","2021-10-18",150,1,30,null,null,null,null,null,null,"X",null,1]
[1,62,2021,"FDLCH-CPS-062-2021","https://community.secop.gov.co/Public/Tendering/OpportunityDetail/Index?noticeUID=CO1.NTC.1803626&isFromPublicArea=True&isModal=true&asPopupView=true","Contratos de prestación de servicios profesionales y de apoyo a la gestión","Contratación directa","Prestación de servicios profesionales y de apoyo a la gestión, o para la ejecución de trabajos artísticos que sólo puedan encomendarse a determinadas personas naturales;","Prestar los servicios profesionales para coordinar la articulación, asistencia y acompañamiento de los procesos de planeación local, para la promoción de la participación de las mujeres y de la equida","Inversión","Un Nuevo Contrato Social y Ambiental para la Bogotá del Siglo XXI",40,{"$f":"IF(ISERROR(VLOOKUP(L75,Proposito_programa!$C$2:$E$59,2,FALSE)),\" \",VLOOKUP(L75,Proposito_programa!$C$2:$E$59,2,FALSE))","v":"Más mujeres viven una vida libre de violencias, se sienten seguras y acceden con confianza al sistema de justicia"},{"$f":"IF(ISERROR(VLOOKUP(L75,Proposito_programa!$C$2:$E$59,3,FALSE)),\" \",VLOOKUP(L75,Proposito_programa!$C$2:$E$59,3,FALSE))","v":"Propósito 3: Inspirar confianza y legitimidad para vivir sin miedo y ser epicentro de cultura ciudadana, paz y reconciliación"},"133011603400000002035",1,1110174525,"VIVIANA LOZANO DUCUAR","Persona Natural",null,null,null,36600000,null,null,null,36600000,36600000,"2021-02-26","2021-03-01","2021-08-30",180,null,0,null,null,null,null,null,null,"X",null,1]
[1,63,2021,"FDLCH-CPS-063-2021","https://community.secop.gov.co/Public/Tendering/OpportunityDetail/Index?noticeUID=CO1.NTC.1805041&isFromPublicArea=True&isModal=true&asPopupView=true","Contratos de prestación de servicios profesionales y de apoyo a la gestión","Contratación directa","Prestación de servicios profesionales y de apoyo a la gestión, o para la ejecución de trabajos artísticos que sólo puedan encomendarse a determinadas personas naturales;","Prestar los servicios profesionales de apoyo a la gestión para la formulación, desarrollo y seguimiento del proyecto de inversión “chapinero modelo de movilidad inteligente” y la supervisión de contratos que le sean asignados","Inversión","Un Nuevo Contrato Social y Ambiental para la Bogotá del Siglo XXI",49,{"$f":"IF(ISERROR(VLOOKUP(L76,Proposito_programa!$C$2:$E$59,2,FALSE)),\" \",VLOOKUP(L76,Proposito_programa!$C$2:$E$59,2,FALSE))","v":"Movilidad segura, sostenible y accesible"},{"$f":"IF(ISERROR(VLOOKUP(L76,Proposito_programa!$C$2:$E$59,3,FALSE)),\" \",VLOOKUP(L76,Proposito_programa!$C$2:$E$59,3,FALSE))","v":"Propósito 4: Hacer de Bogotá Región un modelo de movilidad multimodal, incluyente y sostenible"},"133011604490000001734",1,1090435721,"JORGE ENRIQUE ABREO REYES","Persona Natural",null,null,null,37200000,null,null,null,37200000,37200000,"2021-02-26","2021-03-01","2021-08-31",180,null,0,null,null,null,null,null,null,"X",null,1]
[1,64,2021,"FDLCH-CPS-064-2021","https://community.secop.gov.co/Public/Tendering/OpportunityDetail/Index?noticeUID=CO1.NTC.1812724&isFromPublicArea=True&isModal=true&asPopupView=true","Contratos de prestación de servicios profesionales y de apoyo a la gestión","Contratación directa","Prestación de servicios profesionales y de apoyo a la gestión, o para la ejecución de trabajos artísticos que sólo puedan encomendarse a determinadas personas naturales;","Prestar servicios de apoyo a la gestión en la ejecución de las actividades administrativas y documentales relacionadas con la gestión policiva en la Alcaldía Local de Chapinero.","Inversión","Un Nuevo Contrato Social y Ambiental para la Bogotá del Siglo XXI",57,{"$f":"IF(ISERROR(VLOOKUP(L77,Proposito_programa!$C$2:$E$59,2,FALSE)),\" \",VLOOKUP(L77,Proposito_programa!$C$2:$E$59,2,FALSE))","v":"Gestión pública local"},{"$f":"IF(ISERROR(VLOOKUP(L77,Proposito_programa!$C$2:$E$59,3,FALSE)),\" \",VLOOKUP(L77,Proposito_programa!$C$2:$E$59,3,FALSE))","v":"Propósito 5: Construir Bogotá - Región con gobierno abierto, transparente y ciudadanía consciente"},"133011605570000001841",1,37626709,"LUDY MARCELA MORENO SUAREZ","Persona Natural",null,null,null,12000000,null,1,6000000,18000000,17800000,"2021-03-03","2021-03-04","2021-12-03",180,1,30,null,null,null,null,null,null,"X",null,0.98888888888888893]
[1,65,2021,"FDLCH-CPS-065-2021","https://community.secop.gov.co/Public/Tendering/OpportunityDetail/Index?noticeUID=CO1.NTC.1818982&isFromPublicArea=True&isModal=true&asPopupView=true","Contratos de prestación de servicios profesionales y de apoyo a la gestión","Contratación directa","Prestación de servicios profesionales y de apoyo a la gestión, o para la ejecución de trabajos artísticos que sólo puedan encomendarse a determinadas personas naturales;","Prestar servicios profesionales de apoyo jurídico en la ejecución de las acciones requeridas para el trámite e impulso procesoal de las actuaciones administrativas y de cobro persuasivo de competencia de la Alcaldía Local de Chapinero.","Inversión","Un Nuevo Contrato Social y Ambiental para la Bogotá del Siglo XXI",57,{"$f":"IF(ISERROR(VLOOKUP(L78,Proposito_programa!$C$2:$E$59,2,FALSE)),\" \",VLOOKUP(L78,Proposito_programa!$C$2:$E$59,2,FALSE))","v":"Gestión pública local"},{"$f":"IF(ISERROR(VLOOKUP(L78,Proposito_programa!$C$2:$E$59,3,FALSE)),\" \",VLOOKUP(L78,Proposito_programa!$C$2:$E$59,3,FALSE))","v":"Propósito 5: Construir Bogotá - Región con gobierno abierto, transparente y ciudadanía consciente"},"133011605570000001841",1,1020734444,"JUAN CAMILO MENDOZA MARTINEZ","Persona Natural",null,null,null,13083000,null,1,6541500,{"$f":"+W78+X78+Z78","v":19624500},19624500,"2021-03-04","2021-03-04","2021-07-22",90,1,30,null,null,null,null,null,null,"X",null,1]
[1,66,2021,"FDLCH-CPS-066-2021","https://community.secop.gov.co/Public/Tendering/OpportunityDetail/Index?noticeUID=CO1.NTC.1812454&isFromPublicArea=True&isModal=true&asPopupView=true","Contratos de prestación de servicios profesionales y de apoyo a la gestión","Contratación directa","Prestación de servicios profesionales y de apoyo a la gestión, o para la ejecución de trabajos artísticos que sólo puedan encomendarse a determinadas personas naturales;","Prestar los servicios profesionales para la operación, prestación, seguimiento y cumplimiento de los procedimientos administrativos, operativos y programáticos del Servicio Apoyo Económico Tipo C, que contribuyan a la garantía de los derechos de la población mayor en el marco de la Política Pública Social para el Envejecimiento y la Vejez en el Distrito Capital a cargo de la Alcaldía Local de Chapinero","Inversión","Un Nuevo Contrato Social y Ambiental para la Bogotá del Siglo XXI",1,{"$f":"IF(ISERROR(VLOOKUP(L79,Proposito_programa!$C$2:$E$59,2,FALSE)),\" \",VLOOKUP(L79,Proposito_programa!$C$2:$E$59,2,FALSE))","v":"Subsidios y transferencias para la equidad"},{"$f":"IF(ISERROR(VLOOKUP(L79,Proposito_programa!$C$2:$E$59,3,FALSE)),\" \",VLOOKUP(L79,Proposito_programa!$C$2:$E$59,3,FALSE))","v":"Propósito 1: Hacer un nuevo contrato social para incrementar la inclusión social, productiva y política"},"133011601010000001815",1,52559313,"ALICIA CUJABAN ZAZA","Persona Natural",null,null,null,17444000,null,1,8722000,26166000,26166000,"2021-03-02","2021-03-03","2021-09-03",120,1,{"$f":"+AG79*30","v":30},null,null,null,null,null,null,"X",null,1]
[1,67,2021,"FDLCH-CPS-067-2021","https://community.secop.gov.co/Public/Tendering/OpportunityDetail/Index?noticeUID=CO1.NTC.1817213&isFromPublicArea=True&isModal=true&asPopupView=true","Contratos de prestación de servicios profesionales y de apoyo a la gestión","Contratación directa","Prestación de servicios profesionales y de apoyo a la gestión, o para la ejecución de trabajos artísticos que sólo puedan encomendarse a determinadas personas naturales;","Prestación de servicios de apoyo necesarios para apoyar la gestión y ejecución de actividades administrativas, operativas y logísticas que se adelantan en el área de gestión del desarrollo local de la Alcaldía Local de Chapinero","Inversión","Un Nuevo Contrato Social y Ambiental para la Bogotá del Siglo XXI",57,{"$f":"IF(ISERROR(VLOOKUP(L80,Proposito_programa!$C$2:$E$59,2,FALSE)),\" \",VLOOKUP(L80,Proposito_programa!$C$2:$E$59,2,FALSE))","v":"Gestión pública local"},{"$f":"IF(ISERROR(VLOOKUP(L80,Proposito_programa!$C$2:$E$59,3,FALSE)),\" \",VLOOKUP(L80,Proposito_programa!$C$2:$E$59,3,FALSE))","v":"Propósito 5: Construir Bogotá - Región con gobierno abierto, transparente y ciudadanía consciente"},"133011605570000001741",1,2996195,"MEYER JAIRO GACHARNA VILLALBA","Persona Natural",null,null,null,8800000,null,1,4400000,13200000,13200000,"2021-03-03","2021-03-04","2021-09-03",120,1,30,null,null,null,null,null,null,"X",null,1]
[1,68,2021,"FDLCH-CPS-068-2021","https://community.secop.gov.co/Public/Tendering/OpportunityDetail/Index?noticeUID=CO1.NTC.1817160&isFromPublicArea=True&isModal=true&asPopupView=true","Contratos de prestación de servicios profesionales y de apoyo a la gestión","Contratación directa","Prestación de servicios profesionales y de apoyo a la gestión, o para la ejecución de trabajos artísticos que sólo puedan encomendarse a determinadas personas naturales;","Apoyar profesional y jurídicamente el seguimiento, supervisión estratégica y sustanciación de procesos de competencia de la Alcaldía Local de Chapinero anteriores a la entrada en vigencia de la Ley 1801 de 2016.","Inversión","Un Nuevo Contrato Social y Ambiental para la Bogotá del Siglo XXI",57,{"$f":"IF(ISERROR(VLOOKUP(L81,Proposito_programa!$C$2:$E$59,2,FALSE)),\" \",VLOOKUP(L81,Proposito_programa!$C$2:$E$59,2,FALSE))","v":"Gestión pública local"},{"$f":"IF(ISERROR(VLOOKUP(L81,Proposito_programa!$C$2:$E$59,3,FALSE)),\" \",VLOOKUP(L81,Proposito_programa!$C$2:$E$59,3,FALSE))","v":"Propósito 5: Construir Bogotá - Región con gobierno abierto, transparente y ciudadanía consciente"},"133011605570000001841",1,19271830,"MANUEL FALLA BUSTOS","Persona Natural",null,null,null,30000000,null,1,15000000,45000000,44500000,"2021-03-03","2021-03-04","2021-12-05",180,1,30,null,null,null,null,null,null,"X",null,0.98888888888888893]
[1,69,2021,"FDLCH-CPS-069-2021","https://community.secop.gov.co/Public/Tendering/OpportunityDetail/Index?noticeUID=CO1.NTC.1828452&isFromPublicArea=True&isModal=true&asPopupView=true","Contratos de prestación de servicios profesionales y de apoyo a la gestión","Contratación directa","Prestación de servicios profesionales y de apoyo a la gestión, o para la ejecución de trabajos artísticos que sólo puedan encomendarse a determinadas personas naturales;","Prestar los servicios de apoyo a la gestión en la implementación, atención, verificación, soporte y acompañamiento de los procesos y/o actuaciones administrativas de registro y seguimiento a la propiedad horizontal en los aplicativos y/o herramientas vituales en la localidad de Chapinero.","Inversión","Un Nuevo Contrato Social y Ambiental para la Bogotá del Siglo XXI",57,{"$f":"IF(ISERROR(VLOOKUP(L82,Proposito_programa!$C$2:$E$59,2,FALSE)),\" \",VLOOKUP(L82,Proposito_programa!$C$2:$E$59,2,FALSE))","v":"Gestión pública local"},{"$f":"IF(ISERROR(VLOOKUP(L82,Proposito_programa!$C$2:$E$59,3,FALSE)),\" \",VLOOKUP(L82,Proposito_programa!$C$2:$E$59,3,FALSE))","v":"Propósito 5: Construir Bogotá - Región con gobierno abierto, transparente y ciudadanía consciente"},"133011605570000001741",1,1070021566,"MAUREN DARLINE FORERO RONCANCIO","Persona Natural",null,null,null,6000000,null,1,3000000,9000000,9000000,"2021-03-08","2021-03-09","2021-07-23",90,1,30,null,null,null,null,null,null,"X",null,1]
[1,70,2021,"FDLCH-CPS-070-2021","https://community.secop.gov.co/Directory/Profile/710466202","Contratos de prestación de servicios profesionales y de apoyo a la gestión","Contratación directa","Prestación de servicios profesionales y de apoyo a la gestión, o para la ejecución de trabajos artísticos que sólo puedan encomendarse a determinadas personas naturales;","Prestar servicios profesionales de apoyo jurídico en la ejecución de las acciones requeridas para el trámite e impulso procesal de las actuaciones administrativas y de cobro persuasivo de competencia de la Alcaldía Local de Chapinero.","Inversión","Un Nuevo Contrato Social y Ambiental para la Bogotá del Siglo XXI",57,{"$f":"IF(ISERROR(VLOOKUP(L83,Proposito_programa!$C$2:$E$59,2,FALSE)),\" \",VLOOKUP(L83,Proposito_programa!$C$2:$E$59,2,FALSE))","v":"Gestión pública local"},{"$f":"IF(ISERROR(VLOOKUP(L83,Proposito_programa!$C$2:$E$59,3,FALSE)),\" \",VLOOKUP(L83,Proposito_programa!$C$2:$E$59,3,FALSE))","v":"Propósito 5: Construir Bogotá - Región con gobierno abierto, transparente y ciudadanía consciente"},"133011605570000001841",1,11796268,"ARIEL VALENCIA VALENCIA","Persona Natural",null,null,null,26400000,-5280000,1,13200000,34320000,25373333,"2021-03-08","2021-03-08","2021-12-07",180,1,30,79965971,"CARLOS MANUEL GARZON","2021-11-02",5280000,null,null,"X",null,{"$f":"IF(ISERROR(AB83/AA83),\"-\",(AB83/AA83))","v":0.73931622960372956}]
[1,71,2021,"FDLCH-CPS-070-2021","https://community.secop.gov.co/Directory/Profile/710466202","Contratos de prestación de servicios profesionales y de apoyo a la gestión","Contratación directa","Prestación de servicios profesionales y de apoyo a la gestión, o para la ejecución de trabajos artísticos que sólo puedan encomendarse a determinadas personas naturales;","Prestar servicios profesionales de apoyo jurídico en la ejecución de las acciones requeridas para el trámite e impulso procesal de las actuaciones administrativas y de cobro persuasivo de competencia de la Alcaldía Local de Chapinero.","Inversión","Un Nuevo Contrato Social y Ambiental para la Bogotá del Siglo XXI",57,{"$f":"IF(ISERROR(VLOOKUP(L84,Proposito_programa!$C$2:$E$59,2,FALSE)),\" \",VLOOKUP(L84,Proposito_programa!$C$2:$E$59,2,FALSE))","v":"Gestión pública local"},{"$f":"IF(ISERROR(VLOOKUP(L84,Proposito_programa!$C$2:$E$59,3,FALSE)),\" \",VLOOKUP(L84,Proposito_programa!$C$2:$E$59,3,FALSE))","v":"Propósito 5: Construir Bogotá - Región con gobierno abierto, transparente y ciudadanía consciente"},"133011605570000001841",1,79965971,"CARLOS MANUEL GARZON HERNANDEZ","Persona Natural",null,null,null,5280000,null,null,null,5280000,0,"2021-03-08","2021-03-08","2021-12-07",180,1,{"$f":"+AG84*30","v":30},null,null,null,null,null,null,"X",null,1]
[1,72,2021,"FDLCH-CPS-071-2021","https://colombiacompra.gov.co/tienda-virtual-del-estado-colombiano/ordenes-compra/65068","Contratos de prestación de servicios","Selección abreviada","Selección abreviada por menor cuantía ","Prestar los servicios de aseo y cafeteria en la Alcaldía Local de Chapinero y sus sedes, conforme a lo estipulado en el Acuerdo Marco de Precios III","Funcionamiento","Un Nuevo Contrato Social y Ambiental para la Bogotá del Siglo XXI","No aplica",{"$f":"IF(ISERROR(VLOOKUP(L85,Proposito_programa!$C$2:$E$59,2,FALSE)),\" \",VLOOKUP(L85,Proposito_programa!$C$2:$E$59,2,FALSE))","v":" "},{"$f":"IF(ISERROR(VLOOKUP(L85,Proposito_programa!$C$2:$E$59,3,FALSE)),\" \",VLOOKUP(L85,Proposito_programa!$C$2:$E$59,3,FALSE))","v":" "},"1310202020101",16,830068543,"MUNDOLIMPIEZA LTDA","Persona Jurídica",null,null,null,15726007,null,1,273993,16000000,0,"2021-03-04","2021-03-04","2022-04-04",270,1,30,null,null,null,null,null,"X",null,null,0.66]
[1,73,2021,"FDLCH-CPS-071-2021","https://colombiacompra.gov.co/tienda-virtual-del-estado-colombiano/ordenes-compra/65068","Contratos de prestación de servicios","Selección abreviada","Selección abreviada por menor cuantía ","Prestar los servicios de aseo y cafeteria en la Alcaldía Local de Chapinero y sus sedes, conforme a lo estipulado en el Acuerdo Marco de Precios III","Funcionamiento","Un Nuevo Contrato Social y Ambiental para la Bogotá del Siglo XXI","No aplica",null,null,"131020202030502",16,830068543,"MUNDOLIMPIEZA LTDA","Persona Jurídica",null,null,null,123070624,null,2,67236860,190307484,125806444,"2021-03-04","2021-03-04","2022-04-04",270,1,{"$f":"+AG86*30","v":30},null,null,null,null,null,"X",null,null,0.66106934606943779]
[1,74,2021,"FDLCH-CPS-072-2021","https://community.secop.gov.co/Public/Tendering/OpportunityDetail/Index?noticeUID=CO1.NTC.1829154&isFromPublicArea=True&isModal=true&asPopupView=true","Contratos de prestación de servicios profesionales y de apoyo a la gestión","Contratación directa","Prestación de servicios profesionales y de apoyo a la gestión, o para la ejecución de trabajos artísticos que sólo puedan encomendarse a determinadas personas naturales;","Prestación de servicios profesionales para la atención integral del manejo de las comisiones judiciales ordenadas por las autoridades jurisdiccionales y prestar apoyo al cobro persuasivo, actuaciones administrativas y policivas de competencia de la Alcaldía Local de Chapinero.","Inversión","Un Nuevo Contrato Social y Ambiental para la Bogotá del Siglo XXI",57,{"$f":"IF(ISERROR(VLOOKUP(L87,Proposito_programa!$C$2:$E$59,2,FALSE)),\" \",VLOOKUP(L87,Proposito_programa!$C$2:$E$59,2,FALSE))","v":"Gestión pública local"},{"$f":"IF(ISERROR(VLOOKUP(L87,Proposito_programa!$C$2:$E$59,3,FALSE)),\" \",VLOOKUP(L87,Proposito_programa!$C$2:$E$59,3,FALSE))","v":"Propósito 5: Construir Bogotá - Región con gobierno abierto, transparente y ciudadanía consciente"},"133011605570000001841",1,79729789,"ALFREDO ENRIQUE CACERES MENDOZA","Persona Natural",null,null,null,26000000,null,1,13000000,39000000,39000000,"2021-03-08","2021-03-09","2021-10-23",150,1,30,null,null,null,null,null,null,"X",null,1]
[1,75,2021,"FDLCH-CPS-073-2021","https://community.secop.gov.co/Public/Tendering/OpportunityDetail/Index?noticeUID=CO1.NTC.1831691&isFromPublicArea=True&isModal=true&asPopupView=true","Contratos de prestación de servicios profesionales y de apoyo a la gestión","Contratación directa","Prestación de servicios profesionales y de apoyo a la gestión, o para la ejecución de trabajos artísticos que sólo puedan encomendarse a determinadas personas naturales;","Prestar servicios profesionales para apoyar al equipo de prensa y comunicaciones de la Alcaldía Local en la realización de productos y piezas digitales, impresas y publicitarias de gran formato y de animación gráfica, así como apoyar la producción y montaje de eventos","Inversión","Un Nuevo Contrato Social y Ambiental para la Bogotá del Siglo XXI",57,{"$f":"IF(ISERROR(VLOOKUP(L88,Proposito_programa!$C$2:$E$59,2,FALSE)),\" \",VLOOKUP(L88,Proposito_programa!$C$2:$E$59,2,FALSE))","v":"Gestión pública local"},{"$f":"IF(ISERROR(VLOOKUP(L88,Proposito_programa!$C$2:$E$59,3,FALSE)),\" \",VLOOKUP(L88,Proposito_programa!$C$2:$E$59,3,FALSE))","v":"Propósito 5: Construir Bogotá - Región con gobierno abierto, transparente y ciudadanía consciente"},"133011605570000001741",1,1026269094,"EIDER EIMER HERNANDEZ POLANCO","Persona Natural",null,null,null,16000000,null,1,8000000,24000000,24000000,"2021-03-10","2021-03-10","2021-09-09",120,1,30,null,null,null,null,null,null,"X",null,1]
[1,76,2021,"FDLCH-CCBM-074-2021","https://community.secop.gov.co/Public/Tendering/OpportunityDetail/Index?noticeUID=CO1.NTC.1834562&isFromPublicArea=True&isModal=False","Contratos de prestación de servicios","Selección abreviada","Bolsas de productos","La adquisición a traves de la BMC - BOLSA MERCANTIL DE COLOMBIA S.A del servicio de vigilancia y seguridas privada integral permanente en la modalidad fija para protección y cuidado de los funcionarios, usuarios y todos los bienes muebles e inmuebles de propiedad o en custodia del Fondo de Desarrollo Local de Chapinero y todos aquellos d elos que llegare a adquirir.","Funcionamiento","Un Nuevo Contrato Social y Ambiental para la Bogotá del Siglo XXI","No aplica",{"$f":"IF(ISERROR(VLOOKUP(L89,Proposito_programa!$C$2:$E$59,2,FALSE)),\" \",VLOOKUP(L89,Proposito_programa!$C$2:$E$59,2,FALSE))","v":" "},{"$f":"IF(ISERROR(VLOOKUP(L89,Proposito_programa!$C$2:$E$59,3,FALSE)),\" \",VLOOKUP(L89,Proposito_programa!$C$2:$E$59,3,FALSE))","v":" "},"131020202030501",1,805000867,"CORREAGRO S.A.","Persona Jurídica",null,null,null,531324026,null,null,null,531324026,283432184,"2021-03-10","2021-03-23",null,330,1,30,null,null,null,null,"X",null,null,null,0.53344507330824142]
[1,77,2021,"FDLCH-CPS-075-2021","https://community.secop.gov.co/Public/Tendering/OpportunityDetail/Index?noticeUID=CO1.NTC.1837390&isFromPublicArea=True&isModal=true&asPopupView=true","Contratos de prestación de servicios profesionales y de apoyo a la gestión","Contratación directa","Prestación de servicios profesionales y de apoyo a la gestión, o para la ejecución de trabajos artísticos que sólo puedan encomendarse a determinadas personas naturales;","Prestar servicios profesionales para apoyar técnicamente las actuaciones administrativas, impulso procesal y de inspección, vigilancia y control en las zonas de especial protección de cerros orientales de competencia de la alcaldía local de Chapinero”.","Inversión","Un Nuevo Contrato Social y Ambiental para la Bogotá del Siglo XXI",57,{"$f":"IF(ISERROR(VLOOKUP(L90,Proposito_programa!$C$2:$E$59,2,FALSE)),\" \",VLOOKUP(L90,Proposito_programa!$C$2:$E$59,2,FALSE))","v":"Gestión pública local"},{"$f":"IF(ISERROR(VLOOKUP(L90,Proposito_programa!$C$2:$E$59,3,FALSE)),\" \",VLOOKUP(L90,Proposito_programa!$C$2:$E$59,3,FALSE))","v":"Propósito 5: Construir Bogotá - Región con gobierno abierto, transparente y ciudadanía consciente"},"133011605570000001841",1,79531247,"        RICARDO ALBERTO CORNEJO GONZALEZ","Persona Natural",null,null,null,27600000,-19013333,null,null,8586667,8586667,"2021-03-11","2021-03-11","2021-12-10",180,1,30,1000145771,"DIANA CAROLINA ERAZO FLOREZ","2021-05-07",19013333,null,null,"X",null,1]
[1,78,2021,"FDLCH-CPS-075-2021","https://community.secop.gov.co/Public/Tendering/OpportunityDetail/Index?noticeUID=CO1.NTC.1837390&isFromPublicArea=True&isModal=true&asPopupView=true","Contratos de prestación de servicios profesionales y de apoyo a la gestión","Contratación directa","Prestación de servicios profesionales y de apoyo a la gestión, o para la ejecución de trabajos artísticos que sólo puedan encomendarse a determinadas personas naturales;","Prestar servicios profesionales para apoyar técnicamente las actuaciones administrativas, impulso procesal y de inspección, vigilancia y control en las zonas de especial protección de cerros orientales de competencia de la alcaldía local de Chapinero”.","Inversión","Un Nuevo Contrato Social y Ambiental para la Bogotá del Siglo XXI",57,{"$f":"IF(ISERROR(VLOOKUP(L91,Proposito_programa!$C$2:$E$59,2,FALSE)),\" \",VLOOKUP(L91,Proposito_programa!$C$2:$E$59,2,FALSE))","v":"Gestión pública local"},{"$f":"IF(ISERROR(VLOOKUP(L91,Proposito_programa!$C$2:$E$59,3,FALSE)),\" \",VLOOKUP(L91,Proposito_programa!$C$2:$E$59,3,FALSE))","v":"Propósito 5: Construir Bogotá - Región con gobierno abierto, transparente y ciudadanía consciente"},"133011605570000001841",0,1006269530,"DIANA CAROLINA ERAZO FLOREZ","Persona Natural",null,null,null,19013333,null,1,13800000,32813333,32813333,"2021-03-11","2021-03-11","2021-12-10",180,1,{"$f":"+AG91*30","v":30},null,null,null,null,null,null,"X",null,1]
[1,79,2021,"FDLCH-CPS-076-2021","https://community.secop.gov.co/Public/Tendering/OpportunityDetail/Index?noticeUID=CO1.NTC.1837778&isFromPublicArea=True&isModal=true&asPopupView=true","Contratos de prestación de servicios profesionales y de apoyo a la gestión","Contratación directa","Prestación de servicios profesionales y de apoyo a la gestión, o para la ejecución de trabajos artísticos que sólo puedan encomendarse a determinadas personas naturales;","Prestar servicios profesionales para apoyar la formulación, ejecución, seguimiento y mejora continua de las herramientas que conforman la gestión ambiental institucional de la Alcaldía Local de Chapinero.","Inversión","Un Nuevo Contrato Social y Ambiental para la Bogotá del Siglo XXI",57,{"$f":"IF(ISERROR(VLOOKUP(L92,Proposito_programa!$C$2:$E$59,2,FALSE)),\" \",VLOOKUP(L92,Proposito_programa!$C$2:$E$59,2,FALSE))","v":"Gestión pública local"},{"$f":"IF(ISERROR(VLOOKUP(L92,Proposito_programa!$C$2:$E$59,3,FALSE)),\" \",VLOOKUP(L92,Proposito_programa!$C$2:$E$59,3,FALSE))","v":"Propósito 5: Construir Bogotá - Región con gobierno abierto, transparente y ciudadanía consciente"},"133011605570000001741",1,1032460215,"EDWAR STIVEN BARRERA GONZALEZ","Persona Natural",null,null,null,17444000,null,1,8722000,26166000,26166000,"2021-03-11","2021-03-12","2021-09-11",120,1,30,null,null,null,null,null,null,"X",null,1]
[1,80,2021,"FDLCH-CPS-077-2021","https://community.secop.gov.co/Public/Tendering/OpportunityDetail/Index?noticeUID=CO1.NTC.1835071&isFromPublicArea=True&isModal=true&asPopupView=true","Contratos de prestación de servicios profesionales y de apoyo a la gestión","Contratación directa","Prestación de servicios profesionales y de apoyo a la gestión, o para la ejecución de trabajos artísticos que sólo puedan encomendarse a determinadas personas naturales;","Prestar servicios profesionales para apoyar la gestión, formulación, desarrollo, seguimiento y evaluación del proyecto de inversión “chapinero promueve y genera confianza ciudadana” y realizar los apoyos a la supervisión de los contrataos que de él se deriven","Inversión","Un Nuevo Contrato Social y Ambiental para la Bogotá del Siglo XXI",43,{"$f":"IF(ISERROR(VLOOKUP(L93,Proposito_programa!$C$2:$E$59,2,FALSE)),\" \",VLOOKUP(L93,Proposito_programa!$C$2:$E$59,2,FALSE))","v":"Cultura ciudadana para la confianza, la convivencia y la participación desde la vida cotidiana"},{"$f":"IF(ISERROR(VLOOKUP(L93,Proposito_programa!$C$2:$E$59,3,FALSE)),\" \",VLOOKUP(L93,Proposito_programa!$C$2:$E$59,3,FALSE))","v":"Propósito 3: Inspirar confianza y legitimidad para vivir sin miedo y ser epicentro de cultura ciudadana, paz y reconciliación"},"133011603430000001735",1,1026568660,"CRISTIAN ANDRES MONROY CARANTON","Persona Natural",null,null,null,21805000,null,null,null,21805000,21805000,"2021-03-10","2021-03-11","2021-08-10",150,null,0,null,null,null,null,null,null,"X",null,1]
[1,81,2021,"FDLCH-CPS-078-2021","https://community.secop.gov.co/Public/Tendering/OpportunityDetail/Index?noticeUID=CO1.NTC.1842003&isFromPublicArea=True&isModal=true&asPopupView=true","Contratos de prestación de servicios profesionales y de apoyo a la gestión","Contratación directa","Prestación de servicios profesionales y de apoyo a la gestión, o para la ejecución de trabajos artísticos que sólo puedan encomendarse a determinadas personas naturales;","Prestar los servicios profesionales para el apoyo al área de gestión del desarrollo local de la Alcaldía Local de Chapinero en la formulación, gestión, ejecución y seguimiento económico de los contratos derivados del proyecto “Chapinero Productivo y emprendedor”, la Estrategia de Mitigación y Reactivación Económica, EMRE Local y la supervisión de contratos que le sean asignados","Inversión","Un Nuevo Contrato Social y Ambiental para la Bogotá del Siglo XXI",6,{"$f":"IF(ISERROR(VLOOKUP(L94,Proposito_programa!$C$2:$E$59,2,FALSE)),\" \",VLOOKUP(L94,Proposito_programa!$C$2:$E$59,2,FALSE))","v":"Sistema Distrital de Cuidado"},{"$f":"IF(ISERROR(VLOOKUP(L94,Proposito_programa!$C$2:$E$59,3,FALSE)),\" \",VLOOKUP(L94,Proposito_programa!$C$2:$E$59,3,FALSE))","v":"Propósito 1: Hacer un nuevo contrato social para incrementar la inclusión social, productiva y política"},"133011601060000001671",1,79341550,"EDGAR ARTURO GARZON LEON","Persona Natural",null,null,null,17443700,-10756948,null,null,6686752,6686752,"2021-03-12","2021-03-15","2021-05-03",120,null,0,null,null,null,null,null,null,"X",null,1]
[1,82,2021,"FDLCH-CPS-079-2021","https://community.secop.gov.co/Public/Tendering/OpportunityDetail/Index?noticeUID=CO1.NTC.1851946&isFromPublicArea=True&isModal=true&asPopupView=true","Contratos de prestación de servicios profesionales y de apoyo a la gestión","Contratación directa","Prestación de servicios profesionales y de apoyo a la gestión, o para la ejecución de trabajos artísticos que sólo puedan encomendarse a determinadas personas naturales;","Prestar servicios profesionales para apoyar técnicamente las distintas etapas de los procesos de competencia de las inspecciones de policía d ela localidad de chapinero, segpun reparto.","Inversión","Un Nuevo Contrato Social y Ambiental para la Bogotá del Siglo XXI",57,{"$f":"IF(ISERROR(VLOOKUP(L95,Proposito_programa!$C$2:$E$59,2,FALSE)),\" \",VLOOKUP(L95,Proposito_programa!$C$2:$E$59,2,FALSE))","v":"Gestión pública local"},{"$f":"IF(ISERROR(VLOOKUP(L95,Proposito_programa!$C$2:$E$59,3,FALSE)),\" \",VLOOKUP(L95,Proposito_programa!$C$2:$E$59,3,FALSE))","v":"Propósito 5: Construir Bogotá - Región con gobierno abierto, transparente y ciudadanía consciente"},"133011605570000001841",1,52308262,"IRISAYDEE NOVOA MEDELLIN","Persona Natural",null,null,null,18400000,-9200000,1,9200000,18400000,18400000,"2021-03-17","2021-03-17","2021-09-16",120,1,30,null,null,null,null,null,null,"X",null,1]
[1,83,2021,"FDLCH-CPS-080-2021","https://community.secop.gov.co/Public/Tendering/OpportunityDetail/Index?noticeUID=CO1.NTC.1848576&isFromPublicArea=True&isModal=true&asPopupView=true","Contratos de prestación de servicios profesionales y de apoyo a la gestión","Contratación directa","Prestación de servicios profesionales y de apoyo a la gestión, o para la ejecución de trabajos artísticos que sólo puedan encomendarse a determinadas personas naturales;","Prestar servicios técnicos para apoyar el área Gestión del Desarrollo Local en las actividades presupuestales requeridas por la Alcaldía Local de Chapinero","Inversión","Un Nuevo Contrato Social y Ambiental para la Bogotá del Siglo XXI",57,{"$f":"IF(ISERROR(VLOOKUP(L96,Proposito_programa!$C$2:$E$59,2,FALSE)),\" \",VLOOKUP(L96,Proposito_programa!$C$2:$E$59,2,FALSE))","v":"Gestión pública local"},{"$f":"IF(ISERROR(VLOOKUP(L96,Proposito_programa!$C$2:$E$59,3,FALSE)),\" \",VLOOKUP(L96,Proposito_programa!$C$2:$E$59,3,FALSE))","v":"Propósito 5: Construir Bogotá - Región con gobierno abierto, transparente y ciudadanía consciente"},"133011605570000001741",1,1023893986,"EILIN NATALY VILLABON PARDO","Persona Natural",null,null,null,10600000,null,1,5300000,15900000,15900000,"2021-03-16","2021-03-17","2021-09-16",120,1,30,null,null,null,null,null,null,"X",null,1]
[1,84,2021,"FDLCH-CPS-081-2021","https://community.secop.gov.co/Public/Tendering/OpportunityDetail/Index?noticeUID=CO1.NTC.1845780&isFromPublicArea=True&isModal=true&asPopupView=true","Contratos de prestación de servicios profesionales y de apoyo a la gestión","Contratación directa","Prestación de servicios profesionales y de apoyo a la gestión, o para la ejecución de trabajos artísticos que sólo puedan encomendarse a determinadas personas naturales;","Prestación de servicios profesionales para apoyar al área de Gestión del Desarrollo Local de la Alcaldía Local de Chapinero, en la gestión, formulación, desarrollo, seguimiento y evaluación de los temas relacionados con Educación superior en la Localidad de Chapinero, enmarcados en el proyecto de inversión “Chapinero Construye Futuro” y realizar el apoyo a la supervisión de los contratos y/o convenios que de él se deriven","Inversión","Un Nuevo Contrato Social y Ambiental para la Bogotá del Siglo XXI",17,{"$f":"IF(ISERROR(VLOOKUP(L97,Proposito_programa!$C$2:$E$59,2,FALSE)),\" \",VLOOKUP(L97,Proposito_programa!$C$2:$E$59,2,FALSE))","v":"Jóvenes con capacidades: Proyecto de vida para la ciudadanía, la innovación y el trabajo del siglo XXI"},{"$f":"IF(ISERROR(VLOOKUP(L97,Proposito_programa!$C$2:$E$59,3,FALSE)),\" \",VLOOKUP(L97,Proposito_programa!$C$2:$E$59,3,FALSE))","v":"Propósito 1: Hacer un nuevo contrato social para incrementar la inclusión social, productiva y política"},"133011601170000001743",1,52918081,"DIANA YELIXA BARINAS RAMIREZ","Persona Natural",null,null,null,25000000,null,null,null,25000000,25000000,"2021-03-15","2021-03-16","2021-08-15",150,null,0,null,null,null,null,null,null,"X",null,1]
[1,85,2021,"FDLCH-CPS-082-2021","https://community.secop.gov.co/Public/Tendering/OpportunityDetail/Index?noticeUID=CO1.NTC.1851912&isFromPublicArea=True&isModal=true&asPopupView=true","Contratos de prestación de servicios profesionales y de apoyo a la gestión","Contratación directa","Prestación de servicios profesionales y de apoyo a la gestión, o para la ejecución de trabajos artísticos que sólo puedan encomendarse a determinadas personas naturales;","Prestar servicios profesionales para apoyar el área Gestión del Desarrollo Local de la Alcaldía Local de Chapinero en los aspectos económicos y financieros de las etapas pre contractuales, contractuales y post contractuales de los proyectos de inversión, así como la producción, consolidación y análisis de datos, estadísticas e informes de impacto del Plan de Desarrollo Local.","Inversión","Un Nuevo Contrato Social y Ambiental para la Bogotá del Siglo XXI",57,{"$f":"IF(ISERROR(VLOOKUP(L98,Proposito_programa!$C$2:$E$59,2,FALSE)),\" \",VLOOKUP(L98,Proposito_programa!$C$2:$E$59,2,FALSE))","v":"Gestión pública local"},{"$f":"IF(ISERROR(VLOOKUP(L98,Proposito_programa!$C$2:$E$59,3,FALSE)),\" \",VLOOKUP(L98,Proposito_programa!$C$2:$E$59,3,FALSE))","v":"Propósito 5: Construir Bogotá - Región con gobierno abierto, transparente y ciudadanía consciente"},"133011605570000001741",1,1023884331,"       JHON HENRY CAMARGO ALEMAN","Persona Natural",null,null,null,16800000,-5320000,null,null,11480000,10360000,"2021-03-17","2021-03-17","2021-09-16",120,1,30,1016059999,"CRISTIAN DANIEL VILLARREAL PARROQUIANO","2021-06-09",5320000,null,null,"X",null,0.90243902439024393]
[1,86,2021,"FDLCH-CPS-082-2021","https://community.secop.gov.co/Public/Tendering/OpportunityDetail/Index?noticeUID=CO1.NTC.1851912&isFromPublicArea=True&isModal=true&asPopupView=true","Contratos de prestación de servicios profesionales y de apoyo a la gestión","Contratación directa","Prestación de servicios profesionales y de apoyo a la gestión, o para la ejecución de trabajos artísticos que sólo puedan encomendarse a determinadas personas naturales;","CESION CONTRATO 082-2021. PRESTAR SERVICIOS PROFESIONALES PARA APOYAR LOS ASPECTOS ECONÓMICOS Y FINANCIEROS DE LAS ETAPAS PRE CONTRACTUALES, CONTRACTUALES Y POSTCONTRACTURALES DE LOS PROYECTOS DE INVERSIÓN, ASÍ COMO LA PRODUCCIÓN, CONSOLIDACIÓN Y ANÁLISIS DE DATOS, ESTADISTICAS E INFORMES DE IMPACTO DEL PLAN DE DESARROLLO DEL FONDO DE DESARROLLO LOCAL DE CHAPINERO.","Inversión",null,57,{"$f":"IF(ISERROR(VLOOKUP(L99,Proposito_programa!$C$2:$E$59,2,FALSE)),\" \",VLOOKUP(L99,Proposito_programa!$C$2:$E$59,2,FALSE))","v":"Gestión pública local"},{"$f":"IF(ISERROR(VLOOKUP(L99,Proposito_programa!$C$2:$E$59,3,FALSE)),\" \",VLOOKUP(L99,Proposito_programa!$C$2:$E$59,3,FALSE))","v":"Propósito 5: Construir Bogotá - Región con gobierno abierto, transparente y ciudadanía consciente"},"133011605570000001741",1,"1016059999","CRISTIAN DANIEL VILLARREAL PARROQUIANO","Persona Natural",null,null,null,5320000,null,1,8400000,13720000,13720000,"2021-03-17","2021-03-17","2021-09-16",120,1,{"$f":"+AG99*30","v":30},null,null,null,null,null,null,"X",null,0.9]
[1,87,2021,"FDLCH-CPS-083-2021","https://community.secop.gov.co/Public/Tendering/OpportunityDetail/Index?noticeUID=CO1.NTC.1859400&isFromPublicArea=True&isModal=true&asPopupView=true","Contratos de prestación de servicios profesionales y de apoyo a la gestión","Contratación directa","Prestación de servicios profesionales y de apoyo a la gestión, o para la ejecución de trabajos artísticos que sólo puedan encomendarse a determinadas personas naturales;","Prestar servicios técnicos de apoyo a la gestión, para el desarrollo de estrategias que promuevan el uso adecuado del espacio público en el marco del proyecto “CHAPINERO ES ESPACIO PUBLICO INCLUYENTE Y DEMOCRATICO","Inversión","Un Nuevo Contrato Social y Ambiental para la Bogotá del Siglo XXI",45,{"$f":"IF(ISERROR(VLOOKUP(L100,Proposito_programa!$C$2:$E$59,2,FALSE)),\" \",VLOOKUP(L100,Proposito_programa!$C$2:$E$59,2,FALSE))","v":"Espacio público más seguro y construido colectivamente"},{"$f":"IF(ISERROR(VLOOKUP(L100,Proposito_programa!$C$2:$E$59,3,FALSE)),\" \",VLOOKUP(L100,Proposito_programa!$C$2:$E$59,3,FALSE))","v":"Propósito 3: Inspirar confianza y legitimidad para vivir sin miedo y ser epicentro de cultura ciudadana, paz y reconciliación"},"133011603450000001736",1,15677463,"JOSE GREGORIO BOLAÑO MARTINEZ","Persona Natural",null,null,null,12000000,null,1,6000000,18000000,18000000,"2021-03-23","2021-03-25","2021-09-24",120,1,30,null,null,null,null,null,null,"X",null,1]
[1,88,2021,"FDLCH-CPS-085-2021","https://community.secop.gov.co/Public/Tendering/OpportunityDetail/Index?noticeUID=CO1.NTC.1871730&isFromPublicArea=True&isModal=true&asPopupView=true","Contratos de prestación de servicios profesionales y de apoyo a la gestión","Contratación directa","Prestación de servicios profesionales y de apoyo a la gestión, o para la ejecución de trabajos artísticos que sólo puedan encomendarse a determinadas personas naturales;","Prestar servicios profesionales de apoyo a la gestión al area de gestión del desarrollo local de la Alcaldía Local de Chapinero en la formulacion gestion ejecucion y seguimiento financiero de los contratos derivados del proyecto Chapinero Productivo y emprendedor la Estrategia de Mitigación y Reactivación Economica EMRE Local y la supervisión de contratos que le sean asignados","Inversión","Un Nuevo Contrato Social y Ambiental para la Bogotá del Siglo XXI",6,{"$f":"IF(ISERROR(VLOOKUP(L101,Proposito_programa!$C$2:$E$59,2,FALSE)),\" \",VLOOKUP(L101,Proposito_programa!$C$2:$E$59,2,FALSE))","v":"Sistema Distrital de Cuidado"},{"$f":"IF(ISERROR(VLOOKUP(L101,Proposito_programa!$C$2:$E$59,3,FALSE)),\" \",VLOOKUP(L101,Proposito_programa!$C$2:$E$59,3,FALSE))","v":"Propósito 1: Hacer un nuevo contrato social para incrementar la inclusión social, productiva y política"},"133011601060000001671",1,60256522,"NUBIA CONSTANZA MOGOLLON ACEVEDO","Persona Natural",null,null,null,17444000,null,1,8722000,26166000,26166000,"2021-03-25","2021-03-25","2021-09-24",120,1,30,null,null,null,null,null,null,"X",null,1]
[1,89,2021,"FDLCH-CPS-087-2021","https://community.secop.gov.co/Public/Tendering/OpportunityDetail/Index?noticeUID=CO1.NTC.1875987&isFromPublicArea=True&isModal=true&asPopupView=true","Contratos de prestación de servicios profesionales y de apoyo a la gestión","Contratación directa","Prestación de servicios profesionales y de apoyo a la gestión, o para la ejecución de trabajos artísticos que sólo puedan encomendarse a determinadas personas naturales;","Prestar los servicios de apoyo a la gestión en la implementación, atención, verificación, soporte y acompañamiento de los procesos y/o actuaciones administrativas de registro y seguimiento a la propiedad horizontal en los aplicativos y/o herramientas virtuales en la localidad de Chapinero","Inversión","Un Nuevo Contrato Social y Ambiental para la Bogotá del Siglo XXI",57,{"$f":"IF(ISERROR(VLOOKUP(L102,Proposito_programa!$C$2:$E$59,2,FALSE)),\" \",VLOOKUP(L102,Proposito_programa!$C$2:$E$59,2,FALSE))","v":"Gestión pública local"},{"$f":"IF(ISERROR(VLOOKUP(L102,Proposito_programa!$C$2:$E$59,3,FALSE)),\" \",VLOOKUP(L102,Proposito_programa!$C$2:$E$59,3,FALSE))","v":"Propósito 5: Construir Bogotá - Región con gobierno abierto, transparente y ciudadanía consciente"},"133011605570000001741",1,1026595076,"VALENTINA SALGADO RODRIGUEZ","Persona Natural",null,null,null,6000000,null,1,3000000,9000000,9000000,"2021-03-26","2021-03-27","2021-08-10",90,1,30,null,null,null,null,null,null,"X",null,1]
[1,90,2021,"FDLCH-CSE-088-2021","https://community.secop.gov.co/Public/Tendering/OpportunityDetail/Index?noticeUID=CO1.NTC.1823951&isFromPublicArea=True&isModal=False","Seguros","Selección abreviada","Bolsas de productos","Contratar los seguros que amparen los intereses patrimoniales actuales y futuros, así como los bienes de propiedad del Fondo de Desarrollo Locla de Chapinero, que esten bajo su responsabilidad y custodia y aquellos que sean adquiridos para desarrollar las funciones inherentes a su actuvidad asi coo cualquier otra póliza de seguros que requiera la entidad en el desarrollo de su actividad.","Funcionamiento","Un Nuevo Contrato Social y Ambiental para la Bogotá del Siglo XXI","No aplica",{"$f":"IF(ISERROR(VLOOKUP(L103,Proposito_programa!$C$2:$E$59,2,FALSE)),\" \",VLOOKUP(L103,Proposito_programa!$C$2:$E$59,2,FALSE))","v":" "},{"$f":"IF(ISERROR(VLOOKUP(L103,Proposito_programa!$C$2:$E$59,3,FALSE)),\" \",VLOOKUP(L103,Proposito_programa!$C$2:$E$59,3,FALSE))","v":" "},"131020202020107",2,891700037,"MAPFRE SEGUROS GENERALES DE COLOMBIA","Persona Jurídica",null,null,null,11164339,null,1,4984817,16149156,30678201,"2021-03-30","2021-03-30","2022-04-30",300,1,30,null,null,null,null,null,"X",null,null,1.8996782865928101]
[1,91,2021,"FDLCH-CPS-089-2021","https://community.secop.gov.co/Public/Tendering/OpportunityDetail/Index?noticeUID=CO1.NTC.1891240&isFromPublicArea=True&isModal=true&asPopupView=true","Contratos de prestación de servicios profesionales y de apoyo a la gestión","Contratación directa","Prestación de servicios profesionales y de apoyo a la gestión, o para la ejecución de trabajos artísticos que sólo puedan encomendarse a determinadas personas naturales;","Prestar servicios profesionales para apoyar la gestión, formulación, desarrollo, seguimiento y evaluación del proyecto de inversión 1738: “justicia accesible y oportuna para chapinero","Inversión","Un Nuevo Contrato Social y Ambiental para la Bogotá del Siglo XXI",48,{"$f":"IF(ISERROR(VLOOKUP(L104,Proposito_programa!$C$2:$E$59,2,FALSE)),\" \",VLOOKUP(L104,Proposito_programa!$C$2:$E$59,2,FALSE))","v":"Plataforma institucional para la seguridad y justicia"},{"$f":"IF(ISERROR(VLOOKUP(L104,Proposito_programa!$C$2:$E$59,3,FALSE)),\" \",VLOOKUP(L104,Proposito_programa!$C$2:$E$59,3,FALSE))","v":"Propósito 3: Inspirar confianza y legitimidad para vivir sin miedo y ser epicentro de cultura ciudadana, paz y reconciliación"},"133011603480000001738",1,1010219432,"SANTIAGO ALEJANDRO CARDENAS CABALLERO","Persona Natural",null,null,null,21805000,null,1,10902500,32707500,32707500,"2021-04-06","2021-04-06","2021-11-20",150,1,30,null,null,null,null,null,null,"X",null,1]
[1,92,2021,"FDLCH-CPS-090-2021","https://community.secop.gov.co/Public/Tendering/OpportunityDetail/Index?noticeUID=CO1.NTC.1898309&isFromPublicArea=True&isModal=true&asPopupView=true","Contratos de prestación de servicios profesionales y de apoyo a la gestión","Contratación directa","Prestación de servicios profesionales y de apoyo a la gestión, o para la ejecución de trabajos artísticos que sólo puedan encomendarse a determinadas personas naturales;","Prestar los servicios de apoyo para la operación, seguimiento y cumplimiento de los procesos y procedimientos del Servicio Apoyos Económicos Tipo C, requeridos para el oportuno y adecuado registro, cruce y reporte de los datos en el Sistema Misional–SIRBE, que contribuyan a la garantía de los derechos de la población mayor en el marco de la Política Pública Social para el Envejecimiento y la Vejez en el Distrito Capital a cargo de la Alcaldía Local.","Inversión","Un Nuevo Contrato Social y Ambiental para la Bogotá del Siglo XXI",1,{"$f":"IF(ISERROR(VLOOKUP(L105,Proposito_programa!$C$2:$E$59,2,FALSE)),\" \",VLOOKUP(L105,Proposito_programa!$C$2:$E$59,2,FALSE))","v":"Subsidios y transferencias para la equidad"},{"$f":"IF(ISERROR(VLOOKUP(L105,Proposito_programa!$C$2:$E$59,3,FALSE)),\" \",VLOOKUP(L105,Proposito_programa!$C$2:$E$59,3,FALSE))","v":"Propósito 1: Hacer un nuevo contrato social para incrementar la inclusión social, productiva y política"},"133011601010000001815",1,80449648,"JUAN CARLOS AREVALO","Persona Natural",null,null,null,15000000,null,null,null,15000000,15000000,"2021-04-08","2021-04-09","2021-09-08",150,null,0,null,null,null,null,null,null,"X",null,1]
[1,93,2021,"FDLCH-CPS-091-2021","https://community.secop.gov.co/Public/Tendering/OpportunityDetail/Index?noticeUID=CO1.NTC.1908167&isFromPublicArea=True&isModal=true&asPopupView=true","Contratos de prestación de servicios profesionales y de apoyo a la gestión","Contratación directa","Prestación de servicios profesionales y de apoyo a la gestión, o para la ejecución de trabajos artísticos que sólo puedan encomendarse a determinadas personas naturales;","Prestar servicios de apoyo a la gestion para desarrollar las actividades de radicacion y gestion de correspondencia de la documentacion que expide y se allega a la Alcaldia Local de Chapinero","Inversión","Un Nuevo Contrato Social y Ambiental para la Bogotá del Siglo XXI",57,{"$f":"IF(ISERROR(VLOOKUP(L106,Proposito_programa!$C$2:$E$59,2,FALSE)),\" \",VLOOKUP(L106,Proposito_programa!$C$2:$E$59,2,FALSE))","v":"Gestión pública local"},{"$f":"IF(ISERROR(VLOOKUP(L106,Proposito_programa!$C$2:$E$59,3,FALSE)),\" \",VLOOKUP(L106,Proposito_programa!$C$2:$E$59,3,FALSE))","v":"Propósito 5: Construir Bogotá - Región con gobierno abierto, transparente y ciudadanía consciente"},"133011605570000001741",1,1023007285,"JENNIFER MARIA SAUCEDO FUENTES","Persona Natural",null,null,null,6400000,null,null,null,6400000,6400000,"2021-04-13","2021-04-13","2021-08-12",120,null,0,null,null,null,null,null,null,"X",null,1]
[1,94,2021,"FDLCH-CPS-092-2021","https://community.secop.gov.co/Public/Tendering/OpportunityDetail/Index?noticeUID=CO1.NTC.1901622&isFromPublicArea=True&isModal=true&asPopupView=true","Contratos de prestación de servicios profesionales y de apoyo a la gestión","Contratación directa","Prestación de servicios profesionales y de apoyo a la gestión, o para la ejecución de trabajos artísticos que sólo puedan encomendarse a determinadas personas naturales;","Prestar los servicios de apoyo necesarios para la conducción de los vehículos que conforman el parque automotor en propiedad o custodia del Fondo de Desarrollo Local de Chapinero, y el transporte de servidores públicos para la realización de las actividades misionales de la Alcaldía Local de Chapinero","Inversión","Un Nuevo Contrato Social y Ambiental para la Bogotá del Siglo XXI",57,{"$f":"IF(ISERROR(VLOOKUP(L107,Proposito_programa!$C$2:$E$59,2,FALSE)),\" \",VLOOKUP(L107,Proposito_programa!$C$2:$E$59,2,FALSE))","v":"Gestión pública local"},{"$f":"IF(ISERROR(VLOOKUP(L107,Proposito_programa!$C$2:$E$59,3,FALSE)),\" \",VLOOKUP(L107,Proposito_programa!$C$2:$E$59,3,FALSE))","v":"Propósito 5: Construir Bogotá - Región con gobierno abierto, transparente y ciudadanía consciente"},"133011605570000001741",1,1018407451,"EMERSON HERNANDO HUERTAS FONSECA","Persona Natural",null,null,null,12000000,null,1,6000000,18000000,18000000,"2021-04-09","2021-04-10","2021-11-25",150,1,30,null,null,null,null,null,null,"X",null,1]
[1,95,2021,"FDLCH-CPS-093-2021","https://community.secop.gov.co/Public/Tendering/OpportunityDetail/Index?noticeUID=CO1.NTC.1902017&isFromPublicArea=True&isModal=true&asPopupView=true","Contratos de prestación de servicios profesionales y de apoyo a la gestión","Contratación directa","Prestación de servicios profesionales y de apoyo a la gestión, o para la ejecución de trabajos artísticos que sólo puedan encomendarse a determinadas personas naturales;","Prestar servicios para apoyar al área de gestión del desarrollo local de Chapinero, en el acompañamiento, atención, promoción y fortalecimiento de los procesos comunitarios locales de participación ciudadana, los espacios e instancias interinstitucionales que le sean asignados; así como, los procesos administrativos de los diferentes proyectos de la Alcaldía Local de Chapinero","Inversión","Un Nuevo Contrato Social y Ambiental para la Bogotá del Siglo XXI",57,{"$f":"IF(ISERROR(VLOOKUP(L108,Proposito_programa!$C$2:$E$59,2,FALSE)),\" \",VLOOKUP(L108,Proposito_programa!$C$2:$E$59,2,FALSE))","v":"Gestión pública local"},{"$f":"IF(ISERROR(VLOOKUP(L108,Proposito_programa!$C$2:$E$59,3,FALSE)),\" \",VLOOKUP(L108,Proposito_programa!$C$2:$E$59,3,FALSE))","v":"Propósito 5: Construir Bogotá - Región con gobierno abierto, transparente y ciudadanía consciente"},"133011605570000001741",1,1014284420,"LAURA DANIELA GONZALEZ PACHECO","Persona Natural",null,null,null,18000000,null,1,9000000,27000000,24300000,"2021-04-09","2021-04-13","2022-01-12",180,1,30,null,null,null,null,null,"X",null,null,0.9]
[1,96,2021,"FDLCH-CPS-094-2021","https://community.secop.gov.co/Public/Tendering/OpportunityDetail/Index?noticeUID=CO1.NTC.1908785&isFromPublicArea=True&isModal=true&asPopupView=true","Contratos de prestación de servicios profesionales y de apoyo a la gestión","Contratación directa","Prestación de servicios profesionales y de apoyo a la gestión, o para la ejecución de trabajos artísticos que sólo puedan encomendarse a determinadas personas naturales;","Prestar servicios profesionales de apoyo a la gestión, formulación, desarrollo, seguimiento y evaluación de los proyectos del sector educación.","Inversión","Un Nuevo Contrato Social y Ambiental para la Bogotá del Siglo XXI",17,{"$f":"IF(ISERROR(VLOOKUP(L109,Proposito_programa!$C$2:$E$59,2,FALSE)),\" \",VLOOKUP(L109,Proposito_programa!$C$2:$E$59,2,FALSE))","v":"Jóvenes con capacidades: Proyecto de vida para la ciudadanía, la innovación y el trabajo del siglo XXI"},{"$f":"IF(ISERROR(VLOOKUP(L109,Proposito_programa!$C$2:$E$59,3,FALSE)),\" \",VLOOKUP(L109,Proposito_programa!$C$2:$E$59,3,FALSE))","v":"Propósito 1: Hacer un nuevo contrato social para incrementar la inclusión social, productiva y política"},"133011601170000001743",1,52169417,"SANDRA LILIANA ERAZO ISRAEL","Persona Natural",null,null,null,17444000,null,null,null,17444000,17444000,"2021-04-13","2021-04-14","2021-08-13",120,null,0,null,null,null,null,null,null,"X",null,1]
[1,97,2021,"FDLCH-CPS-095","https://community.secop.gov.co/Public/Tendering/OpportunityDetail/Index?noticeUID=CO1.NTC.1901443&isFromPublicArea=True&isModal=true&asPopupView=true","Contratos de prestación de servicios profesionales y de apoyo a la gestión","Contratación directa","Prestación de servicios profesionales y de apoyo a la gestión, o para la ejecución de trabajos artísticos que sólo puedan encomendarse a determinadas personas naturales;","Brindar apoyo en la implementación de acciones del plan local de convivencia, seguridad y justicia y el desarrollo de estrategias de dialogo, mediación, convivencia y prevención de conflictividades, violencias y delitos en la localidad de chapinero, para mejorar la seguridad y convivencia","Inversión","Un Nuevo Contrato Social y Ambiental para la Bogotá del Siglo XXI",48,{"$f":"IF(ISERROR(VLOOKUP(L110,Proposito_programa!$C$2:$E$59,2,FALSE)),\" \",VLOOKUP(L110,Proposito_programa!$C$2:$E$59,2,FALSE))","v":"Plataforma institucional para la seguridad y justicia"},{"$f":"IF(ISERROR(VLOOKUP(L110,Proposito_programa!$C$2:$E$59,3,FALSE)),\" \",VLOOKUP(L110,Proposito_programa!$C$2:$E$59,3,FALSE))","v":"Propósito 3: Inspirar confianza y legitimidad para vivir sin miedo y ser epicentro de cultura ciudadana, paz y reconciliación"},"133011603480000001738",1,1022364268,"LUIS ALEJANDRO MARTINEZ MARTINEZ","Persona Natural",null,null,null,14700000,null,null,null,14700000,14700000,"2021-04-09","2021-04-10","2021-10-09",180,null,0,null,null,null,null,null,null,"X",null,1]
[1,98,2021,"FDLCH-CPS-096-2021","https://community.secop.gov.co/Public/Tendering/OpportunityDetail/Index?noticeUID=CO1.NTC.1901609&isFromPublicArea=True&isModal=true&asPopupView=true","Contratos de prestación de servicios profesionales y de apoyo a la gestión","Contratación directa","Prestación de servicios profesionales y de apoyo a la gestión, o para la ejecución de trabajos artísticos que sólo puedan encomendarse a determinadas personas naturales;","Brindar apoyo en la implementación de acciones del plan local de convivencia seguridad y justicia y el desarrollo de estrategias de dialogo, mediación convivencia y prevención de conflictividades violencias y delitos en la localidad de chapinero, para mejorar la seguridad y convivencia","Inversión","Un Nuevo Contrato Social y Ambiental para la Bogotá del Siglo XXI",48,{"$f":"IF(ISERROR(VLOOKUP(L111,Proposito_programa!$C$2:$E$59,2,FALSE)),\" \",VLOOKUP(L111,Proposito_programa!$C$2:$E$59,2,FALSE))","v":"Plataforma institucional para la seguridad y justicia"},{"$f":"IF(ISERROR(VLOOKUP(L111,Proposito_programa!$C$2:$E$59,3,FALSE)),\" \",VLOOKUP(L111,Proposito_programa!$C$2:$E$59,3,FALSE))","v":"Propósito 3: Inspirar confianza y legitimidad para vivir sin miedo y ser epicentro de cultura ciudadana, paz y reconciliación"},"133011603480000001738",1,1000251989,"PAULA ANDREA BERNAL SALDAÑA","Persona Natural",null,null,null,14700000,null,null,null,14700000,14700000,"2021-04-09","2021-04-10","2021-10-09",180,null,0,null,null,null,null,null,null,"X",null,1]
[1,99,2021,"FDLCH-CPS-097-2021","https://community.secop.gov.co/Public/Tendering/OpportunityDetail/Index?noticeUID=CO1.NTC.1902009&isFromPublicArea=True&isModal=true&asPopupView=true","Contratos de prestación de servicios profesionales y de apoyo a la gestión","Contratación directa","Prestación de servicios profesionales y de apoyo a la gestión, o para la ejecución de trabajos artísticos que sólo puedan encomendarse a determinadas personas naturales;","Brindar apoyo en la implementacion de acciones del plan local de convivencia seguridad y justicia y el desarrollo de estrategias de dialogo, mediacion convivencia y prevención de conflictividades violencias y delitos en la localidad de chapinero, para mejorar la seguridad y convivencia","Inversión","Un Nuevo Contrato Social y Ambiental para la Bogotá del Siglo XXI",48,{"$f":"IF(ISERROR(VLOOKUP(L112,Proposito_programa!$C$2:$E$59,2,FALSE)),\" \",VLOOKUP(L112,Proposito_programa!$C$2:$E$59,2,FALSE))","v":"Plataforma institucional para la seguridad y justicia"},{"$f":"IF(ISERROR(VLOOKUP(L112,Proposito_programa!$C$2:$E$59,3,FALSE)),\" \",VLOOKUP(L112,Proposito_programa!$C$2:$E$59,3,FALSE))","v":"Propósito 3: Inspirar confianza y legitimidad para vivir sin miedo y ser epicentro de cultura ciudadana, paz y reconciliación"},"133011603480000001738",1,1015996478,"JEAN MICHEL ALBARRACIN MERCADO","Persona Natural",null,null,null,14700000,null,null,null,14700000,14700000,"2021-04-09","2021-04-10","2021-10-09",180,null,0,null,null,null,null,null,null,"X",null,1]
[1,100,2021,"FDLCH-CPS-098-2021","https://community.secop.gov.co/Public/Tendering/OpportunityDetail/Index?noticeUID=CO1.NTC.1909417&isFromPublicArea=True&isModal=true&asPopupView=true","Contratos de prestación de servicios profesionales y de apoyo a la gestión","Contratación directa","Prestación de servicios profesionales y de apoyo a la gestión, o para la ejecución de trabajos artísticos que sólo puedan encomendarse a determinadas personas naturales;","Prestación de servicios de apoyo en la gestión de los asuntos relacionados con la comunicación ciudadana para la seguridad ciudadana, la convivencia y la prevención de conflictividades, violencias y delitos en la localidad de Chapinero, en el marco del proyecto “Chapinero promueve y genera confianza ciudadana”.","Inversión","Un Nuevo Contrato Social y Ambiental para la Bogotá del Siglo XXI",43,{"$f":"IF(ISERROR(VLOOKUP(L113,Proposito_programa!$C$2:$E$59,2,FALSE)),\" \",VLOOKUP(L113,Proposito_programa!$C$2:$E$59,2,FALSE))","v":"Cultura ciudadana para la confianza, la convivencia y la participación desde la vida cotidiana"},{"$f":"IF(ISERROR(VLOOKUP(L113,Proposito_programa!$C$2:$E$59,3,FALSE)),\" \",VLOOKUP(L113,Proposito_programa!$C$2:$E$59,3,FALSE))","v":"Propósito 3: Inspirar confianza y legitimidad para vivir sin miedo y ser epicentro de cultura ciudadana, paz y reconciliación"},"133011603430000001735",1,51646432,"MARTHA PATRICIA MUÑOZ RUIZ","Persona Natural",null,null,null,19200000,null,1,9600000,28800000,25813333,"2021-04-13","2021-04-14","2022-01-13",180,1,30,null,null,null,null,null,"X",null,null,0.89629628472222223]
[1,101,2021,"FDLCH-CPS-099-2021","https://community.secop.gov.co/Public/Tendering/OpportunityDetail/Index?noticeUID=CO1.NTC.1911307&isFromPublicArea=True&isModal=true&asPopupView=true","Contratos de prestación de servicios profesionales y de apoyo a la gestión","Contratación directa","Prestación de servicios profesionales y de apoyo a la gestión, o para la ejecución de trabajos artísticos que sólo puedan encomendarse a determinadas personas naturales;","Prestar servicios profesionales para apoyar la gestión precontractual, contractual y pos contractual que adelante el fondo de desarrollo local de chapinero","Inversión","Un Nuevo Contrato Social y Ambiental para la Bogotá del Siglo XXI",57,{"$f":"IF(ISERROR(VLOOKUP(L114,Proposito_programa!$C$2:$E$59,2,FALSE)),\" \",VLOOKUP(L114,Proposito_programa!$C$2:$E$59,2,FALSE))","v":"Gestión pública local"},{"$f":"IF(ISERROR(VLOOKUP(L114,Proposito_programa!$C$2:$E$59,3,FALSE)),\" \",VLOOKUP(L114,Proposito_programa!$C$2:$E$59,3,FALSE))","v":"Propósito 5: Construir Bogotá - Región con gobierno abierto, transparente y ciudadanía consciente"},"133011605570000001741",1,79373304,"ANDERSON MEJIA GARZON","Persona Natural",null,null,null,21805000,null,null,null,21805000,21805000,"2021-04-14","2021-04-14","2021-09-13",150,null,0,null,null,null,null,null,null,"X",null,1]
[1,102,2021,"FDLCH-CPS-100-2021","https://community.secop.gov.co/Public/Tendering/OpportunityDetail/Index?noticeUID=CO1.NTC.1927255&isFromPublicArea=True&isModal=true&asPopupView=true","Contratos de prestación de servicios profesionales y de apoyo a la gestión","Contratación directa","Prestación de servicios profesionales y de apoyo a la gestión, o para la ejecución de trabajos artísticos que sólo puedan encomendarse a determinadas personas naturales;","Prestar los servicios de apoyo necesarios para la conducción de los vehículos que conforman el parque automotor en propiedad o custodia del Fondo de Desarrollo Local de Chapinero, y el transporte de servidores públicos para la realización de las actividades misionales de la Alcaldía Local de Chapinero.","Inversión","Un Nuevo Contrato Social y Ambiental para la Bogotá del Siglo XXI",57,{"$f":"IF(ISERROR(VLOOKUP(L115,Proposito_programa!$C$2:$E$59,2,FALSE)),\" \",VLOOKUP(L115,Proposito_programa!$C$2:$E$59,2,FALSE))","v":"Gestión pública local"},{"$f":"IF(ISERROR(VLOOKUP(L115,Proposito_programa!$C$2:$E$59,3,FALSE)),\" \",VLOOKUP(L115,Proposito_programa!$C$2:$E$59,3,FALSE))","v":"Propósito 5: Construir Bogotá - Región con gobierno abierto, transparente y ciudadanía consciente"},"133011605570000001741",1,1070704250,"WILMER ANDRES MALDONADO RAMIREZ","Persona Natural",null,null,null,12000000,null,1,6000000,18000000,18000000,"2021-04-21","2021-04-22","2021-12-06",150,1,30,null,null,null,null,null,null,"X",null,1]
[1,103,2021,"FDLCH-CPS-101-2021","https://community.secop.gov.co/Public/Tendering/OpportunityDetail/Index?noticeUID=CO1.NTC.1926558&isFromPublicArea=True&isModal=true&asPopupView=true","Contratos de prestación de servicios profesionales y de apoyo a la gestión","Contratación directa","Prestación de servicios profesionales y de apoyo a la gestión, o para la ejecución de trabajos artísticos que sólo puedan encomendarse a determinadas personas naturales;","Prestar servicios técnicos para apoyo a la gestión, formulación, desarrollo y seguimieno del proyecto de inversión No. 1731 \"CHAPINERO DEJANDO HUELLA POR LOS ANIMALES\"","Inversión","Un Nuevo Contrato Social y Ambiental para la Bogotá del Siglo XXI",34,{"$f":"IF(ISERROR(VLOOKUP(L116,Proposito_programa!$C$2:$E$59,2,FALSE)),\" \",VLOOKUP(L116,Proposito_programa!$C$2:$E$59,2,FALSE))","v":"Bogotá protectora de los animales"},{"$f":"IF(ISERROR(VLOOKUP(L116,Proposito_programa!$C$2:$E$59,3,FALSE)),\" \",VLOOKUP(L116,Proposito_programa!$C$2:$E$59,3,FALSE))","v":"Propósito 2 : Cambiar Nuestros Hábitos de Vida para Reverdecer a Bogotá y Adaptarnos y Mitigar la Crisis Climática"},"133011602340000001731",1,1022411110,"VERONICA SIMONA MARTINEZ AREVALO","Persona Natural",null,null,null,13500000,null,1,6750000,20250000,16650000,"2021-04-22","2021-04-26","2021-12-10",150,1,30,null,null,null,null,null,null,"X",null,0.82222222222222219]
[1,104,2021,"FDLCH-CPS-102-2021","https://community.secop.gov.co/Public/Tendering/OpportunityDetail/Index?noticeUID=CO1.NTC.1927329&isFromPublicArea=True&isModal=true&asPopupView=true","Contratos de prestación de servicios profesionales y de apoyo a la gestión","Contratación directa","Prestación de servicios profesionales y de apoyo a la gestión, o para la ejecución de trabajos artísticos que sólo puedan encomendarse a determinadas personas naturales;","Prestar los servicios profesionales para la gestión, formulación, desarrollo, seguimiento y evaluación del proyecto 1739 “Chapinero liderado por la ciudadanía”, así como el apoyo a la supervisión de los contratos que le sean asignados por el Alcalde Local","Inversión","Un Nuevo Contrato Social y Ambiental para la Bogotá del Siglo XXI",55,{"$f":"IF(ISERROR(VLOOKUP(L117,Proposito_programa!$C$2:$E$59,2,FALSE)),\" \",VLOOKUP(L117,Proposito_programa!$C$2:$E$59,2,FALSE))","v":"Fortalecimiento de cultura ciudadana y su institucionalidad"},{"$f":"IF(ISERROR(VLOOKUP(L117,Proposito_programa!$C$2:$E$59,3,FALSE)),\" \",VLOOKUP(L117,Proposito_programa!$C$2:$E$59,3,FALSE))","v":"Propósito 5: Construir Bogotá - Región con gobierno abierto, transparente y ciudadanía consciente"},"133011605550000001739",1,80092921,"FEDERICO SANTIAGO BALLESTEROS","Persona Natural",null,null,null,17444000,null,null,null,17444000,17444000,"2021-04-22","2021-04-22","2021-08-21",120,null,0,null,null,null,null,null,null,"X",null,1]
[1,105,2021,"FDLCH-CPS-103-2021","https://community.secop.gov.co/Public/Tendering/OpportunityDetail/Index?noticeUID=CO1.NTC.1936898&isFromPublicArea=True&isModal=true&asPopupView=true","Contratos de prestación de servicios profesionales y de apoyo a la gestión","Contratación directa","Prestación de servicios profesionales y de apoyo a la gestión, o para la ejecución de trabajos artísticos que sólo puedan encomendarse a determinadas personas naturales;","Prestar servicios de apoyo a la gestión para desarrollar las actividades de atención y orientación al ciudadano que se requieran en las instalaciones de la Alcaldía local de Chapinero.","Inversión","Un Nuevo Contrato Social y Ambiental para la Bogotá del Siglo XXI",57,{"$f":"IF(ISERROR(VLOOKUP(L118,Proposito_programa!$C$2:$E$59,2,FALSE)),\" \",VLOOKUP(L118,Proposito_programa!$C$2:$E$59,2,FALSE))","v":"Gestión pública local"},{"$f":"IF(ISERROR(VLOOKUP(L118,Proposito_programa!$C$2:$E$59,3,FALSE)),\" \",VLOOKUP(L118,Proposito_programa!$C$2:$E$59,3,FALSE))","v":"Propósito 5: Construir Bogotá - Región con gobierno abierto, transparente y ciudadanía consciente"},"133011605570000001741",1,1018478763,"YANN SEBASTIAN AREVALO MORALES","Persona Natural",null,null,null,6400000,null,null,null,6400000,6400000,"2021-04-26","2021-04-27","2021-09-06",120,null,0,null,null,null,null,null,null,"X",null,1]
[1,106,2021,"FDLCH-CPS-104-2021","https://community.secop.gov.co/Public/Common/GoogleReCaptcha/Index?isModal=True&asPopupView=True&previousUrl=https%3a%2f%2fcommunity.secop.gov.co%2fPublic%2fTendering%2fOpportunityDetail%2fIndex%3fnoticeUID%3dCO1.NTC.1941890%26isFromPublicArea%3dTrue%26isModal%3dtrue%26asPopupView%3dtrue","Contratos de prestación de servicios profesionales y de apoyo a la gestión","Contratación directa","Prestación de servicios profesionales y de apoyo a la gestión, o para la ejecución de trabajos artísticos que sólo puedan encomendarse a determinadas personas naturales;","Prestar servicios profesionales de apoyo para la gestión y formulación desarrollo y seguimiento del proyecto de inversión No. 1715 Chapinero restaurador y cuidador del territorio.","Inversión","Un Nuevo Contrato Social y Ambiental para la Bogotá del Siglo XXI",28,{"$f":"IF(ISERROR(VLOOKUP(L119,Proposito_programa!$C$2:$E$59,2,FALSE)),\" \",VLOOKUP(L119,Proposito_programa!$C$2:$E$59,2,FALSE))","v":"Bogotá protectora de sus recursos naturales"},{"$f":"IF(ISERROR(VLOOKUP(L119,Proposito_programa!$C$2:$E$59,3,FALSE)),\" \",VLOOKUP(L119,Proposito_programa!$C$2:$E$59,3,FALSE))","v":"Propósito 2 : Cambiar Nuestros Hábitos de Vida para Reverdecer a Bogotá y Adaptarnos y Mitigar la Crisis Climática"},"133011602280000001715",1,11442710,"TITO FABIAN RUIZ BARAJAS","Persona Natural",null,null,null,19200000,null,null,null,19200000,18560000,"2021-05-03","2021-05-05","2021-09-04",120,null,0,null,null,null,null,null,null,"X",null,0.96666666666666667]
[1,107,2021,"FDLCH-CPS-105-2021","https://community.secop.gov.co/Public/Tendering/OpportunityDetail/Index?noticeUID=CO1.NTC.1937415&isFromPublicArea=True&isModal=true&asPopupView=true","Contratos de prestación de servicios profesionales y de apoyo a la gestión","Contratación directa","Prestación de servicios profesionales y de apoyo a la gestión, o para la ejecución de trabajos artísticos que sólo puedan encomendarse a determinadas personas naturales;","Prestar servicios profesionales para apoyar al alcalde local en la promoción, articulación, acompañamiento y seguimiento para la atención y protección de los animales domésticos y silvestres de la localidad","Inversión","Un Nuevo Contrato Social y Ambiental para la Bogotá del Siglo XXI",34,{"$f":"IF(ISERROR(VLOOKUP(L120,Proposito_programa!$C$2:$E$59,2,FALSE)),\" \",VLOOKUP(L120,Proposito_programa!$C$2:$E$59,2,FALSE))","v":"Bogotá protectora de los animales"},{"$f":"IF(ISERROR(VLOOKUP(L120,Proposito_programa!$C$2:$E$59,3,FALSE)),\" \",VLOOKUP(L120,Proposito_programa!$C$2:$E$59,3,FALSE))","v":"Propósito 2 : Cambiar Nuestros Hábitos de Vida para Reverdecer a Bogotá y Adaptarnos y Mitigar la Crisis Climática"},"133011602340000001731",1,33366680,"FRANCY PAOLA MONROY ALVAREZ","Persona Natural",null,null,null,19200000,null,null,null,19200000,19200000,"2021-04-26","2021-04-27","2021-08-26",120,null,0,null,null,null,null,null,null,"X",null,1]
[1,108,2021,"FDLCH-CPS-106-2021","https://community.secop.gov.co/Public/Tendering/OpportunityDetail/Index?noticeUID=CO1.NTC.1941882&isFromPublicArea=True&isModal=true&asPopupView=true","Contratos de prestación de servicios profesionales y de apoyo a la gestión","Contratación directa","Prestación de servicios profesionales y de apoyo a la gestión, o para la ejecución de trabajos artísticos que sólo puedan encomendarse a determinadas personas naturales;","Prestar servicios técnicos para apoyar la gestión jurídica en la ejecución de las actividades administrativas y documentales con contenido jurídico, relacionadas con los procesos de inspección, vigilancia y control que adelanta la Alcaldía Local de Chapinero","Inversión","Un Nuevo Contrato Social y Ambiental para la Bogotá del Siglo XXI",57,{"$f":"IF(ISERROR(VLOOKUP(L121,Proposito_programa!$C$2:$E$59,2,FALSE)),\" \",VLOOKUP(L121,Proposito_programa!$C$2:$E$59,2,FALSE))","v":"Gestión pública local"},{"$f":"IF(ISERROR(VLOOKUP(L121,Proposito_programa!$C$2:$E$59,3,FALSE)),\" \",VLOOKUP(L121,Proposito_programa!$C$2:$E$59,3,FALSE))","v":"Propósito 5: Construir Bogotá - Región con gobierno abierto, transparente y ciudadanía consciente"},"133011605570000001841",1,52524843,"YADY MATILDE MORENO VARGAS","Persona Natural",null,null,null,10500000,null,null,null,10500000,10266667,"2021-04-28","2021-05-03","2021-08-02",90,null,0,null,null,null,null,null,null,"X",null,0.97777780952380955]
[1,109,2021,"FDLCH-CPS-107-2021","https://community.secop.gov.co/Public/Tendering/OpportunityDetail/Index?noticeUID=CO1.NTC.1951575&isFromPublicArea=True&isModal=true&asPopupView=true","Contratos de prestación de servicios profesionales y de apoyo a la gestión","Contratación directa","Prestación de servicios profesionales y de apoyo a la gestión, o para la ejecución de trabajos artísticos que sólo puedan encomendarse a determinadas personas naturales;","Prestación de servicios personales de apoyo a la getión necesarios para el apoyo en la ejecución de actividades administrativas y operativas adelantadas en la Junta Administrativa Local de Chapinero.","Inversión","Un Nuevo Contrato Social y Ambiental para la Bogotá del Siglo XXI",57,{"$f":"IF(ISERROR(VLOOKUP(L122,Proposito_programa!$C$2:$E$59,2,FALSE)),\" \",VLOOKUP(L122,Proposito_programa!$C$2:$E$59,2,FALSE))","v":"Gestión pública local"},{"$f":"IF(ISERROR(VLOOKUP(L122,Proposito_programa!$C$2:$E$59,3,FALSE)),\" \",VLOOKUP(L122,Proposito_programa!$C$2:$E$59,3,FALSE))","v":"Propósito 5: Construir Bogotá - Región con gobierno abierto, transparente y ciudadanía consciente"},"133011605570000001741",1,52523548,"SANDRA MILENA GOMEZ SALAZAR","Persona Natural",null,null,null,14880000,null,1,5082667,19962667,18269333,"2021-05-05","2021-05-05","2022-01-05",180,1,30,null,null,null,null,null,null,"X",null,0.91517496134158827]
[1,110,2021,"FDLCH-CPS-108-2021","https://community.secop.gov.co/Public/Tendering/OpportunityDetail/Index?noticeUID=CO1.NTC.1947372&isFromPublicArea=True&isModal=true&asPopupView=true","Contratos de prestación de servicios profesionales y de apoyo a la gestión","Contratación directa","Prestación de servicios profesionales y de apoyo a la gestión, o para la ejecución de trabajos artísticos que sólo puedan encomendarse a determinadas personas naturales;","Prestación de servicios personales de apoyo a la gestión necesarios para el apoyo en la ejecución de actividades administrativas y operativas adelantadas en la Junta Administradora Local de Chapinero.","Inversión","Un Nuevo Contrato Social y Ambiental para la Bogotá del Siglo XXI",57,{"$f":"IF(ISERROR(VLOOKUP(L123,Proposito_programa!$C$2:$E$59,2,FALSE)),\" \",VLOOKUP(L123,Proposito_programa!$C$2:$E$59,2,FALSE))","v":"Gestión pública local"},{"$f":"IF(ISERROR(VLOOKUP(L123,Proposito_programa!$C$2:$E$59,3,FALSE)),\" \",VLOOKUP(L123,Proposito_programa!$C$2:$E$59,3,FALSE))","v":"Propósito 5: Construir Bogotá - Región con gobierno abierto, transparente y ciudadanía consciente"},"133011605570000001741",1,1018448341,"PEDRO ANGEL ZABALETA POLO","Persona Natural",null,null,null,14880000,null,1,5208000,20088000,18434667,"2021-05-03","2021-05-03","2022-01-05",180,1,30,null,null,null,null,null,null,"X",null,0.91769548984468341]
[1,111,2021,"FDLCH-CPS-109-2021","https://community.secop.gov.co/Public/Tendering/OpportunityDetail/Index?noticeUID=CO1.NTC.1956922&isFromPublicArea=True&isModal=true&asPopupView=true","Contratos de prestación de servicios profesionales y de apoyo a la gestión","Contratación directa","Prestación de servicios profesionales y de apoyo a la gestión, o para la ejecución de trabajos artísticos que sólo puedan encomendarse a determinadas personas naturales;","Prestar los servicios de apoyo para la operación, seguimiento y cumplimiento de los procesos y procedimientos del Servicio de salud, que contribuyan a la garantía de los derechos de los diferentes grupos poblacionales en el marco de las Políticas Públicas de los proyectos relacionados con los temas de salud, en cumplimiento de las metas y objetivos del Plan de Desarrollo Local.","Inversión","Un Nuevo Contrato Social y Ambiental para la Bogotá del Siglo XXI",1,{"$f":"IF(ISERROR(VLOOKUP(L124,Proposito_programa!$C$2:$E$59,2,FALSE)),\" \",VLOOKUP(L124,Proposito_programa!$C$2:$E$59,2,FALSE))","v":"Subsidios y transferencias para la equidad"},{"$f":"IF(ISERROR(VLOOKUP(L124,Proposito_programa!$C$2:$E$59,3,FALSE)),\" \",VLOOKUP(L124,Proposito_programa!$C$2:$E$59,3,FALSE))","v":"Propósito 1: Hacer un nuevo contrato social para incrementar la inclusión social, productiva y política"},"133011601060000002024",1,52428639,"LILIANA RUIZ JIMENEZ","Persona Natural",null,null,null,13200000,null,1,5133333,18333333,16133333,"2021-05-05","2021-05-05","2022-01-15",180,1,30,null,null,null,null,null,"X",null,null,0.87999999781818183]
[1,112,2021,"FDLCH-CPS-110-2021","https://community.secop.gov.co/Public/Tendering/OpportunityDetail/Index?noticeUID=CO1.NTC.1959040&isFromPublicArea=True&isModal=true&asPopupView=true","Contratos de prestación de servicios profesionales y de apoyo a la gestión","Contratación directa","Prestación de servicios profesionales y de apoyo a la gestión, o para la ejecución de trabajos artísticos que sólo puedan encomendarse a determinadas personas naturales;","Prestar servicios profesionales para coordinar, liderar y asesorar los planes y estrategias de comunicación interna y externa para la divulgación de los programas, proyectos y actividades de la Alcaldía Local","Inversión","Un Nuevo Contrato Social y Ambiental para la Bogotá del Siglo XXI",57,{"$f":"IF(ISERROR(VLOOKUP(L125,Proposito_programa!$C$2:$E$59,2,FALSE)),\" \",VLOOKUP(L125,Proposito_programa!$C$2:$E$59,2,FALSE))","v":"Gestión pública local"},{"$f":"IF(ISERROR(VLOOKUP(L125,Proposito_programa!$C$2:$E$59,3,FALSE)),\" \",VLOOKUP(L125,Proposito_programa!$C$2:$E$59,3,FALSE))","v":"Propósito 5: Construir Bogotá - Región con gobierno abierto, transparente y ciudadanía consciente"},"133011605570000001741",1,1026259433,"HAYDIBERS ARREDONDO BAUTISTA","Persona Natural",null,null,null,33000000,null,null,null,33000000,33000000,"2021-05-06","2021-05-07","2021-11-06",180,null,0,null,null,null,null,null,null,"X",null,1]
[1,113,2021,"FDLCH-CPS-111-2021","https://colombiacompra.gov.co/tienda-virtual-del-estado-colombiano/ordenes-compra/68635","Contratos de prestación de servicios","Selección abreviada","Selección abreviada por menor cuantía ","PRESTAR SERVICIOS DE MANTENIMIENTO PREVENTIVO Y CORRECTIVO PARA EL PARQUE AUTOMOTOR DE PROPIEDAD DEL FONDO DE DESARROLLO LOCAL DE CHAPINERO, ÁSI COMO EL SUMINISTRO DE REPUESTOS QUE REQUIERA EL MISMO EN LAS CONDICIONES DEL ACUERDO MARCO DE PRECIOS NÚMERO CCE-286-AMP-2020","Funcionamiento","Un Nuevo Contrato Social y Ambiental para la Bogotá del Siglo XXI","No aplica",{"$f":"IF(ISERROR(VLOOKUP(L126,Proposito_programa!$C$2:$E$59,2,FALSE)),\" \",VLOOKUP(L126,Proposito_programa!$C$2:$E$59,2,FALSE))","v":" "},{"$f":"IF(ISERROR(VLOOKUP(L126,Proposito_programa!$C$2:$E$59,3,FALSE)),\" \",VLOOKUP(L126,Proposito_programa!$C$2:$E$59,3,FALSE))","v":" "},"131020202030604",4,900110012,"MORARCI GROUP SAS","Persona Jurídica",null,null,null,10000000,null,1,5000000,15000000,9857044,"2021-05-10","2021-05-10","2022-05-09",360,null,0,null,null,null,null,null,"X",null,null,0.65713626666666669]
[1,114,2021,"FDLCH-CPS-112-2021","https://colombiacompra.gov.co/tienda-virtual-del-estado-colombiano/ordenes-compra/68634","Contratos de prestación de servicios","Selección abreviada","Selección abreviada por menor cuantía ","PRESTAR SERVICIOS DE MANTENIMIENTO PREVENTIVO Y CORRECTIVO PARA EL PARQUE AUTOMOTOR DE PROPIEDAD DEL FONDO DE DESARROLLO LOCAL DE CHAPINERO, ÁSI COMO EL SUMINISTRO DE REPUESTOS QUE REQUIERA EL MISMO EN LAS CONDICIONES DEL ACUERDO MARCO DE PRECIOS NÚMERO CCE-286-AMP-2020","Funcionamiento","Un Nuevo Contrato Social y Ambiental para la Bogotá del Siglo XXI","No aplica",{"$f":"IF(ISERROR(VLOOKUP(L127,Proposito_programa!$C$2:$E$59,2,FALSE)),\" \",VLOOKUP(L127,Proposito_programa!$C$2:$E$59,2,FALSE))","v":" "},{"$f":"IF(ISERROR(VLOOKUP(L127,Proposito_programa!$C$2:$E$59,3,FALSE)),\" \",VLOOKUP(L127,Proposito_programa!$C$2:$E$59,3,FALSE))","v":" "},"131020202030604",4,830031296,"CENTRO INTEGRAL DE MANTENIMIENTO AUTOCARS SAS","Persona Jurídica",null,null,null,4000000,null,1,2000000,6000000,1598408,"2021-05-10","2021-05-10","2022-05-09",360,null,0,null,null,null,null,null,"X",null,null,0.26640133333333332]
[1,115,2021,"FDLCH-CPS-113-2021","https://colombiacompra.gov.co/tienda-virtual-del-estado-colombiano/ordenes-compra/68633","Contratos de prestación de servicios","Selección abreviada","Selección abreviada por menor cuantía ","PRESTAR SERVICIOS DE MANTENIMIENTO PREVENTIVO Y CORRECTIVO PARA EL PARQUE AUTOMOTOR DE PROPIEDAD DEL FONDO DE DESARROLLO LOCAL DE CHAPINERO, ÁSI COMO EL SUMINISTRO DE REPUESTOS QUE REQUIERA EL MISMO EN LAS CONDICIONES DEL ACUERDO MARCO DE PRECIOS NÚMERO CCE-286-AMP-2020","Funcionamiento","Un Nuevo Contrato Social y Ambiental para la Bogotá del Siglo XXI","No aplica",{"$f":"IF(ISERROR(VLOOKUP(L128,Proposito_programa!$C$2:$E$59,2,FALSE)),\" \",VLOOKUP(L128,Proposito_programa!$C$2:$E$59,2,FALSE))","v":" "},{"$f":"IF(ISERROR(VLOOKUP(L128,Proposito_programa!$C$2:$E$59,3,FALSE)),\" \",VLOOKUP(L128,Proposito_programa!$C$2:$E$59,3,FALSE))","v":" "},"131020202030604",4,800020006,"AUTO INVERSIONES COLOMBIA S.A.-AUTOINVERCOL","Persona Jurídica",null,null,null,16000000,null,1,8000000,24000000,11404381,"2021-05-10","2021-05-10","2022-05-09",360,null,0,null,null,null,null,null,"X",null,null,0.47518254166666668]
[1,116,2021,"FDLCH-CPS-114-2021","https://community.secop.gov.co/Public/Tendering/OpportunityDetail/Index?noticeUID=CO1.NTC.1961823&isFromPublicArea=True&isModal=true&asPopupView=true","Contratos de prestación de servicios profesionales y de apoyo a la gestión","Contratación directa","Prestación de servicios profesionales y de apoyo a la gestión, o para la ejecución de trabajos artísticos que sólo puedan encomendarse a determinadas personas naturales;","Prestar servicios asistenciales para apoyar al alcalde local en la promoción, articulación, acompañamiento y seguimiento para la atención y protección de los animales domésticos y silvestres de la localidad","Inversión","Un Nuevo Contrato Social y Ambiental para la Bogotá del Siglo XXI",34,{"$f":"IF(ISERROR(VLOOKUP(L129,Proposito_programa!$C$2:$E$59,2,FALSE)),\" \",VLOOKUP(L129,Proposito_programa!$C$2:$E$59,2,FALSE))","v":"Bogotá protectora de los animales"},{"$f":"IF(ISERROR(VLOOKUP(L129,Proposito_programa!$C$2:$E$59,3,FALSE)),\" \",VLOOKUP(L129,Proposito_programa!$C$2:$E$59,3,FALSE))","v":"Propósito 2 : Cambiar Nuestros Hábitos de Vida para Reverdecer a Bogotá y Adaptarnos y Mitigar la Crisis Climática"},"133011602340000001731",1,52335022,"PAOLA ANDREA SANCHEZ BRAUSSIN","Persona Natural",null,null,null,8800000,null,null,null,8800000,8800000,"2021-05-07","2021-05-10","2021-09-09",120,null,0,null,null,null,null,null,null,"X",null,1]
[1,117,2021,"FDLCH-CPS-115-2021","https://community.secop.gov.co/Public/Tendering/OpportunityDetail/Index?noticeUID=CO1.NTC.1989024&isFromPublicArea=True&isModal=true&asPopupView=true","Contratos de prestación de servicios profesionales y de apoyo a la gestión","Contratación directa","Prestación de servicios profesionales y de apoyo a la gestión, o para la ejecución de trabajos artísticos que sólo puedan encomendarse a determinadas personas naturales;","Prestar servicios técnicos para apoyar al área de Gestión del Desarrollo Local de Chapinero, en el acompañamiento y atención de la ejecución de las actividades derivadas del proyecto de inversión CHAPINERO CULTURAL Y CREATIVO.","Inversión","Un Nuevo Contrato Social y Ambiental para la Bogotá del Siglo XXI",21,{"$f":"IF(ISERROR(VLOOKUP(L130,Proposito_programa!$C$2:$E$59,2,FALSE)),\" \",VLOOKUP(L130,Proposito_programa!$C$2:$E$59,2,FALSE))","v":"Creación y vida cotidiana: Apropiación ciudadana del arte, la cultura y el patrimonio, para la democracia cultural"},{"$f":"IF(ISERROR(VLOOKUP(L130,Proposito_programa!$C$2:$E$59,3,FALSE)),\" \",VLOOKUP(L130,Proposito_programa!$C$2:$E$59,3,FALSE))","v":"Propósito 1: Hacer un nuevo contrato social para incrementar la inclusión social, productiva y política"},"133011601210000001848",1,55061809," CLAUDIA YANETH FERRO DUCUARA","Persona Natural",null,null,null,21000000,null,1,6300000,27300000,23566667,"2021-05-21","2021-05-24","2022-01-16",180,1,30,null,null,null,null,null,"X",null,null,0.86324787545787551]
[1,118,2021,"FDLCH-CPS-116-2021","https://community.secop.gov.co/Public/Tendering/OpportunityDetail/Index?noticeUID=CO1.NTC.1985989&isFromPublicArea=True&isModal=true&asPopupView=true","Contratos de prestación de servicios profesionales y de apoyo a la gestión","Contratación directa","Prestación de servicios profesionales y de apoyo a la gestión, o para la ejecución de trabajos artísticos que sólo puedan encomendarse a determinadas personas naturales;","Prestar servicios asistenciales de apoyo a la gestión, para el desarrollo de estrategias que promuevan el uso adecuado del espacio público en el marco del proyecto “chapinero es espacio público incluyente y democrático.","Inversión","Un Nuevo Contrato Social y Ambiental para la Bogotá del Siglo XXI",45,{"$f":"IF(ISERROR(VLOOKUP(L131,Proposito_programa!$C$2:$E$59,2,FALSE)),\" \",VLOOKUP(L131,Proposito_programa!$C$2:$E$59,2,FALSE))","v":"Espacio público más seguro y construido colectivamente"},{"$f":"IF(ISERROR(VLOOKUP(L131,Proposito_programa!$C$2:$E$59,3,FALSE)),\" \",VLOOKUP(L131,Proposito_programa!$C$2:$E$59,3,FALSE))","v":"Propósito 3: Inspirar confianza y legitimidad para vivir sin miedo y ser epicentro de cultura ciudadana, paz y reconciliación"},"133011603450000001736",1,79237228,"OMAR ORLANDO BARON VELASCO","Persona Natural",null,null,null,8000000,null,1,4000000,12000000,12000000,"2021-05-20","2021-05-24","2021-11-23",120,1,30,null,null,null,null,null,null,"X",null,1]
[1,119,2021,"FDLCH-CPS-117-2021","https://community.secop.gov.co/Public/Tendering/OpportunityDetail/Index?noticeUID=CO1.NTC.1985989&isFromPublicArea=True&isModal=true&asPopupView=true","Contratos de prestación de servicios profesionales y de apoyo a la gestión","Contratación directa","Prestación de servicios profesionales y de apoyo a la gestión, o para la ejecución de trabajos artísticos que sólo puedan encomendarse a determinadas personas naturales;","Prestar servicios asistenciales de apoyo para la gestión y desarrollo del proyecto de inversión no. 1715 chapinero restaurador y cuidador del territorio.","Inversión","Un Nuevo Contrato Social y Ambiental para la Bogotá del Siglo XXI",28,{"$f":"IF(ISERROR(VLOOKUP(L132,Proposito_programa!$C$2:$E$59,2,FALSE)),\" \",VLOOKUP(L132,Proposito_programa!$C$2:$E$59,2,FALSE))","v":"Bogotá protectora de sus recursos naturales"},{"$f":"IF(ISERROR(VLOOKUP(L132,Proposito_programa!$C$2:$E$59,3,FALSE)),\" \",VLOOKUP(L132,Proposito_programa!$C$2:$E$59,3,FALSE))","v":"Propósito 2 : Cambiar Nuestros Hábitos de Vida para Reverdecer a Bogotá y Adaptarnos y Mitigar la Crisis Climática"},"133011602280000001715",1,52960241,"MARIA NANCY LOPEZ","Persona Natural",null,null,null,8800000,null,1,4400000,13200000,10926667,"2021-06-01","2021-06-01","2021-12-01",120,1,30,null,null,null,null,null,null,"X",null,0.82777780303030302]
[1,120,2021,"FDLCH-CPS-120-2021","https://community.secop.gov.co/Public/Tendering/OpportunityDetail/Index?noticeUID=CO1.NTC.2023962&isFromPublicArea=True&isModal=true&asPopupView=true","Contratos de prestación de servicios profesionales y de apoyo a la gestión","Contratación directa","Prestación de servicios profesionales y de apoyo a la gestión, o para la ejecución de trabajos artísticos que sólo puedan encomendarse a determinadas personas naturales;","Apoyar jurídicamente la ejecución de las acciones requeridas para la depuración d elas actuaciones administrativas que cursan en la Alcaldía Local.","Inversión","Un Nuevo Contrato Social y Ambiental para la Bogotá del Siglo XXI",57,{"$f":"IF(ISERROR(VLOOKUP(L133,Proposito_programa!$C$2:$E$59,2,FALSE)),\" \",VLOOKUP(L133,Proposito_programa!$C$2:$E$59,2,FALSE))","v":"Gestión pública local"},{"$f":"IF(ISERROR(VLOOKUP(L133,Proposito_programa!$C$2:$E$59,3,FALSE)),\" \",VLOOKUP(L133,Proposito_programa!$C$2:$E$59,3,FALSE))","v":"Propósito 5: Construir Bogotá - Región con gobierno abierto, transparente y ciudadanía consciente"},"133011605570000001841",1,1026267438,"SERGIO GEOVANNY TOCANCIPA ARIZA","Persona Natural",null,null,null,17444000,null,null,null,17444000,17444000,"2021-08-30","2021-06-10","2021-10-09",120,null,0,null,null,null,null,null,null,"X",null,1]
[1,121,2021,"FDLCH-CPS-122-2021","https://community.secop.gov.co/Public/Tendering/OpportunityDetail/Index?noticeUID=CO1.NTC.2038573&isFromPublicArea=True&isModal=true&asPopupView=true","Contratos de prestación de servicios profesionales y de apoyo a la gestión","Contratación directa","Prestación de servicios profesionales y de apoyo a la gestión, o para la ejecución de trabajos artísticos que sólo puedan encomendarse a determinadas personas naturales;","Prestar los servicios de apoyo a la gestión administrativa y asistencial a las Inspecciones de Policía de la Localidad.","Inversión","Un Nuevo Contrato Social y Ambiental para la Bogotá del Siglo XXI",57,{"$f":"IF(ISERROR(VLOOKUP(L134,Proposito_programa!$C$2:$E$59,2,FALSE)),\" \",VLOOKUP(L134,Proposito_programa!$C$2:$E$59,2,FALSE))","v":"Gestión pública local"},{"$f":"IF(ISERROR(VLOOKUP(L134,Proposito_programa!$C$2:$E$59,3,FALSE)),\" \",VLOOKUP(L134,Proposito_programa!$C$2:$E$59,3,FALSE))","v":"Propósito 5: Construir Bogotá - Región con gobierno abierto, transparente y ciudadanía consciente"},"133011605570000001841",1,1032462820,"JENNIFER VANNESA DIAZ NIÑO","Persona Natural",null,null,null,10000000,null,1,4000000,14000000,11666667,"2021-08-31","2021-06-21","2022-01-20",150,1,30,null,null,null,null,null,"X",null,null,0.83333335714285717]
[1,122,2021,"FDLCH-CIA-123-2021","https://www.contratos.gov.co/consultas/detalleProceso.do?numConstancia=21-22-27794&g-recaptcha-response=03AGdBq27EP_ia82UNeOgxGGx5ylASu7OcoSZ2Ipp0a5D1NlWRIlz4gwkwp2ZcXqUTBBsZvl8oH5FHiyZWyGVw683MLynHXb7046EKq4H-pvTAXFzCyGQrosQGHddax-1nW5cKy9IOyc1nqABFICd54bqyh4UMAp4Su6L2KCLrzo47vyBdaSBHpsNaRITp9ZIZDlWYCuOXJ59tZo5yi-YgYuaRjzdsOHADUUoNNqFlMU_OZG0cSwXtcIMEj7693Ey5l-m5Mbl80ektgPSx9OvKw_4dCOtzsADs84KUZ6iRhdco4Ecc9xstUY0v6eU-J0tOYcMp4fcOVLmaVHs0hDJ_dy6VpkWJruHEsigXlC2JB-TB6PN7DujQniclddlbRZG1Qr7m0T4CH2ly4-VGGHtoP3oegi3xICiUvP0HfC6ZkUUENBSr5TD1Ak7DAvAslcZ5lByZg5LkHxnjO2x03ZWfwsf3-R49_9ctcQ","Contratos interadministrativos","Contratación directa","Contratos interadministrativos","Aunar esfuerzos técnicos, administrativos y financieros con el fin de desarrollar acciones articuladas entre las partes orientadas a fomentar la generación y circulación de bienes y servicios culturales, artísticos patrimoniales, asi como el fortalecimiento de los agentes de estos sectores en las localidades del Distrito Capital de acuerdo con los proyectos presentados a los fondos de desarrollo local que forman parte del convenio en el marco del programa \"Cultura Local 2021. Convenio Interadministrativo No. 359 de 2021.","Inversión","Un Nuevo Contrato Social y Ambiental para la Bogotá del Siglo XXI",21,{"$f":"IF(ISERROR(VLOOKUP(L135,Proposito_programa!$C$2:$E$59,2,FALSE)),\" \",VLOOKUP(L135,Proposito_programa!$C$2:$E$59,2,FALSE))","v":"Creación y vida cotidiana: Apropiación ciudadana del arte, la cultura y el patrimonio, para la democracia cultural"},{"$f":"IF(ISERROR(VLOOKUP(L135,Proposito_programa!$C$2:$E$59,3,FALSE)),\" \",VLOOKUP(L135,Proposito_programa!$C$2:$E$59,3,FALSE))","v":"Propósito 1: Hacer un nuevo contrato social para incrementar la inclusión social, productiva y política"},"133011601060000001671",1,899999061,"SECRETARIA DE CULTURA RECREACION Y DEPORTE","Persona Jurídica",null,null,null,203300000,null,null,null,203300000,203300000,"2021-06-30","2021-07-07","2022-06-30",150,null,0,null,null,null,null,null,"X",null,null,1]
[1,123,2021,"FDLCH-CIA-123-2021","https://www.contratos.gov.co/consultas/detalleProceso.do?numConstancia=21-22-27794&g-recaptcha-response=03AGdBq27EP_ia82UNeOgxGGx5ylASu7OcoSZ2Ipp0a5D1NlWRIlz4gwkwp2ZcXqUTBBsZvl8oH5FHiyZWyGVw683MLynHXb7046EKq4H-pvTAXFzCyGQrosQGHddax-1nW5cKy9IOyc1nqABFICd54bqyh4UMAp4Su6L2KCLrzo47vyBdaSBHpsNaRITp9ZIZDlWYCuOXJ59tZo5yi-YgYuaRjzdsOHADUUoNNqFlMU_OZG0cSwXtcIMEj7693Ey5l-m5Mbl80ektgPSx9OvKw_4dCOtzsADs84KUZ6iRhdco4Ecc9xstUY0v6eU-J0tOYcMp4fcOVLmaVHs0hDJ_dy6VpkWJruHEsigXlC2JB-TB6PN7DujQniclddlbRZG1Qr7m0T4CH2ly4-VGGHtoP3oegi3xICiUvP0HfC6ZkUUENBSr5TD1Ak7DAvAslcZ5lByZg5LkHxnjO2x03ZWfwsf3-R49_9ctcQ","Contratos interadministrativos","Contratación directa","Contratos interadministrativos","Aunar esfuerzos técnicos, administrativos y financieros con el fin de desarrollar acciones articuladas entre las partes orientadas a fomentar la generación y circulación de bienes y servicios culturales, artísticos patrimoniales, asi como el fortalecimiento de los agentes de estos sectores en las localidades del Distrito Capital de acuerdo con los proyectos presentados a los fondos de desarrollo local que forman parte del convenio en el marco del programa \"Cultura Local 2021. Convenio Interadministrativo No. 359 de 2021.","Inversión","Un Nuevo Contrato Social y Ambiental para la Bogotá del Siglo XXI",21,{"$f":"IF(ISERROR(VLOOKUP(L136,Proposito_programa!$C$2:$E$59,2,FALSE)),\" \",VLOOKUP(L136,Proposito_programa!$C$2:$E$59,2,FALSE))","v":"Creación y vida cotidiana: Apropiación ciudadana del arte, la cultura y el patrimonio, para la democracia cultural"},{"$f":"IF(ISERROR(VLOOKUP(L136,Proposito_programa!$C$2:$E$59,3,FALSE)),\" \",VLOOKUP(L136,Proposito_programa!$C$2:$E$59,3,FALSE))","v":"Propósito 1: Hacer un nuevo contrato social para incrementar la inclusión social, productiva y política"},"133011601210000001848",1,899999061,"SECRETARIA DE CULTURA RECREACION Y DEPORTE","Persona Jurídica",null,null,null,158000000,null,null,null,158000000,158000000,"2021-06-30","2021-07-07","2022-06-30",150,null,{"$f":"+AG136*30","v":0},null,null,null,null,null,"X",null,null,1]
[1,124,2021,"FDLCH-CIA-123-2021","https://www.contratos.gov.co/consultas/detalleProceso.do?numConstancia=21-22-27794&g-recaptcha-response=03AGdBq27EP_ia82UNeOgxGGx5ylASu7OcoSZ2Ipp0a5D1NlWRIlz4gwkwp2ZcXqUTBBsZvl8oH5FHiyZWyGVw683MLynHXb7046EKq4H-pvTAXFzCyGQrosQGHddax-1nW5cKy9IOyc1nqABFICd54bqyh4UMAp4Su6L2KCLrzo47vyBdaSBHpsNaRITp9ZIZDlWYCuOXJ59tZo5yi-YgYuaRjzdsOHADUUoNNqFlMU_OZG0cSwXtcIMEj7693Ey5l-m5Mbl80ektgPSx9OvKw_4dCOtzsADs84KUZ6iRhdco4Ecc9xstUY0v6eU-J0tOYcMp4fcOVLmaVHs0hDJ_dy6VpkWJruHEsigXlC2JB-TB6PN7DujQniclddlbRZG1Qr7m0T4CH2ly4-VGGHtoP3oegi3xICiUvP0HfC6ZkUUENBSr5TD1Ak7DAvAslcZ5lByZg5LkHxnjO2x03ZWfwsf3-R49_9ctcQ","Contratos interadministrativos","Contratación directa","Contratos interadministrativos","Aunar esfuerzos técnicos, administrativos y financieros con el fin de desarrollar acciones articuladas entre las partes orientadas a fomentar la generación y circulación de bienes y servicios culturales, artísticos patrimoniales, asi como el fortalecimiento de los agentes de estos sectores en las localidades del Distrito Capital de acuerdo con los proyectos presentados a los fondos de desarrollo local que forman parte del convenio en el marco del programa \"Cultura Local 2021. Convenio Interadministrativo No. 359 de 2021.","Inversión","Un Nuevo Contrato Social y Ambiental para la Bogotá del Siglo XXI",21,{"$f":"IF(ISERROR(VLOOKUP(L137,Proposito_programa!$C$2:$E$59,2,FALSE)),\" \",VLOOKUP(L137,Proposito_programa!$C$2:$E$59,2,FALSE))","v":"Creación y vida cotidiana: Apropiación ciudadana del arte, la cultura y el patrimonio, para la democracia cultural"},{"$f":"IF(ISERROR(VLOOKUP(L137,Proposito_programa!$C$2:$E$59,3,FALSE)),\" \",VLOOKUP(L137,Proposito_programa!$C$2:$E$59,3,FALSE))","v":"Propósito 1: Hacer un nuevo contrato social para incrementar la inclusión social, productiva y política"},"133011601240000001853",1,899999061,"SECRETARIA DE CULTURA RECREACION Y DEPORTE","Persona Jurídica",null,null,null,195000000,null,null,null,195000000,195000000,"2021-06-30","2021-07-07","2022-06-30",150,null,0,null,null,null,null,null,"X",null,null,1]
[1,125,2021,"FDLCH-CIA-124-2021","https://www.contratos.gov.co/consultas/detalleProceso.do?numConstancia=21-22-27826&g-recaptcha-response=03AGdBq25Ote_ccB7hjMWNXyo1Xjyoys2JE0meg4BVDNiOwAmNL2x2X4z5t5J7YgK42k2IY_408NKed8CPWM9gY27hPDCKSIcoAKqmy6aztjvAyAOpe7URI_WPA9k12CiT3blf3n5Oapa8dm2zHy5JqwLWmWq4zYFEvemS0urLKGeDfQFLo9TWE8WItORlByFZuX5B4QZpFDTUkTQ8nykUK8-4D1lmUNuHJdKuDdFaYwu0LVBcmEHDgDr2Ei5KjzJj6Ci_DFDkfWwTeRy8x1A2uj-avM51QVjtsX_qYYc5-hLY6fmAnz0eZ1Hgb9lr_kn1jj7loU2yX2kFAMWx9VcD_vA4ugf7JaJ7k6PUCJ1BpeT2KynqPfAa6LLSfNDhVM327aSKV8pPA_8x0huz8coVfcbq4eCItVUHutPIHEg6NoZjdjEsonqWLhg0WlX0yrJ6rXX4P8nUpyBc3yuPbJfyO-zSayF0ZgMg6w","Contratos interadministrativos","Contratación directa","Contratos interadministrativos","Aunar esfuerzos técnicos, administrativos, jurídicos y financieros entre la Secretaría de Educación del Distrito y los Fondos de Desarrollo Local que hacen parte del Distrito Capital, para la implementación de un nuevo modelo inclusivo, eficiente y flexible para el acceso a la permanencia de las y los jóvenes egresados de instituciones de educación media a programas de educación superior.","Inversión","Un Nuevo Contrato Social y Ambiental para la Bogotá del Siglo XXI",17,{"$f":"IF(ISERROR(VLOOKUP(L138,Proposito_programa!$C$2:$E$59,2,FALSE)),\" \",VLOOKUP(L138,Proposito_programa!$C$2:$E$59,2,FALSE))","v":"Jóvenes con capacidades: Proyecto de vida para la ciudadanía, la innovación y el trabajo del siglo XXI"},{"$f":"IF(ISERROR(VLOOKUP(L138,Proposito_programa!$C$2:$E$59,3,FALSE)),\" \",VLOOKUP(L138,Proposito_programa!$C$2:$E$59,3,FALSE))","v":"Propósito 1: Hacer un nuevo contrato social para incrementar la inclusión social, productiva y política"},"133011601170000001743",1,899999061,"SECRETARIA DE EDUCACIÓN DEL DISTRITO","Persona Jurídica",null,null,null,946160300,null,null,null,946160300,946160300,"2021-06-28","2021-07-09","2027-06-30",210,null,0,null,null,null,null,null,"X",null,null,1]
[1,126,2021,"FDLCH-CPS-125-2021","https://community.secop.gov.co/Public/Tendering/OpportunityDetail/Index?noticeUID=CO1.NTC.2086580&isFromPublicArea=True&isModal=true&asPopupView=true","Contratos de prestación de servicios profesionales y de apoyo a la gestión","Contratación directa","Prestación de servicios profesionales y de apoyo a la gestión, o para la ejecución de trabajos artísticos que sólo puedan encomendarse a determinadas personas naturales;","Prestar servicios de apoyo administrativo y asistencial la gestión de las inspecciones de policía que adelanta la Alcaldía Local de Chapinero.","Inversión","Un Nuevo Contrato Social y Ambiental para la Bogotá del Siglo XXI",57,{"$f":"IF(ISERROR(VLOOKUP(L139,Proposito_programa!$C$2:$E$59,2,FALSE)),\" \",VLOOKUP(L139,Proposito_programa!$C$2:$E$59,2,FALSE))","v":"Gestión pública local"},{"$f":"IF(ISERROR(VLOOKUP(L139,Proposito_programa!$C$2:$E$59,3,FALSE)),\" \",VLOOKUP(L139,Proposito_programa!$C$2:$E$59,3,FALSE))","v":"Propósito 5: Construir Bogotá - Región con gobierno abierto, transparente y ciudadanía consciente"},"133011605570000001841",1,1032492446,"ALVARO CUBILLOS RUIZ","Persona Natural",null,null,null,8000000,null,null,null,8000000,8000000,"2021-07-09","2021-07-12","2021-11-11",120,null,0,null,null,null,null,null,null,"X",null,1]
[1,127,2021,"FDLCH-CPS-126-2021","https://community.secop.gov.co/Public/Tendering/OpportunityDetail/Index?noticeUID=CO1.NTC.2094286&isFromPublicArea=True&isModal=true&asPopupView=true","Contratos de prestación de servicios profesionales y de apoyo a la gestión","Contratación directa","Prestación de servicios profesionales y de apoyo a la gestión, o para la ejecución de trabajos artísticos que sólo puedan encomendarse a determinadas personas naturales;","Prestar servicios profesionales de apoyo jurídico en la ejecución de las acciones requeridas para el trámite e impulso procesal de las actuaciones administrativads y de cobro persuasivo de competencia de la Alcaldía Local de Chapinero.","Inversión","Un Nuevo Contrato Social y Ambiental para la Bogotá del Siglo XXI",57,{"$f":"IF(ISERROR(VLOOKUP(L140,Proposito_programa!$C$2:$E$59,2,FALSE)),\" \",VLOOKUP(L140,Proposito_programa!$C$2:$E$59,2,FALSE))","v":"Gestión pública local"},{"$f":"IF(ISERROR(VLOOKUP(L140,Proposito_programa!$C$2:$E$59,3,FALSE)),\" \",VLOOKUP(L140,Proposito_programa!$C$2:$E$59,3,FALSE))","v":"Propósito 5: Construir Bogotá - Región con gobierno abierto, transparente y ciudadanía consciente"},"133011605570000001841",1,1010190690,"ADRIANA ANDREA ARCHILA MOSCOSO","Persona Natural",null,null,null,21805000,null,null,null,21805000,19915233,"2021-07-14","2021-07-14","2021-12-13",150,null,0,null,null,null,null,null,null,"X",null,0.91333331804631968]
[1,128,2021,"FDLCH-CPS-127-2021","https://community.secop.gov.co/Public/Tendering/OpportunityDetail/Index?noticeUID=CO1.NTC.2097781&isFromPublicArea=True&isModal=False","Contratos de prestación de servicios profesionales y de apoyo a la gestión","Contratación directa","Prestación de servicios profesionales y de apoyo a la gestión, o para la ejecución de trabajos artísticos que sólo puedan encomendarse a determinadas personas naturales;","Prestar servicios profesionales para apoyar en la gestión de los asuntos relacionados con la prevención de hechos delictivos e inseguridad ciudadana, y el fortalecimiento de la cultura de convivencia ciudadana conformidad con el marco normativo vigente","Inversión","Un Nuevo Contrato Social y Ambiental para la Bogotá del Siglo XXI",45,{"$f":"IF(ISERROR(VLOOKUP(L141,Proposito_programa!$C$2:$E$59,2,FALSE)),\" \",VLOOKUP(L141,Proposito_programa!$C$2:$E$59,2,FALSE))","v":"Espacio público más seguro y construido colectivamente"},{"$f":"IF(ISERROR(VLOOKUP(L141,Proposito_programa!$C$2:$E$59,3,FALSE)),\" \",VLOOKUP(L141,Proposito_programa!$C$2:$E$59,3,FALSE))","v":"Propósito 3: Inspirar confianza y legitimidad para vivir sin miedo y ser epicentro de cultura ciudadana, paz y reconciliación"},"133011603450000001736",1,79720862,"IVAN GUILLERMO RAMIREZ REYES","Persona Natural",null,null,null,33000000,null,null,null,33000000,24933333,"2021-07-14","2021-07-15","2022-01-21",180,null,0,null,null,null,null,null,"X",null,null,0.75555554545454551]
[1,129,2021,"FDLCH-CPS-128-2021","https://community.secop.gov.co/Public/Tendering/OpportunityDetail/Index?noticeUID=CO1.NTC.2133780&isFromPublicArea=True&isModal=true&asPopupView=true","Contratos de prestación de servicios profesionales y de apoyo a la gestión","Contratación directa","Prestación de servicios profesionales y de apoyo a la gestión, o para la ejecución de trabajos artísticos que sólo puedan encomendarse a determinadas personas naturales;","Prestar servicios técnicos para apoyar la gestión y ejecución de las actividades administrativas que se adelantan en el Despacho de la Alcaldía Local de Chapinero para el cumplimiento de las metas y objetivos del Plan de Desarrollo Local","Inversión","Un Nuevo Contrato Social y Ambiental para la Bogotá del Siglo XXI",57,{"$f":"IF(ISERROR(VLOOKUP(L142,Proposito_programa!$C$2:$E$59,2,FALSE)),\" \",VLOOKUP(L142,Proposito_programa!$C$2:$E$59,2,FALSE))","v":"Gestión pública local"},{"$f":"IF(ISERROR(VLOOKUP(L142,Proposito_programa!$C$2:$E$59,3,FALSE)),\" \",VLOOKUP(L142,Proposito_programa!$C$2:$E$59,3,FALSE))","v":"Propósito 5: Construir Bogotá - Región con gobierno abierto, transparente y ciudadanía consciente"},"133011605570000001741",1,1091663411,"JUAN PABLO SANJUAN ARIAS","Persona Natural",null,null,null,13500000,null,1,1440000,14940000,12240000,"2021-07-29","2021-07-30","2022-01-14",150,1,30,null,null,null,null,null,"X",null,null,0.81927710843373491]
[1,130,2021,"FDLCH-CPS-129-2021","https://community.secop.gov.co/Public/Tendering/OpportunityDetail/Index?noticeUID=CO1.NTC.2137529&isFromPublicArea=True&isModal=true&asPopupView=true","Contratos de prestación de servicios profesionales y de apoyo a la gestión","Contratación directa","Prestación de servicios profesionales y de apoyo a la gestión, o para la ejecución de trabajos artísticos que sólo puedan encomendarse a determinadas personas naturales;","Prestar servicios de apoyo a la gestión para asistir logística y administrativamente al Despacho de la Alcaldía Local de Chapinero.","Inversión","Un Nuevo Contrato Social y Ambiental para la Bogotá del Siglo XXI",57,{"$f":"IF(ISERROR(VLOOKUP(L143,Proposito_programa!$C$2:$E$59,2,FALSE)),\" \",VLOOKUP(L143,Proposito_programa!$C$2:$E$59,2,FALSE))","v":"Gestión pública local"},{"$f":"IF(ISERROR(VLOOKUP(L143,Proposito_programa!$C$2:$E$59,3,FALSE)),\" \",VLOOKUP(L143,Proposito_programa!$C$2:$E$59,3,FALSE))","v":"Propósito 5: Construir Bogotá - Región con gobierno abierto, transparente y ciudadanía consciente"},"133011605570000001741",1,73159185,"GERMAN ENRIQUE CASTILLO CORREA","Persona Natural",null,null,null,10500000,null,1,910000,11410000,9380000,"2021-07-30","2021-08-02","2022-01-14",150,1,30,null,null,null,null,null,"X",null,null,0.82208588957055218]
[1,131,2021,"FDLCH-CPS-130-2021","https://community.secop.gov.co/Public/Tendering/OpportunityDetail/Index?noticeUID=CO1.NTC.2141996&isFromPublicArea=True&isModal=true&asPopupView=true","Contratos de prestación de servicios profesionales y de apoyo a la gestión","Contratación directa","Prestación de servicios profesionales y de apoyo a la gestión, o para la ejecución de trabajos artísticos que sólo puedan encomendarse a determinadas personas naturales;","Prestar los servicios profesionales para apoyar el área Gestión del Desarrollo Local en las actividades contables requeridas por el Fondo de Desarrollo Local de Chapinero.","Inversión","Un Nuevo Contrato Social y Ambiental para la Bogotá del Siglo XXI",57,{"$f":"IF(ISERROR(VLOOKUP(L144,Proposito_programa!$C$2:$E$59,2,FALSE)),\" \",VLOOKUP(L144,Proposito_programa!$C$2:$E$59,2,FALSE))","v":"Gestión pública local"},{"$f":"IF(ISERROR(VLOOKUP(L144,Proposito_programa!$C$2:$E$59,3,FALSE)),\" \",VLOOKUP(L144,Proposito_programa!$C$2:$E$59,3,FALSE))","v":"Propósito 5: Construir Bogotá - Región con gobierno abierto, transparente y ciudadanía consciente"},"133011605570000001741",1,7141790,"LEONARDO OROZCO MARTINEZ MARTINEZ","Persona Natural",null,null,null,22500000,null,1,1800000,24300000,19950000,"2021-07-30","2021-08-03","2022-01-14",150,1,30,null,null,null,null,null,"X",null,null,0.82098765432098764]
[1,132,2021,"FDLCH-ACI-131-2021","https://community.secop.gov.co/Public/Tendering/OpportunityDetail/Index?noticeUID=CO1.NTC.2106255&isFromPublicArea=True&isModal=False","Convenios de cooperacion","Contratación directa","Contratos interadministrativos","Aunar esfuerzos para la cooperación administrativa, técnica y financiera, entre el Programa para las Naciones Unidas para el Desarrollo (PNUD) y El Fondo de Desarrollo Local de Chapinero, con el fin de implementar estrategias que promuevan el fortalecimiento a los emprendimientos y/o Mipymes a través de actividades que permiten generar ingresos a las mismas.","Inversión","Un Nuevo Contrato Social y Ambiental para la Bogotá del Siglo XXI",6,{"$f":"IF(ISERROR(VLOOKUP(L145,Proposito_programa!$C$2:$E$59,2,FALSE)),\" \",VLOOKUP(L145,Proposito_programa!$C$2:$E$59,2,FALSE))","v":"Sistema Distrital de Cuidado"},{"$f":"IF(ISERROR(VLOOKUP(L145,Proposito_programa!$C$2:$E$59,3,FALSE)),\" \",VLOOKUP(L145,Proposito_programa!$C$2:$E$59,3,FALSE))","v":"Propósito 1: Hacer un nuevo contrato social para incrementar la inclusión social, productiva y política"},"133011601060000001671",1,800091076,"PROGRAMA DE LAS NACIONES UNIDAS PARA EL DESARROLLO PNUD","Persona Jurídica",null,null,null,485462825,null,null,null,485462825,388370260,"2021-07-16","2021-07-16","2022-07-15",360,null,0,null,null,null,null,null,"X",null,null,0.8]
[1,133,2021,"FDLCH-CPS-132-2021","https://community.secop.gov.co/Public/Tendering/OpportunityDetail/Index?noticeUID=CO1.NTC.2124578&isFromPublicArea=True&isModal=true&asPopupView=true","Contratos de prestación de servicios profesionales y de apoyo a la gestión","Contratación directa","Prestación de servicios profesionales y de apoyo a la gestión, o para la ejecución de trabajos artísticos que sólo puedan encomendarse a determinadas personas naturales;","Prestar los servicios de apoyo a la gestión en la implementación, atención, verificación, soporte y acompañamiento de los procesos y/o actuaciones administrativas de registro y seguimiento a la propiedad horizontal en los aplicativos y/o herramientas virtuales en la localidad de Chapinero.","Inversión","Un Nuevo Contrato Social y Ambiental para la Bogotá del Siglo XXI",57,{"$f":"IF(ISERROR(VLOOKUP(L146,Proposito_programa!$C$2:$E$59,2,FALSE)),\" \",VLOOKUP(L146,Proposito_programa!$C$2:$E$59,2,FALSE))","v":"Gestión pública local"},{"$f":"IF(ISERROR(VLOOKUP(L146,Proposito_programa!$C$2:$E$59,3,FALSE)),\" \",VLOOKUP(L146,Proposito_programa!$C$2:$E$59,3,FALSE))","v":"Propósito 5: Construir Bogotá - Región con gobierno abierto, transparente y ciudadanía consciente"},"133011605570000001741",1,1070021566,"MAUREN DARLINE FORERO RONCANCIO","Persona Natural",null,null,null,10000000,null,1,4166666,14166666,10333333,"2021-07-26","2021-07-27","2021-10-26",120,null,0,null,null,null,null,null,null,"X",null,0.72941177550173064]
[1,134,2021,"FDLCH-CPS-133-2021","https://community.secop.gov.co/Public/Tendering/OpportunityDetail/Index?noticeUID=CO1.NTC.2124673&isFromPublicArea=True&isModal=true&asPopupView=true","Contratos de prestación de servicios profesionales y de apoyo a la gestión","Contratación directa","Prestación de servicios profesionales y de apoyo a la gestión, o para la ejecución de trabajos artísticos que sólo puedan encomendarse a determinadas personas naturales;","Prestar servicios profesionales de apoyo jurídico en la ejecución de las acciones requeridas para el trámite e impulso procesal de las actuaciones administrativas y de cobro persuasivo de competencia de la alcaldía local de chapinero.","Inversión","Un Nuevo Contrato Social y Ambiental para la Bogotá del Siglo XXI",57,{"$f":"IF(ISERROR(VLOOKUP(L147,Proposito_programa!$C$2:$E$59,2,FALSE)),\" \",VLOOKUP(L147,Proposito_programa!$C$2:$E$59,2,FALSE))","v":"Gestión pública local"},{"$f":"IF(ISERROR(VLOOKUP(L147,Proposito_programa!$C$2:$E$59,3,FALSE)),\" \",VLOOKUP(L147,Proposito_programa!$C$2:$E$59,3,FALSE))","v":"Propósito 5: Construir Bogotá - Región con gobierno abierto, transparente y ciudadanía consciente"},"133011605570000001841",1,1020734444,"JUAN CAMILO MENDOZA MARTINEZ","Persona Natural",null,null,null,21805000,null,1,2907332,{"$f":"+W147+X147+Z147","v":24712332},20205967,"2021-07-26","2021-07-27","2022-01-15",150,1,30,null,null,null,null,null,"X",null,null,0.81764711642753907]
[1,135,2021,"FDLCH-CPS-134-2021","https://community.secop.gov.co/Public/Tendering/OpportunityDetail/Index?noticeUID=CO1.NTC.2131308&isFromPublicArea=True&isModal=true&asPopupView=true","Contratos de prestación de servicios profesionales y de apoyo a la gestión","Contratación directa","Prestación de servicios profesionales y de apoyo a la gestión, o para la ejecución de trabajos artísticos que sólo puedan encomendarse a determinadas personas naturales;","Prestar servicios técnicos de apoyo a la gestión al área de Gestión del Desarrollo Local en las actividades de planeación local para la formulación y seguimiento de proyectos de inversión local, así como el apoyo a la administración en el seguimiento, uso y soporte de herramientas y aplicativos en cumplimiento de los objetivos del Plan de Desarrollo Local.","Inversión","Un Nuevo Contrato Social y Ambiental para la Bogotá del Siglo XXI",57,{"$f":"IF(ISERROR(VLOOKUP(L148,Proposito_programa!$C$2:$E$59,2,FALSE)),\" \",VLOOKUP(L148,Proposito_programa!$C$2:$E$59,2,FALSE))","v":"Gestión pública local"},{"$f":"IF(ISERROR(VLOOKUP(L148,Proposito_programa!$C$2:$E$59,3,FALSE)),\" \",VLOOKUP(L148,Proposito_programa!$C$2:$E$59,3,FALSE))","v":"Propósito 5: Construir Bogotá - Región con gobierno abierto, transparente y ciudadanía consciente"},"133011605570000001741",1,1033699910,"JULIAN ANDRES JAIME ALARCON","Persona Natural",null,null,null,13200000,null,1,4510000,17710000,15070000,"2021-07-28","2021-07-29","2022-01-08",120,1,{"$f":"+AG148*30","v":30},null,null,null,null,null,"X",null,null,0.85093167701863359]
[1,136,2021,"FDLCH-CPS-135-2021","https://community.secop.gov.co/Public/Tendering/OpportunityDetail/Index?noticeUID=CO1.NTC.2134826&isFromPublicArea=True&isModal=true&asPopupView=true","Contratos de prestación de servicios profesionales y de apoyo a la gestión","Contratación directa","Prestación de servicios profesionales y de apoyo a la gestión, o para la ejecución de trabajos artísticos que sólo puedan encomendarse a determinadas personas naturales;","Prestar servicios profesionales para apoyar la gestión jurídica en la ejecución de las acciones requeridas para el trámite e impulso procesal de las actuaciones adminsitrativas y de inspección, vigilancia y control de competencia de la Alcaldía Local de Chapinero en cerros orientales, zona de reserva forestal protectora, polígonos de monitoreo, áreas de ocupación pública prioritaria, franja de adecuación y zonas de especial protección ambiental.","Inversión","Un Nuevo Contrato Social y Ambiental para la Bogotá del Siglo XXI",57,{"$f":"IF(ISERROR(VLOOKUP(L149,Proposito_programa!$C$2:$E$59,2,FALSE)),\" \",VLOOKUP(L149,Proposito_programa!$C$2:$E$59,2,FALSE))","v":"Gestión pública local"},{"$f":"IF(ISERROR(VLOOKUP(L149,Proposito_programa!$C$2:$E$59,3,FALSE)),\" \",VLOOKUP(L149,Proposito_programa!$C$2:$E$59,3,FALSE))","v":"Propósito 5: Construir Bogotá - Región con gobierno abierto, transparente y ciudadanía consciente"},"133011605570000001841",1,80881353,"DIEGO FERNANDO LEON LEON","Persona Natural",null,null,null,19200000,null,1,7520000,26720000,19360000,"2021-07-30","2021-07-30","2022-01-15",120,1,30,null,null,null,null,null,"X",null,null,0.72455089820359286]
[1,137,2021,"FDLCH-136-2021","https://community.secop.gov.co/Public/Tendering/OpportunityDetail/Index?noticeUID=CO1.NTC.2145182&isFromPublicArea=True&isModal=true&asPopupView=true","Contratos de prestación de servicios profesionales y de apoyo a la gestión","Contratación directa","Prestación de servicios profesionales y de apoyo a la gestión, o para la ejecución de trabajos artísticos que sólo puedan encomendarse a determinadas personas naturales;","Prestar servicios profesionales para apoyar tecnicamente las actuaciones administrativas, impulso procesar y de inspección, vigilancia y control de competencia de la alcaldía local de chapinero.","Inversión","Un Nuevo Contrato Social y Ambiental para la Bogotá del Siglo XXI",57,{"$f":"IF(ISERROR(VLOOKUP(L150,Proposito_programa!$C$2:$E$59,2,FALSE)),\" \",VLOOKUP(L150,Proposito_programa!$C$2:$E$59,2,FALSE))","v":"Gestión pública local"},{"$f":"IF(ISERROR(VLOOKUP(L150,Proposito_programa!$C$2:$E$59,3,FALSE)),\" \",VLOOKUP(L150,Proposito_programa!$C$2:$E$59,3,FALSE))","v":"Propósito 5: Construir Bogotá - Región con gobierno abierto, transparente y ciudadanía consciente"},"133011605570000001841",1,52308262,"IRISAYDEE NOVOA MEDELLIN","Persona Natural",null,null,null,18400000,null,1,4600000,23000000,17940000,"2021-08-03","2021-08-04","2022-01-03",120,1,30,null,null,null,null,null,null,"X",null,0.78]
[1,138,2021,"FDLCH-CPS-137-2021","https://community.secop.gov.co/Public/Tendering/OpportunityDetail/Index?noticeUID=CO1.NTC.1719798&isFromPublicArea=True&isModal=true&asPopupView=true","Contratos de prestación de servicios profesionales y de apoyo a la gestión","Contratación directa","Prestación de servicios profesionales y de apoyo a la gestión, o para la ejecución de trabajos artísticos que sólo puedan encomendarse a determinadas personas naturales;","Prestar los servicios personales necesarios para la conducción de los vehículos que conforman el parque automotor en propiedad u custodia del fondo de Desarrollo Local de Chapinero y el transporte de servidores públicos para la realización de las actividades misionales de la Alcaldía Local de Chapinero.","Inversión","Un Nuevo Contrato Social y Ambiental para la Bogotá del Siglo XXI",57,{"$f":"IF(ISERROR(VLOOKUP(L151,Proposito_programa!$C$2:$E$59,2,FALSE)),\" \",VLOOKUP(L151,Proposito_programa!$C$2:$E$59,2,FALSE))","v":"Gestión pública local"},{"$f":"IF(ISERROR(VLOOKUP(L151,Proposito_programa!$C$2:$E$59,3,FALSE)),\" \",VLOOKUP(L151,Proposito_programa!$C$2:$E$59,3,FALSE))","v":"Propósito 5: Construir Bogotá - Región con gobierno abierto, transparente y ciudadanía consciente"},"133011605570000001741",1,3220879,"BENEDICTO VANEGAS CASTELLANOS","Persona Natural",null,null,null,12000000,null,1,480000,12480000,10560000,"2021-08-09","2021-08-10","2022-01-15",150,1,30,null,null,null,null,null,"X",null,null,0.84615384615384615]
[1,139,2021,"FDLCH-CPS-138-2021","https://community.secop.gov.co/Public/Tendering/OpportunityDetail/Index?noticeUID=CO1.NTC.1703032&isFromPublicArea=True&isModal=true&asPopupView=true","Contratos de prestación de servicios profesionales y de apoyo a la gestión","Contratación directa","Prestación de servicios profesionales y de apoyo a la gestión, o para la ejecución de trabajos artísticos que sólo puedan encomendarse a determinadas personas naturales;","Prestar los servicios personales necesarios para la conducción de los vehículos que conforman el parque automotor en propiedad o custodia del Fondo de Desarrollo Local de Chapinero, y el transporte de servidores públicos para la realización de las actividades misionales de la Alcaldía Local de Chapinero.","Inversión","Un Nuevo Contrato Social y Ambiental para la Bogotá del Siglo XXI",57,{"$f":"IF(ISERROR(VLOOKUP(L152,Proposito_programa!$C$2:$E$59,2,FALSE)),\" \",VLOOKUP(L152,Proposito_programa!$C$2:$E$59,2,FALSE))","v":"Gestión pública local"},{"$f":"IF(ISERROR(VLOOKUP(L152,Proposito_programa!$C$2:$E$59,3,FALSE)),\" \",VLOOKUP(L152,Proposito_programa!$C$2:$E$59,3,FALSE))","v":"Propósito 5: Construir Bogotá - Región con gobierno abierto, transparente y ciudadanía consciente"},"133011605570000001741",1,1018445848,"JUAN DAVID CHICACAUSA SALAS","Persona Natural",null,null,null,12000000,null,2,640000,12640000,10080000,"2021-08-09","2021-08-10","2022-01-17",150,1,30,null,null,null,null,null,"X",null,null,{"$f":"IF(ISERROR(AB152/AA152),\"-\",(AB152/AA152))","v":0.79746835443037978}]
[1,140,2021,"FDLCH-CPS- 139-2021","https://community.secop.gov.co/Public/Tendering/OpportunityDetail/Index?noticeUID=CO1.NTC.1735194&isFromPublicArea=True&isModal=true&asPopupView=true","Contratos de prestación de servicios profesionales y de apoyo a la gestión","Contratación directa","Prestación de servicios profesionales y de apoyo a la gestión, o para la ejecución de trabajos artísticos que sólo puedan encomendarse a determinadas personas naturales;","Prestar servicios de apoyo a la gestión para desarrollar las actividades de radicación, gestión de correspondencia y de la documentación que expide, se allega y controla la Alcaldía Local de Chapinero.","Inversión","Un Nuevo Contrato Social y Ambiental para la Bogotá del Siglo XXI",57,{"$f":"IF(ISERROR(VLOOKUP(L153,Proposito_programa!$C$2:$E$59,2,FALSE)),\" \",VLOOKUP(L153,Proposito_programa!$C$2:$E$59,2,FALSE))","v":"Gestión pública local"},{"$f":"IF(ISERROR(VLOOKUP(L153,Proposito_programa!$C$2:$E$59,3,FALSE)),\" \",VLOOKUP(L153,Proposito_programa!$C$2:$E$59,3,FALSE))","v":"Propósito 5: Construir Bogotá - Región con gobierno abierto, transparente y ciudadanía consciente"},"133011605570000001741",1,1031147236,"DEISY YINETH FRANCO PENAGOS","Persona Natural",null,null,null,12000000,null,1,480000,12480000,10160000,"2021-08-06","2021-08-09","2022-01-14",150,1,30,null,null,null,null,null,"X",null,null,0.8141025641025641]
[1,141,2021,"FDLCH-CPS-140-2021","https://community.secop.gov.co/Public/Tendering/OpportunityDetail/Index?noticeUID=CO1.NTC.2163824&isFromPublicArea=True&isModal=true&asPopupView=true","Contratos de prestación de servicios profesionales y de apoyo a la gestión","Contratación directa","Prestación de servicios profesionales y de apoyo a la gestión, o para la ejecución de trabajos artísticos que sólo puedan encomendarse a determinadas personas naturales;","Prestar los servicios de Apoyo y dar soporte técnico al administrador y usuario final de la red de sistemas y tecnología e información de la Alcaldía Local.","Inversión","Un Nuevo Contrato Social y Ambiental para la Bogotá del Siglo XXI",57,{"$f":"IF(ISERROR(VLOOKUP(L154,Proposito_programa!$C$2:$E$59,2,FALSE)),\" \",VLOOKUP(L154,Proposito_programa!$C$2:$E$59,2,FALSE))","v":"Gestión pública local"},{"$f":"IF(ISERROR(VLOOKUP(L154,Proposito_programa!$C$2:$E$59,3,FALSE)),\" \",VLOOKUP(L154,Proposito_programa!$C$2:$E$59,3,FALSE))","v":"Propósito 5: Construir Bogotá - Región con gobierno abierto, transparente y ciudadanía consciente"},"133011605570000001741",1,1032386167,"ESTEBAN GONZALEZ PORTILLA","Persona Natural",null,null,null,10800000,null,1,2700000,13500000,11250000,"2021-08-10","2021-08-11","2022-01-10",120,1,30,null,null,null,null,null,"X",null,null,0.83333333333333337]
[1,142,2021,"FDLCH-CPS-141-2021","https://community.secop.gov.co/Public/Tendering/OpportunityDetail/Index?noticeUID=CO1.NTC.2169873&isFromPublicArea=True&isModal=true&asPopupView=true","Contratos de prestación de servicios profesionales y de apoyo a la gestión","Contratación directa","Prestación de servicios profesionales y de apoyo a la gestión, o para la ejecución de trabajos artísticos que sólo puedan encomendarse a determinadas personas naturales;","Prestar servicios profesionales para apoyar la gestión, formulación, desarrollo, seguimiento y evaluación del proyecto de inversión“Chapinero promueve y genera confianza ciudadana y realizar los apoyos a la supervisión de los contratos que de él se deriven.","Inversión","Un Nuevo Contrato Social y Ambiental para la Bogotá del Siglo XXI",43,{"$f":"IF(ISERROR(VLOOKUP(L155,Proposito_programa!$C$2:$E$59,2,FALSE)),\" \",VLOOKUP(L155,Proposito_programa!$C$2:$E$59,2,FALSE))","v":"Cultura ciudadana para la confianza, la convivencia y la participación desde la vida cotidiana"},{"$f":"IF(ISERROR(VLOOKUP(L155,Proposito_programa!$C$2:$E$59,3,FALSE)),\" \",VLOOKUP(L155,Proposito_programa!$C$2:$E$59,3,FALSE))","v":"Propósito 3: Inspirar confianza y legitimidad para vivir sin miedo y ser epicentro de cultura ciudadana, paz y reconciliación"},"133011603430000001735",1,1026568660,"CRISTIAN ANDRES MONROY CARANTON","Persona Natural",null,null,null,17444000,null,1,4070267,21514267,17880100,"2021-08-13","2021-08-13","2022-01-09",120,1,30,null,null,null,null,null,"X",null,null,0.83108106820464767]
[1,143,2021,"FDLCH-CPS-142-2021","https://community.secop.gov.co/Public/Tendering/OpportunityDetail/Index?noticeUID=CO1.NTC.2171228&isFromPublicArea=True&isModal=true&asPopupView=true","Contratos de prestación de servicios profesionales y de apoyo a la gestión","Contratación directa","Prestación de servicios profesionales y de apoyo a la gestión, o para la ejecución de trabajos artísticos que sólo puedan encomendarse a determinadas personas naturales;","Prestar los servicios profesionales de apoyo a la gestión, formulación, desarrollo, seguimiento y evaluación del proyecto de inversión chapinero epocentro del deporte y la recreación.","Inversión","Un Nuevo Contrato Social y Ambiental para la Bogotá del Siglo XXI",20,{"$f":"IF(ISERROR(VLOOKUP(L156,Proposito_programa!$C$2:$E$59,2,FALSE)),\" \",VLOOKUP(L156,Proposito_programa!$C$2:$E$59,2,FALSE))","v":"Bogotá, referente en cultura, deporte, recreación y actividad física, con parques para el desarrollo y la salud"},{"$f":"IF(ISERROR(VLOOKUP(L156,Proposito_programa!$C$2:$E$59,3,FALSE)),\" \",VLOOKUP(L156,Proposito_programa!$C$2:$E$59,3,FALSE))","v":"Propósito 1: Hacer un nuevo contrato social para incrementar la inclusión social, productiva y política"},"133011601200000001845",1,1030592221,"MIGUEL ANGEL DELGADO BARRERA","Persona Natural",null,null,null,18000000,null,1,4500000,22500000,18450000,"2021-08-13","2021-08-13","2022-01-12",120,1,30,null,null,null,null,null,"X",null,null,0.82]
[1,144,2021,"FDLCH-CPS-143-2021","https://community.secop.gov.co/Public/Tendering/OpportunityDetail/Index?noticeUID=CO1.NTC.2173115&isFromPublicArea=True&isModal=true&asPopupView=true","Contratos de prestación de servicios profesionales y de apoyo a la gestión","Contratación directa","Prestación de servicios profesionales y de apoyo a la gestión, o para la ejecución de trabajos artísticos que sólo puedan encomendarse a determinadas personas naturales;","Prestar servicio técnico jurídicos de apoyo y asistencia administrativa al área de gestión del desarrollo administrativo y financiero del Fondo de Desarrollo Local de Chapinero.","Inversión","Un Nuevo Contrato Social y Ambiental para la Bogotá del Siglo XXI",57,{"$f":"IF(ISERROR(VLOOKUP(L157,Proposito_programa!$C$2:$E$59,2,FALSE)),\" \",VLOOKUP(L157,Proposito_programa!$C$2:$E$59,2,FALSE))","v":"Gestión pública local"},{"$f":"IF(ISERROR(VLOOKUP(L157,Proposito_programa!$C$2:$E$59,3,FALSE)),\" \",VLOOKUP(L157,Proposito_programa!$C$2:$E$59,3,FALSE))","v":"Propósito 5: Construir Bogotá - Región con gobierno abierto, transparente y ciudadanía consciente"},"133011605570000001741",1,1144193027,"JUAN FERNANDO VILLEGAS MOTOA","Persona Natural",null,null,null,14000000,null,1,2566667,16566667,13066666,"2021-08-13","2021-08-17","2022-01-14",120,1,30,null,null,null,null,null,"X",null,null,0.78873233825488254]
[1,145,2021,"FDLCH-CIA-144-2021","https://www.contratos.gov.co/consultas/detalleProceso.do?numConstancia=21-22-28969&g-recaptcha-response=03AGdBq26UZNiaHbPzzceI1jOZz0nnmemQ7U7n34w_NI-QjOk2R4mAbmfY6-Hea-wziIjw-sch0nHgbdJgZF_v0Wm6-YFqu4tzycUAP2l-15Uz9uftaAjpAAiA4-F6HWo_NQ7qVv7LTqLzfsCLDqMymSToQd1mL4wUWYx4QdoXFQf5jcGa6hlQARsAN1Sc3lc-AHZFYLakPnVymZONiA-vK6bnZlJKhqH1xozVzOSwfi1e9UqP9d7AOvIo0QnkcPqQCm_Cr6JGr-2fqJb7SJ1yBFzGSrhINKHO8iZPh4KKUiA9bpsGz-OND1NDBsPlZqv0rPro5xp0oN46n4QyRMYvBPb6CHxDVY82p8v6jNtYIIg5EvoSyb7s8FiDKYhfYLFmzjP3Jm_70vTANorltZ00fNpmkKPa0F4WX8sv3nmKLG6IFCDN83g5FgWdLAQ271csEoKEhAfpAltWs1AY5Bqbi7rdq1Mu8qY5Xg","Contratos interadministrativos","Contratación directa","Contratos interadministrativos","Aunar esfuerzos administrativos, técnicos, financieros y de recursos humano, entre los fondos de desarrollo local de las loclaidades de Bogotá y el Instituto Distrital de Turismo-IDT, tendientes a desarrollar componentes de reactivación económica del sector turismo, mediante la ejecución de acciones, actividades y proyectos, en el marco d elos presupuestos particicpativos y del Plan de Desarrollo, un nuevo contrato social y ambiental para la Bogotá del siglo XXI.","Inversión","Un Nuevo Contrato Social y Ambiental para la Bogotá del Siglo XXI",6,{"$f":"IF(ISERROR(VLOOKUP(L158,Proposito_programa!$C$2:$E$59,2,FALSE)),\" \",VLOOKUP(L158,Proposito_programa!$C$2:$E$59,2,FALSE))","v":"Sistema Distrital de Cuidado"},{"$f":"IF(ISERROR(VLOOKUP(L158,Proposito_programa!$C$2:$E$59,3,FALSE)),\" \",VLOOKUP(L158,Proposito_programa!$C$2:$E$59,3,FALSE))","v":"Propósito 1: Hacer un nuevo contrato social para incrementar la inclusión social, productiva y política"},"133011601060000001671",1,900140515,"INSTITUTO DISTRITAL DE TURISMO IDT","Persona Jurídica",null,null,null,88781194,null,null,null,{"$f":"+W158+Z158","v":88781194},88781194,"2021-09-01","2021-09-06","2022-06-30",270,null,0,null,null,null,null,null,"X",null,null,1]
[1,146,2021,"FDLCH-CPS-145-2021","https://community.secop.gov.co/Public/Tendering/OpportunityDetail/Index?noticeUID=CO1.NTC.2174111&isFromPublicArea=True&isModal=true&asPopupView=true","Contratos de prestación de servicios profesionales y de apoyo a la gestión","Contratación directa","Prestación de servicios profesionales y de apoyo a la gestión, o para la ejecución de trabajos artísticos que sólo puedan encomendarse a determinadas personas naturales;","Prestar los servicios profesionales para la gestión, formulación, desarrollo, seguimiento y evaluación del proyecto de inversión“Chapinero espacio para hábitos saludablesen el componente construcción y/o conservación de los parque svecinales y/o de bolsillo\"","Inversión","Un Nuevo Contrato Social y Ambiental para la Bogotá del Siglo XXI",33,{"$f":"IF(ISERROR(VLOOKUP(L159,Proposito_programa!$C$2:$E$59,2,FALSE)),\" \",VLOOKUP(L159,Proposito_programa!$C$2:$E$59,2,FALSE))","v":"Más árboles y más y mejor espacio público"},{"$f":"IF(ISERROR(VLOOKUP(L159,Proposito_programa!$C$2:$E$59,3,FALSE)),\" \",VLOOKUP(L159,Proposito_programa!$C$2:$E$59,3,FALSE))","v":"Propósito 2 : Cambiar Nuestros Hábitos de Vida para Reverdecer a Bogotá y Adaptarnos y Mitigar la Crisis Climática"},"133011602330000001723",1,79268761,"MAURICIO BOHORQUEZ ESCOBAR","Persona Natural",null,null,null,27500000,null,null,null,27500000,21816667,"2021-08-13","2021-08-17","2022-01-16",150,null,0,null,null,null,null,null,"X",null,null,0.79333334545454548]
[1,147,2021,"FDLCH-CPS-146-2021","https://community.secop.gov.co/Public/Tendering/OpportunityDetail/Index?noticeUID=CO1.NTC.2182790&isFromPublicArea=True&isModal=true&asPopupView=true","Contratos de prestación de servicios profesionales y de apoyo a la gestión","Contratación directa","Prestación de servicios profesionales y de apoyo a la gestión, o para la ejecución de trabajos artísticos que sólo puedan encomendarse a determinadas personas naturales;","Prestar servicios de apoyo a la gestión para desarrollar las actividades de radicación, gestión de correspondencia y de la documentación que expide, se allega y controlan las Inspecciones de Policía de la Alcaldía Local de Chapinero.","Inversión","Un Nuevo Contrato Social y Ambiental para la Bogotá del Siglo XXI",57,{"$f":"IF(ISERROR(VLOOKUP(L160,Proposito_programa!$C$2:$E$59,2,FALSE)),\" \",VLOOKUP(L160,Proposito_programa!$C$2:$E$59,2,FALSE))","v":"Gestión pública local"},{"$f":"IF(ISERROR(VLOOKUP(L160,Proposito_programa!$C$2:$E$59,3,FALSE)),\" \",VLOOKUP(L160,Proposito_programa!$C$2:$E$59,3,FALSE))","v":"Propósito 5: Construir Bogotá - Región con gobierno abierto, transparente y ciudadanía consciente"},"133011605570000001741",1,1063134906,"VANESA ALEXANDRA JIMENEZ ARTEAGA","Persona Natural",null,null,null,11000000,null,null,null,11000000,8653333,"2021-08-19","2021-08-20","2022-01-19",150,null,0,null,null,null,null,null,"X",null,null,0.78666663636363632]
[1,148,2021,"FDLCH-CPS-147-2021","https://community.secop.gov.co/Public/Tendering/OpportunityDetail/Index?noticeUID=CO1.NTC.2182663&isFromPublicArea=True&isModal=true&asPopupView=true","Contratos de prestación de servicios profesionales y de apoyo a la gestión","Contratación directa","Prestación de servicios profesionales y de apoyo a la gestión, o para la ejecución de trabajos artísticos que sólo puedan encomendarse a determinadas personas naturales;","Prestar servicios de apoyo a la gestion para desarrollar las actividades de radicacion y gestion de correspondencia de la documentacion que expide y se allega a la Alcaldia Local de Chapinero","Inversión","Un Nuevo Contrato Social y Ambiental para la Bogotá del Siglo XXI",57,{"$f":"IF(ISERROR(VLOOKUP(L161,Proposito_programa!$C$2:$E$59,2,FALSE)),\" \",VLOOKUP(L161,Proposito_programa!$C$2:$E$59,2,FALSE))","v":"Gestión pública local"},{"$f":"IF(ISERROR(VLOOKUP(L161,Proposito_programa!$C$2:$E$59,3,FALSE)),\" \",VLOOKUP(L161,Proposito_programa!$C$2:$E$59,3,FALSE))","v":"Propósito 5: Construir Bogotá - Región con gobierno abierto, transparente y ciudadanía consciente"},"133011605570000001741",1,1023007285,"JENNIFER MARIA SAUCEDO FUENTES","Persona Natural",null,null,null,7280000,null,1,728000,8008000,7098000,"2021-08-19","2021-08-19","2021-12-30",120,1,30,null,null,null,null,null,null,"X",null,0.88636363636363635]
[1,149,2021,"FDLCH-CPS-148-2021","https://community.secop.gov.co/Public/Tendering/OpportunityDetail/Index?noticeUID=CO1.NTC.2174909&isFromPublicArea=True&isModal=true&asPopupView=true","Contratos de prestación de servicios profesionales y de apoyo a la gestión","Contratación directa","Prestación de servicios profesionales y de apoyo a la gestión, o para la ejecución de trabajos artísticos que sólo puedan encomendarse a determinadas personas naturales;","Prestar servicios profesionales para apoyar la gestión, formulación, desarrollo, seguimiento y evaluación del proyecto de inversión “Chapinero es espacio publico incluyente y democrático.","Inversión","Un Nuevo Contrato Social y Ambiental para la Bogotá del Siglo XXI",45,{"$f":"IF(ISERROR(VLOOKUP(L162,Proposito_programa!$C$2:$E$59,2,FALSE)),\" \",VLOOKUP(L162,Proposito_programa!$C$2:$E$59,2,FALSE))","v":"Espacio público más seguro y construido colectivamente"},{"$f":"IF(ISERROR(VLOOKUP(L162,Proposito_programa!$C$2:$E$59,3,FALSE)),\" \",VLOOKUP(L162,Proposito_programa!$C$2:$E$59,3,FALSE))","v":"Propósito 3: Inspirar confianza y legitimidad para vivir sin miedo y ser epicentro de cultura ciudadana, paz y reconciliación"},"133011603450000001736",1,80192226,"OSCAR FABIAN MAESTRE OLAYA","Persona Natural",null,null,null,17444000,null,2,3488793,20932793,17734733,"2021-08-13","2021-08-14","2022-01-06",120,2,60,null,null,null,null,null,null,"X",null,0.84722248961235125]
[1,150,2021,"FDLCH-CPS-149-2021","https://community.secop.gov.co/Public/Tendering/OpportunityDetail/Index?noticeUID=CO1.NTC.2179448&isFromPublicArea=True&isModal=true&asPopupView=true","Contratos de prestación de servicios profesionales y de apoyo a la gestión","Contratación directa","Prestación de servicios profesionales y de apoyo a la gestión, o para la ejecución de trabajos artísticos que sólo puedan encomendarse a determinadas personas naturales;","Prestar los servicios de apoyo a la gestión en la implementación, atención, verificación, soporte y acompañamiento de los procesos y/o actuaciones administrativas de registro y seguimiento a la propiedad horizontal en los aplicativos y/o herramientas virtuales en la localidad de Chapinero.","Inversión","Un Nuevo Contrato Social y Ambiental para la Bogotá del Siglo XXI",57,{"$f":"IF(ISERROR(VLOOKUP(L163,Proposito_programa!$C$2:$E$59,2,FALSE)),\" \",VLOOKUP(L163,Proposito_programa!$C$2:$E$59,2,FALSE))","v":"Gestión pública local"},{"$f":"IF(ISERROR(VLOOKUP(L163,Proposito_programa!$C$2:$E$59,3,FALSE)),\" \",VLOOKUP(L163,Proposito_programa!$C$2:$E$59,3,FALSE))","v":"Propósito 5: Construir Bogotá - Región con gobierno abierto, transparente y ciudadanía consciente"},"133011605570000001741",1,1026595076,"VALENTINA SALGADO RODRIGUEZ","Persona Natural",null,null,null,10000000,null,1,1083333,11083333,8583333,"2021-08-18","2021-08-18","2021-12-30",120,1,30,null,null,null,null,null,null,"X",null,0.77443608344168668]
[1,151,2021,"FDLCH-CPS-150-2021","https://community.secop.gov.co/Public/Tendering/OpportunityDetail/Index?noticeUID=CO1.NTC.2184683&isFromPublicArea=True&isModal=true&asPopupView=true","Contratos de prestación de servicios profesionales y de apoyo a la gestión","Contratación directa","Prestación de servicios profesionales y de apoyo a la gestión, o para la ejecución de trabajos artísticos que sólo puedan encomendarse a determinadas personas naturales;","Prestar servicios técnicos para apoyar la gestión jurídica en la ejecución de las actividades administrativas y documentales con contenido jurídico, relacionadas con los procesos de inspección, vigilancia y control que adelanta la Alcaldía Local de Chapinero.","Inversión","Un Nuevo Contrato Social y Ambiental para la Bogotá del Siglo XXI",57,{"$f":"IF(ISERROR(VLOOKUP(L164,Proposito_programa!$C$2:$E$59,2,FALSE)),\" \",VLOOKUP(L164,Proposito_programa!$C$2:$E$59,2,FALSE))","v":"Gestión pública local"},{"$f":"IF(ISERROR(VLOOKUP(L164,Proposito_programa!$C$2:$E$59,3,FALSE)),\" \",VLOOKUP(L164,Proposito_programa!$C$2:$E$59,3,FALSE))","v":"Propósito 5: Construir Bogotá - Región con gobierno abierto, transparente y ciudadanía consciente"},"133011605570000001841",1,52524843,"YADY MATILDE MORENO VARGAS","Persona Natural",null,null,null,10500000,null,1,5250000,15750000,11433333,"2021-08-20","2021-08-23","2022-01-06",90,1,30,null,null,null,null,null,null,"X",null,0.72592590476190477]
[1,152,2021,"FDLCH-CPS-151-2021","https://community.secop.gov.co/Public/Tendering/OpportunityDetail/Index?noticeUID=CO1.NTC.2191644&isFromPublicArea=True&isModal=true&asPopupView=true","Contratos de prestación de servicios profesionales y de apoyo a la gestión","Contratación directa","Prestación de servicios profesionales y de apoyo a la gestión, o para la ejecución de trabajos artísticos que sólo puedan encomendarse a determinadas personas naturales;","Prestar los servicios personales necesarios para la conducción de los vehículos que conforman el parque automotor en propiedad o custodia del Fondo de Desarrollo Local de Chapinero, y el transporte de servicios públicos para la realización de las actividades misionales de la Alcaldía Local de Chapinero.","Inversión","Un Nuevo Contrato Social y Ambiental para la Bogotá del Siglo XXI",57,{"$f":"IF(ISERROR(VLOOKUP(L165,Proposito_programa!$C$2:$E$59,2,FALSE)),\" \",VLOOKUP(L165,Proposito_programa!$C$2:$E$59,2,FALSE))","v":"Gestión pública local"},{"$f":"IF(ISERROR(VLOOKUP(L165,Proposito_programa!$C$2:$E$59,3,FALSE)),\" \",VLOOKUP(L165,Proposito_programa!$C$2:$E$59,3,FALSE))","v":"Propósito 5: Construir Bogotá - Región con gobierno abierto, transparente y ciudadanía consciente"},"133011605570000001741",1,79910420,"HAMILTON ARREDONDO BAUTISTA","Persona Natural",null,null,null,12000000,null,null,null,12000000,8960000,"2021-08-23","2021-08-24","2022-01-23",150,null,0,null,null,null,null,null,"X",null,null,0.7466666666666667]
[1,153,2021,"FDLCH-CPS-152-2021","https://community.secop.gov.co/Public/Tendering/OpportunityDetail/Index?noticeUID=CO1.NTC.2184757&isFromPublicArea=True&isModal=true&asPopupView=true","Contratos de prestación de servicios profesionales y de apoyo a la gestión","Contratación directa","Prestación de servicios profesionales y de apoyo a la gestión, o para la ejecución de trabajos artísticos que sólo puedan encomendarse a determinadas personas naturales;","Prestar servicios de apoyo logístico asistencial para el desarrollo de actividades y eventos locales en atención del Proyecto : “Chapinero dejando huella por los animales “.","Inversión","Un Nuevo Contrato Social y Ambiental para la Bogotá del Siglo XXI",34,{"$f":"IF(ISERROR(VLOOKUP(L166,Proposito_programa!$C$2:$E$59,2,FALSE)),\" \",VLOOKUP(L166,Proposito_programa!$C$2:$E$59,2,FALSE))","v":"Bogotá protectora de los animales"},{"$f":"IF(ISERROR(VLOOKUP(L166,Proposito_programa!$C$2:$E$59,3,FALSE)),\" \",VLOOKUP(L166,Proposito_programa!$C$2:$E$59,3,FALSE))","v":"Propósito 2 : Cambiar Nuestros Hábitos de Vida para Reverdecer a Bogotá y Adaptarnos y Mitigar la Crisis Climática"},"133011602340000001731",1,80410411,"CARLOS JULIO MARTINEZ RIPE","Persona Natural",null,null,null,6800000,null,1,1700000,8500000,6573333,"2021-08-19","2021-08-20","2022-01-19",120,1,30,null,null,null,null,null,"X",null,null,0.77333329411764706]
[1,154,2021,"FDLCH-CPS-153-2021","https://community.secop.gov.co/Public/Tendering/OpportunityDetail/Index?noticeUID=CO1.NTC.2184680&isFromPublicArea=True&isModal=true&asPopupView=true","Contratos de prestación de servicios profesionales y de apoyo a la gestión","Contratación directa","Prestación de servicios profesionales y de apoyo a la gestión, o para la ejecución de trabajos artísticos que sólo puedan encomendarse a determinadas personas naturales;","Prestar servicios de apoyo logístico asistencial para el desarrollo de actividades y eventos locales en atención del Proyecto : “Chapinero dejando huella por los animales “.","Inversión","Un Nuevo Contrato Social y Ambiental para la Bogotá del Siglo XXI",34,{"$f":"IF(ISERROR(VLOOKUP(L167,Proposito_programa!$C$2:$E$59,2,FALSE)),\" \",VLOOKUP(L167,Proposito_programa!$C$2:$E$59,2,FALSE))","v":"Bogotá protectora de los animales"},{"$f":"IF(ISERROR(VLOOKUP(L167,Proposito_programa!$C$2:$E$59,3,FALSE)),\" \",VLOOKUP(L167,Proposito_programa!$C$2:$E$59,3,FALSE))","v":"Propósito 2 : Cambiar Nuestros Hábitos de Vida para Reverdecer a Bogotá y Adaptarnos y Mitigar la Crisis Climática"},"133011602340000001731",1,1071166907,"WILSON FERNANDO ORJUELA CHAVES","Persona Natural",null,null,null,6800000,null,1,1700000,8500000,6573333,"2021-08-19","2021-08-20","2022-01-19",120,1,30,null,null,null,null,null,"X",null,null,0.77333329411764706]
[1,155,2021,"FDLCH-CPS-154-2021","https://community.secop.gov.co/Public/Tendering/OpportunityDetail/Index?noticeUID=CO1.NTC.2196158&isFromPublicArea=True&isModal=true&asPopupView=true","Contratos de prestación de servicios profesionales y de apoyo a la gestión","Contratación directa","Prestación de servicios profesionales y de apoyo a la gestión, o para la ejecución de trabajos artísticos que sólo puedan encomendarse a determinadas personas naturales;","Prestar servicios profesionales para apoyar técnicamente las distintas etapas de los procesos de competencia de las inspecciones de policía de la localidad de chapinero, según reparto","Inversión","Un Nuevo Contrato Social y Ambiental para la Bogotá del Siglo XXI",57,{"$f":"IF(ISERROR(VLOOKUP(L168,Proposito_programa!$C$2:$E$59,2,FALSE)),\" \",VLOOKUP(L168,Proposito_programa!$C$2:$E$59,2,FALSE))","v":"Gestión pública local"},{"$f":"IF(ISERROR(VLOOKUP(L168,Proposito_programa!$C$2:$E$59,3,FALSE)),\" \",VLOOKUP(L168,Proposito_programa!$C$2:$E$59,3,FALSE))","v":"Propósito 5: Construir Bogotá - Región con gobierno abierto, transparente y ciudadanía consciente"},"133011605570000001841",1,80429650,"EXCELINO ROMERO CASTAÑEDA","Persona Natural",null,null,null,20000000,null,null,null,20000000,16000000,"2021-08-24","2021-08-25","2021-12-24",120,null,0,null,null,null,null,null,null,"X",null,0.8]
[1,156,2021,"FDLCH-CPS-155-2021","https://community.secop.gov.co/Public/Tendering/OpportunityDetail/Index?noticeUID=CO1.NTC.2198902&isFromPublicArea=True&isModal=true&asPopupView=true","Contratos de prestación de servicios profesionales y de apoyo a la gestión","Contratación directa","Prestación de servicios profesionales y de apoyo a la gestión, o para la ejecución de trabajos artísticos que sólo puedan encomendarse a determinadas personas naturales;","Prestar servicios profesionales para apoyar técnicamente las distintas etapas de los procesos de competencia de las inspecciones de policía de la localidad de chapinero según reparto.","Inversión","Un Nuevo Contrato Social y Ambiental para la Bogotá del Siglo XXI",57,{"$f":"IF(ISERROR(VLOOKUP(L169,Proposito_programa!$C$2:$E$59,2,FALSE)),\" \",VLOOKUP(L169,Proposito_programa!$C$2:$E$59,2,FALSE))","v":"Gestión pública local"},{"$f":"IF(ISERROR(VLOOKUP(L169,Proposito_programa!$C$2:$E$59,3,FALSE)),\" \",VLOOKUP(L169,Proposito_programa!$C$2:$E$59,3,FALSE))","v":"Propósito 5: Construir Bogotá - Región con gobierno abierto, transparente y ciudadanía consciente"},"133011605570000001841",1,80926066,"OMAR DAVID LAVERDE CABRERA","Persona Natural",null,null,null,20000000,null,null,null,20000000,16000000,"2021-08-25","2021-08-25","2021-12-24",120,null,0,null,null,null,null,null,null,"X",null,0.8]
[1,157,2021,"FDLCH-CPS-156-2021","https://community.secop.gov.co/Public/Tendering/OpportunityDetail/Index?noticeUID=CO1.NTC.2198611&isFromPublicArea=True&isModal=true&asPopupView=true","Contratos de prestación de servicios profesionales y de apoyo a la gestión","Contratación directa","Prestación de servicios profesionales y de apoyo a la gestión, o para la ejecución de trabajos artísticos que sólo puedan encomendarse a determinadas personas naturales;","Prestar los servicios profesionales para la gestión, formulación, desarrollo, seguimiento y evaluación del proyecto 1739 “Chapinero liderado por la ciudadanía”, así como el apoyo a la supervisión de los contratos que le sean asignados por el Alcalde Local","Inversión","Un Nuevo Contrato Social y Ambiental para la Bogotá del Siglo XXI",55,{"$f":"IF(ISERROR(VLOOKUP(L170,Proposito_programa!$C$2:$E$59,2,FALSE)),\" \",VLOOKUP(L170,Proposito_programa!$C$2:$E$59,2,FALSE))","v":"Fortalecimiento de cultura ciudadana y su institucionalidad"},{"$f":"IF(ISERROR(VLOOKUP(L170,Proposito_programa!$C$2:$E$59,3,FALSE)),\" \",VLOOKUP(L170,Proposito_programa!$C$2:$E$59,3,FALSE))","v":"Propósito 5: Construir Bogotá - Región con gobierno abierto, transparente y ciudadanía consciente"},"133011605550000001739",1,80092921,"FEDERICO SANTIAGO BALLESTEROS","Persona Natural",null,null,null,17444000,null,1,3052700,20496700,13955200,"2021-08-25","2021-08-25","2022-01-14",120,1,30,null,null,null,null,null,"X",null,null,0.68085106382978722]
[1,158,2021,"FDLCH-CPS-157-2021","https://community.secop.gov.co/Public/Tendering/OpportunityDetail/Index?noticeUID=CO1.NTC.2201353&isFromPublicArea=True&isModal=true&asPopupView=true","Contratos de prestación de servicios profesionales y de apoyo a la gestión","Contratación directa","Prestación de servicios profesionales y de apoyo a la gestión, o para la ejecución de trabajos artísticos que sólo puedan encomendarse a determinadas personas naturales;","Prestar servicios de apoyo a la gestión en la ejecución de las actividades administrativas y documentales relacionadas con la gestión policiva en la Alcaldía Local de Chapinero.","Inversión","Un Nuevo Contrato Social y Ambiental para la Bogotá del Siglo XXI",57,{"$f":"IF(ISERROR(VLOOKUP(L171,Proposito_programa!$C$2:$E$59,2,FALSE)),\" \",VLOOKUP(L171,Proposito_programa!$C$2:$E$59,2,FALSE))","v":"Gestión pública local"},{"$f":"IF(ISERROR(VLOOKUP(L171,Proposito_programa!$C$2:$E$59,3,FALSE)),\" \",VLOOKUP(L171,Proposito_programa!$C$2:$E$59,3,FALSE))","v":"Propósito 5: Construir Bogotá - Región con gobierno abierto, transparente y ciudadanía consciente"},"133011605570000001841",1,51765934,"MARIA DIACLIN RODRIGUEZ PULECIO","Persona Natural",null,null,null,8000000,null,1,1333333,9333333,7333333,"2021-08-26","2021-08-27","2022-01-14",120,null,0,null,null,null,null,null,"X",null,null,0.78571427806122418]
[1,159,2021,"FDLCH-CPS-158-2021","https://community.secop.gov.co/Public/Tendering/OpportunityDetail/Index?noticeUID=CO1.NTC.2201197&isFromPublicArea=True&isModal=true&asPopupView=true","Contratos de prestación de servicios profesionales y de apoyo a la gestión","Contratación directa","Prestación de servicios profesionales y de apoyo a la gestión, o para la ejecución de trabajos artísticos que sólo puedan encomendarse a determinadas personas naturales;","Prestar los servicios profesionales de apoyo jurídico en la ejecución de las acciones requeridas para el trámite e impulso procesal de las actuaciones, contravenciones y/o querellas que cursen en las inspecciones de policía de la localidad","Inversión","Un Nuevo Contrato Social y Ambiental para la Bogotá del Siglo XXI",57,{"$f":"IF(ISERROR(VLOOKUP(L172,Proposito_programa!$C$2:$E$59,2,FALSE)),\" \",VLOOKUP(L172,Proposito_programa!$C$2:$E$59,2,FALSE))","v":"Gestión pública local"},{"$f":"IF(ISERROR(VLOOKUP(L172,Proposito_programa!$C$2:$E$59,3,FALSE)),\" \",VLOOKUP(L172,Proposito_programa!$C$2:$E$59,3,FALSE))","v":"Propósito 5: Construir Bogotá - Región con gobierno abierto, transparente y ciudadanía consciente"},"133011605570000001841",1,53139176,"DENNIS NATALIA BERNAL RAMIREZ","Persona Natural",null,null,null,17600000,-16720000,null,null,880000,880000,"2021-08-26","2021-08-27","2021-09-03",120,null,0,null,null,null,null,null,null,"X",null,1]
[1,160,2021,"FDLCH-CPS-159-2021","https://community.secop.gov.co/Public/Tendering/OpportunityDetail/Index?noticeUID=CO1.NTC.2201447&isFromPublicArea=True&isModal=true&asPopupView=true","Contratos de prestación de servicios profesionales y de apoyo a la gestión","Contratación directa","Prestación de servicios profesionales y de apoyo a la gestión, o para la ejecución de trabajos artísticos que sólo puedan encomendarse a determinadas personas naturales;","Prestar los servicios profesionales de apoyo jurídico en la ejecución de las acciones requeridas para el trámite e impulso procesal de las actuaciones, contravenciones y/o querellas que cursen en las inspecciones de policía de la localidad","Inversión","Un Nuevo Contrato Social y Ambiental para la Bogotá del Siglo XXI",57,{"$f":"IF(ISERROR(VLOOKUP(L173,Proposito_programa!$C$2:$E$59,2,FALSE)),\" \",VLOOKUP(L173,Proposito_programa!$C$2:$E$59,2,FALSE))","v":"Gestión pública local"},{"$f":"IF(ISERROR(VLOOKUP(L173,Proposito_programa!$C$2:$E$59,3,FALSE)),\" \",VLOOKUP(L173,Proposito_programa!$C$2:$E$59,3,FALSE))","v":"Propósito 5: Construir Bogotá - Región con gobierno abierto, transparente y ciudadanía consciente"},"133011605570000001841",1,79297494,"WILLIAM JAVIER RIVERA MENDOZA","Persona Natural",null,null,null,17600000,null,null,null,17600000,13786667,"2021-08-26","2021-08-27","2021-12-26",120,null,0,null,null,null,null,null,null,"X",null,0.78333335227272727]
[1,161,2021,"FDLCH-CPS-160-2021","https://community.secop.gov.co/Public/Tendering/OpportunityDetail/Index?noticeUID=CO1.NTC.2208790&isFromPublicArea=True&isModal=true&asPopupView=true","Contratos de prestación de servicios profesionales y de apoyo a la gestión","Contratación directa","Prestación de servicios profesionales y de apoyo a la gestión, o para la ejecución de trabajos artísticos que sólo puedan encomendarse a determinadas personas naturales;","Prestar servicios profesionales para apoyar al alcalde local en la promoción, articulación, acompañamiento y seguimiento para la atención y protección de los animales domésticos y silvestres de la localidad","Inversión","Un Nuevo Contrato Social y Ambiental para la Bogotá del Siglo XXI",34,{"$f":"IF(ISERROR(VLOOKUP(L174,Proposito_programa!$C$2:$E$59,2,FALSE)),\" \",VLOOKUP(L174,Proposito_programa!$C$2:$E$59,2,FALSE))","v":"Bogotá protectora de los animales"},{"$f":"IF(ISERROR(VLOOKUP(L174,Proposito_programa!$C$2:$E$59,3,FALSE)),\" \",VLOOKUP(L174,Proposito_programa!$C$2:$E$59,3,FALSE))","v":"Propósito 2 : Cambiar Nuestros Hábitos de Vida para Reverdecer a Bogotá y Adaptarnos y Mitigar la Crisis Climática"},"133011602340000001731",1,33366680,"FRANCY PAOLA MONROY ALVAREZ","Persona Natural",null,null,null,19200000,null,1,2400000,{"$f":"+W174+X174+Z174","v":21600000},14400000,"2021-08-30","2021-09-01","2022-01-15",120,1,30,null,null,null,null,null,"X",null,null,0.66666666666666663]
[1,162,2021,"FDLCH-CPS-161-2021","https://community.secop.gov.co/Public/Tendering/OpportunityDetail/Index?noticeUID=CO1.NTC.2208983&isFromPublicArea=True&isModal=true&asPopupView=true","Contratos de prestación de servicios profesionales y de apoyo a la gestión","Contratación directa","Prestación de servicios profesionales y de apoyo a la gestión, o para la ejecución de trabajos artísticos que sólo puedan encomendarse a determinadas personas naturales;","Apoyar al Alcalde Local en la promoción, acompañamiento, coordinación y atención de las instancias de coordinación interinstitucionales y las instancias de participación locales, así como los procesos comunitarios en la localidad","Inversión","Un Nuevo Contrato Social y Ambiental para la Bogotá del Siglo XXI",57,{"$f":"IF(ISERROR(VLOOKUP(L175,Proposito_programa!$C$2:$E$59,2,FALSE)),\" \",VLOOKUP(L175,Proposito_programa!$C$2:$E$59,2,FALSE))","v":"Gestión pública local"},{"$f":"IF(ISERROR(VLOOKUP(L175,Proposito_programa!$C$2:$E$59,3,FALSE)),\" \",VLOOKUP(L175,Proposito_programa!$C$2:$E$59,3,FALSE))","v":"Propósito 5: Construir Bogotá - Región con gobierno abierto, transparente y ciudadanía consciente"},"133011605570000001741",1,1026276743,"LAURA MALAGIGI GOMEZ","Persona Natural",null,null,null,20000000,null,null,null,{"$f":"+W175+X175+Z175","v":20000000},14833333,"2021-08-30","2021-09-02","2022-01-01",120,null,0,null,null,null,null,null,null,"X",null,0.74166664999999998]
[1,163,2021,"FDLCH-CPS-162-2021","https://community.secop.gov.co/Public/Tendering/OpportunityDetail/Index?noticeUID=CO1.NTC.2210144&isFromPublicArea=True&isModal=true&asPopupView=true","Contratos de prestación de servicios profesionales y de apoyo a la gestión","Contratación directa","Prestación de servicios profesionales y de apoyo a la gestión, o para la ejecución de trabajos artísticos que sólo puedan encomendarse a determinadas personas naturales;","Prestar servicios profesionales para apoyar técnicamente las distintas etapas de los procesos de competencia de las inspecciones de policía de la localidad de chapinero según reparto.","Inversión","Un Nuevo Contrato Social y Ambiental para la Bogotá del Siglo XXI",57,{"$f":"IF(ISERROR(VLOOKUP(L176,Proposito_programa!$C$2:$E$59,2,FALSE)),\" \",VLOOKUP(L176,Proposito_programa!$C$2:$E$59,2,FALSE))","v":"Gestión pública local"},{"$f":"IF(ISERROR(VLOOKUP(L176,Proposito_programa!$C$2:$E$59,3,FALSE)),\" \",VLOOKUP(L176,Proposito_programa!$C$2:$E$59,3,FALSE))","v":"Propósito 5: Construir Bogotá - Región con gobierno abierto, transparente y ciudadanía consciente"},"133011605570000001841",1,72040774,"JORGE ENRIQUE SOLIOS MARTINEZ","Persona Natural",null,null,null,20000000,null,null,null,{"$f":"+W176+X176+Z176","v":20000000},15166667,"2021-08-31","2021-09-01","2021-12-31",120,null,0,null,null,null,null,null,null,"X",null,0.75833335000000002]
[1,164,2021,"FDLCH-CPS-163-2021","https://community.secop.gov.co/Public/Tendering/OpportunityDetail/Index?noticeUID=CO1.NTC.1805041&isFromPublicArea=True&isModal=true&asPopupView=true","Contratos de prestación de servicios profesionales y de apoyo a la gestión","Contratación directa","Prestación de servicios profesionales y de apoyo a la gestión, o para la ejecución de trabajos artísticos que sólo puedan encomendarse a determinadas personas naturales;","Prestar los servicios profesionales de apoyo a la gestión para la formulación, desarrollo y seguimiento del proyecto de inversión “chapinero modelo de movilidad inteligente” y la supervisión de contratos que le sean asignados","Inversión","Un Nuevo Contrato Social y Ambiental para la Bogotá del Siglo XXI",49,{"$f":"IF(ISERROR(VLOOKUP(L177,Proposito_programa!$C$2:$E$59,2,FALSE)),\" \",VLOOKUP(L177,Proposito_programa!$C$2:$E$59,2,FALSE))","v":"Movilidad segura, sostenible y accesible"},{"$f":"IF(ISERROR(VLOOKUP(L177,Proposito_programa!$C$2:$E$59,3,FALSE)),\" \",VLOOKUP(L177,Proposito_programa!$C$2:$E$59,3,FALSE))","v":"Propósito 4: Hacer de Bogotá Región un modelo de movilidad multimodal, incluyente y sostenible"},"133011604490000001734",1,1090435721,"JORGE ENRIQUE ABREO REYES","Persona Natural",null,null,null,24800000,null,1,3100000,{"$f":"+W177+X177+Z177","v":27900000},21286667,"2021-09-02","2021-09-03","2022-01-17",120,1,30,null,null,null,null,null,"X",null,null,0.76296297491039422]
[1,165,2021,"FDLCH-CPS-164-2021","https://community.secop.gov.co/Public/Tendering/OpportunityDetail/Index?noticeUID=CO1.NTC.2227397&isFromPublicArea=True&isModal=true&asPopupView=true","Contratos de prestación de servicios profesionales y de apoyo a la gestión","Contratación directa","Prestación de servicios profesionales y de apoyo a la gestión, o para la ejecución de trabajos artísticos que sólo puedan encomendarse a determinadas personas naturales;","Prestar los servicios profesionales de apoyo jurídico en la ejecución de las acciones requeridas para el trámite e impulso procesal de las actuaciones, contravenciones y/o querellas que cursen en las inspecciones de policia de la localidad.","Inversión","Un Nuevo Contrato Social y Ambiental para la Bogotá del Siglo XXI",57,{"$f":"IF(ISERROR(VLOOKUP(L178,Proposito_programa!$C$2:$E$59,2,FALSE)),\" \",VLOOKUP(L178,Proposito_programa!$C$2:$E$59,2,FALSE))","v":"Gestión pública local"},{"$f":"IF(ISERROR(VLOOKUP(L178,Proposito_programa!$C$2:$E$59,3,FALSE)),\" \",VLOOKUP(L178,Proposito_programa!$C$2:$E$59,3,FALSE))","v":"Propósito 5: Construir Bogotá - Región con gobierno abierto, transparente y ciudadanía consciente"},"133011605570000001841",1,1026275441,"INGRID SORAIDA CLAVIJO CRUZ","Persona Natural",null,null,null,17600000,null,null,null,17600000,14520000,"2021-09-06","2021-09-07","2022-01-06",120,null,0,null,null,null,null,null,null,"X",null,0.82499999999999996]
[1,166,2021,"FDLCH-CPS-165-2021","https://community.secop.gov.co/Public/Tendering/OpportunityDetail/Index?noticeUID=CO1.NTC.2227559&isFromPublicArea=True&isModal=true&asPopupView=true","Contratos de prestación de servicios profesionales y de apoyo a la gestión","Contratación directa","Prestación de servicios profesionales y de apoyo a la gestión, o para la ejecución de trabajos artísticos que sólo puedan encomendarse a determinadas personas naturales;","Prestar servicios profesionales para apoyar técnicamente las actuaciones administrativas, impulso procesal y de inspección, vigilancia y control de competencia de la Alcaldía Local de Cahpienro.","Inversión","Un Nuevo Contrato Social y Ambiental para la Bogotá del Siglo XXI",57,{"$f":"IF(ISERROR(VLOOKUP(L179,Proposito_programa!$C$2:$E$59,2,FALSE)),\" \",VLOOKUP(L179,Proposito_programa!$C$2:$E$59,2,FALSE))","v":"Gestión pública local"},{"$f":"IF(ISERROR(VLOOKUP(L179,Proposito_programa!$C$2:$E$59,3,FALSE)),\" \",VLOOKUP(L179,Proposito_programa!$C$2:$E$59,3,FALSE))","v":"Propósito 5: Construir Bogotá - Región con gobierno abierto, transparente y ciudadanía consciente"},"133011605570000001841",1,1030625256,"ANDRES FELIPE RAMOS ARENAS","Persona Natural",null,null,null,18400000,null,1,1500000,19900000,15026667,"2021-09-06","2021-09-08","2022-01-17",120,1,30,null,null,null,null,null,"X",null,null,0.75510889447236185]
[1,167,2021,"FDLCH-CIA-166-2021","https://www.contratos.gov.co/consultas/detalleProceso.do?numConstancia=21-22-28981&g-recaptcha-response=03AGdBq265snWSvcm5pS6J2lJYYC06R3fcWXmG-tUIQgJxs0SNyt6wShEiRxcQeEUmfbTILFiK6yIcsmj2pb8UtITqEVK0OJDDpMbNecc7tX9EKjR73MB0l6HApuSuzhEcnf3mrYSVFQSpo5cRLQV0Pc3ElsDkxhooEssmhrLlEAHGPjmX3r_tPUW1vDpZD094FHUsRlfVUKnYcYENEv2xZvzrwEcM5jRlpPwwpI_9nyBOAufBTT-xD80J6DKI1LBN-s8p7Ygd7DwKQp1AQaXN8eLhXEeqRRc3-IHr1c-LOt86wGTI1_ceut48l8dml5donugN1pmQF2DznytLBBQqOeo04Ie6Mt83KLUsoZSR9XKWMgcDVzVDwSVw0WeoH5blp0NlHrxiH-Q37wknYN9xLt3Ss4p_fSUxlZ-mwCVMJpYzZCSi5WZro0jwmDDNSgEcPwV7Mm_iS2UCX2TnOxVSXXz1TpJU7DIIPA","Contratos interadministrativos","Contratación directa","Contratos interadministrativos","Aunar esfuerzos técnicos, administrativos y financieros entre el IDRD y los Fondos de Desarrollo Local para la ejecución de las líneas de inversión, formación y eventos recreodeportivos.","Inversión","Un Nuevo Contrato Social y Ambiental para la Bogotá del Siglo XXI",20,{"$f":"IF(ISERROR(VLOOKUP(L180,Proposito_programa!$C$2:$E$59,2,FALSE)),\" \",VLOOKUP(L180,Proposito_programa!$C$2:$E$59,2,FALSE))","v":"Bogotá, referente en cultura, deporte, recreación y actividad física, con parques para el desarrollo y la salud"},{"$f":"IF(ISERROR(VLOOKUP(L180,Proposito_programa!$C$2:$E$59,3,FALSE)),\" \",VLOOKUP(L180,Proposito_programa!$C$2:$E$59,3,FALSE))","v":"Propósito 1: Hacer un nuevo contrato social para incrementar la inclusión social, productiva y política"},"133011601200000001845",1,860061099,"INSTITUTO DISTRITAL PARA LA RECREACION Y EL DEPORTE-IDRD","Persona Jurídica",null,null,null,212315400,null,null,null,212315400,169852320,"2021-08-31","2021-09-21","2022-08-22",180,1,30,null,null,null,null,null,"X",null,null,0.8]
[1,168,2021,"FDLCH-CPS-167-2021","https://community.secop.gov.co/Public/Tendering/OpportunityDetail/Index?noticeUID=CO1.NTC.2223718&isFromPublicArea=True&isModal=true&asPopupView=true","Contratos de prestación de servicios profesionales y de apoyo a la gestión","Contratación directa","Prestación de servicios profesionales y de apoyo a la gestión, o para la ejecución de trabajos artísticos que sólo puedan encomendarse a determinadas personas naturales;","Prestar servicios profesionales para apoyar al área de gestión del desarrollo local de la alcaldía local de chapinero, en la gestión, formulación, desarrollo, seguimiento y evaluación del proyecto de inversión “chapinero es primera infancia” del programa educación inicial: bases sólidas para la vida","Inversión","Un Nuevo Contrato Social y Ambiental para la Bogotá del Siglo XXI",12,{"$f":"IF(ISERROR(VLOOKUP(L181,Proposito_programa!$C$2:$E$59,2,FALSE)),\" \",VLOOKUP(L181,Proposito_programa!$C$2:$E$59,2,FALSE))","v":"Educación inicial: Bases sólidas para la vida."},{"$f":"IF(ISERROR(VLOOKUP(L181,Proposito_programa!$C$2:$E$59,3,FALSE)),\" \",VLOOKUP(L181,Proposito_programa!$C$2:$E$59,3,FALSE))","v":"Propósito 1: Hacer un nuevo contrato social para incrementar la inclusión social, productiva y política"},"133011601120000001830",1,52312234,"CLAUDIA MARCELA LOPEZ SERRATO","Persona Natural",null,null,null,22000000,null,null,null,22000000,18333333,"2021-09-03","2021-09-06","2022-01-05",120,null,0,null,null,null,null,null,null,"X",null,0.83333331818181822]
[1,169,2021,"FDLCH-CPS-168-2021","https://community.secop.gov.co/Public/Tendering/OpportunityDetail/Index?noticeUID=CO1.NTC.2167917&isFromPublicArea=True&isModal=true&asPopupView=true","Contratos de prestación de servicios","Selección abreviada","Selección abreviada por menor cuantía ","Contratar la prestación de servicios para desarrollar estrategias de sensibilización y formación para el fortalecimiento de prácticas de crianza asertivas en primera infancia y cuidado calificado” dirigido a padres de familia y/o cuidadores de las niñas y niños de educación inicial (Jardín y Transición) de las Instituciones Educativas Distritales de la localidad de Chapinero”, en el marco del proyecto 1830, “Chapinero es Primera Infancia","Inversión","Un Nuevo Contrato Social y Ambiental para la Bogotá del Siglo XXI",12,{"$f":"IF(ISERROR(VLOOKUP(L182,Proposito_programa!$C$2:$E$59,2,FALSE)),\" \",VLOOKUP(L182,Proposito_programa!$C$2:$E$59,2,FALSE))","v":"Educación inicial: Bases sólidas para la vida."},{"$f":"IF(ISERROR(VLOOKUP(L182,Proposito_programa!$C$2:$E$59,3,FALSE)),\" \",VLOOKUP(L182,Proposito_programa!$C$2:$E$59,3,FALSE))","v":"Propósito 1: Hacer un nuevo contrato social para incrementar la inclusión social, productiva y política"},"133011601120000001830",4,900094963,"FUNDACION PARA EL DESARROLLO INFANTIL SOCIAL Y CULTURAL IWOKE","Persona Jurídica",null,null,null,191115830,null,null,null,191115830,172004247,"2021-09-06","2021-09-08","2022-01-07",120,null,0,null,null,null,null,null,"X",null,null,0.9]
[1,170,2021,"FDLCH-CPS-169-2021","https://community.secop.gov.co/Public/Tendering/OpportunityDetail/Index?noticeUID=CO1.NTC.2221121&isFromPublicArea=True&isModal=true&asPopupView=true","Contratos de prestación de servicios profesionales y de apoyo a la gestión","Contratación directa","Prestación de servicios profesionales y de apoyo a la gestión, o para la ejecución de trabajos artísticos que sólo puedan encomendarse a determinadas personas naturales;","Prestar los servicios profesionales para coordinar la articulación, asistencia y acompañamiento de los procesos de planeación local, para la promoción de la participación de las mujeres y de la equida","Inversión","Un Nuevo Contrato Social y Ambiental para la Bogotá del Siglo XXI",40,{"$f":"IF(ISERROR(VLOOKUP(L183,Proposito_programa!$C$2:$E$59,2,FALSE)),\" \",VLOOKUP(L183,Proposito_programa!$C$2:$E$59,2,FALSE))","v":"Más mujeres viven una vida libre de violencias, se sienten seguras y acceden con confianza al sistema de justicia"},{"$f":"IF(ISERROR(VLOOKUP(L183,Proposito_programa!$C$2:$E$59,3,FALSE)),\" \",VLOOKUP(L183,Proposito_programa!$C$2:$E$59,3,FALSE))","v":"Propósito 3: Inspirar confianza y legitimidad para vivir sin miedo y ser epicentro de cultura ciudadana, paz y reconciliación"},"133011603400000002035",1,1110174525,"VIVIANA LOZANO DUCUARA","Persona Natural",null,null,null,24400000,null,1,3456661,27856661,20943333,"2021-09-03","2021-09-03","2022-01-19",120,1,30,null,null,null,null,null,"X",null,null,0.75182495849017938]
[1,171,2021,"FDLCH-CPS-170-2021","https://community.secop.gov.co/Public/Tendering/OpportunityDetail/Index?noticeUID=CO1.NTC.2223345&isFromPublicArea=True&isModal=true&asPopupView=true","Contratos de prestación de servicios profesionales y de apoyo a la gestión","Contratación directa","Prestación de servicios profesionales y de apoyo a la gestión, o para la ejecución de trabajos artísticos que sólo puedan encomendarse a determinadas personas naturales;","Prestar los servicios profesionales para apoyar el área de Gestión del Desarrollo local de la Alcaldía Local de Chapinero, en la formulación, gestión, ejecución y apoyo a la supervisión de los proyectos relacionados con los temas de salud, en cumplimiento de las metas y objetivos del Plan de Desarrollo Local","Inversión","Un Nuevo Contrato Social y Ambiental para la Bogotá del Siglo XXI",6,{"$f":"IF(ISERROR(VLOOKUP(L184,Proposito_programa!$C$2:$E$59,2,FALSE)),\" \",VLOOKUP(L184,Proposito_programa!$C$2:$E$59,2,FALSE))","v":"Sistema Distrital de Cuidado"},{"$f":"IF(ISERROR(VLOOKUP(L184,Proposito_programa!$C$2:$E$59,3,FALSE)),\" \",VLOOKUP(L184,Proposito_programa!$C$2:$E$59,3,FALSE))","v":"Propósito 1: Hacer un nuevo contrato social para incrementar la inclusión social, productiva y política"},"133011601060000002024",1,53037864,"DIANA CAROLINA MORENO RINCON","Persona Natural",null,null,null,20000000,null,1,2333333,22333333,17166667,"2021-09-03","2021-09-03","2022-01-02",120,null,0,null,null,null,null,null,null,"X",null,0.76865674281577223]
[1,172,2021,"FDLCH-CPS-171-2021","https://community.secop.gov.co/Public/Tendering/OpportunityDetail/Index?noticeUID=CO1.NTC.2227226&isFromPublicArea=True&isModal=true&asPopupView=true","Contratos de prestación de servicios profesionales y de apoyo a la gestión","Contratación directa","Prestación de servicios profesionales y de apoyo a la gestión, o para la ejecución de trabajos artísticos que sólo puedan encomendarse a determinadas personas naturales;","Prestación de servicios de apoyo necesarios para apoyar la gestión y ejecución de actividades administrativas, operativas y logísticas que se adelantan en el área de gestión del desarrollo local de la Alcaldía Local de Chapinero","Inversión","Un Nuevo Contrato Social y Ambiental para la Bogotá del Siglo XXI",57,{"$f":"IF(ISERROR(VLOOKUP(L185,Proposito_programa!$C$2:$E$59,2,FALSE)),\" \",VLOOKUP(L185,Proposito_programa!$C$2:$E$59,2,FALSE))","v":"Gestión pública local"},{"$f":"IF(ISERROR(VLOOKUP(L185,Proposito_programa!$C$2:$E$59,3,FALSE)),\" \",VLOOKUP(L185,Proposito_programa!$C$2:$E$59,3,FALSE))","v":"Propósito 5: Construir Bogotá - Región con gobierno abierto, transparente y ciudadanía consciente"},"133011605570000001741",1,2996195,"MEYER JAIRO GACHARNA VILLALBA","Persona Natural",null,null,null,8800000,null,null,null,8800000,7260000,"2021-09-06","2021-09-07","2022-01-06",120,null,0,null,null,null,null,null,null,"X",null,0.82499999999999996]
[1,173,2021,"FDLCH-CPS-172-2021","https://community.secop.gov.co/Public/Tendering/OpportunityDetail/Index?noticeUID=CO1.NTC.2227297&isFromPublicArea=True&isModal=true&asPopupView=true","Contratos de prestación de servicios profesionales y de apoyo a la gestión","Contratación directa","Prestación de servicios profesionales y de apoyo a la gestión, o para la ejecución de trabajos artísticos que sólo puedan encomendarse a determinadas personas naturales;","Prestar servicios profesionales para apoyar técnicamente las actuaciones administrativas, impulso procesal y de inspección, vigilancia y control de competencia de la alcaldía local de chapinero","Inversión","Un Nuevo Contrato Social y Ambiental para la Bogotá del Siglo XXI",57,{"$f":"IF(ISERROR(VLOOKUP(L186,Proposito_programa!$C$2:$E$59,2,FALSE)),\" \",VLOOKUP(L186,Proposito_programa!$C$2:$E$59,2,FALSE))","v":"Gestión pública local"},{"$f":"IF(ISERROR(VLOOKUP(L186,Proposito_programa!$C$2:$E$59,3,FALSE)),\" \",VLOOKUP(L186,Proposito_programa!$C$2:$E$59,3,FALSE))","v":"Propósito 5: Construir Bogotá - Región con gobierno abierto, transparente y ciudadanía consciente"},"133011605570000001841",1,52533394,"MARICELA PALACIO RODRIGUEZ","Persona Natural",null,null,null,18400000,null,1,1500000,19900000,15026667,"2021-09-06","2021-09-08","2022-01-17",120,1,30,null,null,null,null,null,"X",null,null,0.75510889447236185]
[1,174,2021,"FDLCH-CPS-173-2021","https://community.secop.gov.co/Public/Tendering/OpportunityDetail/Index?noticeUID=CO1.NTC.2226896&isFromPublicArea=True&isModal=true&asPopupView=true","Contratos de prestación de servicios profesionales y de apoyo a la gestión","Contratación directa","Prestación de servicios profesionales y de apoyo a la gestión, o para la ejecución de trabajos artísticos que sólo puedan encomendarse a determinadas personas naturales;","Prestar servicios profesionales para apoyar técnicamente las actuaciones administrativas, impulso procesal y de inspección, vigilancia y control de competencia de la alcaldía local de chapinero","Inversión","Un Nuevo Contrato Social y Ambiental para la Bogotá del Siglo XXI",57,{"$f":"IF(ISERROR(VLOOKUP(L187,Proposito_programa!$C$2:$E$59,2,FALSE)),\" \",VLOOKUP(L187,Proposito_programa!$C$2:$E$59,2,FALSE))","v":"Gestión pública local"},{"$f":"IF(ISERROR(VLOOKUP(L187,Proposito_programa!$C$2:$E$59,3,FALSE)),\" \",VLOOKUP(L187,Proposito_programa!$C$2:$E$59,3,FALSE))","v":"Propósito 5: Construir Bogotá - Región con gobierno abierto, transparente y ciudadanía consciente"},"133011605570000001841",1,80799927,"SALOMON RODRIGUEZ LAGUNA","Persona Natural",null,null,null,18400000,null,null,null,18400000,15026667,"2021-09-06","2021-09-08","2022-01-07",120,null,0,null,null,null,null,null,"X",null,null,0.81666668478260873]
[1,175,2021,"FDLCH-CCV-174-2021","https://community.secop.gov.co/Public/Tendering/OpportunityDetail/Index?noticeUID=CO1.NTC.2164669&isFromPublicArea=True&isModal=true&asPopupView=true","Contratos de prestación de servicios","Selección abreviada","Subasta inversa ","Realizar la compraventa de los bienes destinados para la dotación de la Casa de la Juventud y las Organizaciones Comunales en el marco de los proyectos Jóvenes Comprometidos por Chapinero y Chapinero Liderado por la Ciudadanía.","Inversión","Un Nuevo Contrato Social y Ambiental para la Bogotá del Siglo XXI",17,{"$f":"IF(ISERROR(VLOOKUP(L188,Proposito_programa!$C$2:$E$59,2,FALSE)),\" \",VLOOKUP(L188,Proposito_programa!$C$2:$E$59,2,FALSE))","v":"Jóvenes con capacidades: Proyecto de vida para la ciudadanía, la innovación y el trabajo del siglo XXI"},{"$f":"IF(ISERROR(VLOOKUP(L188,Proposito_programa!$C$2:$E$59,3,FALSE)),\" \",VLOOKUP(L188,Proposito_programa!$C$2:$E$59,3,FALSE))","v":"Propósito 1: Hacer un nuevo contrato social para incrementar la inclusión social, productiva y política"},"133011601170000001695",1,79949302,"ANDRES OCHOA OJEDA","Persona Natural",null,null,null,3190165,null,null,null,3190165,3190165,"2021-09-10","2021-09-17","2021-11-16",30,1,30,null,null,null,null,null,null,"X",null,1]
[1,176,2021,"FDLCH-CPS-175-2021","https://community.secop.gov.co/Public/Tendering/OpportunityDetail/Index?noticeUID=CO1.NTC.2232666&isFromPublicArea=True&isModal=true&asPopupView=true","Contratos de prestación de servicios profesionales y de apoyo a la gestión","Contratación directa","Prestación de servicios profesionales y de apoyo a la gestión, o para la ejecución de trabajos artísticos que sólo puedan encomendarse a determinadas personas naturales;","Prestar servicios profesionales para apoyar técnicamente las actuaciones administrativas, impulso procesar y de inspección, vigilancia y control de competencia de la Alcaldía Lcoal de Chapinero.","Inversión","Un Nuevo Contrato Social y Ambiental para la Bogotá del Siglo XXI",57,{"$f":"IF(ISERROR(VLOOKUP(L189,Proposito_programa!$C$2:$E$59,2,FALSE)),\" \",VLOOKUP(L189,Proposito_programa!$C$2:$E$59,2,FALSE))","v":"Gestión pública local"},{"$f":"IF(ISERROR(VLOOKUP(L189,Proposito_programa!$C$2:$E$59,3,FALSE)),\" \",VLOOKUP(L189,Proposito_programa!$C$2:$E$59,3,FALSE))","v":"Propósito 5: Construir Bogotá - Región con gobierno abierto, transparente y ciudadanía consciente"},"133011605570000001841",1,80825882,"CARLOS ANDRES GIL RUEDA","Persona Natural",null,null,null,18400000,null,null,null,18400000,14873333,"2021-09-08","2021-09-09","2022-01-08",120,null,0,null,null,null,null,null,"X",null,null,0.80833331521739127]
[1,177,2021,"FDLCH-CCV-176-2021","https://community.secop.gov.co/Public/Tendering/OpportunityDetail/Index?noticeUID=CO1.NTC.2164669&isFromPublicArea=True&isModal=true&asPopupView=true","Contratos de prestación de servicios","Selección abreviada","Subasta inversa ","Realizar la compraventa de los bienes destinados para la dotación de la Casa de la Juventud y las Organizaciones Comunales en el marco de los proyectos Jóvenes Comprometidos por Chapinero y Chapinero Liderado por la Ciudadanía.","Inversión","Un Nuevo Contrato Social y Ambiental para la Bogotá del Siglo XXI",17,{"$f":"IF(ISERROR(VLOOKUP(L190,Proposito_programa!$C$2:$E$59,2,FALSE)),\" \",VLOOKUP(L190,Proposito_programa!$C$2:$E$59,2,FALSE))","v":"Jóvenes con capacidades: Proyecto de vida para la ciudadanía, la innovación y el trabajo del siglo XXI"},{"$f":"IF(ISERROR(VLOOKUP(L190,Proposito_programa!$C$2:$E$59,3,FALSE)),\" \",VLOOKUP(L190,Proposito_programa!$C$2:$E$59,3,FALSE))","v":"Propósito 1: Hacer un nuevo contrato social para incrementar la inclusión social, productiva y política"},"133011601170000001695",5,900171311,"TECNOLOGY WORLD GROUP SAS","Persona Jurídica",null,null,null,117277953,null,null,null,117277953,117277953,"2021-09-09","2021-09-13","2021-11-12",30,1,30,null,null,null,null,null,null,"X",null,1]
[1,178,2021,"FDLCH-CCV-176-2021","https://community.secop.gov.co/Public/Tendering/OpportunityDetail/Index?noticeUID=CO1.NTC.2164669&isFromPublicArea=True&isModal=true&asPopupView=true","Contratos de prestación de servicios","Selección abreviada","Subasta inversa ","Realizar la compraventa de los bienes destinados para la dotación de la Casa de la Juventud y las Organizaciones Comunales en el marco de los proyectos Jóvenes Comprometidos por Chapinero y Chapinero Liderado por la Ciudadanía.","Inversión","Un Nuevo Contrato Social y Ambiental para la Bogotá del Siglo XXI",17,{"$f":"IF(ISERROR(VLOOKUP(L191,Proposito_programa!$C$2:$E$59,2,FALSE)),\" \",VLOOKUP(L191,Proposito_programa!$C$2:$E$59,2,FALSE))","v":"Jóvenes con capacidades: Proyecto de vida para la ciudadanía, la innovación y el trabajo del siglo XXI"},{"$f":"IF(ISERROR(VLOOKUP(L191,Proposito_programa!$C$2:$E$59,3,FALSE)),\" \",VLOOKUP(L191,Proposito_programa!$C$2:$E$59,3,FALSE))","v":"Propósito 1: Hacer un nuevo contrato social para incrementar la inclusión social, productiva y política"},"133011605550000001739",5,900171311,"TECNOLOGY WORLD GROUP SAS","Persona Jurídica",null,null,null,193122047,null,null,null,193122047,193122047,"2021-09-09","2021-09-13","2021-11-12",30,1,{"$f":"+AG191*30","v":30},null,null,null,null,null,null,"X",null,1]
[1,179,2021,"FDLCH-CCV-177-2021","https://community.secop.gov.co/Public/Tendering/OpportunityDetail/Index?noticeUID=CO1.NTC.2164669&isFromPublicArea=True&isModal=true&asPopupView=true","Contratos de prestación de servicios","Selección abreviada","Subasta inversa ","Realizar la compraventa de los bienes destinados para la dotación de la Casa de la Juventud y las Organizaciones Comunales en el marco de los proyectos Jóvenes Comprometidos por Chapinero y Chapinero Liderado por la Ciudadanía.","Inversión","Un Nuevo Contrato Social y Ambiental para la Bogotá del Siglo XXI",17,{"$f":"IF(ISERROR(VLOOKUP(L192,Proposito_programa!$C$2:$E$59,2,FALSE)),\" \",VLOOKUP(L192,Proposito_programa!$C$2:$E$59,2,FALSE))","v":"Jóvenes con capacidades: Proyecto de vida para la ciudadanía, la innovación y el trabajo del siglo XXI"},{"$f":"IF(ISERROR(VLOOKUP(L192,Proposito_programa!$C$2:$E$59,3,FALSE)),\" \",VLOOKUP(L192,Proposito_programa!$C$2:$E$59,3,FALSE))","v":"Propósito 1: Hacer un nuevo contrato social para incrementar la inclusión social, productiva y política"},"133011601170000001695",5,800089897,"COMERCIALIZADORA SERLE COM","Persona Jurídica",null,null,null,38430515,null,null,null,38430515,38430515,"2021-09-09","2021-09-13","2021-11-12",30,1,30,null,null,null,null,null,null,"X",null,1]
[1,180,2021,"FDLCH-CCV-177-2021","https://community.secop.gov.co/Public/Tendering/OpportunityDetail/Index?noticeUID=CO1.NTC.2164669&isFromPublicArea=True&isModal=true&asPopupView=true","Contratos de prestación de servicios","Selección abreviada","Subasta inversa ","Realizar la compraventa de los bienes destinados para la dotación de la Casa de la Juventud y las Organizaciones Comunales en el marco de los proyectos Jóvenes Comprometidos por Chapinero y Chapinero Liderado por la Ciudadanía.","Inversión","Un Nuevo Contrato Social y Ambiental para la Bogotá del Siglo XXI",17,{"$f":"IF(ISERROR(VLOOKUP(L193,Proposito_programa!$C$2:$E$59,2,FALSE)),\" \",VLOOKUP(L193,Proposito_programa!$C$2:$E$59,2,FALSE))","v":"Jóvenes con capacidades: Proyecto de vida para la ciudadanía, la innovación y el trabajo del siglo XXI"},{"$f":"IF(ISERROR(VLOOKUP(L193,Proposito_programa!$C$2:$E$59,3,FALSE)),\" \",VLOOKUP(L193,Proposito_programa!$C$2:$E$59,3,FALSE))","v":"Propósito 1: Hacer un nuevo contrato social para incrementar la inclusión social, productiva y política"},"133011605550000001739",5,800089897,"COMERCIALIZADORA SERLE COM","Persona Jurídica",null,null,null,7569485,null,null,null,7569485,7569485,"2021-09-09","2021-09-13","2021-11-12",30,1,{"$f":"+AG193*30","v":30},null,null,null,null,null,null,"X",null,1]
[1,181,2021,"FDLCH-CCV-178-2021","https://community.secop.gov.co/Public/Tendering/OpportunityDetail/Index?noticeUID=CO1.NTC.2164669&isFromPublicArea=True&isModal=true&asPopupView=true","Contratos de prestación de servicios","Selección abreviada","Subasta inversa ","Realizar la compraventa de los bienes destinados para la dotación de la Casa de la Juventud y las Organizaciones Comunales en el marco de los proyectos Jóvenes Comprometidos por Chapinero y Chapinero Liderado por la Ciudadanía.","Inversión","Un Nuevo Contrato Social y Ambiental para la Bogotá del Siglo XXI",17,{"$f":"IF(ISERROR(VLOOKUP(L194,Proposito_programa!$C$2:$E$59,2,FALSE)),\" \",VLOOKUP(L194,Proposito_programa!$C$2:$E$59,2,FALSE))","v":"Jóvenes con capacidades: Proyecto de vida para la ciudadanía, la innovación y el trabajo del siglo XXI"},{"$f":"IF(ISERROR(VLOOKUP(L194,Proposito_programa!$C$2:$E$59,3,FALSE)),\" \",VLOOKUP(L194,Proposito_programa!$C$2:$E$59,3,FALSE))","v":"Propósito 1: Hacer un nuevo contrato social para incrementar la inclusión social, productiva y política"},"133011601170000001695",4,901058050,"LICITACIONES Y ASESORIAS LICCONT S.A.S.","Persona Jurídica",null,null,null,20990000,null,null,null,20990000,20990000,"2021-09-09","2021-09-15","2021-11-14",30,1,30,null,null,null,null,null,null,"X",null,1]
[1,182,2021,"FDLCH-CCV-179-2021","https://community.secop.gov.co/Public/Tendering/OpportunityDetail/Index?noticeUID=CO1.NTC.2164669&isFromPublicArea=True&isModal=true&asPopupView=true","Contratos de prestación de servicios","Selección abreviada","Subasta inversa ","Realizar la compraventa de los bienes destinados para la dotación de la casa de la juventud y las organizaciones comunales en el marco de los proyectos  “JÓVENES COMPROMETIDOS POR CHAPINERO” Y “CHAPINERO LIDERADO POR LA CIUDADANÍA” ","Inversión","Un Nuevo Contrato Social y Ambiental para la Bogotá del Siglo XXI",17,{"$f":"IF(ISERROR(VLOOKUP(L195,Proposito_programa!$C$2:$E$59,2,FALSE)),\" \",VLOOKUP(L195,Proposito_programa!$C$2:$E$59,2,FALSE))","v":"Jóvenes con capacidades: Proyecto de vida para la ciudadanía, la innovación y el trabajo del siglo XXI"},{"$f":"IF(ISERROR(VLOOKUP(L195,Proposito_programa!$C$2:$E$59,3,FALSE)),\" \",VLOOKUP(L195,Proposito_programa!$C$2:$E$59,3,FALSE))","v":"Propósito 1: Hacer un nuevo contrato social para incrementar la inclusión social, productiva y política"},"133011601170000001695",4,901058050,"LICITACIONES Y ASESORIAS LICCONT S.A.S.","Persona Jurídica",null,null,null,10153528,null,null,null,10153528,10153528,"2021-09-09","2021-09-15","2021-11-14",30,1,30,null,null,null,null,null,null,"X",null,1]
[1,183,2021,"FDLCH-CCV-179-2021","https://community.secop.gov.co/Public/Tendering/OpportunityDetail/Index?noticeUID=CO1.NTC.2164669&isFromPublicArea=True&isModal=true&asPopupView=true","Contratos de prestación de servicios","Selección abreviada","Subasta inversa ","Realizar la compraventa de los bienes destinados para la dotación de la casa de la juventud y las organizaciones comunales en el marco de los proyectos  “JÓVENES COMPROMETIDOS POR CHAPINERO” Y “CHAPINERO LIDERADO POR LA CIUDADANÍA” ","Inversión","Un Nuevo Contrato Social y Ambiental para la Bogotá del Siglo XXI",17,{"$f":"IF(ISERROR(VLOOKUP(L196,Proposito_programa!$C$2:$E$59,2,FALSE)),\" \",VLOOKUP(L196,Proposito_programa!$C$2:$E$59,2,FALSE))","v":"Jóvenes con capacidades: Proyecto de vida para la ciudadanía, la innovación y el trabajo del siglo XXI"},{"$f":"IF(ISERROR(VLOOKUP(L196,Proposito_programa!$C$2:$E$59,3,FALSE)),\" \",VLOOKUP(L196,Proposito_programa!$C$2:$E$59,3,FALSE))","v":"Propósito 1: Hacer un nuevo contrato social para incrementar la inclusión social, productiva y política"},"133011605550000001739",4,901058050,"LICITACIONES Y ASESORIAS LICCONT S.A.S.","Persona Jurídica",null,null,null,2844472,null,null,null,2844472,2844472,"2021-09-09","2021-09-15","2021-11-14",30,1,{"$f":"+AG196*30","v":30},null,null,null,null,null,null,"X",null,1]
[1,184,2021,"FDLCH-CPS-180-2021","https://community.secop.gov.co/Public/Tendering/OpportunityDetail/Index?noticeUID=CO1.NTC.2235971&isFromPublicArea=True&isModal=true&asPopupView=true","Contratos de prestación de servicios profesionales y de apoyo a la gestión","Contratación directa","Prestación de servicios profesionales y de apoyo a la gestión, o para la ejecución de trabajos artísticos que sólo puedan encomendarse a determinadas personas naturales;","Prestr los servicios profesionales para apoyar el área de gestión del desarrollo local de la Alcaldía Local de Chapinero, en la formulación, gestión, ejecución y apoyo a la supervisión de los proyectos relaiconados con las prevención, atención de la violencia intrafamiliar y sexua y la eliminación de las violencias basadas en género en el marco del programa sistema distrital del cuidado.","Inversión","Un Nuevo Contrato Social y Ambiental para la Bogotá del Siglo XXI",6,{"$f":"IF(ISERROR(VLOOKUP(L197,Proposito_programa!$C$2:$E$59,2,FALSE)),\" \",VLOOKUP(L197,Proposito_programa!$C$2:$E$59,2,FALSE))","v":"Sistema Distrital de Cuidado"},{"$f":"IF(ISERROR(VLOOKUP(L197,Proposito_programa!$C$2:$E$59,3,FALSE)),\" \",VLOOKUP(L197,Proposito_programa!$C$2:$E$59,3,FALSE))","v":"Propósito 1: Hacer un nuevo contrato social para incrementar la inclusión social, productiva y política"},"133011601060000001710",1,52559313,"ALICIA CUJABAN ZAZA","Persona Natural",null,null,null,20000000,null,null,null,20000000,16166667,"2021-09-09","2021-09-09","2022-01-08",120,null,0,null,null,null,null,null,"X",null,null,0.80833334999999995]
[1,185,2021,"FDLCH-CPS-181-2021","https://community.secop.gov.co/Public/Tendering/OpportunityDetail/Index?noticeUID=CO1.NTC.2239374&isFromPublicArea=True&isModal=true&asPopupView=true","Contratos de prestación de servicios profesionales y de apoyo a la gestión","Contratación directa","Prestación de servicios profesionales y de apoyo a la gestión, o para la ejecución de trabajos artísticos que sólo puedan encomendarse a determinadas personas naturales;","Prestar los servicios técnico de apoyo para la operación, seguimiento y cumplimiento de los procesos y procedimientos del servicio apoyos económicos tipo c, requeridos para el oportuno y adecuado registro, cruce y reporte de los datos en el sistema misional–sirbe, que contribuyan a la garantía de los derechos de la población mayor en el marco de la política pública social para el envejecimiento y la vejez en el distrito capital a cargo de la alcaldía local","Inversión","Un Nuevo Contrato Social y Ambiental para la Bogotá del Siglo XXI",1,{"$f":"IF(ISERROR(VLOOKUP(L198,Proposito_programa!$C$2:$E$59,2,FALSE)),\" \",VLOOKUP(L198,Proposito_programa!$C$2:$E$59,2,FALSE))","v":"Subsidios y transferencias para la equidad"},{"$f":"IF(ISERROR(VLOOKUP(L198,Proposito_programa!$C$2:$E$59,3,FALSE)),\" \",VLOOKUP(L198,Proposito_programa!$C$2:$E$59,3,FALSE))","v":"Propósito 1: Hacer un nuevo contrato social para incrementar la inclusión social, productiva y política"},"133011601010000001815",1,80449648,"JUAN CARLOS AREVALO","Persona Natural",null,null,null,12000000,null,1,900000,12900000,9300000,"2021-09-10","2021-09-13","2022-01-21",120,null,0,null,null,null,null,null,"X",null,null,0.72093023255813948]
[1,186,2021,"FDLCH-CPS-182-2021","https://community.secop.gov.co/Public/Tendering/OpportunityDetail/Index?noticeUID=CO1.NTC.2237001&isFromPublicArea=True&isModal=true&asPopupView=true","Contratos de prestación de servicios profesionales y de apoyo a la gestión","Contratación directa","Prestación de servicios profesionales y de apoyo a la gestión, o para la ejecución de trabajos artísticos que sólo puedan encomendarse a determinadas personas naturales;","Prestar servicios profesionales de apoyo para la gestión y formulación desarrollo y seguimiento del proyecto de inversión No. 1715 Chapinero restaurador y cuidador del territorio.","Inversión","Un Nuevo Contrato Social y Ambiental para la Bogotá del Siglo XXI",28,{"$f":"IF(ISERROR(VLOOKUP(L199,Proposito_programa!$C$2:$E$59,2,FALSE)),\" \",VLOOKUP(L199,Proposito_programa!$C$2:$E$59,2,FALSE))","v":"Bogotá protectora de sus recursos naturales"},{"$f":"IF(ISERROR(VLOOKUP(L199,Proposito_programa!$C$2:$E$59,3,FALSE)),\" \",VLOOKUP(L199,Proposito_programa!$C$2:$E$59,3,FALSE))","v":"Propósito 2 : Cambiar Nuestros Hábitos de Vida para Reverdecer a Bogotá y Adaptarnos y Mitigar la Crisis Climática"},"133011602280000001715",1,11442710,"TITO FABIAN RUIZ BARAJAS","Persona Natural",null,null,null,19200000,null,null,null,19200000,12960000,"2021-09-09","2021-09-10","2022-01-09",120,null,0,null,null,null,null,null,"X",null,null,0.67500000000000004]
[1,187,2021,"FDLCH-CPS-183-2021","https://community.secop.gov.co/Public/Tendering/OpportunityDetail/Index?noticeUID=CO1.NTC.2241006&isFromPublicArea=True&isModal=true&asPopupView=true","Contratos de prestación de servicios profesionales y de apoyo a la gestión","Contratación directa","Prestación de servicios profesionales y de apoyo a la gestión, o para la ejecución de trabajos artísticos que sólo puedan encomendarse a determinadas personas naturales;","Prestar servicios profesionales para apoyar la gestión precontractual, contractual y postcontractual que adelante el Fondo de Desarrollo Local de Chapinero.","Inversión","Un Nuevo Contrato Social y Ambiental para la Bogotá del Siglo XXI",57,{"$f":"IF(ISERROR(VLOOKUP(L200,Proposito_programa!$C$2:$E$59,2,FALSE)),\" \",VLOOKUP(L200,Proposito_programa!$C$2:$E$59,2,FALSE))","v":"Gestión pública local"},{"$f":"IF(ISERROR(VLOOKUP(L200,Proposito_programa!$C$2:$E$59,3,FALSE)),\" \",VLOOKUP(L200,Proposito_programa!$C$2:$E$59,3,FALSE))","v":"Propósito 5: Construir Bogotá - Región con gobierno abierto, transparente y ciudadanía consciente"},"133011605570000001741",1,1078368894,"JENNYFER PAOLA GALVIS TORRES","Persona Natural",null,null,null,19200000,null,null,null,19200000,14880000,"2021-09-13","2021-09-13","2022-01-12",120,null,0,null,null,null,null,null,"X",null,null,0.77500000000000002]
[1,188,2021,"FDLCH-CPS-184-2021","https://community.secop.gov.co/Public/Tendering/OpportunityDetail/Index?noticeUID=CO1.NTC.2243964&isFromPublicArea=True&isModal=true&asPopupView=true","Contratos de prestación de servicios profesionales y de apoyo a la gestión","Contratación directa","Prestación de servicios profesionales y de apoyo a la gestión, o para la ejecución de trabajos artísticos que sólo puedan encomendarse a determinadas personas naturales;","Prestar servicios personales para apoyar actividades operativas y administrativas de la gestión precontractual, contractual y postcontractual que adelante el Fondo de Desarrollo Local de Chapinero “","Inversión","Un Nuevo Contrato Social y Ambiental para la Bogotá del Siglo XXI",57,{"$f":"IF(ISERROR(VLOOKUP(L201,Proposito_programa!$C$2:$E$59,2,FALSE)),\" \",VLOOKUP(L201,Proposito_programa!$C$2:$E$59,2,FALSE))","v":"Gestión pública local"},{"$f":"IF(ISERROR(VLOOKUP(L201,Proposito_programa!$C$2:$E$59,3,FALSE)),\" \",VLOOKUP(L201,Proposito_programa!$C$2:$E$59,3,FALSE))","v":"Propósito 5: Construir Bogotá - Región con gobierno abierto, transparente y ciudadanía consciente"},"133011605570000001741",1,52119337,"MARTHA YANETH VASQUEZ FIGUEROA","Persona Natural",null,null,null,10000000,null,null,null,10000000,7666667,"2021-09-14","2021-09-14","2022-01-13",120,null,0,null,null,null,null,null,"X",null,null,0.76666670000000003]
[1,189,2021,"FDLCH-CPS-185-2021","https://community.secop.gov.co/Public/Tendering/OpportunityDetail/Index?noticeUID=CO1.NTC.2240654&isFromPublicArea=True&isModal=true&asPopupView=true","Contratos de prestación de servicios profesionales y de apoyo a la gestión","Contratación directa","Prestación de servicios profesionales y de apoyo a la gestión, o para la ejecución de trabajos artísticos que sólo puedan encomendarse a determinadas personas naturales;","Prestar servicios profesionales para apoyar al equipo de prensa y comunicaciones de la Alcaldía Local en la realización de productos y piezas digitales, impresas y publicitarias de gran formato y de animación gráfica, así como apoyar la producción y montaje de eventos","Inversión","Un Nuevo Contrato Social y Ambiental para la Bogotá del Siglo XXI",57,{"$f":"IF(ISERROR(VLOOKUP(L202,Proposito_programa!$C$2:$E$59,2,FALSE)),\" \",VLOOKUP(L202,Proposito_programa!$C$2:$E$59,2,FALSE))","v":"Gestión pública local"},{"$f":"IF(ISERROR(VLOOKUP(L202,Proposito_programa!$C$2:$E$59,3,FALSE)),\" \",VLOOKUP(L202,Proposito_programa!$C$2:$E$59,3,FALSE))","v":"Propósito 5: Construir Bogotá - Región con gobierno abierto, transparente y ciudadanía consciente"},"133011605570000001741",1,1026269094,"EIDER EMIR HERNÁNDEZ POLANCO","Persona Natural",null,null,null,17444000,null,null,null,17444000,13519100,"2021-09-13","2021-09-13","2022-01-12",120,null,0,null,null,null,null,null,"X",null,null,0.77500000000000002]
[1,190,2021,"FDLCH-CPS-186-2021","https://community.secop.gov.co/Public/Tendering/OpportunityDetail/Index?noticeUID=CO1.NTC.2254963&isFromPublicArea=True&isModal=true&asPopupView=true","Contratos de prestación de servicios profesionales y de apoyo a la gestión","Contratación directa","Prestación de servicios profesionales y de apoyo a la gestión, o para la ejecución de trabajos artísticos que sólo puedan encomendarse a determinadas personas naturales;","Prestar servicios profesionales de apoyo al área de Gestión del Desarrollo Local de la Alcaldía Local de Chapinero para la formulación, gestión, ejecución y seguimiento técnico, administrativo, financiero y presupuestal de la iniciativa ganadora de la fase II de Presupuestos Participativos denominada “Distrito CH a Cielo Abierto” derivada del proyecto 1671 “Chapinero Productivo y emprendedor","Inversión","Un Nuevo Contrato Social y Ambiental para la Bogotá del Siglo XXI",6,{"$f":"IF(ISERROR(VLOOKUP(L203,Proposito_programa!$C$2:$E$59,2,FALSE)),\" \",VLOOKUP(L203,Proposito_programa!$C$2:$E$59,2,FALSE))","v":"Sistema Distrital de Cuidado"},{"$f":"IF(ISERROR(VLOOKUP(L203,Proposito_programa!$C$2:$E$59,3,FALSE)),\" \",VLOOKUP(L203,Proposito_programa!$C$2:$E$59,3,FALSE))","v":"Propósito 1: Hacer un nuevo contrato social para incrementar la inclusión social, productiva y política"},"133011601060000001671",1,1020761116,"JUAN SEBASTIAN BENITEZ BUSTAMANTE","Persona Natural",null,null,null,17444000,null,1,1870199,19314199,10321033,"2021-09-16","2021-09-20","2022-02-21",120,1,30,null,null,null,null,null,"X",null,null,0.53437540951089924]
[1,191,2021,"FDLCH-CPS-187-2021","https://community.secop.gov.co/Public/Tendering/OpportunityDetail/Index?noticeUID=CO1.NTC.2254975&isFromPublicArea=True&isModal=true&asPopupView=true","Contratos de prestación de servicios profesionales y de apoyo a la gestión","Selección abreviada","Prestación de servicios profesionales y de apoyo a la gestión, o para la ejecución de trabajos artísticos que sólo puedan encomendarse a determinadas personas naturales;","Prestar servicios profesionales de apoyo al área de Gestión del Desarrollo Local de la Alcaldía Local de Chapinero para la formulación, gestión, ejecución y seguimiento técnico, administrativo, financiero y presupuestal de la iniciativa ganadora de la fase II de Presupuestos Participativos denominada “Distrito CH a Cielo Abierto” derivada del proyecto 1671 “Chapinero Productivo y emprendedor","Inversión","Un Nuevo Contrato Social y Ambiental para la Bogotá del Siglo XXI",6,{"$f":"IF(ISERROR(VLOOKUP(L204,Proposito_programa!$C$2:$E$59,2,FALSE)),\" \",VLOOKUP(L204,Proposito_programa!$C$2:$E$59,2,FALSE))","v":"Sistema Distrital de Cuidado"},{"$f":"IF(ISERROR(VLOOKUP(L204,Proposito_programa!$C$2:$E$59,3,FALSE)),\" \",VLOOKUP(L204,Proposito_programa!$C$2:$E$59,3,FALSE))","v":"Propósito 1: Hacer un nuevo contrato social para incrementar la inclusión social, productiva y política"},"133011601060000001671",1,1020745207,"JUAN DAVID NEIRA NIÑO","Persona Natural",null,null,null,17444000,null,null,null,17444000,10321033,"2021-09-16","2021-09-20","2022-02-08",120,null,0,null,null,null,null,null,"X",null,null,0.59166664755789955]
[1,192,2021,"FDLCH-CCV-188-2021","https://www.colombiacompra.gov.co/tienda-virtual-del-estado-colombiano/ordenes-compra/75864","Contratos de prestación de servicios","Selección abreviada","Acuerdo marco de precios ","Adquirir licenciamiento de office para los contratistas de la Alcaldía Local de Chapinero","Funcionamiento","Un Nuevo Contrato Social y Ambiental para la Bogotá del Siglo XXI","No aplica",null,{"$f":"IF(ISERROR(VLOOKUP(L205,Proposito_programa!$C$2:$E$59,3,FALSE)),\" \",VLOOKUP(L205,Proposito_programa!$C$2:$E$59,3,FALSE))","v":" "},"131020202030304",1,901399373,"UNION TEMPORAL DELL EMC","Unión Temporal",80199503,"GERMAN FELIPE NIETO JAIMES",0.5,87945000,null,null,null,87945000,87945000,"2021-09-13","2021-09-16","2021-10-15",30,null,0,null,null,null,null,null,null,"X",null,1]
[1,193,2021,"FDLCH-CPS-189-2021","https://community.secop.gov.co/Public/Tendering/OpportunityDetail/Index?noticeUID=CO1.NTC.2245709&isFromPublicArea=True&isModal=true&asPopupView=true","Contratos de prestación de servicios profesionales y de apoyo a la gestión","Contratación directa","Prestación de servicios profesionales y de apoyo a la gestión, o para la ejecución de trabajos artísticos que sólo puedan encomendarse a determinadas personas naturales;","Prestar servicios profesionales para apoyar la gestión precontractual, contractual y postcontractual que adelante el Fondo de Desarrollo Local de Chapinero “","Inversión","Un Nuevo Contrato Social y Ambiental para la Bogotá del Siglo XXI",57,{"$f":"IF(ISERROR(VLOOKUP(L206,Proposito_programa!$C$2:$E$59,2,FALSE)),\" \",VLOOKUP(L206,Proposito_programa!$C$2:$E$59,2,FALSE))","v":"Gestión pública local"},{"$f":"IF(ISERROR(VLOOKUP(L206,Proposito_programa!$C$2:$E$59,3,FALSE)),\" \",VLOOKUP(L206,Proposito_programa!$C$2:$E$59,3,FALSE))","v":"Propósito 5: Construir Bogotá - Región con gobierno abierto, transparente y ciudadanía consciente"},"133011605570000001741",1,1094248111,"YEINI RAQUEL BLANCO MENDOZA","Persona Natural",null,null,null,19200000,null,null,null,19200000,14560000,"2021-09-14","2021-09-15","2022-01-14",120,null,0,null,null,null,null,null,"X",null,null,0.7583333333333333]
[1,194,2021,"FDLCH-CPS-190-2021","https://community.secop.gov.co/Public/Tendering/OpportunityDetail/Index?noticeUID=CO1.NTC.2251183&isFromPublicArea=True&isModal=true&asPopupView=true","Contratos de prestación de servicios profesionales y de apoyo a la gestión","Contratación directa","Prestación de servicios profesionales y de apoyo a la gestión, o para la ejecución de trabajos artísticos que sólo puedan encomendarse a determinadas personas naturales;","Prestar servicios profesionales para apoyar la formulación, ejecución, seguimiento y mejora continua de las herramientas que conforman la gestión ambiental institucional de la Alcaldía Local. de Chapinero","Inversión","Un Nuevo Contrato Social y Ambiental para la Bogotá del Siglo XXI",57,{"$f":"IF(ISERROR(VLOOKUP(L207,Proposito_programa!$C$2:$E$59,2,FALSE)),\" \",VLOOKUP(L207,Proposito_programa!$C$2:$E$59,2,FALSE))","v":"Gestión pública local"},{"$f":"IF(ISERROR(VLOOKUP(L207,Proposito_programa!$C$2:$E$59,3,FALSE)),\" \",VLOOKUP(L207,Proposito_programa!$C$2:$E$59,3,FALSE))","v":"Propósito 5: Construir Bogotá - Región con gobierno abierto, transparente y ciudadanía consciente"},"133011605570000001741",1,1032460215,"EDWARD STIVEN BARRERA GONZALEZ","Persona Natural",null,null,null,17444000,null,null,null,17444000,13083000,"2021-09-15","2021-09-16","2022-01-15",120,null,0,null,null,null,null,null,"X",null,null,0.75]
[1,195,2021,"FDLCH-CPS-191-2021","https://community.secop.gov.co/Public/Tendering/OpportunityDetail/Index?noticeUID=CO1.NTC.2253489&isFromPublicArea=True&isModal=true&asPopupView=true","Contratos de prestación de servicios profesionales y de apoyo a la gestión","Contratación directa","Prestación de servicios profesionales y de apoyo a la gestión, o para la ejecución de trabajos artísticos que sólo puedan encomendarse a determinadas personas naturales;","Prestar srvicios profesionales para apoyar a los responsable se integrantes de los procesos en la implementación de herramientas de gestión, siguiendo los lineamientos metodológios establecidos por la oficina asesora de planeación de la Secretaria Distrital de Gobierno.","Inversión","Un Nuevo Contrato Social y Ambiental para la Bogotá del Siglo XXI",57,{"$f":"IF(ISERROR(VLOOKUP(L208,Proposito_programa!$C$2:$E$59,2,FALSE)),\" \",VLOOKUP(L208,Proposito_programa!$C$2:$E$59,2,FALSE))","v":"Gestión pública local"},{"$f":"IF(ISERROR(VLOOKUP(L208,Proposito_programa!$C$2:$E$59,3,FALSE)),\" \",VLOOKUP(L208,Proposito_programa!$C$2:$E$59,3,FALSE))","v":"Propósito 5: Construir Bogotá - Región con gobierno abierto, transparente y ciudadanía consciente"},"133011605570000001741",1,1030525081,"BLANCA LEIDY NAVARRO DOMINGUEZ","Persona Natural",null,null,null,18800000,null,null,null,18800000,14100000,"2021-09-16","2021-09-16","2022-01-15",120,null,0,null,null,null,null,null,"X",null,null,0.75]
[1,196,2021,"FDLCH-CPS-192-2021","https://community.secop.gov.co/Public/Tendering/OpportunityDetail/Index?noticeUID=CO1.NTC.2254718&isFromPublicArea=True&isModal=true&asPopupView=true","Contratos de prestación de servicios profesionales y de apoyo a la gestión","Contratación directa","Prestación de servicios profesionales y de apoyo a la gestión, o para la ejecución de trabajos artísticos que sólo puedan encomendarse a determinadas personas naturales;","Prestar servicios profesionales para apoyar la gestión precontractual, contractual y pos contractual que adelante el fondo de desarrollo local de chapinero","Inversión","Un Nuevo Contrato Social y Ambiental para la Bogotá del Siglo XXI",57,{"$f":"IF(ISERROR(VLOOKUP(L209,Proposito_programa!$C$2:$E$59,2,FALSE)),\" \",VLOOKUP(L209,Proposito_programa!$C$2:$E$59,2,FALSE))","v":"Gestión pública local"},{"$f":"IF(ISERROR(VLOOKUP(L209,Proposito_programa!$C$2:$E$59,3,FALSE)),\" \",VLOOKUP(L209,Proposito_programa!$C$2:$E$59,3,FALSE))","v":"Propósito 5: Construir Bogotá - Región con gobierno abierto, transparente y ciudadanía consciente"},"133011605570000001741",1,79373304,"ANDERSON MEJIA GARZON","Persona Natural",null,null,null,17444000,null,null,null,17444000,12937633,"2021-09-16","2021-09-17","2022-01-16",120,null,0,null,null,null,null,null,"X",null,null,0.74166664755789957]
[1,197,2021,"FDLCH-CPS-193-2021","https://community.secop.gov.co/Public/Tendering/OpportunityDetail/Index?noticeUID=CO1.NTC.2263998&isFromPublicArea=True&isModal=true&asPopupView=true","Contratos de prestación de servicios profesionales y de apoyo a la gestión","Contratación directa","Prestación de servicios profesionales y de apoyo a la gestión, o para la ejecución de trabajos artísticos que sólo puedan encomendarse a determinadas personas naturales;","Prestar servicios profesionales para apoyar el área Gestión del Desarrollo Local de la Alcaldía Local de Chapinero en los aspectos económicos y financieros de las etapas pre contractuales, contractuales y post contractuales de los proyectos de inversión, así como la producción, consolidación y análisis de datos, estadísticas e informes de impacto del Plan de Desarrollo Local.","Inversión","Un Nuevo Contrato Social y Ambiental para la Bogotá del Siglo XXI",57,{"$f":"IF(ISERROR(VLOOKUP(L210,Proposito_programa!$C$2:$E$59,2,FALSE)),\" \",VLOOKUP(L210,Proposito_programa!$C$2:$E$59,2,FALSE))","v":"Gestión pública local"},{"$f":"IF(ISERROR(VLOOKUP(L210,Proposito_programa!$C$2:$E$59,3,FALSE)),\" \",VLOOKUP(L210,Proposito_programa!$C$2:$E$59,3,FALSE))","v":"Propósito 5: Construir Bogotá - Región con gobierno abierto, transparente y ciudadanía consciente"},"133011605570000001741",1,1016059999,"CRISTIAN DANIEL VILLARREAL PARROQUIANO","Persona Natural",null,null,null,13083000,null,1,3779533,16862533,12356167,"2021-09-21","2021-09-21","2022-01-15",90,1,30,null,null,null,null,null,"X",null,null,0.73275865494229131]
[1,198,2021,"FDLCH-CPS-194-2021","https://community.secop.gov.co/Public/Tendering/OpportunityDetail/Index?noticeUID=CO1.NTC.2278899&isFromPublicArea=True&isModal=true&asPopupView=true","Contratos de prestación de servicios profesionales y de apoyo a la gestión","Contratación directa","Prestación de servicios profesionales y de apoyo a la gestión, o para la ejecución de trabajos artísticos que sólo puedan encomendarse a determinadas personas naturales;","Prestar servicios profesionales para apoyar el cubrimiento de las actividades, cronogramas y agenda de la Alcaldía local a nivel interno y externo, así́ como la generación de contenidos periodísticos","Inversión","Un Nuevo Contrato Social y Ambiental para la Bogotá del Siglo XXI",57,{"$f":"IF(ISERROR(VLOOKUP(L211,Proposito_programa!$C$2:$E$59,2,FALSE)),\" \",VLOOKUP(L211,Proposito_programa!$C$2:$E$59,2,FALSE))","v":"Gestión pública local"},{"$f":"IF(ISERROR(VLOOKUP(L211,Proposito_programa!$C$2:$E$59,3,FALSE)),\" \",VLOOKUP(L211,Proposito_programa!$C$2:$E$59,3,FALSE))","v":"Propósito 5: Construir Bogotá - Región con gobierno abierto, transparente y ciudadanía consciente"},"133011605570000001741",1,1019110016,"JUAN SEBASTIAN CASTRO VANEGAS","Persona Natural",null,null,null,15000000,null,null,null,15000000,10500000,"2021-09-28","2021-09-28","2021-12-27",90,null,0,null,null,null,null,null,null,"X",null,0.7]
[1,199,2021,"FDLCH-CPS-195-2021","https://community.secop.gov.co/Public/Tendering/OpportunityDetail/Index?noticeUID=CO1.NTC.2264091&isFromPublicArea=True&isModal=true&asPopupView=true","Contratos de prestación de servicios profesionales y de apoyo a la gestión","Contratación directa","Prestación de servicios profesionales y de apoyo a la gestión, o para la ejecución de trabajos artísticos que sólo puedan encomendarse a determinadas personas naturales;","Prestar servicios técnicos para apoyar el área Gestión del Desarrollo Local en las actividades presupuestales requeridas por la Alcaldía Local de Chapinero","Inversión","Un Nuevo Contrato Social y Ambiental para la Bogotá del Siglo XXI",57,{"$f":"IF(ISERROR(VLOOKUP(L212,Proposito_programa!$C$2:$E$59,2,FALSE)),\" \",VLOOKUP(L212,Proposito_programa!$C$2:$E$59,2,FALSE))","v":"Gestión pública local"},{"$f":"IF(ISERROR(VLOOKUP(L212,Proposito_programa!$C$2:$E$59,3,FALSE)),\" \",VLOOKUP(L212,Proposito_programa!$C$2:$E$59,3,FALSE))","v":"Propósito 5: Construir Bogotá - Región con gobierno abierto, transparente y ciudadanía consciente"},"133011605570000001741",1,1023893986,"EILIN NATALY VILLABON PARDO","Persona Natural",null,null,null,10600000,null,null,null,10600000,7508333,"2021-09-21","2021-09-21","2022-01-20",120,null,0,null,null,null,null,null,"X",null,null,0.70833330188679244]
[1,200,2021,"FDLCH-CPS-196-2021","https://community.secop.gov.co/Public/Tendering/OpportunityDetail/Index?noticeUID=CO1.NTC.2265117&isFromPublicArea=True&isModal=true&asPopupView=true","Contratos de prestación de servicios profesionales y de apoyo a la gestión","Contratación directa","Prestación de servicios profesionales y de apoyo a la gestión, o para la ejecución de trabajos artísticos que sólo puedan encomendarse a determinadas personas naturales;","Prestar servicios profesionales para la gestión, planeación, seguimiento, mitigación y respuesta a situaciones y escenarios de emergencia, en marco del fortalecimiento de la gestión local de los riesgos y la adaptación al cambio climático","Inversión","Un Nuevo Contrato Social y Ambiental para la Bogotá del Siglo XXI",57,{"$f":"IF(ISERROR(VLOOKUP(L213,Proposito_programa!$C$2:$E$59,2,FALSE)),\" \",VLOOKUP(L213,Proposito_programa!$C$2:$E$59,2,FALSE))","v":"Gestión pública local"},{"$f":"IF(ISERROR(VLOOKUP(L213,Proposito_programa!$C$2:$E$59,3,FALSE)),\" \",VLOOKUP(L213,Proposito_programa!$C$2:$E$59,3,FALSE))","v":"Propósito 5: Construir Bogotá - Región con gobierno abierto, transparente y ciudadanía consciente"},"133011605570000001741",1,80220756,"LUIS EDUARDO CRUZ SANCHEZ","Persona Natural",null,null,null,17200000,null,null,null,17200000,10033333,"2021-09-21","2021-09-22","2022-01-21",120,null,0,null,null,null,null,null,"X",null,null,0.58333331395348842]
[1,201,2021,"FDLCH-CPS-197-2021","https://community.secop.gov.co/Public/Tendering/OpportunityDetail/Index?noticeUID=CO1.NTC.2272982&isFromPublicArea=True&isModal=true&asPopupView=true","Contratos de prestación de servicios profesionales y de apoyo a la gestión","Contratación directa","Prestación de servicios profesionales y de apoyo a la gestión, o para la ejecución de trabajos artísticos que sólo puedan encomendarse a determinadas personas naturales;","Prestar los servicios técnicos de apoyo a la gestión, acciones administrativas y seguimiento de las actividades derIvadas del proyecto de inversión Chapinero Modelo de Movilidad Inteligente","Inversión","Un Nuevo Contrato Social y Ambiental para la Bogotá del Siglo XXI",49,{"$f":"IF(ISERROR(VLOOKUP(L214,Proposito_programa!$C$2:$E$59,2,FALSE)),\" \",VLOOKUP(L214,Proposito_programa!$C$2:$E$59,2,FALSE))","v":"Movilidad segura, sostenible y accesible"},{"$f":"IF(ISERROR(VLOOKUP(L214,Proposito_programa!$C$2:$E$59,3,FALSE)),\" \",VLOOKUP(L214,Proposito_programa!$C$2:$E$59,3,FALSE))","v":"Propósito 4: Hacer de Bogotá Región un modelo de movilidad multimodal, incluyente y sostenible"},"133011604490000001734",1,1018486888,"DAVID ALEXANDER ALVARADO CASTRILLON","Persona Natural",null,null,null,7931433,null,1,2203176,10134609,5904511,"2021-09-24","2021-09-24","2022-01-17",90,1,30,null,null,null,null,null,"X",null,null,0.58260866304758274]
[1,202,2021,"FDLCH-CPS-198-2021","https://community.secop.gov.co/Public/Tendering/OpportunityDetail/Index?noticeUID=CO1.NTC.2278877&isFromPublicArea=True&isModal=true&asPopupView=true","Contratos de prestación de servicios profesionales y de apoyo a la gestión","Contratación directa","Prestación de servicios profesionales y de apoyo a la gestión, o para la ejecución de trabajos artísticos que sólo puedan encomendarse a determinadas personas naturales;","Prestar los servicios profesionales para la gestión, formulación, desarrollo, seguimiento y evaluación del proyecto de inversión CHAPINERO CONSTRUYE TEJIDO CULTURAL”.","Inversión","Un Nuevo Contrato Social y Ambiental para la Bogotá del Siglo XXI",24,{"$f":"IF(ISERROR(VLOOKUP(L215,Proposito_programa!$C$2:$E$59,2,FALSE)),\" \",VLOOKUP(L215,Proposito_programa!$C$2:$E$59,2,FALSE))","v":"Bogotá región emprendedora e innovadora"},{"$f":"IF(ISERROR(VLOOKUP(L215,Proposito_programa!$C$2:$E$59,3,FALSE)),\" \",VLOOKUP(L215,Proposito_programa!$C$2:$E$59,3,FALSE))","v":"Propósito 1: Hacer un nuevo contrato social para incrementar la inclusión social, productiva y política"},"133011601240000001853",1,79728807,"HOSMAN HERNAN ARIAS GUTIERREZ","Persona Natural",null,null,null,16500000,null,1,2750000,19250000,14300000,"2021-09-28","2021-09-28","2022-01-11",90,1,{"$f":"+AG215*30","v":30},null,null,null,null,null,"X",null,null,0.74285714285714288]
[1,203,2021,"FDLCH-CPS-199-2021","https://community.secop.gov.co/Public/Tendering/OpportunityDetail/Index?noticeUID=CO1.NTC.2279794&isFromPublicArea=True&isModal=true&asPopupView=true","Contratos de prestación de servicios profesionales y de apoyo a la gestión","Contratación directa","Prestación de servicios profesionales y de apoyo a la gestión, o para la ejecución de trabajos artísticos que sólo puedan encomendarse a determinadas personas naturales;","Prestar servicios técnicos de apoyo a la gestión, para el desarrollo de estrategias que promuevan el uso adecuado del espacio público en el marco del proyecto “CHAPINERO ES ESPACIO PUBLICO INCLUYENTE Y DEMOCRATICO","Inversión","Un Nuevo Contrato Social y Ambiental para la Bogotá del Siglo XXI",45,{"$f":"IF(ISERROR(VLOOKUP(L216,Proposito_programa!$C$2:$E$59,2,FALSE)),\" \",VLOOKUP(L216,Proposito_programa!$C$2:$E$59,2,FALSE))","v":"Espacio público más seguro y construido colectivamente"},{"$f":"IF(ISERROR(VLOOKUP(L216,Proposito_programa!$C$2:$E$59,3,FALSE)),\" \",VLOOKUP(L216,Proposito_programa!$C$2:$E$59,3,FALSE))","v":"Propósito 3: Inspirar confianza y legitimidad para vivir sin miedo y ser epicentro de cultura ciudadana, paz y reconciliación"},"133011603450000001736",1,15677463,"JOSE GREGORIO BOLAÑO MARTINEZ","Persona Natural",null,null,null,9000000,null,null,null,9000000,6200000,"2021-09-28","2021-09-29","2021-12-28",90,null,0,null,null,null,null,null,null,"X",null,0.68888888888888888]
[1,204,2021,"FDLCH-CPS-200-2021","https://community.secop.gov.co/Public/Tendering/OpportunityDetail/Index?noticeUID=CO1.NTC.2280318&isFromPublicArea=True&isModal=true&asPopupView=true","Contratos de prestación de servicios profesionales y de apoyo a la gestión","Contratación directa","Prestación de servicios profesionales y de apoyo a la gestión, o para la ejecución de trabajos artísticos que sólo puedan encomendarse a determinadas personas naturales;","Prestar servicios de apoyo a la gestión para desarrollar las actividades de atención y orientación al ciudadano que se requieran en las instalaciones de la Alcaldía local de Chapinero.","Inversión","Un Nuevo Contrato Social y Ambiental para la Bogotá del Siglo XXI",57,{"$f":"IF(ISERROR(VLOOKUP(L217,Proposito_programa!$C$2:$E$59,2,FALSE)),\" \",VLOOKUP(L217,Proposito_programa!$C$2:$E$59,2,FALSE))","v":"Gestión pública local"},{"$f":"IF(ISERROR(VLOOKUP(L217,Proposito_programa!$C$2:$E$59,3,FALSE)),\" \",VLOOKUP(L217,Proposito_programa!$C$2:$E$59,3,FALSE))","v":"Propósito 5: Construir Bogotá - Región con gobierno abierto, transparente y ciudadanía consciente"},"133011605570000001741",1,1018478763,"YANN SEBASTIAN AREVALO MORALES","Persona Natural",null,null,null,7272000,null,null,null,7272000,4666200,"2021-09-29","2021-09-29","2022-01-28",120,null,0,null,null,null,null,null,"X",null,null,0.64166666666666672]
[1,205,2021,"FDLCH-CPS-201-2021","https://community.secop.gov.co/Public/Tendering/OpportunityDetail/Index?noticeUID=CO1.NTC.2279756&isFromPublicArea=True&isModal=true&asPopupView=true","Contratos de prestación de servicios profesionales y de apoyo a la gestión","Contratación directa","Prestación de servicios profesionales y de apoyo a la gestión, o para la ejecución de trabajos artísticos que sólo puedan encomendarse a determinadas personas naturales;","Prestar servicios de apoyo a las labores de entrega y recibo de las comunicaciones emitidas o recibidas por las Inspecciones de Policía de la Localidad.","Inversión","Un Nuevo Contrato Social y Ambiental para la Bogotá del Siglo XXI",57,{"$f":"IF(ISERROR(VLOOKUP(L218,Proposito_programa!$C$2:$E$59,2,FALSE)),\" \",VLOOKUP(L218,Proposito_programa!$C$2:$E$59,2,FALSE))","v":"Gestión pública local"},{"$f":"IF(ISERROR(VLOOKUP(L218,Proposito_programa!$C$2:$E$59,3,FALSE)),\" \",VLOOKUP(L218,Proposito_programa!$C$2:$E$59,3,FALSE))","v":"Propósito 5: Construir Bogotá - Región con gobierno abierto, transparente y ciudadanía consciente"},"133011605570000001741",1,1019024025,"EFRAIN ANDRES MONROY CEPEDA","Persona Natural",null,null,null,6900000,null,1,1303333,8203333,5903333,"2021-09-28","2021-09-29","2022-01-14",90,1,30,null,null,null,null,null,"X",null,null,0.71962615683161957]
[1,206,2021,"FDLCH-CPS-202-2021","https://community.secop.gov.co/Public/Tendering/OpportunityDetail/Index?noticeUID=CO1.NTC.2284131&isFromPublicArea=True&isModal=true&asPopupView=true","Contratos de prestación de servicios profesionales y de apoyo a la gestión","Contratación directa","Prestación de servicios profesionales y de apoyo a la gestión, o para la ejecución de trabajos artísticos que sólo puedan encomendarse a determinadas personas naturales;","Prestación de servicios profesionales para apoyar al área de gestión del desarrollo local de la alcaldía local de chapinero, en la gestión, formulación, desarrollo, seguimiento y evaluación de los temas relacionados con educación superior en la localidad de chapinero, enmarcados en el proyecto de inversión “chapinero construye futuro” y realizar el apoyo a la supervisión de los contratos y/o convenios que de él se deriven","Inversión","Un Nuevo Contrato Social y Ambiental para la Bogotá del Siglo XXI",17,{"$f":"IF(ISERROR(VLOOKUP(L219,Proposito_programa!$C$2:$E$59,2,FALSE)),\" \",VLOOKUP(L219,Proposito_programa!$C$2:$E$59,2,FALSE))","v":"Jóvenes con capacidades: Proyecto de vida para la ciudadanía, la innovación y el trabajo del siglo XXI"},{"$f":"IF(ISERROR(VLOOKUP(L219,Proposito_programa!$C$2:$E$59,3,FALSE)),\" \",VLOOKUP(L219,Proposito_programa!$C$2:$E$59,3,FALSE))","v":"Propósito 1: Hacer un nuevo contrato social para incrementar la inclusión social, productiva y política"},"133011601170000001743",1,52011159,"ALBA TERESA TRIANA RUBIANO","Persona Natural",null,null,null,14100000,null,1,3290000,17390000,11750000,"2021-09-30","2021-09-30","2022-01-21",90,1,30,null,null,null,null,null,"X",null,null,{"$f":"IF(ISERROR(AB219/AA219),\"-\",(AB219/AA219))","v":0.67567567567567566}]
[1,207,2021,"FDLCH-CPS-203-2021","https://community.secop.gov.co/Public/Tendering/OpportunityDetail/Index?noticeUID=CO1.NTC.2283406&isFromPublicArea=True&isModal=true&asPopupView=true","Contratos de prestación de servicios profesionales y de apoyo a la gestión","Contratación directa","Prestación de servicios profesionales y de apoyo a la gestión, o para la ejecución de trabajos artísticos que sólo puedan encomendarse a determinadas personas naturales;","Prestar los servicios profesionales de apoyo jurídico en la ejecución de las acciones requeridas para el trámite e impulso procesal de las actuaciones, contravenciones y/o querellas que cursen en las inspecciones de policía de la localidad","Inversión","Un Nuevo Contrato Social y Ambiental para la Bogotá del Siglo XXI",17,{"$f":"IF(ISERROR(VLOOKUP(L220,Proposito_programa!$C$2:$E$59,2,FALSE)),\" \",VLOOKUP(L220,Proposito_programa!$C$2:$E$59,2,FALSE))","v":"Jóvenes con capacidades: Proyecto de vida para la ciudadanía, la innovación y el trabajo del siglo XXI"},{"$f":"IF(ISERROR(VLOOKUP(L220,Proposito_programa!$C$2:$E$59,3,FALSE)),\" \",VLOOKUP(L220,Proposito_programa!$C$2:$E$59,3,FALSE))","v":"Propósito 1: Hacer un nuevo contrato social para incrementar la inclusión social, productiva y política"},"133011605570000001841",1,3058039,"VIDAL ROBERTO MENDEZ LASPRIELLA","Persona Natural",null,null,null,13200000,null,null,null,13200000,8800000,"2021-09-29","2021-10-01","2021-12-30",90,null,0,null,null,null,null,null,null,"X",null,0.66666666666666663]
[1,208,2021,"FDLCH-CPS-204-2021","https://community.secop.gov.co/Public/Tendering/OpportunityDetail/Index?noticeUID=CO1.NTC.2286539&isFromPublicArea=True&isModal=true&asPopupView=true","Contratos de prestación de servicios profesionales y de apoyo a la gestión","Contratación directa","Prestación de servicios profesionales y de apoyo a la gestión, o para la ejecución de trabajos artísticos que sólo puedan encomendarse a determinadas personas naturales;","Prestar servicios profesionales para la gestión, desarrollo, seguimiento y evaluación jurídica pre-contractual, contractual y postcontractual del proyecto de inversión \"Chapinero modelo de movilidad inteligente” y las demás relacionadas.","Inversión","Un Nuevo Contrato Social y Ambiental para la Bogotá del Siglo XXI",49,{"$f":"IF(ISERROR(VLOOKUP(L221,Proposito_programa!$C$2:$E$59,2,FALSE)),\" \",VLOOKUP(L221,Proposito_programa!$C$2:$E$59,2,FALSE))","v":"Movilidad segura, sostenible y accesible"},{"$f":"IF(ISERROR(VLOOKUP(L221,Proposito_programa!$C$2:$E$59,3,FALSE)),\" \",VLOOKUP(L221,Proposito_programa!$C$2:$E$59,3,FALSE))","v":"Propósito 4: Hacer de Bogotá Región un modelo de movilidad multimodal, incluyente y sostenible"},"133011604490000001734",1,1057590689,"ELMER RICARDO RINCON PLAZAS","Persona Natural",null,null,null,20000000,null,null,null,20000000,12500000,"2021-09-30","2021-10-01","2022-01-31",120,null,0,null,null,null,null,null,"X",null,null,0.625]
[1,209,2021,"FDLCH-CPS-205-2021","https://community.secop.gov.co/Public/Tendering/OpportunityDetail/Index?noticeUID=CO1.NTC.2292285&isFromPublicArea=True&isModal=true&asPopupView=true","Contratos de prestación de servicios profesionales y de apoyo a la gestión","Contratación directa","Prestación de servicios profesionales y de apoyo a la gestión, o para la ejecución de trabajos artísticos que sólo puedan encomendarse a determinadas personas naturales;","Prestar servicios profesionales para la gestión, formulación, desarrollo, seguimiento y evaluación del proyecto “chapinero territorio para vivir sin miedo “","Inversión","Un Nuevo Contrato Social y Ambiental para la Bogotá del Siglo XXI",48,{"$f":"IF(ISERROR(VLOOKUP(L222,Proposito_programa!$C$2:$E$59,2,FALSE)),\" \",VLOOKUP(L222,Proposito_programa!$C$2:$E$59,2,FALSE))","v":"Plataforma institucional para la seguridad y justicia"},{"$f":"IF(ISERROR(VLOOKUP(L222,Proposito_programa!$C$2:$E$59,3,FALSE)),\" \",VLOOKUP(L222,Proposito_programa!$C$2:$E$59,3,FALSE))","v":"Propósito 3: Inspirar confianza y legitimidad para vivir sin miedo y ser epicentro de cultura ciudadana, paz y reconciliación"},"133011603480000001740",1,1010179712,"MARIO ALONSO SERRANO ACOSTA","Persona Natural",null,null,null,16500000,null,null,null,16500000,10266667,"2021-10-04","2021-10-05","2022-01-04",90,null,0,null,null,null,null,null,"X",null,null,0.6222222424242424]
[1,210,2021,"FDLCH-CPS-206-2021","https://community.secop.gov.co/Public/Tendering/OpportunityDetail/Index?noticeUID=CO1.NTC.2292914&isFromPublicArea=True&isModal=true&asPopupView=true","Contratos de prestación de servicios profesionales y de apoyo a la gestión","Contratación directa","Prestación de servicios profesionales y de apoyo a la gestión, o para la ejecución de trabajos artísticos que sólo puedan encomendarse a determinadas personas naturales;","Prestar servicios profesionales para la gestión, formulación, desarrollo y seguimiento del proyecto de inversión proyecto chapinero sostenible y consciente.","Inversión","Un Nuevo Contrato Social y Ambiental para la Bogotá del Siglo XXI",38,{"$f":"IF(ISERROR(VLOOKUP(L223,Proposito_programa!$C$2:$E$59,2,FALSE)),\" \",VLOOKUP(L223,Proposito_programa!$C$2:$E$59,2,FALSE))","v":"Ecoeficiencia, reciclaje, manejo de residuos e inclusión de la población recicladora"},{"$f":"IF(ISERROR(VLOOKUP(L223,Proposito_programa!$C$2:$E$59,3,FALSE)),\" \",VLOOKUP(L223,Proposito_programa!$C$2:$E$59,3,FALSE))","v":"Propósito 2 : Cambiar Nuestros Hábitos de Vida para Reverdecer a Bogotá y Adaptarnos y Mitigar la Crisis Climática"},"133011602380000001728",1,1019031184,"RAYMOND ALEXANDER JIMENEZ ARTEAGA","Persona Natural",null,null,null,14400000,null,null,null,14400000,11360000,"2021-10-04","2021-10-05","2022-01-04",90,null,0,null,null,null,null,null,null,"X",null,0.78888888888888886]
[1,211,2021,"FDLCH-CPS-207-2021","https://community.secop.gov.co/Public/Tendering/OpportunityDetail/Index?noticeUID=CO1.NTC.2231795&isFromPublicArea=True&isModal=true&asPopupView=true","Contratos de prestación de servicios","Licitación pública","No aplica","Prestar servicios para el fortalecimiento de capacidades en: CONSTRUCCIÓN DE CIUDADANÍA, PREVENCIÓN DEL FEMINICIDIO, VIOLENCIAS BASADAS EN GÉNERO Y/O VIOLENCIAS CONTRA LAS MUJERES EN LA LOCALIDAD DE CHAPINERO.","Inversión","Un Nuevo Contrato Social y Ambiental para la Bogotá del Siglo XXI",40,{"$f":"IF(ISERROR(VLOOKUP(L224,Proposito_programa!$C$2:$E$59,2,FALSE)),\" \",VLOOKUP(L224,Proposito_programa!$C$2:$E$59,2,FALSE))","v":"Más mujeres viven una vida libre de violencias, se sienten seguras y acceden con confianza al sistema de justicia"},{"$f":"IF(ISERROR(VLOOKUP(L224,Proposito_programa!$C$2:$E$59,3,FALSE)),\" \",VLOOKUP(L224,Proposito_programa!$C$2:$E$59,3,FALSE))","v":"Propósito 3: Inspirar confianza y legitimidad para vivir sin miedo y ser epicentro de cultura ciudadana, paz y reconciliación"},"133011603400000002035",5,900175862,"CORPORACION ESTRATEGICA EN GESTION E INTEGRACION COLOMBIA-EGESCO","Persona Jurídica",null,null,null,397268497,null,null,null,397268497,119180549,"2021-10-08","2021-10-12","2022-04-11",180,null,0,null,null,null,null,null,"X",null,null,0.29999999974828107]
[1,212,2021,"FDLCH-CPS-208-2021","https://community.secop.gov.co/Public/Tendering/OpportunityDetail/Index?noticeUID=CO1.NTC.2262597&isFromPublicArea=True&isModal=False","Contratos de prestación de servicios","Selección abreviada","Selección abreviada por menor cuantía ","Contratar la prestación de servicios para el desarrollo de acciones en prevención de violencia intrafamiliar, violencia sexual y asesoría familiar para la promoción del buen trato y los entornos proectores en la Localidad de Chapinero.","Inversión","Un Nuevo Contrato Social y Ambiental para la Bogotá del Siglo XXI",6,{"$f":"IF(ISERROR(VLOOKUP(L225,Proposito_programa!$C$2:$E$59,2,FALSE)),\" \",VLOOKUP(L225,Proposito_programa!$C$2:$E$59,2,FALSE))","v":"Sistema Distrital de Cuidado"},{"$f":"IF(ISERROR(VLOOKUP(L225,Proposito_programa!$C$2:$E$59,3,FALSE)),\" \",VLOOKUP(L225,Proposito_programa!$C$2:$E$59,3,FALSE))","v":"Propósito 1: Hacer un nuevo contrato social para incrementar la inclusión social, productiva y política"},"133011601060000001710",5,900222015,"FUNDACION NUEVA VIDA PARA UN PAIS LIBRE-FUNDIPAL","Persona Jurídica",null,null,null,205666726,null,null,null,205666726,0,"2021-10-07","2021-10-11","2022-05-18",180,null,0,null,null,null,null,null,null,"X",null,0]
[1,213,2021,"FDLCH-CPS-209-2021","https://community.secop.gov.co/Public/Tendering/OpportunityDetail/Index?noticeUID=CO1.NTC.2303207&isFromPublicArea=True&isModal=true&asPopupView=true","Contratos de prestación de servicios profesionales y de apoyo a la gestión","Contratación directa","Prestación de servicios profesionales y de apoyo a la gestión, o para la ejecución de trabajos artísticos que sólo puedan encomendarse a determinadas personas naturales;","Prestar servicios profesionales para apoyar el área de gestión del desarrollo local de la Alcaldía Local de Chapinero, en la gestión, formulación, desarrollo, seguimiento y evaluación de los temas relacionados con educación superior en la localidad de chapinero, enmarcados en el proyecto de inversión “CHAPINERO CONSTRUYE FUTURO Y REALIZAR EL APOYO A LA SUPERVISION DE LOS CONTRATOS Y/O CONVENIOS QUE DE EL SE DERIVEN”","Inversión","Un Nuevo Contrato Social y Ambiental para la Bogotá del Siglo XXI",17,{"$f":"IF(ISERROR(VLOOKUP(L226,Proposito_programa!$C$2:$E$59,2,FALSE)),\" \",VLOOKUP(L226,Proposito_programa!$C$2:$E$59,2,FALSE))","v":"Jóvenes con capacidades: Proyecto de vida para la ciudadanía, la innovación y el trabajo del siglo XXI"},{"$f":"IF(ISERROR(VLOOKUP(L226,Proposito_programa!$C$2:$E$59,3,FALSE)),\" \",VLOOKUP(L226,Proposito_programa!$C$2:$E$59,3,FALSE))","v":"Propósito 1: Hacer un nuevo contrato social para incrementar la inclusión social, productiva y política"},"133011601170000001743",1,7724577,"JUAN CARLOS DUSSAN ZULETA","Persona Natural",null,null,null,11750000,null,1,4543333,16293333,10653333,"2021-10-08","2021-10-08","2022-01-21",60,1,30,null,null,null,null,null,"X",null,null,0.65384614676444652]
[1,214,2021,"FDLCH-CPS-210-2021","https://community.secop.gov.co/Public/Tendering/OpportunityDetail/Index?noticeUID=CO1.NTC.2308324&isFromPublicArea=True&isModal=true&asPopupView=true","Contratos de prestación de servicios profesionales y de apoyo a la gestión","Contratación directa","Prestación de servicios profesionales y de apoyo a la gestión, o para la ejecución de trabajos artísticos que sólo puedan encomendarse a determinadas personas naturales;","Prestar servicios asistenciales para apoyar al Alcalde Local en la promoción, articulación, acompañamiento y seguimiento para la atención y protección de los animales dompesticos y silvestres de la localidad.","Inversión","Un Nuevo Contrato Social y Ambiental para la Bogotá del Siglo XXI",34,{"$f":"IF(ISERROR(VLOOKUP(L227,Proposito_programa!$C$2:$E$59,2,FALSE)),\" \",VLOOKUP(L227,Proposito_programa!$C$2:$E$59,2,FALSE))","v":"Bogotá protectora de los animales"},{"$f":"IF(ISERROR(VLOOKUP(L227,Proposito_programa!$C$2:$E$59,3,FALSE)),\" \",VLOOKUP(L227,Proposito_programa!$C$2:$E$59,3,FALSE))","v":"Propósito 2 : Cambiar Nuestros Hábitos de Vida para Reverdecer a Bogotá y Adaptarnos y Mitigar la Crisis Climática"},"133011602340000001731",1,1026263210,"NORMA CONSTANZA IQUIRA ARISTIZABAL","Persona Natural",null,null,null,6600000,null,1,880000,7480000,3520000,"2021-10-11","2021-10-13","2022-01-24",90,1,30,null,null,null,null,null,"X",null,null,0.47058823529411764]
[1,215,2021,"FDLCH-CPS-211-2021","https://community.secop.gov.co/Public/Tendering/OpportunityDetail/Index?noticeUID=CO1.NTC.2309915&isFromPublicArea=True&isModal=true&asPopupView=true","Contratos de prestación de servicios profesionales y de apoyo a la gestión","Contratación directa","Prestación de servicios profesionales y de apoyo a la gestión, o para la ejecución de trabajos artísticos que sólo puedan encomendarse a determinadas personas naturales;","Prestar servicios de apoyo a la gestión en la ejecución de las actividades administrativas y documentales relacionadas con la gestión policiva en la alcaldía local de chapinero","Inversión","Un Nuevo Contrato Social y Ambiental para la Bogotá del Siglo XXI",57,{"$f":"IF(ISERROR(VLOOKUP(L228,Proposito_programa!$C$2:$E$59,2,FALSE)),\" \",VLOOKUP(L228,Proposito_programa!$C$2:$E$59,2,FALSE))","v":"Gestión pública local"},{"$f":"IF(ISERROR(VLOOKUP(L228,Proposito_programa!$C$2:$E$59,3,FALSE)),\" \",VLOOKUP(L228,Proposito_programa!$C$2:$E$59,3,FALSE))","v":"Propósito 5: Construir Bogotá - Región con gobierno abierto, transparente y ciudadanía consciente"},"133011605570000001841",1,79638358,"HERNANDO FERNEY QUIROGA ARIZA","Persona Natural",null,null,null,6000000,null,null,null,6000000,3666667,"2021-10-20","2021-10-11","2022-01-10",90,null,0,null,null,null,null,null,"X",null,null,0.61111116666666665]
[1,216,2021,"FDLCH-CPS-212-2021","https://community.secop.gov.co/Public/Tendering/OpportunityDetail/Index?noticeUID=CO1.NTC.2310365&isFromPublicArea=True&isModal=true&asPopupView=true","Contratos de prestación de servicios profesionales y de apoyo a la gestión","Contratación directa","Prestación de servicios profesionales y de apoyo a la gestión, o para la ejecución de trabajos artísticos que sólo puedan encomendarse a determinadas personas naturales;","Prestación de servicios profesionales para la gestión, formulación, desarrollo, seguimiento y evaluación del proyecto de inversión local “Jóvenes comprometidos por Chapinero”, así como el apoyo a la supervisión de los contrataos que le sean asignados por el Alcalde Local","Inversión","Un Nuevo Contrato Social y Ambiental para la Bogotá del Siglo XXI",17,{"$f":"IF(ISERROR(VLOOKUP(L229,Proposito_programa!$C$2:$E$59,2,FALSE)),\" \",VLOOKUP(L229,Proposito_programa!$C$2:$E$59,2,FALSE))","v":"Jóvenes con capacidades: Proyecto de vida para la ciudadanía, la innovación y el trabajo del siglo XXI"},{"$f":"IF(ISERROR(VLOOKUP(L229,Proposito_programa!$C$2:$E$59,3,FALSE)),\" \",VLOOKUP(L229,Proposito_programa!$C$2:$E$59,3,FALSE))","v":"Propósito 1: Hacer un nuevo contrato social para incrementar la inclusión social, productiva y política"},"133011601170000001695",1,1090489409,"CARLOS ARTURO BARBOSA PEREZ","Persona Natural",null,null,null,13500000,null,null,null,13500000,9450000,"2021-10-12","2021-10-13","2022-01-12",90,null,0,null,null,null,null,null,"X",null,null,0.7]
[1,217,2021,"FDLCH-CPS-2013","https://community.secop.gov.co/Public/Tendering/OpportunityDetail/Index?noticeUID=CO1.NTC.2310509&isFromPublicArea=True&isModal=true&asPopupView=true","Contratos de prestación de servicios profesionales y de apoyo a la gestión","Contratación directa","Prestación de servicios profesionales y de apoyo a la gestión, o para la ejecución de trabajos artísticos que sólo puedan encomendarse a determinadas personas naturales;","Prestar servicios personales para apoyar actividades operativas y administrativas de la gestión precontractual, contractual y postcontractual que adelante el fondo de desarrollo local de chapinero","Inversión","Un Nuevo Contrato Social y Ambiental para la Bogotá del Siglo XXI",57,{"$f":"IF(ISERROR(VLOOKUP(L230,Proposito_programa!$C$2:$E$59,2,FALSE)),\" \",VLOOKUP(L230,Proposito_programa!$C$2:$E$59,2,FALSE))","v":"Gestión pública local"},{"$f":"IF(ISERROR(VLOOKUP(L230,Proposito_programa!$C$2:$E$59,3,FALSE)),\" \",VLOOKUP(L230,Proposito_programa!$C$2:$E$59,3,FALSE))","v":"Propósito 5: Construir Bogotá - Región con gobierno abierto, transparente y ciudadanía consciente"},"133011605570000001741",1,52733935,"PAOLA YUREXY QUIROGA CUBILLOS","Persona Natural",null,null,null,7500000,null,null,null,7500000,5333333,"2021-10-12","2021-10-12","2022-02-08",90,null,0,null,null,null,null,null,null,"X",null,0.71111106666666668]
[1,218,2021,"FDLCH-CPS-214-2021","https://community.secop.gov.co/Public/Tendering/OpportunityDetail/Index?noticeUID=CO1.NTC.2310540&isFromPublicArea=True&isModal=true&asPopupView=true","Contratos de prestación de servicios profesionales y de apoyo a la gestión","Contratación directa","Prestación de servicios profesionales y de apoyo a la gestión, o para la ejecución de trabajos artísticos que sólo puedan encomendarse a determinadas personas naturales;","Brindar apoyo en la implementacion de acciones del plan local de convivencia seguridad y justicia y el desarrollo de estrategias de dialogo, mediacion convivencia y prevención de conflictividades violencias y delitos en la localidad de chapinero, para mejorar la seguridad y convivencia","Inversión","Un Nuevo Contrato Social y Ambiental para la Bogotá del Siglo XXI",48,{"$f":"IF(ISERROR(VLOOKUP(L231,Proposito_programa!$C$2:$E$59,2,FALSE)),\" \",VLOOKUP(L231,Proposito_programa!$C$2:$E$59,2,FALSE))","v":"Plataforma institucional para la seguridad y justicia"},{"$f":"IF(ISERROR(VLOOKUP(L231,Proposito_programa!$C$2:$E$59,3,FALSE)),\" \",VLOOKUP(L231,Proposito_programa!$C$2:$E$59,3,FALSE))","v":"Propósito 3: Inspirar confianza y legitimidad para vivir sin miedo y ser epicentro de cultura ciudadana, paz y reconciliación"},"133011603480000001738",1,1015996478,"JEAN MICHEL ALBARRACIN MERCADO","Persona Natural",null,null,null,4900000,null,1,2450000,7350000,5226667,"2021-10-12","2021-10-12","2021-10-15",60,1,30,null,null,null,null,null,"X",null,null,0.71111115646258505]
[1,219,2021,"FDLCH-CPS-215-2021","https://community.secop.gov.co/Public/Tendering/OpportunityDetail/Index?noticeUID=CO1.NTC.2310347&isFromPublicArea=True&isModal=true&asPopupView=true","Contratos de prestación de servicios profesionales y de apoyo a la gestión","Contratación directa","Prestación de servicios profesionales y de apoyo a la gestión, o para la ejecución de trabajos artísticos que sólo puedan encomendarse a determinadas personas naturales;","Brindar apoyo en la implementación de acciones del plan local de convivencia, seguridad y justicia y el desarrollo de estrategias de dialogo, mediación, convivencia y prevención de conflictividades, violencias y delitos en la localidad de chapinero, para mejorar la seguridad y convivencia","Inversión","Un Nuevo Contrato Social y Ambiental para la Bogotá del Siglo XXI",48,{"$f":"IF(ISERROR(VLOOKUP(L232,Proposito_programa!$C$2:$E$59,2,FALSE)),\" \",VLOOKUP(L232,Proposito_programa!$C$2:$E$59,2,FALSE))","v":"Plataforma institucional para la seguridad y justicia"},{"$f":"IF(ISERROR(VLOOKUP(L232,Proposito_programa!$C$2:$E$59,3,FALSE)),\" \",VLOOKUP(L232,Proposito_programa!$C$2:$E$59,3,FALSE))","v":"Propósito 3: Inspirar confianza y legitimidad para vivir sin miedo y ser epicentro de cultura ciudadana, paz y reconciliación"},"133011603480000001738",1,1022364268,"LUIS ALEJANDRO MARTINEZ MARTINEZ","Persona Natural",null,null,null,4900000,null,1,2450000,7350000,5226667,"2021-10-12","2021-10-12","2022-01-14",60,1,30,null,null,null,null,null,"X",null,null,0.71111115646258505]
[1,220,2021,"FDLCH-CPS-216-2021","https://community.secop.gov.co/Public/Tendering/OpportunityDetail/Index?noticeUID=CO1.NTC.2310122&isFromPublicArea=True&isModal=true&asPopupView=true","Contratos de prestación de servicios profesionales y de apoyo a la gestión","Contratación directa","Prestación de servicios profesionales y de apoyo a la gestión, o para la ejecución de trabajos artísticos que sólo puedan encomendarse a determinadas personas naturales;","Brindar apoyo en la implementación de acciones del plan local de convivencia seguridad y justicia y el desarrollo de estrategias de dialogo, mediación convivencia y prevención de conflictividades violencias y delitos en la localidad de chapinero, para mejorar la seguridad y convivencia","Inversión","Un Nuevo Contrato Social y Ambiental para la Bogotá del Siglo XXI",48,{"$f":"IF(ISERROR(VLOOKUP(L233,Proposito_programa!$C$2:$E$59,2,FALSE)),\" \",VLOOKUP(L233,Proposito_programa!$C$2:$E$59,2,FALSE))","v":"Plataforma institucional para la seguridad y justicia"},{"$f":"IF(ISERROR(VLOOKUP(L233,Proposito_programa!$C$2:$E$59,3,FALSE)),\" \",VLOOKUP(L233,Proposito_programa!$C$2:$E$59,3,FALSE))","v":"Propósito 3: Inspirar confianza y legitimidad para vivir sin miedo y ser epicentro de cultura ciudadana, paz y reconciliación"},"133011603480000001738",1,1000251989,"PAULA ANDREA BERNAL SALDAÑA","Persona Natural",null,null,null,4900000,null,1,2450000,7350000,5226667,"2021-10-12","2021-10-12","2022-01-15",60,1,30,null,null,null,null,null,"X",null,null,0.71111115646258505]
[1,221,2021,"FDLCH-CPS-217-2021","https://community.secop.gov.co/Public/Tendering/OpportunityDetail/Index?noticeUID=CO1.NTC.2310402&isFromPublicArea=True&isModal=true&asPopupView=true","Contratos de prestación de servicios profesionales y de apoyo a la gestión","Contratación directa","Prestación de servicios profesionales y de apoyo a la gestión, o para la ejecución de trabajos artísticos que sólo puedan encomendarse a determinadas personas naturales;","Apoyar jurídicamente la ejecución de las acciones requeridas para la depuración d elas actuaciones administrativas que cursan en la Alcaldía Local.","Inversión","Un Nuevo Contrato Social y Ambiental para la Bogotá del Siglo XXI",57,{"$f":"IF(ISERROR(VLOOKUP(L234,Proposito_programa!$C$2:$E$59,2,FALSE)),\" \",VLOOKUP(L234,Proposito_programa!$C$2:$E$59,2,FALSE))","v":"Gestión pública local"},{"$f":"IF(ISERROR(VLOOKUP(L234,Proposito_programa!$C$2:$E$59,3,FALSE)),\" \",VLOOKUP(L234,Proposito_programa!$C$2:$E$59,3,FALSE))","v":"Propósito 5: Construir Bogotá - Región con gobierno abierto, transparente y ciudadanía consciente"},"133011605570000001841",1,1026267438,"SERGIO GEOVANNY TOCANCIPA ARIZA","Persona Natural",null,null,null,13083000,null,null,null,13083000,7122967,"2021-10-11","2021-10-12","2022-01-15",90,null,0,null,null,null,null,null,"X",null,null,0.5444444699228006]
[1,222,2021,"FDLCH-CPS-218-2021","https://community.secop.gov.co/Public/Tendering/OpportunityDetail/Index?noticeUID=CO1.NTC.2309591&isFromPublicArea=True&isModal=true&asPopupView=true","Contratos de prestación de servicios profesionales y de apoyo a la gestión","Contratación directa","Prestación de servicios profesionales y de apoyo a la gestión, o para la ejecución de trabajos artísticos que sólo puedan encomendarse a determinadas personas naturales;","Prestar los servicios profesionales de apoyo a la gestión para la planeación, gestión, formulación, desarrollo, seguimiento y evaluación del proyecto de inversión \"en chapinero todas contamos\", en atención al fortalecimiento de la capacidad de gestión del Fondo de Desarrollo Local.","Inversión","Un Nuevo Contrato Social y Ambiental para la Bogotá del Siglo XXI",40,{"$f":"IF(ISERROR(VLOOKUP(L235,Proposito_programa!$C$2:$E$59,2,FALSE)),\" \",VLOOKUP(L235,Proposito_programa!$C$2:$E$59,2,FALSE))","v":"Más mujeres viven una vida libre de violencias, se sienten seguras y acceden con confianza al sistema de justicia"},{"$f":"IF(ISERROR(VLOOKUP(L235,Proposito_programa!$C$2:$E$59,3,FALSE)),\" \",VLOOKUP(L235,Proposito_programa!$C$2:$E$59,3,FALSE))","v":"Propósito 3: Inspirar confianza y legitimidad para vivir sin miedo y ser epicentro de cultura ciudadana, paz y reconciliación"},"133011603400000002035",1,53108000,"LEIDY VIVIANA ORTIZ GUEVARA","Persona Natural",null,null,null,15000000,null,null,null,15000000,10666667,"2021-10-11","2021-10-12","2022-01-16",90,null,0,null,null,null,null,null,"X",null,null,0.71111113333333331]
[1,223,2021,"FDLCH-CPS-219-2021","https://community.secop.gov.co/Public/Tendering/OpportunityDetail/Index?noticeUID=CO1.NTC.2240058&isFromPublicArea=True&isModal=true&asPopupView=true","Contratos de prestación de servicios","Licitación pública","No aplica","Prestación de servicios para implementar acciones en atención de urgencias, brigadas médico-veterinarias, esterilización y adopción de fauna doméstiva en condiciones de vulnetabilidad, desarrollando procesos de educación en tenencia rsponsable de animales, en la Localidad de Chapinero.","Inversión","Un Nuevo Contrato Social y Ambiental para la Bogotá del Siglo XXI",34,{"$f":"IF(ISERROR(VLOOKUP(L236,Proposito_programa!$C$2:$E$59,2,FALSE)),\" \",VLOOKUP(L236,Proposito_programa!$C$2:$E$59,2,FALSE))","v":"Bogotá protectora de los animales"},{"$f":"IF(ISERROR(VLOOKUP(L236,Proposito_programa!$C$2:$E$59,3,FALSE)),\" \",VLOOKUP(L236,Proposito_programa!$C$2:$E$59,3,FALSE))","v":"Propósito 2 : Cambiar Nuestros Hábitos de Vida para Reverdecer a Bogotá y Adaptarnos y Mitigar la Crisis Climática"},"133011602340000001731",3,900359095,"FUNDACION ECODES","Persona Jurídica",null,null,null,292452872,null,null,null,292452872,0,"2021-10-20","2021-10-21","2022-01-15",180,null,0,null,null,null,null,null,"X",null,null,0]
[1,224,2021,"FDLCH-CPS-220-2021","https://community.secop.gov.co/Public/Tendering/OpportunityDetail/Index?noticeUID=CO1.NTC.2328689&isFromPublicArea=True&isModal=true&asPopupView=true","Contratos de prestación de servicios profesionales y de apoyo a la gestión","Contratación directa","Prestación de servicios profesionales y de apoyo a la gestión, o para la ejecución de trabajos artísticos que sólo puedan encomendarse a determinadas personas naturales;","Apoyar en las tareas operativas de carácter archivístico desarrolladas en la Alcaldía Local de Chapinero para garantizar la aplicación correcta de los procedimientos técnicos","Inversión","Un Nuevo Contrato Social y Ambiental para la Bogotá del Siglo XXI",57,{"$f":"IF(ISERROR(VLOOKUP(L237,Proposito_programa!$C$2:$E$59,2,FALSE)),\" \",VLOOKUP(L237,Proposito_programa!$C$2:$E$59,2,FALSE))","v":"Gestión pública local"},{"$f":"IF(ISERROR(VLOOKUP(L237,Proposito_programa!$C$2:$E$59,3,FALSE)),\" \",VLOOKUP(L237,Proposito_programa!$C$2:$E$59,3,FALSE))","v":"Propósito 5: Construir Bogotá - Región con gobierno abierto, transparente y ciudadanía consciente"},"133011605570000001741",1,52423626,"DIANA PAOLA OVALLE RODRIGUEZ","Persona Natural",null,null,null,9600000,null,null,null,9600000,5973333,"2021-10-20","2021-10-20","2021-12-27",90,null,0,null,null,null,null,null,"X",null,null,0.62222218750000002]
[1,225,2021,"FDLCH-CPS-221-2021","https://community.secop.gov.co/Public/Tendering/OpportunityDetail/Index?noticeUID=CO1.NTC.2318007&isFromPublicArea=True&isModal=true&asPopupView=true","Contratos de prestación de servicios profesionales y de apoyo a la gestión","Contratación directa","Prestación de servicios profesionales y de apoyo a la gestión, o para la ejecución de trabajos artísticos que sólo puedan encomendarse a determinadas personas naturales;","Prestar los servicios profesionales de apoyo a la gestión para la formulación, desarrollo y seguimiento de las actividades derivadas del proyecto de inversión chapinero modelo de movilidad inteligente","Inversión","Un Nuevo Contrato Social y Ambiental para la Bogotá del Siglo XXI",49,{"$f":"IF(ISERROR(VLOOKUP(L238,Proposito_programa!$C$2:$E$59,2,FALSE)),\" \",VLOOKUP(L238,Proposito_programa!$C$2:$E$59,2,FALSE))","v":"Movilidad segura, sostenible y accesible"},{"$f":"IF(ISERROR(VLOOKUP(L238,Proposito_programa!$C$2:$E$59,3,FALSE)),\" \",VLOOKUP(L238,Proposito_programa!$C$2:$E$59,3,FALSE))","v":"Propósito 4: Hacer de Bogotá Región un modelo de movilidad multimodal, incluyente y sostenible"},"133011604490000001734",1,1015470441,"RICARDO ANDRES SANCHEZ VARGAS","Persona Natural",null,null,null,11629333,null,1,2180500,13809833,9012733,"2021-10-14","2021-10-15","2022-01-20",60,1,30,null,null,null,null,null,"X",null,null,0.65263157056280119]
[1,226,2021,"FDLCH-CPS-222-2021","https://community.secop.gov.co/Public/Tendering/OpportunityDetail/Index?noticeUID=CO1.NTC.2328302&isFromPublicArea=True&isModal=true&asPopupView=true","Contratos de prestación de servicios profesionales y de apoyo a la gestión","Contratación directa","Prestación de servicios profesionales y de apoyo a la gestión, o para la ejecución de trabajos artísticos que sólo puedan encomendarse a determinadas personas naturales;","Prestar los servicios profesionales de apoyo a la gestión para la formulación, desarrollo y seguimiento de las actividades derivadas del proyecto de inversión chapinero modelo de movilidad inteligente","Inversión","Un Nuevo Contrato Social y Ambiental para la Bogotá del Siglo XXI",49,{"$f":"IF(ISERROR(VLOOKUP(L239,Proposito_programa!$C$2:$E$59,2,FALSE)),\" \",VLOOKUP(L239,Proposito_programa!$C$2:$E$59,2,FALSE))","v":"Movilidad segura, sostenible y accesible"},{"$f":"IF(ISERROR(VLOOKUP(L239,Proposito_programa!$C$2:$E$59,3,FALSE)),\" \",VLOOKUP(L239,Proposito_programa!$C$2:$E$59,3,FALSE))","v":"Propósito 4: Hacer de Bogotá Región un modelo de movilidad multimodal, incluyente y sostenible"},"133011604490000001734",1,1070011854,"SANDRA PAOLA SALAMANCA RIAÑO","Persona Natural",null,null,null,11629333,null,1,1453667,13083000,8140533,"2021-10-20","2021-10-21","2022-01-21",60,1,30,null,null,null,null,null,"X",null,null,0.62222219674386614]
[1,227,2021,"FDLCH-CPS-223-2021","https://community.secop.gov.co/Public/Tendering/OpportunityDetail/Index?noticeUID=CO1.NTC.1871730&isFromPublicArea=True&isModal=true&asPopupView=true","Contratos de prestación de servicios profesionales y de apoyo a la gestión","Contratación directa","Prestación de servicios profesionales y de apoyo a la gestión, o para la ejecución de trabajos artísticos que sólo puedan encomendarse a determinadas personas naturales;","Prestar servicios profesionales de apoyo a la gestión al area de gestión del desarrollo local de la Alcaldía Local de Chapinero en la formulacion gestion ejecucion y seguimiento financiero de los contratos derivados del proyecto Chapinero Productivo y emprendedor la Estrategia de Mitigación y Reactivación Economica EMRE Local y la supervisión de contratos que le sean asignados","Inversión","Un Nuevo Contrato Social y Ambiental para la Bogotá del Siglo XXI",6,{"$f":"IF(ISERROR(VLOOKUP(L240,Proposito_programa!$C$2:$E$59,2,FALSE)),\" \",VLOOKUP(L240,Proposito_programa!$C$2:$E$59,2,FALSE))","v":"Sistema Distrital de Cuidado"},{"$f":"IF(ISERROR(VLOOKUP(L240,Proposito_programa!$C$2:$E$59,3,FALSE)),\" \",VLOOKUP(L240,Proposito_programa!$C$2:$E$59,3,FALSE))","v":"Propósito 1: Hacer un nuevo contrato social para incrementar la inclusión social, productiva y política"},"133011601060000001671",1,60256522,"NUBIA CONSTANZA MOGOLLON ACEVEDO","Persona Natural",null,null,null,13083000,null,null,null,13083000,8140533,"2021-10-20","2021-10-20","2022-01-17",90,null,0,null,null,null,null,null,"X",null,null,0.62222219674386614]
[1,228,2021,"FDLCH-CPS-224-2021","https://community.secop.gov.co/Public/Tendering/OpportunityDetail/Index?noticeUID=CO1.NTC.2292916&isFromPublicArea=True&isModal=true&asPopupView=true","Contratos de prestación de servicios profesionales y de apoyo a la gestión","Contratación directa","Prestación de servicios profesionales y de apoyo a la gestión, o para la ejecución de trabajos artísticos que sólo puedan encomendarse a determinadas personas naturales;","Implementar acciones en agricultura urbana (AU) para el fortalecimiento técnico, productivo y organizacional de la red de huertas urbanas y periurbanas de la Localidad de Chapinero.","Inversión","Un Nuevo Contrato Social y Ambiental para la Bogotá del Siglo XXI",24,{"$f":"IF(ISERROR(VLOOKUP(L241,Proposito_programa!$C$2:$E$59,2,FALSE)),\" \",VLOOKUP(L241,Proposito_programa!$C$2:$E$59,2,FALSE))","v":"Bogotá región emprendedora e innovadora"},{"$f":"IF(ISERROR(VLOOKUP(L241,Proposito_programa!$C$2:$E$59,3,FALSE)),\" \",VLOOKUP(L241,Proposito_programa!$C$2:$E$59,3,FALSE))","v":"Propósito 1: Hacer un nuevo contrato social para incrementar la inclusión social, productiva y política"},"133011601240000001631",7,900237637,"CORPORACION ARION","Persona Jurídica",null,null,null,169828021,null,null,null,169828021,0,"2021-10-27","2021-11-02","2022-01-11",180,null,0,null,null,null,null,"X",null,null,null,0]
[1,229,2021,"FDLCH-CPS-225-2021","https://community.secop.gov.co/Public/Tendering/OpportunityDetail/Index?noticeUID=CO1.NTC.2345654&isFromPublicArea=True&isModal=true&asPopupView=true","Contratos de prestación de servicios profesionales y de apoyo a la gestión","Contratación directa","Prestación de servicios profesionales y de apoyo a la gestión, o para la ejecución de trabajos artísticos que sólo puedan encomendarse a determinadas personas naturales;","Prestación de servicios profesionales para la atención integral del manejo de las comisiones judiciales ordenadas por las autoridades jurisdiccionales y prestar apoyo al cobro persuasivo, actuaciones administrativas y policivas de competencia de la Alcaldía Local de Chapinero.","Inversión","Un Nuevo Contrato Social y Ambiental para la Bogotá del Siglo XXI",57,{"$f":"IF(ISERROR(VLOOKUP(L242,Proposito_programa!$C$2:$E$59,2,FALSE)),\" \",VLOOKUP(L242,Proposito_programa!$C$2:$E$59,2,FALSE))","v":"Gestión pública local"},{"$f":"IF(ISERROR(VLOOKUP(L242,Proposito_programa!$C$2:$E$59,3,FALSE)),\" \",VLOOKUP(L242,Proposito_programa!$C$2:$E$59,3,FALSE))","v":"Propósito 5: Construir Bogotá - Región con gobierno abierto, transparente y ciudadanía consciente"},"133011605570000001841",1,79729789,"ALFREDO ENRIQUE CACERES MENDOZA","Persona Natural",null,null,null,10400000,null,null,null,10400000,5546667,"2021-10-28","2021-10-29","2021-12-28",60,null,0,null,null,null,null,null,null,"X",null,0.5333333653846154]
[1,230,2021,"FDLCH-CPS-226-2021","https://community.secop.gov.co/Public/Tendering/OpportunityDetail/Index?noticeUID=CO1.NTC.2345435&isFromPublicArea=True&isModal=true&asPopupView=true","Contratos de prestación de servicios profesionales y de apoyo a la gestión","Contratación directa","Prestación de servicios profesionales y de apoyo a la gestión, o para la ejecución de trabajos artísticos que sólo puedan encomendarse a determinadas personas naturales;","Prestación de servicios profesionales en apoyo al área de desarrollo local de chapinero, para la gestión. desarrollo y seguimiento dle proyecto1695 “JÓVENES COMPROMETIDOS POR CHAPINERO","Inversión","Un Nuevo Contrato Social y Ambiental para la Bogotá del Siglo XXI",17,{"$f":"IF(ISERROR(VLOOKUP(L243,Proposito_programa!$C$2:$E$59,2,FALSE)),\" \",VLOOKUP(L243,Proposito_programa!$C$2:$E$59,2,FALSE))","v":"Jóvenes con capacidades: Proyecto de vida para la ciudadanía, la innovación y el trabajo del siglo XXI"},{"$f":"IF(ISERROR(VLOOKUP(L243,Proposito_programa!$C$2:$E$59,3,FALSE)),\" \",VLOOKUP(L243,Proposito_programa!$C$2:$E$59,3,FALSE))","v":"Propósito 1: Hacer un nuevo contrato social para incrementar la inclusión social, productiva y política"},"133011601170000001695",1,1077870637,"JHONATAN ORLANDO NUÑEZ FERRO","Persona Natural",null,null,null,8722000,null,1,3198100,11920100,6977600,"2021-10-27","2021-10-28","2022-01-28",60,1,30,null,null,null,null,null,"X",null,null,0.58536421674314809]
[1,231,2021,"FDLCH-CPS-227-2021","https://community.secop.gov.co/Public/Tendering/OpportunityDetail/Index?noticeUID=CO1.NTC.2348380&isFromPublicArea=True&isModal=true&asPopupView=true","Contratos de prestación de servicios profesionales y de apoyo a la gestión","Contratación directa","Prestación de servicios profesionales y de apoyo a la gestión, o para la ejecución de trabajos artísticos que sólo puedan encomendarse a determinadas personas naturales;","Prestar servicios de apoyo a la gestión para asistir administrativamente al área de gestión del Desarrollo de l aLocalidad de Chapinero.","Inversión","Un Nuevo Contrato Social y Ambiental para la Bogotá del Siglo XXI",57,{"$f":"IF(ISERROR(VLOOKUP(L244,Proposito_programa!$C$2:$E$59,2,FALSE)),\" \",VLOOKUP(L244,Proposito_programa!$C$2:$E$59,2,FALSE))","v":"Gestión pública local"},{"$f":"IF(ISERROR(VLOOKUP(L244,Proposito_programa!$C$2:$E$59,3,FALSE)),\" \",VLOOKUP(L244,Proposito_programa!$C$2:$E$59,3,FALSE))","v":"Propósito 5: Construir Bogotá - Región con gobierno abierto, transparente y ciudadanía consciente"},"133011605570000001741",1,1024577383,"CRISTIAM DAVID ESTUPIÑAN RODRIGUEZ","Persona Natural",null,null,null,3600000,null,null,null,{"$f":"+W244+X244+Z244","v":3600000},1920000,"2021-10-29","2021-10-29","2022-01-14",60,null,0,null,null,null,null,null,null,"X",null,0.53333333333333333]
[1,232,2021,"FDLCH-CPS-228-2021","https://colombiacompra.gov.co/tienda-virtual-del-estado-colombiano/ordenes-compra/78594","Contratos de prestación de servicios","Selección abreviada","Selección abreviada por menor cuantía ","Contratar el suministro de combustible (GASOLINA CORRIENTE Y ACPM) para los vehículos que conforman el parque automotor de propiedad al servicio del Fondo de Desarrollo Local de Chapinero en las condiciones del acuerdo marco de precios CCE- 715-1-AMP 2018. SEGÚN ORDEN DE COMPRA 78594.","Funcionamiento","Un Nuevo Contrato Social y Ambiental para la Bogotá del Siglo XXI","No aplica",{"$f":"IF(ISERROR(VLOOKUP(L245,Proposito_programa!$C$2:$E$59,2,FALSE)),\" \",VLOOKUP(L245,Proposito_programa!$C$2:$E$59,2,FALSE))","v":" "},{"$f":"IF(ISERROR(VLOOKUP(L245,Proposito_programa!$C$2:$E$59,3,FALSE)),\" \",VLOOKUP(L245,Proposito_programa!$C$2:$E$59,3,FALSE))","v":" "},"1310202010203",1,830095213,"ORGANIZACION TERPEL S.A.","Persona Jurídica",null,null,null,20000000,null,null,null,20000000,2616281,"2021-10-28","2021-10-28","2022-01-21",330,null,0,null,null,null,null,null,null,"X",null,0.13081404999999999]
[1,233,2021,"FDLCH-CPS-230-2021","https://community.secop.gov.co/Public/Tendering/OpportunityDetail/Index?noticeUID=CO1.NTC.2358610&isFromPublicArea=True&isModal=true&asPopupView=true","Contratos de prestación de servicios profesionales y de apoyo a la gestión","Contratación directa","Prestación de servicios profesionales y de apoyo a la gestión, o para la ejecución de trabajos artísticos que sólo puedan encomendarse a determinadas personas naturales;","Prestar servicios profesionales para apoyar jurídicamente la ejecución de las acciones requeridas para la depuración de las actuaciones administrativas que cursan en la Alcaldía Local.","Inversión","Un Nuevo Contrato Social y Ambiental para la Bogotá del Siglo XXI",57,{"$f":"IF(ISERROR(VLOOKUP(L246,Proposito_programa!$C$2:$E$59,2,FALSE)),\" \",VLOOKUP(L246,Proposito_programa!$C$2:$E$59,2,FALSE))","v":"Gestión pública local"},{"$f":"IF(ISERROR(VLOOKUP(L246,Proposito_programa!$C$2:$E$59,3,FALSE)),\" \",VLOOKUP(L246,Proposito_programa!$C$2:$E$59,3,FALSE))","v":"Propósito 5: Construir Bogotá - Región con gobierno abierto, transparente y ciudadanía consciente"},"133011605570000001841",1,1012402727,"NATHALY TORRES TORRES","Persona Natural",null,null,null,8740000,null,1,2039333,10779333,6263667,"2021-11-02","2021-11-03","2022-01-31",60,1,30,null,null,null,null,null,"X",null,null,0.58108112997344086]
[1,234,2021,"FDLCH-CPS-231-2021","https://community.secop.gov.co/Public/Tendering/OpportunityDetail/Index?noticeUID=CO1.NTC.2359896&isFromPublicArea=True&isModal=true&asPopupView=true","Contratos de prestación de servicios profesionales y de apoyo a la gestión","Contratación directa","Prestación de servicios profesionales y de apoyo a la gestión, o para la ejecución de trabajos artísticos que sólo puedan encomendarse a determinadas personas naturales;","Prestar los servicios profesionales para la operación, prestación, seguimiento y cumplimiento de los procedimientos administrativos, operativos y programáticos del Servicio Apoyo Económico Tipo C, que contribuyan a la garantía de los derechos de la población mayor en el marco de la política pública social para el envejecimiento y la vejez en el Distrito Capital a cargo de la Alcaldía Local de Chapinero.","Inversión","Un Nuevo Contrato Social y Ambiental para la Bogotá del Siglo XXI",1,{"$f":"IF(ISERROR(VLOOKUP(L247,Proposito_programa!$C$2:$E$59,2,FALSE)),\" \",VLOOKUP(L247,Proposito_programa!$C$2:$E$59,2,FALSE))","v":"Subsidios y transferencias para la equidad"},{"$f":"IF(ISERROR(VLOOKUP(L247,Proposito_programa!$C$2:$E$59,3,FALSE)),\" \",VLOOKUP(L247,Proposito_programa!$C$2:$E$59,3,FALSE))","v":"Propósito 1: Hacer un nuevo contrato social para incrementar la inclusión social, productiva y política"},"133011601010000001815",1,52813516,"SANDRA MILENA ARDILA TELLEZ","Persona Natural",null,null,null,9000000,null,1,2250000,11250000,6150000,"2021-11-02","2021-11-03","2022-01-04",60,1,30,null,null,null,null,null,"X",null,null,0.54666666666666663]
[1,235,2021,"FDLCH-CIA-232.-2021","https://community.secop.gov.co/Public/Tendering/OpportunityDetail/Index?noticeUID=CO1.NTC.2375831&isFromPublicArea=True&isModal=true&asPopupView=true","Contratos interadministrativos","Contratación directa","Contratos interadministrativos","Aunar esfuerzos técnicos, administrativos y financieros para desarrollar acciones orientas a fomentar la promoción y la prevención en salud con un enfoque territorial, diferencial, poblacional y de derechos en la Localidad de Chapinero.","Inversión","Un Nuevo Contrato Social y Ambiental para la Bogotá del Siglo XXI",6,{"$f":"IF(ISERROR(VLOOKUP(L248,Proposito_programa!$C$2:$E$59,2,FALSE)),\" \",VLOOKUP(L248,Proposito_programa!$C$2:$E$59,2,FALSE))","v":"Sistema Distrital de Cuidado"},{"$f":"IF(ISERROR(VLOOKUP(L248,Proposito_programa!$C$2:$E$59,3,FALSE)),\" \",VLOOKUP(L248,Proposito_programa!$C$2:$E$59,3,FALSE))","v":"Propósito 1: Hacer un nuevo contrato social para incrementar la inclusión social, productiva y política"},"133011601060000002024",1,900971006,"SUBRED INTEGRADA DE SERVICIOS DE SALUD NORTE ESE","Persona Jurídica",null,null,null,286792968,null,null,null,286792968,0,"2021-11-09","2021-12-02","2022-01-04",240,null,0,null,null,null,null,null,"X",null,null,0]
[1,236,2021,"FDLCH-CPS-233-2021","https://community.secop.gov.co/Public/Tendering/OpportunityDetail/Index?noticeUID=CO1.NTC.2366986&isFromPublicArea=True&isModal=true&asPopupView=true","Contratos de prestación de servicios profesionales y de apoyo a la gestión","Contratación directa","Prestación de servicios profesionales y de apoyo a la gestión, o para la ejecución de trabajos artísticos que sólo puedan encomendarse a determinadas personas naturales;","Prestar servicios de apoyo a la gestión en la ejecución de actividades administrativas, operativas y documentales relacionadas con la implementación de la política pública de mujer y género en la Alcaldía Local de Chapienro.","Inversión","Un Nuevo Contrato Social y Ambiental para la Bogotá del Siglo XXI",40,{"$f":"IF(ISERROR(VLOOKUP(L249,Proposito_programa!$C$2:$E$59,2,FALSE)),\" \",VLOOKUP(L249,Proposito_programa!$C$2:$E$59,2,FALSE))","v":"Más mujeres viven una vida libre de violencias, se sienten seguras y acceden con confianza al sistema de justicia"},{"$f":"IF(ISERROR(VLOOKUP(L249,Proposito_programa!$C$2:$E$59,3,FALSE)),\" \",VLOOKUP(L249,Proposito_programa!$C$2:$E$59,3,FALSE))","v":"Propósito 3: Inspirar confianza y legitimidad para vivir sin miedo y ser epicentro de cultura ciudadana, paz y reconciliación"},"133011603400000002035",1,1018493704,"ANGIE CAMILA LEON VARGAS","Persona Natural",null,null,null,5269400,null,1,614761,5884161,3337287,"2021-11-08","2021-11-08","2022-04-11",60,1,30,null,null,null,null,null,"X",null,null,0.56716446065972703]
[1,237,2021,"FDLCH-CPS-234-2021","https://community.secop.gov.co/Public/Tendering/OpportunityDetail/Index?noticeUID=CO1.NTC.2384987&isFromPublicArea=True&isModal=true&asPopupView=true","Contratos de prestación de servicios profesionales y de apoyo a la gestión","Contratación directa","Prestación de servicios profesionales y de apoyo a la gestión, o para la ejecución de trabajos artísticos que sólo puedan encomendarse a determinadas personas naturales;","Prstar servicios profesionales para coordinar, liderar y asesorar los plate sy estrategias de comunicación itnerna y externa para la divulgación de los programas, proyectos y actvidades de la Alcaldía Local.","Inversión","Un Nuevo Contrato Social y Ambiental para la Bogotá del Siglo XXI",57,{"$f":"IF(ISERROR(VLOOKUP(L250,Proposito_programa!$C$2:$E$59,2,FALSE)),\" \",VLOOKUP(L250,Proposito_programa!$C$2:$E$59,2,FALSE))","v":"Gestión pública local"},{"$f":"IF(ISERROR(VLOOKUP(L250,Proposito_programa!$C$2:$E$59,3,FALSE)),\" \",VLOOKUP(L250,Proposito_programa!$C$2:$E$59,3,FALSE))","v":"Propósito 5: Construir Bogotá - Región con gobierno abierto, transparente y ciudadanía consciente"},"133011605570000001741",1,1026259433,"HAYDIBERS ARREDONDO BAUTISTA","Persona Natural",null,null,null,12000000,null,null,null,12000000,6000000,"2021-11-12","2021-11-16","2022-05-18",60,null,0,null,null,null,null,null,"X",null,null,0.5]
[1,238,2021,"FDLCH-CPS-235-2021","https://community.secop.gov.co/Public/Tendering/OpportunityDetail/Index?noticeUID=CO1.NTC.2375611&isFromPublicArea=True&isModal=true&asPopupView=true","Contratos de prestación de servicios profesionales y de apoyo a la gestión","Contratación directa","Prestación de servicios profesionales y de apoyo a la gestión, o para la ejecución de trabajos artísticos que sólo puedan encomendarse a determinadas personas naturales;","Prestar servicios profesionales de apoyo a la gestión para el desarrollo de actividades relacionadas con la formulación, seguimiento, terminación y cierre de proyectos de invrsión relacionados con la gestión ambiental local en el marco del proyecto de inversión Chapinero Siempra Esperanza.","Inversión","Un Nuevo Contrato Social y Ambiental para la Bogotá del Siglo XXI",24,{"$f":"IF(ISERROR(VLOOKUP(L251,Proposito_programa!$C$2:$E$59,2,FALSE)),\" \",VLOOKUP(L251,Proposito_programa!$C$2:$E$59,2,FALSE))","v":"Bogotá región emprendedora e innovadora"},{"$f":"IF(ISERROR(VLOOKUP(L251,Proposito_programa!$C$2:$E$59,3,FALSE)),\" \",VLOOKUP(L251,Proposito_programa!$C$2:$E$59,3,FALSE))","v":"Propósito 1: Hacer un nuevo contrato social para incrementar la inclusión social, productiva y política"},"133011601240000001631",1,1033773200,"PAULA ROCIO VELOZA MARTINEZ","Persona Natural",null,null,null,8800000,null,1,1906658,10706658,5280000,"2021-11-09","2021-11-10","2022-01-21",60,1,30,null,null,null,null,null,"X",null,null,0.49315108411980657]
[1,239,2021,"FDLCH-CPS-236-2021","https://community.secop.gov.co/Public/Tendering/OpportunityDetail/Index?noticeUID=CO1.NTC.2375736&isFromPublicArea=True&isModal=true&asPopupView=true","Contratos de prestación de servicios profesionales y de apoyo a la gestión","Contratación directa","Prestación de servicios profesionales y de apoyo a la gestión, o para la ejecución de trabajos artísticos que sólo puedan encomendarse a determinadas personas naturales;","Prestar servicios profesionales de apoyo a la gestión para el desarrollo de actividades relacionadas con la atención y seguimiento de las problemáticas ambientales presentes en los cerros orientales de la localidad de chapinero en el marco del proyecto chapinero siembra esperanza","Inversión","Un Nuevo Contrato Social y Ambiental para la Bogotá del Siglo XXI",24,{"$f":"IF(ISERROR(VLOOKUP(L252,Proposito_programa!$C$2:$E$59,2,FALSE)),\" \",VLOOKUP(L252,Proposito_programa!$C$2:$E$59,2,FALSE))","v":"Bogotá región emprendedora e innovadora"},{"$f":"IF(ISERROR(VLOOKUP(L252,Proposito_programa!$C$2:$E$59,3,FALSE)),\" \",VLOOKUP(L252,Proposito_programa!$C$2:$E$59,3,FALSE))","v":"Propósito 1: Hacer un nuevo contrato social para incrementar la inclusión social, productiva y política"},"133011601240000001631",1,79748591,"HARVY ZURITH BARRIOS LOPEZ","Persona Natural",null,null,null,8800000,null,1,1906658,10706658,5280000,"2021-11-10","2021-11-10","2022-01-24",60,null,0,null,null,null,null,null,"X",null,null,0.49315108411980657]
[1,240,2021,"FDLCH-CPS-237-2021","https://community.secop.gov.co/Public/Tendering/OpportunityDetail/Index?noticeUID=CO1.NTC.2378056&isFromPublicArea=True&isModal=true&asPopupView=true","Contratos de prestación de servicios profesionales y de apoyo a la gestión","Contratación directa","Prestación de servicios profesionales y de apoyo a la gestión, o para la ejecución de trabajos artísticos que sólo puedan encomendarse a determinadas personas naturales;","Prestar servicios profesionales para apoyar la gestión jurídica en la ejecución de las acciones requeridas para el trámite e impulso procesal de las actuaciones administrativas y de inspección, vigilancia y control de competencia de la Alcaldía Local de Chapinero en cerros orientales, zona de reserva forestal protectora, polígonos de monitoreo, áreas de ocupación pública prioritaria, franja de adecuación y zonas de especial protección ambiental.","Inversión","Un Nuevo Contrato Social y Ambiental para la Bogotá del Siglo XXI",57,{"$f":"IF(ISERROR(VLOOKUP(L253,Proposito_programa!$C$2:$E$59,2,FALSE)),\" \",VLOOKUP(L253,Proposito_programa!$C$2:$E$59,2,FALSE))","v":"Gestión pública local"},{"$f":"IF(ISERROR(VLOOKUP(L253,Proposito_programa!$C$2:$E$59,3,FALSE)),\" \",VLOOKUP(L253,Proposito_programa!$C$2:$E$59,3,FALSE))","v":"Propósito 5: Construir Bogotá - Región con gobierno abierto, transparente y ciudadanía consciente"},"133011605570000001841",1,1010170828,"DIEGO ARMANDO PARRA CASTRO","Persona Natural",null,null,null,9600000,null,null,null,9600000,3200000,"2021-11-10","2021-11-11","2022-01-10",60,null,0,null,null,null,null,null,"X",null,null,0.33333333333333331]
[1,241,2021,"FDLCH-CPS-238-2021","https://community.secop.gov.co/Public/Tendering/OpportunityDetail/Index?noticeUID=CO1.NTC.2384598&isFromPublicArea=True&isModal=true&asPopupView=true","Contratos de prestación de servicios profesionales y de apoyo a la gestión","Contratación directa","Prestación de servicios profesionales y de apoyo a la gestión, o para la ejecución de trabajos artísticos que sólo puedan encomendarse a determinadas personas naturales;","Prestar servicios de apoyo a la gestión para asistir en la ejecución de actividades administrativas, operativas y documentales relacionadas con la ejecución del el Proyecto 1710 - Chapinero Construye Infraestructura Social Prevención de Violencias","Inversión","Un Nuevo Contrato Social y Ambiental para la Bogotá del Siglo XXI",6,{"$f":"IF(ISERROR(VLOOKUP(L254,Proposito_programa!$C$2:$E$59,2,FALSE)),\" \",VLOOKUP(L254,Proposito_programa!$C$2:$E$59,2,FALSE))","v":"Sistema Distrital de Cuidado"},{"$f":"IF(ISERROR(VLOOKUP(L254,Proposito_programa!$C$2:$E$59,3,FALSE)),\" \",VLOOKUP(L254,Proposito_programa!$C$2:$E$59,3,FALSE))","v":"Propósito 1: Hacer un nuevo contrato social para incrementar la inclusión social, productiva y política"},"133011601060000001710",1,35546433,"YASIRA MOSQUERA PANESSO","Persona Natural",null,null,null,3800000,null,null,null,3800000,1900000,"2021-11-12","2021-11-16","2022-01-12",60,null,0,null,null,null,null,null,"X",null,null,0.5]
[1,242,2021,"FDLCH-CPS-239-2021","https://community.secop.gov.co/Public/Tendering/OpportunityDetail/Index?noticeUID=CO1.NTC.2383954&isFromPublicArea=True&isModal=true&asPopupView=true","Contratos interadministrativos","Contratación directa","Contratos interadministrativos","Contratar la prestación de servicios para el desarrollo de actividades encaminadas al fomento de la separación en la fuente, el reciclaje y la resturación ecológica de los recursos ambientales locales.","Inversión","Un Nuevo Contrato Social y Ambiental para la Bogotá del Siglo XXI",28,{"$f":"IF(ISERROR(VLOOKUP(L255,Proposito_programa!$C$2:$E$59,2,FALSE)),\" \",VLOOKUP(L255,Proposito_programa!$C$2:$E$59,2,FALSE))","v":"Bogotá protectora de sus recursos naturales"},{"$f":"IF(ISERROR(VLOOKUP(L255,Proposito_programa!$C$2:$E$59,3,FALSE)),\" \",VLOOKUP(L255,Proposito_programa!$C$2:$E$59,3,FALSE))","v":"Propósito 2 : Cambiar Nuestros Hábitos de Vida para Reverdecer a Bogotá y Adaptarnos y Mitigar la Crisis Climática"},"133011602280000001715",1,830128286,"AGUAS DE BOGOTA S.A. E.S.P","Persona Jurídica",null,null,null,180355000,null,null,null,180355000,0,"2021-12-11","2021-12-07","2022-07-03",180,null,0,null,null,null,null,null,"X",null,null,0]
[1,243,2021,"FDLCH-CPS-239-2021","https://community.secop.gov.co/Public/Tendering/OpportunityDetail/Index?noticeUID=CO1.NTC.2383954&isFromPublicArea=True&isModal=true&asPopupView=true","Contratos interadministrativos","Contratación directa","Contratos interadministrativos","Contratar la prestación de servicios para el desarrollo de actividades encaminadas al fomento de la separación en la fuente, el reciclaje y la resturación ecológica de los recursos ambientales locales.","Inversión","Un Nuevo Contrato Social y Ambiental para la Bogotá del Siglo XXI",28,{"$f":"IF(ISERROR(VLOOKUP(L256,Proposito_programa!$C$2:$E$59,2,FALSE)),\" \",VLOOKUP(L256,Proposito_programa!$C$2:$E$59,2,FALSE))","v":"Bogotá protectora de sus recursos naturales"},{"$f":"IF(ISERROR(VLOOKUP(L256,Proposito_programa!$C$2:$E$59,3,FALSE)),\" \",VLOOKUP(L256,Proposito_programa!$C$2:$E$59,3,FALSE))","v":"Propósito 2 : Cambiar Nuestros Hábitos de Vida para Reverdecer a Bogotá y Adaptarnos y Mitigar la Crisis Climática"},"133011602380000001728",1,830128286,"AGUAS DE BOGOTA S.A. E.S.P","Persona Jurídica",null,null,null,176953000,null,null,null,176953000,0,null,null,null,180,null,0,null,null,null,null,null,null,null,null,0]
[1,244,2021,"FDLCH-CPS-240-2021","https://community.secop.gov.co/Public/Tendering/OpportunityDetail/Index?noticeUID=CO1.NTC.2360467&isFromPublicArea=True&isModal=true&asPopupView=true","Contratos de prestación de servicios","Contratación mínima cuantia","No aplica","Prestar los servicios para desarrollar el encuentro de juegos tradicionales étnicos de la localidad de Chapinero","Inversión","Un Nuevo Contrato Social y Ambiental para la Bogotá del Siglo XXI",20,{"$f":"IF(ISERROR(VLOOKUP(L257,Proposito_programa!$C$2:$E$59,2,FALSE)),\" \",VLOOKUP(L257,Proposito_programa!$C$2:$E$59,2,FALSE))","v":"Bogotá, referente en cultura, deporte, recreación y actividad física, con parques para el desarrollo y la salud"},{"$f":"IF(ISERROR(VLOOKUP(L257,Proposito_programa!$C$2:$E$59,3,FALSE)),\" \",VLOOKUP(L257,Proposito_programa!$C$2:$E$59,3,FALSE))","v":"Propósito 1: Hacer un nuevo contrato social para incrementar la inclusión social, productiva y política"},"133011601200000001845",3,900950959,"CORPORACION BINYE","Persona Jurídica",null,null,null,19590300,-19590300,null,null,0,0,"2021-11-11","SUSCRITO SIN INICIAR",null,60,null,0,null,null,null,null,"X",null,null,null,0]
[1,245,2021,"FDLCH-CPS-240-2021","https://community.secop.gov.co/Public/Tendering/OpportunityDetail/Index?noticeUID=CO1.NTC.2360467&isFromPublicArea=True&isModal=true&asPopupView=true","Contratos de prestación de servicios","Contratación mínima cuantia","No aplica","Prestar los servicios para desarrollar el encuentro de juegos tradicionales étnicos de la localidad de Chapinero","Inversión","Un Nuevo Contrato Social y Ambiental para la Bogotá del Siglo XXI",20,{"$f":"IF(ISERROR(VLOOKUP(L258,Proposito_programa!$C$2:$E$59,2,FALSE)),\" \",VLOOKUP(L258,Proposito_programa!$C$2:$E$59,2,FALSE))","v":"Bogotá, referente en cultura, deporte, recreación y actividad física, con parques para el desarrollo y la salud"},{"$f":"IF(ISERROR(VLOOKUP(L258,Proposito_programa!$C$2:$E$59,3,FALSE)),\" \",VLOOKUP(L258,Proposito_programa!$C$2:$E$59,3,FALSE))","v":"Propósito 1: Hacer un nuevo contrato social para incrementar la inclusión social, productiva y política"},"133011601200000001845",3,900950959,"CORPORACION BINYE","Persona Jurídica",null,null,null,19590300,null,null,null,19590300,0,"2021-11-11","SUSCRITO SIN INICIAR",null,60,null,0,null,null,null,null,"X",null,null,null,0]
[1,246,2021,"FDLCH-CPS-241-2021","https://community.secop.gov.co/Public/Tendering/OpportunityDetail/Index?noticeUID=CO1.NTC.2387809&isFromPublicArea=True&isModal=true&asPopupView=true","Contratos de prestación de servicios profesionales y de apoyo a la gestión","Contratación directa","Prestación de servicios profesionales y de apoyo a la gestión, o para la ejecución de trabajos artísticos que sólo puedan encomendarse a determinadas personas naturales;","Apoyar jurídicamente la ejecución de las acciones requeridas para la depuración de las actuaciones administrativas que cursan en la Alcaldía Local.","Inversión","Un Nuevo Contrato Social y Ambiental para la Bogotá del Siglo XXI",57,{"$f":"IF(ISERROR(VLOOKUP(L259,Proposito_programa!$C$2:$E$59,2,FALSE)),\" \",VLOOKUP(L259,Proposito_programa!$C$2:$E$59,2,FALSE))","v":"Gestión pública local"},{"$f":"IF(ISERROR(VLOOKUP(L259,Proposito_programa!$C$2:$E$59,3,FALSE)),\" \",VLOOKUP(L259,Proposito_programa!$C$2:$E$59,3,FALSE))","v":"Propósito 5: Construir Bogotá - Región con gobierno abierto, transparente y ciudadanía consciente"},"133011605570000001841",1,79937933,"HERNANDO ELIAS GARCIA VARGAS","Persona Natural",null,null,null,8722000,null,null,null,8722000,2180500,"2021-11-13","2021-11-16","2022-01-15",60,null,0,null,null,null,null,null,"X",null,null,0.25]
[1,247,2021,"FDLCH-CPS-242-2021","https://community.secop.gov.co/Public/Tendering/OpportunityDetail/Index?noticeUID=CO1.NTC.2395902&isFromPublicArea=True&isModal=true&asPopupView=true","Contratos de prestación de servicios profesionales y de apoyo a la gestión","Contratación directa","Prestación de servicios profesionales y de apoyo a la gestión, o para la ejecución de trabajos artísticos que sólo puedan encomendarse a determinadas personas naturales;","Prestar servicios profesionales para la gestión, formulación, desarrollo, seguimiento y evaluación del proyecto de invesión chapinero productivo y emprendedor, la estrategia de mitigación y reactivación económica-EMRE Local y la supervisión de contratos que le asean asignados.","Inversión","Un Nuevo Contrato Social y Ambiental para la Bogotá del Siglo XXI",6,{"$f":"IF(ISERROR(VLOOKUP(L260,Proposito_programa!$C$2:$E$59,2,FALSE)),\" \",VLOOKUP(L260,Proposito_programa!$C$2:$E$59,2,FALSE))","v":"Sistema Distrital de Cuidado"},{"$f":"IF(ISERROR(VLOOKUP(L260,Proposito_programa!$C$2:$E$59,3,FALSE)),\" \",VLOOKUP(L260,Proposito_programa!$C$2:$E$59,3,FALSE))","v":"Propósito 1: Hacer un nuevo contrato social para incrementar la inclusión social, productiva y política"},"133011601060000001671",1,1032381420,"JENNIFER TORRES TORRES","Persona Natural",null,null,null,13640000,null,null,null,13640000,5993333,"2021-11-16","2021-11-17","2022-01-20",60,null,0,null,null,null,null,null,"X",null,null,0.43939391495601171]
[1,248,2021,"FDLCH-CPS-243-2021","https://community.secop.gov.co/Public/Tendering/OpportunityDetail/Index?noticeUID=CO1.NTC.2398206&isFromPublicArea=True&isModal=true&asPopupView=true","Contratos de prestación de servicios profesionales y de apoyo a la gestión","Contratación directa","Prestación de servicios profesionales y de apoyo a la gestión, o para la ejecución de trabajos artísticos que sólo puedan encomendarse a determinadas personas naturales;","Apoyar jurídicamente la ejecución de las acciones requeridas para la depuración de las actuaciones administrativas que cursan en la Alcaldía Local.","Inversión","Un Nuevo Contrato Social y Ambiental para la Bogotá del Siglo XXI",57,{"$f":"IF(ISERROR(VLOOKUP(L261,Proposito_programa!$C$2:$E$59,2,FALSE)),\" \",VLOOKUP(L261,Proposito_programa!$C$2:$E$59,2,FALSE))","v":"Gestión pública local"},{"$f":"IF(ISERROR(VLOOKUP(L261,Proposito_programa!$C$2:$E$59,3,FALSE)),\" \",VLOOKUP(L261,Proposito_programa!$C$2:$E$59,3,FALSE))","v":"Propósito 5: Construir Bogotá - Región con gobierno abierto, transparente y ciudadanía consciente"},"133011605570000001841",1,1032492446,"ALVARO JUNIOR CUBILLOS RUIZ","Persona Natural",null,null,null,8722000,null,null,null,8722000,2035133,"2021-11-17","2021-11-17","2022-01-16",60,null,0,null,null,null,null,null,"X",null,null,0.23333329511579912]
[1,249,2021,"FDLCH-CPS-244-2021","https://community.secop.gov.co/Public/Tendering/OpportunityDetail/Index?noticeUID=CO1.NTC.2360162&isFromPublicArea=True&isModal=true&asPopupView=true","Contratos de prestación de servicios","Selección abreviada","Selección abreviada por menor cuantía ","Contratar la prestación de servicios para sensibilizar, capacitar y fortalecer a la comunidad escolar en la prevención y resolución de conflictos con un manejo asertivo en la mediación, con el fin de generar confianza entre la ciudadanía y autoridades en la localidad de chapinero","Inversión","Un Nuevo Contrato Social y Ambiental para la Bogotá del Siglo XXI",48,{"$f":"IF(ISERROR(VLOOKUP(L262,Proposito_programa!$C$2:$E$59,2,FALSE)),\" \",VLOOKUP(L262,Proposito_programa!$C$2:$E$59,2,FALSE))","v":"Plataforma institucional para la seguridad y justicia"},{"$f":"IF(ISERROR(VLOOKUP(L262,Proposito_programa!$C$2:$E$59,3,FALSE)),\" \",VLOOKUP(L262,Proposito_programa!$C$2:$E$59,3,FALSE))","v":"Propósito 3: Inspirar confianza y legitimidad para vivir sin miedo y ser epicentro de cultura ciudadana, paz y reconciliación"},"133011603480000001738",5,900279352,"PROYECTOS Y CONSULTORIAS RC SAS","Persona Jurídica",null,null,null,135621575,null,null,null,135621575,0,"2021-11-22","SUSCRITO SIN INICIAR",null,150,null,0,null,null,null,null,"X",null,null,null,0]
[1,250,2021,"FDLCH-CPS-245-2021","https://community.secop.gov.co/Public/Tendering/OpportunityDetail/Index?noticeUID=CO1.NTC.2355502&isFromPublicArea=True&isModal=true&asPopupView=true","Contratos de prestación de servicios","Selección abreviada","Selección abreviada por menor cuantía ","Contratar la prestación de servicios para sensibilizar y fortalecer a la comunidad en la prevención de violencias y en un manejo asertivo en la resolución de conflictos, con el fin de generar confianza entre ciudadanía y autoridades en la Localidad de Chapinero.","Inversión","Un Nuevo Contrato Social y Ambiental para la Bogotá del Siglo XXI",43,{"$f":"IF(ISERROR(VLOOKUP(L263,Proposito_programa!$C$2:$E$59,2,FALSE)),\" \",VLOOKUP(L263,Proposito_programa!$C$2:$E$59,2,FALSE))","v":"Cultura ciudadana para la confianza, la convivencia y la participación desde la vida cotidiana"},{"$f":"IF(ISERROR(VLOOKUP(L263,Proposito_programa!$C$2:$E$59,3,FALSE)),\" \",VLOOKUP(L263,Proposito_programa!$C$2:$E$59,3,FALSE))","v":"Propósito 3: Inspirar confianza y legitimidad para vivir sin miedo y ser epicentro de cultura ciudadana, paz y reconciliación"},"133011603430000001735",5,900175862,"EGESCO","Persona Jurídica",null,null,null,156061009,null,null,null,156061009,0,"2021-11-19","2021-11-25","2022-05-24",180,null,0,null,null,null,null,null,"X",null,null,0]
[1,251,2021,"FDLCH-CPS-246-2021","https://community.secop.gov.co/Public/Tendering/OpportunityDetail/Index?noticeUID=CO1.NTC.2413614&isFromPublicArea=True&isModal=true&asPopupView=true","Contratos de prestación de servicios profesionales y de apoyo a la gestión","Contratación directa","Prestación de servicios profesionales y de apoyo a la gestión, o para la ejecución de trabajos artísticos que sólo puedan encomendarse a determinadas personas naturales;","Prestar servicios profesionales para apoyar la gestión, formulación, desarrollo, seguimiento y evaluación del proyecto de inversión 1738: “justicia accesible y oportuna para chapinero","Inversión","Un Nuevo Contrato Social y Ambiental para la Bogotá del Siglo XXI",48,{"$f":"IF(ISERROR(VLOOKUP(L264,Proposito_programa!$C$2:$E$59,2,FALSE)),\" \",VLOOKUP(L264,Proposito_programa!$C$2:$E$59,2,FALSE))","v":"Plataforma institucional para la seguridad y justicia"},{"$f":"IF(ISERROR(VLOOKUP(L264,Proposito_programa!$C$2:$E$59,3,FALSE)),\" \",VLOOKUP(L264,Proposito_programa!$C$2:$E$59,3,FALSE))","v":"Propósito 3: Inspirar confianza y legitimidad para vivir sin miedo y ser epicentro de cultura ciudadana, paz y reconciliación"},"133011603480000001738",1,1010219432,"SANTIAGO ALEJANDRO CARDENAS CABALLERO","Persona Natural",null,null,null,4361000,null,1,2180500,6541500,3198067,"2021-11-24","2021-11-24","2022-01-07",30,1,30,null,null,null,null,null,"X",null,null,0.48888893984560117]
[1,252,2021,"FDLCH-CPS-247-2021","https://community.secop.gov.co/Public/Tendering/OpportunityDetail/Index?noticeUID=CO1.NTC.2416121&isFromPublicArea=True&isModal=true&asPopupView=true","Contratos de prestación de servicios profesionales y de apoyo a la gestión","Contratación directa","Prestación de servicios profesionales y de apoyo a la gestión, o para la ejecución de trabajos artísticos que sólo puedan encomendarse a determinadas personas naturales;","Prestar servicios profesionales para el apoyo en la gestión para promover el fotalecimeinto de las organizaciones sociales y comunales de la Localidad.","Inversión","Un Nuevo Contrato Social y Ambiental para la Bogotá del Siglo XXI",55,{"$f":"IF(ISERROR(VLOOKUP(L265,Proposito_programa!$C$2:$E$59,2,FALSE)),\" \",VLOOKUP(L265,Proposito_programa!$C$2:$E$59,2,FALSE))","v":"Fortalecimiento de cultura ciudadana y su institucionalidad"},{"$f":"IF(ISERROR(VLOOKUP(L265,Proposito_programa!$C$2:$E$59,3,FALSE)),\" \",VLOOKUP(L265,Proposito_programa!$C$2:$E$59,3,FALSE))","v":"Propósito 5: Construir Bogotá - Región con gobierno abierto, transparente y ciudadanía consciente"},"133011605550000001739",1,1010161720,"LIZETH NOHELIA BALLESTEROS TORRES","Persona Natural",null,null,null,4400000,null,1,2200000,6600000,3080000,"2021-11-24","2021-11-25","2022-01-08",30,1,30,null,null,null,null,null,"X",null,null,0.46666666666666667]
[1,253,2021,"FDLCH-CPS-248-2021","https://community.secop.gov.co/Public/Tendering/OpportunityDetail/Index?noticeUID=CO1.NTC.2415493&isFromPublicArea=True&isModal=true&asPopupView=true","Contratos de prestación de servicios profesionales y de apoyo a la gestión","Contratación directa","Prestación de servicios profesionales y de apoyo a la gestión, o para la ejecución de trabajos artísticos que sólo puedan encomendarse a determinadas personas naturales;","Prestar servicios para apoyar al área de gestión del desarrollo local de chapinero, en el acompañamiento y atenciónd e la ejecución de las actividades derivadas del proyecto de inversión Chapienro Epicentro del Deporte y la Recreación.","Inversión","Un Nuevo Contrato Social y Ambiental para la Bogotá del Siglo XXI",20,{"$f":"IF(ISERROR(VLOOKUP(L266,Proposito_programa!$C$2:$E$59,2,FALSE)),\" \",VLOOKUP(L266,Proposito_programa!$C$2:$E$59,2,FALSE))","v":"Bogotá, referente en cultura, deporte, recreación y actividad física, con parques para el desarrollo y la salud"},{"$f":"IF(ISERROR(VLOOKUP(L266,Proposito_programa!$C$2:$E$59,3,FALSE)),\" \",VLOOKUP(L266,Proposito_programa!$C$2:$E$59,3,FALSE))","v":"Propósito 1: Hacer un nuevo contrato social para incrementar la inclusión social, productiva y política"},"133011601200000001845",1,1026600301,"ANGIE CAROLINA GARZON CASTAÑEDA","Persona Natural",null,null,null,2400000,null,null,null,2400000,1020000,"2021-11-24","2021-11-29","2022-01-03",30,null,0,null,null,null,null,null,null,"X",null,0.42499999999999999]
[1,254,2021,"FDLCH-CPS-249-2021","https://community.secop.gov.co/Public/Tendering/OpportunityDetail/Index?noticeUID=CO1.NTC.2418834&isFromPublicArea=True&isModal=true&asPopupView=true","Contratos de prestación de servicios profesionales y de apoyo a la gestión","Contratación directa","Prestación de servicios profesionales y de apoyo a la gestión, o para la ejecución de trabajos artísticos que sólo puedan encomendarse a determinadas personas naturales;","Prestar servicios asistenciales de apoyo a la gestión, para el desarrollo de estrategias que promuevan el uso adecuado del espacio público en el marco del proyecto “chapinero es espacio público incluyente y democrático.","Inversión","Un Nuevo Contrato Social y Ambiental para la Bogotá del Siglo XXI",45,{"$f":"IF(ISERROR(VLOOKUP(L267,Proposito_programa!$C$2:$E$59,2,FALSE)),\" \",VLOOKUP(L267,Proposito_programa!$C$2:$E$59,2,FALSE))","v":"Espacio público más seguro y construido colectivamente"},{"$f":"IF(ISERROR(VLOOKUP(L267,Proposito_programa!$C$2:$E$59,3,FALSE)),\" \",VLOOKUP(L267,Proposito_programa!$C$2:$E$59,3,FALSE))","v":"Propósito 3: Inspirar confianza y legitimidad para vivir sin miedo y ser epicentro de cultura ciudadana, paz y reconciliación"},"133011603450000001736",1,79237228,"OMAR ORLANDO BARON VELASCO","Persona Natural",null,null,null,2000000,null,null,null,2000000,0,"2021-11-26","2021-11-26","2021-12-25",30,null,0,null,null,null,null,null,null,"X",null,0]
[1,255,2021,"FDLCH-CPS-251-2021","https://community.secop.gov.co/Public/Tendering/OpportunityDetail/Index?noticeUID=CO1.NTC.2418799&isFromPublicArea=True&isModal=true&asPopupView=true","Contratos de prestación de servicios profesionales y de apoyo a la gestión","Contratación directa","Prestación de servicios profesionales y de apoyo a la gestión, o para la ejecución de trabajos artísticos que sólo puedan encomendarse a determinadas personas naturales;","Prestar servicios de apoyo a la gestión en la ejecución de las actividades administrativas y documentales relacionadas con la gestión policiva en la Alcaldía Local de Chapinero.","Inversión","Un Nuevo Contrato Social y Ambiental para la Bogotá del Siglo XXI",57,{"$f":"IF(ISERROR(VLOOKUP(L268,Proposito_programa!$C$2:$E$59,2,FALSE)),\" \",VLOOKUP(L268,Proposito_programa!$C$2:$E$59,2,FALSE))","v":"Gestión pública local"},{"$f":"IF(ISERROR(VLOOKUP(L268,Proposito_programa!$C$2:$E$59,3,FALSE)),\" \",VLOOKUP(L268,Proposito_programa!$C$2:$E$59,3,FALSE))","v":"Propósito 5: Construir Bogotá - Región con gobierno abierto, transparente y ciudadanía consciente"},"133011605570000001841",1,1033727990,"CAROL JINETH VARGAS CLAROS","Persona Natural",null,null,null,3000000,null,null,null,3000000,1000000,"2021-11-25","2021-12-01","2022-01-12",30,null,0,null,null,null,null,null,"X",null,null,0.33333333333333331]
[1,256,2021,"FDLCH-CPS-252-2021","https://community.secop.gov.co/Public/Tendering/OpportunityDetail/Index?noticeUID=CO1.NTC.2425915&isFromPublicArea=True&isModal=true&asPopupView=true","Contratos de prestación de servicios profesionales y de apoyo a la gestión","Contratación directa","Prestación de servicios profesionales y de apoyo a la gestión, o para la ejecución de trabajos artísticos que sólo puedan encomendarse a determinadas personas naturales;","Prestar los servicios de apoyo necesarios para la conducción de los vehículos que conforman el parque automotor en propiedad o custodia del Fondo de Desarrollo Local de Chapinero, y el transporte de servidores públicos para la realización de las actividades misionales de la Alcaldía Local de Chapinero","Inversión","Un Nuevo Contrato Social y Ambiental para la Bogotá del Siglo XXI",57,{"$f":"IF(ISERROR(VLOOKUP(L269,Proposito_programa!$C$2:$E$59,2,FALSE)),\" \",VLOOKUP(L269,Proposito_programa!$C$2:$E$59,2,FALSE))","v":"Gestión pública local"},{"$f":"IF(ISERROR(VLOOKUP(L269,Proposito_programa!$C$2:$E$59,3,FALSE)),\" \",VLOOKUP(L269,Proposito_programa!$C$2:$E$59,3,FALSE))","v":"Propósito 5: Construir Bogotá - Región con gobierno abierto, transparente y ciudadanía consciente"},"133011605570000001741",1,1018407451,"EMERSON HERNANDO HUERTAS FONSECA","Persona Natural",null,null,null,2400000,null,1,720000,3120000,1280000,"2021-11-29","2021-11-30","2022-01-07",30,1,30,null,null,null,null,null,"X",null,null,0.41025641025641024]
[1,257,2021,"FDLCH-CPS-253-2021","https://community.secop.gov.co/Public/Tendering/OpportunityDetail/Index?noticeUID=CO1.NTC.2403297&isFromPublicArea=True&isModal=true&asPopupView=true","Contratos de prestación de servicios","Contratación mínima cuantia","No aplica","Prestar el servicio de mantenimiento preventivo y correctivo de los ascensores eléctricos de las marcas MP&L y OTIS de las torres A y B de la planta física de la Alcaldía Local de Chapinero a precios unitarios fijos sin formula de reajuste","Funcionamiento","Un Nuevo Contrato Social y Ambiental para la Bogotá del Siglo XXI","No aplica",{"$f":"IF(ISERROR(VLOOKUP(L270,Proposito_programa!$C$2:$E$59,2,FALSE)),\" \",VLOOKUP(L270,Proposito_programa!$C$2:$E$59,2,FALSE))","v":" "},{"$f":"IF(ISERROR(VLOOKUP(L270,Proposito_programa!$C$2:$E$59,3,FALSE)),\" \",VLOOKUP(L270,Proposito_programa!$C$2:$E$59,3,FALSE))","v":" "},"131020202030611",5,901147649,"INGYEMEL PROFESIONALES J&H S.A.S","Persona Jurídica",null,null,null,17003728,null,1,5946266,22949994,0,"2021-11-30","2021-12-16","2022-11-30",360,null,0,null,null,null,null,null,"X",null,null,0]
[1,258,2021,"FDLCH-CCV-254-2021","https://community.secop.gov.co/Public/Tendering/OpportunityDetail/Index?noticeUID=CO1.NTC.2362012&isFromPublicArea=True&isModal=true&asPopupView=true","Compraventa de bienes muebles","Selección abreviada","Bolsas de productos","Realizar la compraventa a monto agotable de los bienes destinados para los colegios distritales de la localidad en el marco del proyecto 1830 Chapinero es Primera Infancia","Inversión","Un Nuevo Contrato Social y Ambiental para la Bogotá del Siglo XXI",12,{"$f":"IF(ISERROR(VLOOKUP(L271,Proposito_programa!$C$2:$E$59,2,FALSE)),\" \",VLOOKUP(L271,Proposito_programa!$C$2:$E$59,2,FALSE))","v":"Educación inicial: Bases sólidas para la vida."},{"$f":"IF(ISERROR(VLOOKUP(L271,Proposito_programa!$C$2:$E$59,3,FALSE)),\" \",VLOOKUP(L271,Proposito_programa!$C$2:$E$59,3,FALSE))","v":"Propósito 1: Hacer un nuevo contrato social para incrementar la inclusión social, productiva y política"},"133011601120000001830",6,900171311,"TECHNOLOGY WORLD GROUP SAS","Persona Jurídica",null,null,null,243844472,null,null,null,243844472,0,"2021-12-01","SUSCRITO SIN INICIAR",null,60,null,0,null,null,null,null,"X",null,null,null,0]
[1,259,2021,"FDLCH-CCV-255-2021","https://community.secop.gov.co/Public/Tendering/OpportunityDetail/Index?noticeUID=CO1.NTC.2362012&isFromPublicArea=True&isModal=true&asPopupView=true","Compraventa de bienes muebles","Selección abreviada","Bolsas de productos","Realizar la compraventa a monto agotable de los bienes destinados para los colegios distritales de la localidad en el marco del proyecto 1830 Chapinero es Primera Infancia","Inversión","Un Nuevo Contrato Social y Ambiental para la Bogotá del Siglo XXI",12,{"$f":"IF(ISERROR(VLOOKUP(L272,Proposito_programa!$C$2:$E$59,2,FALSE)),\" \",VLOOKUP(L272,Proposito_programa!$C$2:$E$59,2,FALSE))","v":"Educación inicial: Bases sólidas para la vida."},{"$f":"IF(ISERROR(VLOOKUP(L272,Proposito_programa!$C$2:$E$59,3,FALSE)),\" \",VLOOKUP(L272,Proposito_programa!$C$2:$E$59,3,FALSE))","v":"Propósito 1: Hacer un nuevo contrato social para incrementar la inclusión social, productiva y política"},"133011601120000001830",6,900838665,"ABOVE SAS","Persona Jurídica",null,null,null,30772842,null,null,null,30772842,0,"2021-12-02","SUSCRITO SIN INICIAR",null,60,null,0,null,null,null,null,"X",null,null,null,0]
[1,260,2021,"FDLCH-CCV-256-2021","https://community.secop.gov.co/Public/Tendering/OpportunityDetail/Index?noticeUID=CO1.NTC.2362012&isFromPublicArea=True&isModal=true&asPopupView=true","Compraventa de bienes muebles","Selección abreviada","Bolsas de productos","Realizar la compraventa a monto agotable de los bienes destinados para los colegios distritales de la localidad en el marco del proyecto 1830 Chapinero es Primera Infancia","Inversión","Un Nuevo Contrato Social y Ambiental para la Bogotá del Siglo XXI",12,{"$f":"IF(ISERROR(VLOOKUP(L273,Proposito_programa!$C$2:$E$59,2,FALSE)),\" \",VLOOKUP(L273,Proposito_programa!$C$2:$E$59,2,FALSE))","v":"Educación inicial: Bases sólidas para la vida."},{"$f":"IF(ISERROR(VLOOKUP(L273,Proposito_programa!$C$2:$E$59,3,FALSE)),\" \",VLOOKUP(L273,Proposito_programa!$C$2:$E$59,3,FALSE))","v":"Propósito 1: Hacer un nuevo contrato social para incrementar la inclusión social, productiva y política"},"133011601120000001830",6,20546554,"LILIA FANNY GUEVARA PARRADO","Persona Natural",null,null,null,35066718,null,null,null,35066718,0,"2021-12-01","SUSCRITO SIN INICIAR",null,60,null,0,null,null,null,null,"X",null,null,null,0]
[1,261,2021,"FDLCH-CPS-257-2021","https://colombiacompra.gov.co/tienda-virtual-del-estado-colombiano/ordenes-compra/81265","Compraventa de bienes muebles","Contratación directa","Prestación de servicios profesionales y de apoyo a la gestión, o para la ejecución de trabajos artísticos que sólo puedan encomendarse a determinadas personas naturales;","Adquisición de un vehículo para el Fondo de Desarrollo Local de Chapinero, en virtud del acuerdo marco de precios para la adquisición de vehículos, vehículos eléctricos y vehículos híbridos para transporte terrestre CCE-163-III-AMP-2020, para fortalecer las acciones de seguridad en la localidad de Chapinero","Inversión","Un Nuevo Contrato Social y Ambiental para la Bogotá del Siglo XXI",48,{"$f":"IF(ISERROR(VLOOKUP(L274,Proposito_programa!$C$2:$E$59,2,FALSE)),\" \",VLOOKUP(L274,Proposito_programa!$C$2:$E$59,2,FALSE))","v":"Plataforma institucional para la seguridad y justicia"},{"$f":"IF(ISERROR(VLOOKUP(L274,Proposito_programa!$C$2:$E$59,3,FALSE)),\" \",VLOOKUP(L274,Proposito_programa!$C$2:$E$59,3,FALSE))","v":"Propósito 3: Inspirar confianza y legitimidad para vivir sin miedo y ser epicentro de cultura ciudadana, paz y reconciliación"},"133011603480000001740",1,860034604,"AUTOMAYOR SA","Persona Jurídica",null,null,null,147511115,null,null,null,147511115,0,"2021-11-30","2021-12-06","2022-05-05",150,null,0,null,null,null,null,null,"X",null,null,0]
[1,262,2021,"FDLCH-CSU-258-2021","https://community.secop.gov.co/Public/Tendering/OpportunityDetail/Index?noticeUID=CO1.NTC.2412971&isFromPublicArea=True&isModal=true&asPopupView=true","Contratos de prestación de servicios","Contratación mínima cuantia","No aplica","Suministrar los elementos y servicios logísticos para apoyar actividades de formación cultural que realice el fondo de desarrollo Local de Chapinero","Inversión","Un Nuevo Contrato Social y Ambiental para la Bogotá del Siglo XXI",21,{"$f":"IF(ISERROR(VLOOKUP(L275,Proposito_programa!$C$2:$E$59,2,FALSE)),\" \",VLOOKUP(L275,Proposito_programa!$C$2:$E$59,2,FALSE))","v":"Creación y vida cotidiana: Apropiación ciudadana del arte, la cultura y el patrimonio, para la democracia cultural"},{"$f":"IF(ISERROR(VLOOKUP(L275,Proposito_programa!$C$2:$E$59,3,FALSE)),\" \",VLOOKUP(L275,Proposito_programa!$C$2:$E$59,3,FALSE))","v":"Propósito 1: Hacer un nuevo contrato social para incrementar la inclusión social, productiva y política"},"133011601210000001848",2,830133329,"FUNDACION PARA EL DESARROLLO SOCIOCULTURAL DEPORTIVO Y COMUNITARIO FUNDESCO","Persona Jurídica",null,null,null,13519000,null,null,null,{"$f":"+W275+X275+Z275","v":13519000},0,"2021-12-02","2021-12-07","2022-06-06",180,null,0,null,null,null,null,null,"X",null,null,0]
[1,263,2021,"FDLCH-CPS-259-2021","https://community.secop.gov.co/Public/Tendering/OpportunityDetail/Index?noticeUID=CO1.NTC.2442261&isFromPublicArea=True&isModal=true&asPopupView=true","Contratos de prestación de servicios profesionales y de apoyo a la gestión","Contratación directa","Prestación de servicios profesionales y de apoyo a la gestión, o para la ejecución de trabajos artísticos que sólo puedan encomendarse a determinadas personas naturales;","Apoyar jurídicamente la ejecución de las acciones requeridas para la depuración de las actuaciones administrativas que cursan en la Alcaldía Local","Inversión","Un Nuevo Contrato Social y Ambiental para la Bogotá del Siglo XXI",57,{"$f":"IF(ISERROR(VLOOKUP(L276,Proposito_programa!$C$2:$E$59,2,FALSE)),\" \",VLOOKUP(L276,Proposito_programa!$C$2:$E$59,2,FALSE))","v":"Gestión pública local"},{"$f":"IF(ISERROR(VLOOKUP(L276,Proposito_programa!$C$2:$E$59,3,FALSE)),\" \",VLOOKUP(L276,Proposito_programa!$C$2:$E$59,3,FALSE))","v":"Propósito 5: Construir Bogotá - Región con gobierno abierto, transparente y ciudadanía consciente"},"133011605570000001841",1,1022327851,"JUAN CAMILO RAMIREZ PINTO","Persona Natural",null,null,null,4400000,null,null,null,4400000,0,"2021-12-06","2021-12-07","2022-01-06",30,null,0,null,null,null,null,null,null,"X",null,0]
[1,264,2021,"FDLCH-CCV-260-2021","https://colombiacompra.gov.co/tienda-virtual-del-estado-colombiano/ordenes-compra/81648","Suministro","Contratación mínima cuantia","No aplica","Adquisición de un botiquín y una camilla y servicio de mantenimiento y recarga de los extintores contra incendio ubicados en las instalaciones de la Alcaldía local de Chapinero y los vehículos del Fondo de Desarrollo Local de Chapinero en las condiciones del acuerdo marco de precios CCE-197-AMP-2021","Funcionamiento","Un Nuevo Contrato Social y Ambiental para la Bogotá del Siglo XXI","No aplica",{"$f":"IF(ISERROR(VLOOKUP(L277,Proposito_programa!$C$2:$E$59,2,FALSE)),\" \",VLOOKUP(L277,Proposito_programa!$C$2:$E$59,2,FALSE))","v":" "},{"$f":"IF(ISERROR(VLOOKUP(L277,Proposito_programa!$C$2:$E$59,3,FALSE)),\" \",VLOOKUP(L277,Proposito_programa!$C$2:$E$59,3,FALSE))","v":" "},"131020202030605",1,900353659,"JM GRUPO EMPRESARIAL SAS","Persona Jurídica",null,null,null,626524,null,null,null,626524,0,"2021-12-03","2021-12-27","2022-01-26",30,null,0,null,null,null,null,null,"X",null,null,0]
[1,265,2021,"FDLCH-CPS-263-2021","https://community.secop.gov.co/Public/Tendering/OpportunityDetail/Index?noticeUID=CO1.NTC.2441680&isFromPublicArea=True&isModal=true&asPopupView=true","Contratos de prestación de servicios profesionales y de apoyo a la gestión","Contratación directa","Prestación de servicios profesionales y de apoyo a la gestión, o para la ejecución de trabajos artísticos que sólo puedan encomendarse a determinadas personas naturales;","Apoyar profesional y jurídicamente el seguimiento, supervisión estratégica y sustanciación de procesos de competencia de la Alcaldía Local de Chapinero anteriores a la entrada en vigencia de la Ley 1801 de 2016.","Inversión","Un Nuevo Contrato Social y Ambiental para la Bogotá del Siglo XXI",57,{"$f":"IF(ISERROR(VLOOKUP(L278,Proposito_programa!$C$2:$E$59,2,FALSE)),\" \",VLOOKUP(L278,Proposito_programa!$C$2:$E$59,2,FALSE))","v":"Gestión pública local"},{"$f":"IF(ISERROR(VLOOKUP(L278,Proposito_programa!$C$2:$E$59,3,FALSE)),\" \",VLOOKUP(L278,Proposito_programa!$C$2:$E$59,3,FALSE))","v":"Propósito 5: Construir Bogotá - Región con gobierno abierto, transparente y ciudadanía consciente"},"133011605570000001841",1,19271830,"MANUEL FALLA BUSTOS","Persona Natural",null,null,null,7500000,null,null,null,7500000,0,"2021-12-06","2021-12-06","2022-01-20",30,null,{"$f":"+AG278*30","v":0},null,null,null,null,null,"X",null,null,0]
[1,266,2021,"FDLCH-CPS-264-2021","https://community.secop.gov.co/Public/Tendering/OpportunityDetail/Index?noticeUID=CO1.NTC.2444421&isFromPublicArea=True&isModal=true&asPopupView=true","Contratos de prestación de servicios profesionales y de apoyo a la gestión","Contratación directa","Prestación de servicios profesionales y de apoyo a la gestión, o para la ejecución de trabajos artísticos que sólo puedan encomendarse a determinadas personas naturales;","Prestar servicios de apoyo a la gestión en la ejecución de las actividades administrativas y documentales relacionadas con la gestión policiva en la Alcaldía Local de Chapinero.","Inversión","Un Nuevo Contrato Social y Ambiental para la Bogotá del Siglo XXI",57,{"$f":"IF(ISERROR(VLOOKUP(L279,Proposito_programa!$C$2:$E$59,2,FALSE)),\" \",VLOOKUP(L279,Proposito_programa!$C$2:$E$59,2,FALSE))","v":"Gestión pública local"},{"$f":"IF(ISERROR(VLOOKUP(L279,Proposito_programa!$C$2:$E$59,3,FALSE)),\" \",VLOOKUP(L279,Proposito_programa!$C$2:$E$59,3,FALSE))","v":"Propósito 5: Construir Bogotá - Región con gobierno abierto, transparente y ciudadanía consciente"},"133011605570000001841",1,37626709,"LUDY MARCELA MORENO SUAREZ","Persona Natural",null,null,null,2000000,null,null,null,2000000,466667,"2021-12-07","2021-12-09","2022-01-06",30,null,0,null,null,null,null,null,null,"X",null,0.2333335]
[1,267,2021,"FDLCH-CPS-265-2021","https://community.secop.gov.co/Public/Tendering/OpportunityDetail/Index?noticeUID=CO1.NTC.2444439&isFromPublicArea=True&isModal=true&asPopupView=true","Contratos de prestación de servicios profesionales y de apoyo a la gestión","Contratación directa","Prestación de servicios profesionales y de apoyo a la gestión, o para la ejecución de trabajos artísticos que sólo puedan encomendarse a determinadas personas naturales;","Prestar servicios de apoyo a la gestión en la ejecución de las actividades administrativas y documentales relacionadas con la gestión policiva en la Alcaldía Local de Chapinero.","Inversión","Un Nuevo Contrato Social y Ambiental para la Bogotá del Siglo XXI",57,{"$f":"IF(ISERROR(VLOOKUP(L280,Proposito_programa!$C$2:$E$59,2,FALSE)),\" \",VLOOKUP(L280,Proposito_programa!$C$2:$E$59,2,FALSE))","v":"Gestión pública local"},{"$f":"IF(ISERROR(VLOOKUP(L280,Proposito_programa!$C$2:$E$59,3,FALSE)),\" \",VLOOKUP(L280,Proposito_programa!$C$2:$E$59,3,FALSE))","v":"Propósito 5: Construir Bogotá - Región con gobierno abierto, transparente y ciudadanía consciente"},"133011605570000001841",1,52253361,"OLGA LUCIA OBANDO CHACA","Persona Natural",null,null,null,2000000,null,null,null,2000000,0,"2021-12-07","2021-12-09","2021-01-08",30,null,0,null,null,null,null,null,"X",null,null,0]
[1,268,2021,"FDLCH-CPS-266-2021","https://community.secop.gov.co/Public/Tendering/OpportunityDetail/Index?noticeUID=CO1.NTC.2450762&isFromPublicArea=True&isModal=true&asPopupView=true","Contratos de prestación de servicios profesionales y de apoyo a la gestión","Contratación directa","Prestación de servicios profesionales y de apoyo a la gestión, o para la ejecución de trabajos artísticos que sólo puedan encomendarse a determinadas personas naturales;","Prestar servicios de apoyo a la gestión en la ejecución de las actividades administrativas y documentales relacionadas con la gestión del área de gestión del desarrollo de la Alcaldía Local de Chapinero.","Inversión","Un Nuevo Contrato Social y Ambiental para la Bogotá del Siglo XXI",57,{"$f":"IF(ISERROR(VLOOKUP(L281,Proposito_programa!$C$2:$E$59,2,FALSE)),\" \",VLOOKUP(L281,Proposito_programa!$C$2:$E$59,2,FALSE))","v":"Gestión pública local"},{"$f":"IF(ISERROR(VLOOKUP(L281,Proposito_programa!$C$2:$E$59,3,FALSE)),\" \",VLOOKUP(L281,Proposito_programa!$C$2:$E$59,3,FALSE))","v":"Propósito 5: Construir Bogotá - Región con gobierno abierto, transparente y ciudadanía consciente"},"133011605570000001741",1,19497826,"RAFAEL PEREZ MORENO","Persona Natural",null,null,null,2000000,null,null,null,2000000,0,"2021-12-13","2021-12-14","2022-01-13",30,null,0,null,null,null,null,null,"X",null,null,0]
[1,269,2021,"FDLCH-CPS-267-2021","https://community.secop.gov.co/Public/Tendering/OpportunityDetail/Index?noticeUID=CO1.NTC.2453955&isFromPublicArea=True&isModal=true&asPopupView=true","Contratos de prestación de servicios profesionales y de apoyo a la gestión","Contratación directa","Prestación de servicios profesionales y de apoyo a la gestión, o para la ejecución de trabajos artísticos que sólo puedan encomendarse a determinadas personas naturales;","Prestar servicios profesionales para apoyar técnicamente las actuaciones administrativas, impulso procesal y de inspección, vigilancia y control en las zonas de especial protección de cerros orientales de competencia de la Alcaldía Local de Chapinero","Inversión","Un Nuevo Contrato Social y Ambiental para la Bogotá del Siglo XXI",57,{"$f":"IF(ISERROR(VLOOKUP(L282,Proposito_programa!$C$2:$E$59,2,FALSE)),\" \",VLOOKUP(L282,Proposito_programa!$C$2:$E$59,2,FALSE))","v":"Gestión pública local"},{"$f":"IF(ISERROR(VLOOKUP(L282,Proposito_programa!$C$2:$E$59,3,FALSE)),\" \",VLOOKUP(L282,Proposito_programa!$C$2:$E$59,3,FALSE))","v":"Propósito 5: Construir Bogotá - Región con gobierno abierto, transparente y ciudadanía consciente"},"133011605570000001841",1,1000145771,"DIANA CAROLINA ERAZO FLOREZ","Persona Natural",null,null,null,5000000,null,null,null,5000000,0,"2021-12-14","2021-12-14","2022-01-13",30,null,0,null,null,null,null,null,"X",null,null,{"$f":"IF(ISERROR(AB282/AA282),\"-\",(AB282/AA282))","v":0}]
[1,270,2021,"FDLCH-CPS-268-2021","https://community.secop.gov.co/Public/Tendering/OpportunityDetail/Index?noticeUID=CO1.NTC.2448147&isFromPublicArea=True&isModal=true&asPopupView=true","Contratos de prestación de servicios profesionales y de apoyo a la gestión","Contratación directa","Prestación de servicios profesionales y de apoyo a la gestión, o para la ejecución de trabajos artísticos que sólo puedan encomendarse a determinadas personas naturales;","Prestar los servicios de apoyo necesarios para la conducción de los vehículos que conforman el parque automotor en propiedad o custodia del Fondo de Desarrollo Local de Chapinero, y el transporte de servidores públicos para la realización de las actividades misionales de la Alcaldía Local de Chapinero.","Inversión","Un Nuevo Contrato Social y Ambiental para la Bogotá del Siglo XXI",57,{"$f":"IF(ISERROR(VLOOKUP(L283,Proposito_programa!$C$2:$E$59,2,FALSE)),\" \",VLOOKUP(L283,Proposito_programa!$C$2:$E$59,2,FALSE))","v":"Gestión pública local"},{"$f":"IF(ISERROR(VLOOKUP(L283,Proposito_programa!$C$2:$E$59,3,FALSE)),\" \",VLOOKUP(L283,Proposito_programa!$C$2:$E$59,3,FALSE))","v":"Propósito 5: Construir Bogotá - Región con gobierno abierto, transparente y ciudadanía consciente"},"133011605570000001741",1,1070704250,"WILMER ANDRES MALDONADO RAMIREZ","Persona Natural",null,null,null,2400000,null,1,720000,3120000,480000,"2021-12-09","2021-12-10","2022-01-18",30,1,30,null,null,null,null,null,"X",null,null,0.15384615384615385]
[1,271,2021,"FDLCH-CPS-269-2021","https://community.secop.gov.co/Public/Tendering/OpportunityDetail/Index?noticeUID=CO1.NTC.2272982&isFromPublicArea=True&isModal=true&asPopupView=true","Contratos de prestación de servicios profesionales y de apoyo a la gestión","Contratación directa","Prestación de servicios profesionales y de apoyo a la gestión, o para la ejecución de trabajos artísticos que sólo puedan encomendarse a determinadas personas naturales;","APOYAR JURÍDICAMENTE LA EJECUCIÓN DE LAS ACCIONES REQUERIDAS PARA LA DEPURACIÓN DE LAS ACTUACIONES ADMINISTRATIVAS QUE CURSAN EN LA ALCALDÍA LOCAL","Inversión","Un Nuevo Contrato Social y Ambiental para la Bogotá del Siglo XXI",57,{"$f":"IF(ISERROR(VLOOKUP(L284,Proposito_programa!$C$2:$E$59,2,FALSE)),\" \",VLOOKUP(L284,Proposito_programa!$C$2:$E$59,2,FALSE))","v":"Gestión pública local"},{"$f":"IF(ISERROR(VLOOKUP(L284,Proposito_programa!$C$2:$E$59,3,FALSE)),\" \",VLOOKUP(L284,Proposito_programa!$C$2:$E$59,3,FALSE))","v":"Propósito 5: Construir Bogotá - Región con gobierno abierto, transparente y ciudadanía consciente"},"133011605570000001841",1,79965971,"CARLOS MANUEL GARZON HERNANDEZ","Persona Natural",null,null,null,4400000,null,null,null,4400000,4253333,"2021-12-09","2021-12-10","2022-01-09",30,null,0,null,null,null,null,null,"X",null,null,0.96666659090909091]
[1,272,2021,"FDLCH-CS-288-2021","https://community.secop.gov.co/Public/Tendering/OpportunityDetail/Index?noticeUID=CO1.NTC.2413853&isFromPublicArea=True&isModal=true&asPopupView=true","Seguros","Selección abreviada","Selección abreviada por menor cuantía ","Contratar el seguro de responsabilidad civil para servidores públicos que ampare los intereses.","Funcionamiento","Un Nuevo Contrato Social y Ambiental para la Bogotá del Siglo XXI","No aplica",{"$f":"IF(ISERROR(VLOOKUP(L285,Proposito_programa!$C$2:$E$59,2,FALSE)),\" \",VLOOKUP(L285,Proposito_programa!$C$2:$E$59,2,FALSE))","v":" "},{"$f":"IF(ISERROR(VLOOKUP(L285,Proposito_programa!$C$2:$E$59,3,FALSE)),\" \",VLOOKUP(L285,Proposito_programa!$C$2:$E$59,3,FALSE))","v":" "},"131020202020109",1,860524654,"ASEGURADORA SOLIDARIA COLOMBIA","Persona Jurídica",null,null,null,44999605,null,null,null,44999605,0,"2021-12-13","2021-12-13","2022-11-30",360,null,0,null,null,null,null,null,"X",null,null,0]
[1,273,2021,"FDLCH-COP-289-2021","https://community.secop.gov.co/Public/Tendering/OpportunityDetail/Index?noticeUID=CO1.NTC.2379911&isFromPublicArea=True&isModal=true&asPopupView=true","Obra pública","Licitación pública","No aplica","Contratar a precios unitarios fijos sin formula de ajuste a monto agotable actividades para la construcción y dotación de los parques vecinales y de bolsillo de la Localidad de Chapinero en Bogotá D.C.","Inversión","Un Nuevo Contrato Social y Ambiental para la Bogotá del Siglo XXI",33,{"$f":"IF(ISERROR(VLOOKUP(L286,Proposito_programa!$C$2:$E$59,2,FALSE)),\" \",VLOOKUP(L286,Proposito_programa!$C$2:$E$59,2,FALSE))","v":"Más árboles y más y mejor espacio público"},{"$f":"IF(ISERROR(VLOOKUP(L286,Proposito_programa!$C$2:$E$59,3,FALSE)),\" \",VLOOKUP(L286,Proposito_programa!$C$2:$E$59,3,FALSE))","v":"Propósito 2 : Cambiar Nuestros Hábitos de Vida para Reverdecer a Bogotá y Adaptarnos y Mitigar la Crisis Climática"},"133011602330000001723",18,900053011,"CONSTRUCTORA VALHER","Persona Jurídica",null,null,null,997139442,null,null,null,997139442,0,"2021-12-15","SUSCRITO SIN INICIAR",null,180,null,0,null,null,null,null,"X",null,null,null,0]
[1,274,2021,"FDLCH-CPS-290-2021","https://community.secop.gov.co/Public/Tendering/OpportunityDetail/Index?noticeUID=CO1.NTC.2466344&isFromPublicArea=True&isModal=true&asPopupView=true","Contratos de prestación de servicios profesionales y de apoyo a la gestión","Contratación directa","Prestación de servicios profesionales y de apoyo a la gestión, o para la ejecución de trabajos artísticos que sólo puedan encomendarse a determinadas personas naturales;","Prestar servicios técnicos para apoyo a la gestión, formulación, desarrollo y seguimieno del proyecto de inversión No. 1731 \"CHAPINERO DEJANDO HUELLA POR LOS ANIMALES\"","Inversión","Un Nuevo Contrato Social y Ambiental para la Bogotá del Siglo XXI",34,{"$f":"IF(ISERROR(VLOOKUP(L287,Proposito_programa!$C$2:$E$59,2,FALSE)),\" \",VLOOKUP(L287,Proposito_programa!$C$2:$E$59,2,FALSE))","v":"Bogotá protectora de los animales"},{"$f":"IF(ISERROR(VLOOKUP(L287,Proposito_programa!$C$2:$E$59,3,FALSE)),\" \",VLOOKUP(L287,Proposito_programa!$C$2:$E$59,3,FALSE))","v":"Propósito 2 : Cambiar Nuestros Hábitos de Vida para Reverdecer a Bogotá y Adaptarnos y Mitigar la Crisis Climática"},"133011602340000001731",1,1022411110,"VERONICA SIMONA MARTÍNEZ AREVALO","Persona Natural",null,null,null,1350000,null,null,null,1350000,0,"2021-12-20","2021-12-21","2022-01-04",450,null,0,null,null,null,null,null,null,"X",null,0]
[1,275,2021,"FDLCH-CCV-291-2021","https://community.secop.gov.co/Public/Tendering/OpportunityDetail/Index?noticeUID=CO1.NTC.2444960&isFromPublicArea=True&isModal=true&asPopupView=true","Suministro","Contratación mínima cuantia","No aplica","Realizar la adquisición de elementos y dispositivos tecnológicos para el fortalecimiento de los procesos de divulgación  comunicación y promoción de las actividades desarrolladas por el Fondo de Desarrollo Local de Chapinero","Funcionamiento","Un Nuevo Contrato Social y Ambiental para la Bogotá del Siglo XXI","No aplica",{"$f":"IF(ISERROR(VLOOKUP(L288,Proposito_programa!$C$2:$E$59,2,FALSE)),\" \",VLOOKUP(L288,Proposito_programa!$C$2:$E$59,2,FALSE))","v":" "},{"$f":"IF(ISERROR(VLOOKUP(L288,Proposito_programa!$C$2:$E$59,3,FALSE)),\" \",VLOOKUP(L288,Proposito_programa!$C$2:$E$59,3,FALSE))","v":" "},"1310201010102",1,901295092,"MACRO INGENIERO SAS","Persona Jurídica",null,null,null,24110100,null,null,null,24110100,0,"2021-12-20","2021-12-27","2022-02-26",60,null,0,null,null,null,null,null,"X",null,null,0]
[1,276,2021,"FDLCH-CCV-292-2021","https://community.secop.gov.co/Public/Tendering/OpportunityDetail/Index?noticeUID=CO1.NTC.2444958&isFromPublicArea=True&isModal=true&asPopupView=true","Compraventa de bienes muebles","Contratación mínima cuantia","No aplica","Compra venta de elementos para implementación del Plan Institucional de Gestión Ambiental en la sede de la Alcaldía Local de Chapinero","Funcionamiento","Un Nuevo Contrato Social y Ambiental para la Bogotá del Siglo XXI","No aplica",{"$f":"IF(ISERROR(VLOOKUP(L289,Proposito_programa!$C$2:$E$59,2,FALSE)),\" \",VLOOKUP(L289,Proposito_programa!$C$2:$E$59,2,FALSE))","v":" "},{"$f":"IF(ISERROR(VLOOKUP(L289,Proposito_programa!$C$2:$E$59,3,FALSE)),\" \",VLOOKUP(L289,Proposito_programa!$C$2:$E$59,3,FALSE))","v":" "},"1310201010103",1,901489264,"TIESTO EMPAQUES","Persona Jurídica",null,null,null,684759,null,null,null,684759,0,"2021-12-20","SUSCRITO SIN INICIAR",null,30,null,0,null,null,null,null,"X",null,null,null,0]
[1,277,2021,"FDLCH-CCV-292-2021","https://community.secop.gov.co/Public/Tendering/OpportunityDetail/Index?noticeUID=CO1.NTC.2444958&isFromPublicArea=True&isModal=true&asPopupView=true","Compraventa de bienes muebles","Contratación mínima cuantia","No aplica","Compra venta de elementos para implementación del Plan Institucional de Gestión Ambiental en la sede de la Alcaldía Local de Chapinero","Funcionamiento","Un Nuevo Contrato Social y Ambiental para la Bogotá del Siglo XXI","No aplica",null,null,"1310202010206",1,901489264,"TIESTO EMPAQUES","Persona Jurídica",null,null,null,2000000,null,null,null,2000000,0,"2021-12-20","SUSCRITO SIN INICIAR",null,30,null,0,null,null,null,null,"X",null,null,null,0]
[1,278,2021,"FDLCH-CCV-293-2021","https://community.secop.gov.co/Public/Tendering/OpportunityDetail/Index?noticeUID=CO1.NTC.2450587&isFromPublicArea=True&isModal=true&asPopupView=true","Compraventa de bienes muebles","Contratación mínima cuantia","No aplica","Prestar el servicio de mensajería expresa nacional para la Alcaldía Local de Chapinero","Funcionamiento","Un Nuevo Contrato Social y Ambiental para la Bogotá del Siglo XXI","No aplica",{"$f":"IF(ISERROR(VLOOKUP(L291,Proposito_programa!$C$2:$E$59,2,FALSE)),\" \",VLOOKUP(L291,Proposito_programa!$C$2:$E$59,2,FALSE))","v":" "},{"$f":"IF(ISERROR(VLOOKUP(L291,Proposito_programa!$C$2:$E$59,3,FALSE)),\" \",VLOOKUP(L291,Proposito_programa!$C$2:$E$59,3,FALSE))","v":" "},"131020202010601",1,900429481,"E S M LOGISTICA SAS","Persona Jurídica",null,null,null,6000000,null,null,null,6000000,0,"2021-12-21","2021-12-30","2022-05-05",150,null,0,null,null,null,null,null,"X",null,null,0]
[1,279,2021,"FDLCH-CPS-294-2021","https://community.secop.gov.co/Public/Tendering/OpportunityDetail/Index?noticeUID=CO1.NTC.2434693&isFromPublicArea=True&isModal=true&asPopupView=true","Contratos de prestación de servicios","Selección abreviada","Selección abreviada por menor cuantía ","Prestar servicios operativos y logísticos para el fortaleicmiento empresarial la revitlaización y la pontecialzación de las mipymes de la Localidad de Chapinero.","Inversión","Un Nuevo Contrato Social y Ambiental para la Bogotá del Siglo XXI",6,{"$f":"IF(ISERROR(VLOOKUP(L292,Proposito_programa!$C$2:$E$59,2,FALSE)),\" \",VLOOKUP(L292,Proposito_programa!$C$2:$E$59,2,FALSE))","v":"Sistema Distrital de Cuidado"},{"$f":"IF(ISERROR(VLOOKUP(L292,Proposito_programa!$C$2:$E$59,3,FALSE)),\" \",VLOOKUP(L292,Proposito_programa!$C$2:$E$59,3,FALSE))","v":"Propósito 1: Hacer un nuevo contrato social para incrementar la inclusión social, productiva y política"},"133011601060000001671",5,900004535,"CORPORACION DE SERVICIOS COLOMBIA CORSERVICOL ONG","Persona Jurídica",null,null,null,72520766,null,null,null,72520766,0,"2021-12-22","SUSCRITO SIN INICIAR",null,90,null,0,null,null,null,null,"X",null,null,null,0]
[1,280,2021,"FDLCH-CPS-295-2021","https://community.secop.gov.co/Public/Tendering/OpportunityDetail/Index?noticeUID=CO1.NTC.2434697&isFromPublicArea=True&isModal=true&asPopupView=true","Contratos de prestación de servicios","Selección abreviada","Selección abreviada por menor cuantía ","Contratar la prestación de servicios para desarrollar estrategis que promuevan los dispositivos de base comunitaria y el reconocimiento de los saberes ancestrales en el marco del proyecto 2024 \"CHAPINERO PROMUEVE LA INCLUSIÓN Y EL CUIDADO POR LA SALUD\"","Inversión","Un Nuevo Contrato Social y Ambiental para la Bogotá del Siglo XXI",6,{"$f":"IF(ISERROR(VLOOKUP(L293,Proposito_programa!$C$2:$E$59,2,FALSE)),\" \",VLOOKUP(L293,Proposito_programa!$C$2:$E$59,2,FALSE))","v":"Sistema Distrital de Cuidado"},{"$f":"IF(ISERROR(VLOOKUP(L293,Proposito_programa!$C$2:$E$59,3,FALSE)),\" \",VLOOKUP(L293,Proposito_programa!$C$2:$E$59,3,FALSE))","v":"Propósito 1: Hacer un nuevo contrato social para incrementar la inclusión social, productiva y política"},"133011601060000002024",5,830133329,"FUNDACION PARA EL DESARROLLO SOCIOCULTURAL DEPORTIVO Y COMUNITARIO FUNDESCO","Persona Jurídica",null,null,null,134855265,null,null,null,134855265,0,"2021-12-22","SUSCRITO SIN INICIAR",null,150,null,0,null,null,null,null,"X",null,null,null,0]
[1,281,2021,"FDLCH-CPS-296-2021","https://community.secop.gov.co/Public/Tendering/OpportunityDetail/Index?noticeUID=CO1.NTC.2442309&isFromPublicArea=True&isModal=true&asPopupView=true","Contratos de prestación de servicios","Selección abreviada","Selección abreviada por menor cuantía ","Prestar los servicios para el desarrollo de las estrategias que permitan avanzar en la construcción del acuerdo local para el uso del Espacio Público con fines culturales  deportivos  recreativos o de mercados temporales en la Localidad de Chapinero","Inversión","Un Nuevo Contrato Social y Ambiental para la Bogotá del Siglo XXI",45,{"$f":"IF(ISERROR(VLOOKUP(L294,Proposito_programa!$C$2:$E$59,2,FALSE)),\" \",VLOOKUP(L294,Proposito_programa!$C$2:$E$59,2,FALSE))","v":"Espacio público más seguro y construido colectivamente"},{"$f":"IF(ISERROR(VLOOKUP(L294,Proposito_programa!$C$2:$E$59,3,FALSE)),\" \",VLOOKUP(L294,Proposito_programa!$C$2:$E$59,3,FALSE))","v":"Propósito 3: Inspirar confianza y legitimidad para vivir sin miedo y ser epicentro de cultura ciudadana, paz y reconciliación"},"133011603450000001736",6,830133329,"FUNDACION PARA EL DESARROLLO SOCIOCULTURAL DEPORTIVO Y COMUNITARIO FUNDESCO","Persona Jurídica",null,null,null,67052320,null,null,null,67052320,0,"2021-12-22","SUSCRITO SIN INICIAR",null,120,null,0,null,null,null,null,"X",null,null,null,0]
[1,282,2021,"FDLCH-CCV-297-2021","https://colombiacompra.gov.co/tienda-virtual-del-estado-colombiano/ordenes-compra/83219","Otros","Contratación mínima cuantia","No aplica","Adquirir todos los insumos de papelería, papelería y elementos de oficina, necesarios para suplir las necesidades del Fondo de Desarrollo Local de Chapinero, Junta Administradora Local e Inspecciones de Policía","Funcionamiento","Un Nuevo Contrato Social y Ambiental para la Bogotá del Siglo XXI","No aplica",{"$f":"IF(ISERROR(VLOOKUP(L295,Proposito_programa!$C$2:$E$59,2,FALSE)),\" \",VLOOKUP(L295,Proposito_programa!$C$2:$E$59,2,FALSE))","v":" "},{"$f":"IF(ISERROR(VLOOKUP(L295,Proposito_programa!$C$2:$E$59,3,FALSE)),\" \",VLOOKUP(L295,Proposito_programa!$C$2:$E$59,3,FALSE))","v":" "},"1310202010202",1,830037946,"PANAMERICANA LIBRERIA Y PAPELERIA SA","Persona Jurídica",null,null,null,5939337,null,null,null,5939337,0,"2021-12-23","2021-12-23","2022-01-22",30,null,0,null,null,null,null,null,"X",null,null,0]
[1,283,2021,"FDLCH-CCV-298-2021","https://colombiacompra.gov.co/tienda-virtual-del-estado-colombiano/ordenes-compra/83220","Otros","Contratación mínima cuantia","No aplica","Adquirir todos los insumos de papelería, papelería y elementos de oficina, necesarios para suplir las necesidades del Fondo de Desarrollo Local de Chapinero, Junta Administradora Local e Inspecciones de Policía","Funcionamiento","Un Nuevo Contrato Social y Ambiental para la Bogotá del Siglo XXI","No aplica",{"$f":"IF(ISERROR(VLOOKUP(L296,Proposito_programa!$C$2:$E$59,2,FALSE)),\" \",VLOOKUP(L296,Proposito_programa!$C$2:$E$59,2,FALSE))","v":" "},{"$f":"IF(ISERROR(VLOOKUP(L296,Proposito_programa!$C$2:$E$59,3,FALSE)),\" \",VLOOKUP(L296,Proposito_programa!$C$2:$E$59,3,FALSE))","v":" "},"1310202010202",1,860007336,"CAJA COLOMBIANA DE SUBSIDIO FAMILIAR-COLSUBSIDIO","Persona Jurídica",null,null,null,11058048,null,null,null,11058048,0,"2021-12-23","2021-12-23","2022-01-22",30,null,0,null,null,null,null,null,"X",null,null,0]
[1,284,2021,"FDLCH-CPS-300-2021","https://community.secop.gov.co/Public/Tendering/OpportunityDetail/Index?noticeUID=CO1.NTC.2449883&isFromPublicArea=True&isModal=true&asPopupView=true","Contratos de prestación de servicios","Selección abreviada","Selección abreviada por menor cuantía ","Prestar servicios para fomentar el gobierno abierto, la transparecia local y desarrollar el proceso de rendición de cuentas de la Localidad de Chapinero.","Inversión","Un Nuevo Contrato Social y Ambiental para la Bogotá del Siglo XXI",57,{"$f":"IF(ISERROR(VLOOKUP(L297,Proposito_programa!$C$2:$E$59,2,FALSE)),\" \",VLOOKUP(L297,Proposito_programa!$C$2:$E$59,2,FALSE))","v":"Gestión pública local"},{"$f":"IF(ISERROR(VLOOKUP(L297,Proposito_programa!$C$2:$E$59,3,FALSE)),\" \",VLOOKUP(L297,Proposito_programa!$C$2:$E$59,3,FALSE))","v":"Propósito 5: Construir Bogotá - Región con gobierno abierto, transparente y ciudadanía consciente"},"133011605570000001741",6,830071862,"CORPORACION COLOMBIANA DE ACULTURA URCONSERVACIAMBIENTE CORAMBIENTAL","Persona Jurídica",null,null,null,54000000,null,null,null,54000000,0,"2021-12-22","SUSCRITO SIN INICIAR","2022-06-30",120,null,0,null,null,null,null,"X",null,null,null,0]
[1,285,2021,"FDLCH-CIN-301-2021","https://community.secop.gov.co/Public/Tendering/OpportunityDetail/Index?noticeUID=CO1.NTC.2444964&isFromPublicArea=True&isModal=true&asPopupView=true","Interventoría","Concurso de méritos","No aplica","Realizar interventoría técnica, administrativa, legal, financiera, social y ambiental, al contrato de obra pública derivado de la licitación pública No 004-2021, cuyo objeto es contratar a precios unitarios fijos, sin CUYO OBJETO ES CONTRATAR A PRECIOS UNITARIOS FIJOS, SIN FORMULA DE AJUSTE A MONTO AGOTABLE, ACTIVIDADES PARA LA CONSTRUCCIÓN Y DOTACIÓN DE LOS PARQUES VECINALES Y DE BOLSILLO DE LA LOCALIDAD DE CHAPINERO EN BOGOTÁ D.C","Inversión","Un Nuevo Contrato Social y Ambiental para la Bogotá del Siglo XXI",33,{"$f":"IF(ISERROR(VLOOKUP(L298,Proposito_programa!$C$2:$E$59,2,FALSE)),\" \",VLOOKUP(L298,Proposito_programa!$C$2:$E$59,2,FALSE))","v":"Más árboles y más y mejor espacio público"},{"$f":"IF(ISERROR(VLOOKUP(L298,Proposito_programa!$C$2:$E$59,3,FALSE)),\" \",VLOOKUP(L298,Proposito_programa!$C$2:$E$59,3,FALSE))","v":"Propósito 2 : Cambiar Nuestros Hábitos de Vida para Reverdecer a Bogotá y Adaptarnos y Mitigar la Crisis Climática"},"133011602330000001723",1,901550695,"NOGAALL-GEINCO","Persona Jurídica",null,null,null,310200000,null,null,null,310200000,0,"2021-12-24","SUSCRITO SIN INICIAR","2022-07-30",180,null,0,null,null,null,null,"X",null,null,null,0]
[1,286,2021,"FDLCH-CCV-302-2021","https://colombiacompra.gov.co/tienda-virtual-del-estado-colombiano/ordenes-compra/83569","Contratos de prestación de servicios","Contratación mínima cuantia","No aplica","Adquirir el mobiliario-sillas ergonómicas para cubrir las necesidades propias de la Alcaldía Local de Chapinero en el desarrollo de sus activiadades.","Funcionamiento","Un Nuevo Contrato Social y Ambiental para la Bogotá del Siglo XXI","No aplica",{"$f":"IF(ISERROR(VLOOKUP(L299,Proposito_programa!$C$2:$E$59,2,FALSE)),\" \",VLOOKUP(L299,Proposito_programa!$C$2:$E$59,2,FALSE))","v":" "},{"$f":"IF(ISERROR(VLOOKUP(L299,Proposito_programa!$C$2:$E$59,3,FALSE)),\" \",VLOOKUP(L299,Proposito_programa!$C$2:$E$59,3,FALSE))","v":" "},"1310202010208",1,860007336,"COLSUBSIDIO","Persona Jurídica",null,null,null,24669600,null,null,null,24669600,0,"2021-12-24","2021-01-06","2022-02-05",30,null,0,null,null,null,null,null,"X",null,null,0]
[1,287,2021,"FDLCH-CPS-303-2021","https://community.secop.gov.co/Public/Tendering/OpportunityDetail/Index?noticeUID=CO1.NTC.2467127&isFromPublicArea=True&isModal=true&asPopupView=true","Contratos de prestación de servicios","Contratación mínima cuantia","No aplica","Contratar la Prestación de Servicios de material impreso y / o digital de acuerdo a las necesidades de la Alcaldía Local de Chapinero","Funcionamiento","Un Nuevo Contrato Social y Ambiental para la Bogotá del Siglo XXI","No aplica",{"$f":"IF(ISERROR(VLOOKUP(L300,Proposito_programa!$C$2:$E$59,2,FALSE)),\" \",VLOOKUP(L300,Proposito_programa!$C$2:$E$59,2,FALSE))","v":" "},{"$f":"IF(ISERROR(VLOOKUP(L300,Proposito_programa!$C$2:$E$59,3,FALSE)),\" \",VLOOKUP(L300,Proposito_programa!$C$2:$E$59,3,FALSE))","v":" "},"1310202010202",6,900223533,"ULTRA CONCEPT","Persona Jurídica",null,null,null,8000000,null,null,null,8000000,0,"2021-12-28","SUSCRITO SIN INICIAR",null,270,null,0,null,null,null,null,"X",null,null,null,0]
[1,288,2021,"FDLCH-CPS-303-2021","https://community.secop.gov.co/Public/Tendering/OpportunityDetail/Index?noticeUID=CO1.NTC.2467127&isFromPublicArea=True&isModal=true&asPopupView=true","Contratos de prestación de servicios","Contratación mínima cuantia","No aplica","Contratar la Prestación de Servicios de material impreso y / o digital de acuerdo a las necesidades de la Alcaldía Local de Chapinero","Funcionamiento","Un Nuevo Contrato Social y Ambiental para la Bogotá del Siglo XXI","No aplica",null,null,"131020202030702",6,900223533,"ULTRA CONCEPT","Persona Jurídica",null,null,null,8500000,null,null,null,8500000,0,"2021-12-28","SUSCRITO SIN INICIAR",null,270,null,null,null,null,null,null,"X",null,null,null,0]
[1,289,2021,"FDLCH-COP-304-2021","https://community.secop.gov.co/Public/Tendering/OpportunityDetail/Index?noticeUID=CO1.NTC.2410891&isFromPublicArea=True&isModal=true&asPopupView=true","Obra pública","Licitación pública","No aplica","Ejecutar a monto agotable, por precios unitarios fijos obras y activiades para la conservación de la infraestructura vial rural de la Localidad de Chapinero, en Bogotá D.C.","Inversión","Un Nuevo Contrato Social y Ambiental para la Bogotá del Siglo XXI",49,{"$f":"IF(ISERROR(VLOOKUP(L302,Proposito_programa!$C$2:$E$59,2,FALSE)),\" \",VLOOKUP(L302,Proposito_programa!$C$2:$E$59,2,FALSE))","v":"Movilidad segura, sostenible y accesible"},{"$f":"IF(ISERROR(VLOOKUP(L302,Proposito_programa!$C$2:$E$59,3,FALSE)),\" \",VLOOKUP(L302,Proposito_programa!$C$2:$E$59,3,FALSE))","v":"Propósito 4: Hacer de Bogotá Región un modelo de movilidad multimodal, incluyente y sostenible"},"133011604490000001734",29,901551349,"UNION TEMPORAL BCC CHAPINERO 2021","Unión Temporal",1136887818,"RAUL ERNESTO ARANGO                              ",0.5,1875275007,null,null,null,{"$f":"+W302+X302+Z302","v":1875275007},0,"2021-12-27","SUSCRITO SIN INICIAR",null,180,null,0,null,null,null,null,"X",null,null,null,0]
[1,290,2021,"FDLCH-COP-304-2021","https://community.secop.gov.co/Public/Tendering/OpportunityDetail/Index?noticeUID=CO1.NTC.2410891&isFromPublicArea=True&isModal=true&asPopupView=true","Obra pública","Licitación pública","No aplica","Ejecutar a monto agotable, por precios unitarios fijos obras y activiades para la conservación de la infraestructura vial rural de la Localidad de Chapinero, en Bogotá D.C.","Inversión","Un Nuevo Contrato Social y Ambiental para la Bogotá del Siglo XXI",49,{"$f":"IF(ISERROR(VLOOKUP(L303,Proposito_programa!$C$2:$E$59,2,FALSE)),\" \",VLOOKUP(L303,Proposito_programa!$C$2:$E$59,2,FALSE))","v":"Movilidad segura, sostenible y accesible"},{"$f":"IF(ISERROR(VLOOKUP(L303,Proposito_programa!$C$2:$E$59,3,FALSE)),\" \",VLOOKUP(L303,Proposito_programa!$C$2:$E$59,3,FALSE))","v":"Propósito 4: Hacer de Bogotá Región un modelo de movilidad multimodal, incluyente y sostenible"},"133011604490000001734",29,901551349,"UNION TEMPORAL BCC CHAPINERO 2021","Unión Temporal",79286180,"JOSE MANUEL BALLEN BUITRAGO ",0.5,null,null,null,null,0,0,"2021-12-27","SUSCRITO SIN INICIAR",null,180,null,{"$f":"+AG303*30","v":0},null,null,null,null,"X",null,null,null,"-"]
[1,291,2021,"FDLCH-CPS-305-2021","https://community.secop.gov.co/Public/Tendering/OpportunityDetail/Index?noticeUID=CO1.NTC.2466884&isFromPublicArea=True&isModal=true&asPopupView=true","Contratos de prestación de servicios","Contratación mínima cuantia","No aplica","Prestar los servicios para la recuperación y mantenimiento de los jardines verticales de las instalaciones de la Alcaldía Local de Chapinero","Funcionamiento","Un Nuevo Contrato Social y Ambiental para la Bogotá del Siglo XXI","No aplica",{"$f":"IF(ISERROR(VLOOKUP(L304,Proposito_programa!$C$2:$E$59,2,FALSE)),\" \",VLOOKUP(L304,Proposito_programa!$C$2:$E$59,2,FALSE))","v":" "},{"$f":"IF(ISERROR(VLOOKUP(L304,Proposito_programa!$C$2:$E$59,3,FALSE)),\" \",VLOOKUP(L304,Proposito_programa!$C$2:$E$59,3,FALSE))","v":" "},"131020202030612",4,423972,"LUIS FRANCISCO MORENO SANDOVAL VECOPRADOS SOLUCIONES AMBIENTALES","Persona Jurídica",null,null,null,8920000,null,null,null,8920000,0,"2021-12-28","SUSCRITO SIN INICIAR",null,30,null,0,null,null,null,null,"X",null,null,null,0]
[1,292,2021,"FDLCH-CPS-307-2021","https://colombiacompra.gov.co/tienda-virtual-del-estado-colombiano/ordenes-compra/83772","Compraventa de bienes muebles","Selección abreviada","Acuerdo marco de precios ","ADQUIRIR ELEMENTOS DE TECNOLOGÍA PARA EL FONDO DE DESARROLLO LOCAL DE CHAPINERO. SEGÚN ORDEN DE COMPRA 83772","Funcionamiento","Un Nuevo Contrato Social y Ambiental para la Bogotá del Siglo XXI","No aplica",{"$f":"IF(ISERROR(VLOOKUP(L305,Proposito_programa!$C$2:$E$59,2,FALSE)),\" \",VLOOKUP(L305,Proposito_programa!$C$2:$E$59,2,FALSE))","v":" "},{"$f":"IF(ISERROR(VLOOKUP(L305,Proposito_programa!$C$2:$E$59,3,FALSE)),\" \",VLOOKUP(L305,Proposito_programa!$C$2:$E$59,3,FALSE))","v":" "},"1310201010102",1,890900608,"ALMACENES EXITO S.A.","Persona Jurídica",null,null,null,7599800,null,null,null,7599800,0,"2021-12-28","SUSCRITO SIN INICIAR",null,30,null,0,null,null,null,null,"X",null,null,null,0]
[1,293,2021,"FDLCH-CPS-308-2021","https://community.secop.gov.co/Public/Tendering/OpportunityDetail/Index?noticeUID=CO1.NTC.2443238&isFromPublicArea=True&isModal=False","Interventoría","Concurso de méritos","No aplica","REALIZAR LA INTERVENTORÍA TÉCNICA, ADMINISTRATIVA, FINANCIERA, SOCIAL, AMBIENTAL Y SISTEMA DE SEGURIDAD Y SALUD EN EL TRABAJO - SG-SST, DEL CONTRATO DE OBRA QUE SE DERIVE DE LA LICITACIÓN PUBLICA O LA QUE HAGA SUS VECES, QUE REFIERE A \"EJECUTAR A MONTO AGOTABLE, POR PRECIOS UNITARIOS FIJOS OBRAS Y ACTIVIDADES PARA LA CONSERVACION DE LA INFRAESTRUCTURA VIAL RURAL DE LA LOCALIDAD DE CHAPINERO, EN BOGOTÁ, D.C\"","Inversión","Un Nuevo Contrato Social y Ambiental para la Bogotá del Siglo XXI","No aplica","Movilidad segura, sostenible y accesible","Propósito 4: Hacer de Bogotá Región un modelo de movilidad multimodal, incluyente y sostenible","133011604490000001734",32,901551951,"CONSORCIO IB INTERVENTORES 2021","Consorcio","1049625075","MAURICIO FERNANDO PRIETO SANCHEZ",0.5,321250994,null,null,null,321250994,0,"2021-12-29","SUSCRITO SIN INICIAR",null,180,null,0,null,null,null,null,"X"]
[1,294,2021,"FDLCH-CPS-308-2021","https://community.secop.gov.co/Public/Tendering/OpportunityDetail/Index?noticeUID=CO1.NTC.2443238&isFromPublicArea=True&isModal=False","Interventoría","Concurso de méritos","No aplica","REALIZAR LA INTERVENTORÍA TÉCNICA, ADMINISTRATIVA, FINANCIERA, SOCIAL, AMBIENTAL Y SISTEMA DE SEGURIDAD Y SALUD EN EL TRABAJO - SG-SST, DEL CONTRATO DE OBRA QUE SE DERIVE DE LA LICITACIÓN PUBLICA O LA QUE HAGA SUS VECES, QUE REFIERE A \"EJECUTAR A MONTO AGOTABLE, POR PRECIOS UNITARIOS FIJOS OBRAS Y ACTIVIDADES PARA LA CONSERVACION DE LA INFRAESTRUCTURA VIAL RURAL DE LA LOCALIDAD DE CHAPINERO, EN BOGOTÁ, D.C\"","Inversión","Un Nuevo Contrato Social y Ambiental para la Bogotá del Siglo XXI",49,{"$f":"IF(ISERROR(VLOOKUP(L307,Proposito_programa!$C$2:$E$59,2,FALSE)),\" \",VLOOKUP(L307,Proposito_programa!$C$2:$E$59,2,FALSE))","v":"Movilidad segura, sostenible y accesible"},{"$f":"IF(ISERROR(VLOOKUP(L307,Proposito_programa!$C$2:$E$59,3,FALSE)),\" \",VLOOKUP(L307,Proposito_programa!$C$2:$E$59,3,FALSE))","v":"Propósito 4: Hacer de Bogotá Región un modelo de movilidad multimodal, incluyente y sostenible"},"133011604490000001734",32,901551951,"CONSORCIO IB INTERVENTORES 2021","Consorcio","19146763","CARLOS ENRIQUE BARRAGAN MEDINA",0.5,0,null,null,null,0,0,"2021-12-29","SUSCRITO SIN INICIAR",null,180,null,0,null,null,null,null,"X",null,null,null,{"$f":"IF(ISERROR(AB307/AA307),\"-\",(AB307/AA307))","v":"-"}]
[1,295,2020,"FDLCH-CPS-260-2020","https://community.secop.gov.co/Public/Tendering/OpportunityDetail/Index?noticeUID=CO1.NTC.1612569&isFromPublicArea=True&isModal=False","Contratos de prestación de servicios","Selección abreviada","Selección abreviada por menor cuantía ","ADICIÓN Y PRÓRROGA DEL CONTRATO 260 DE 2020 QUE TIENE POR OBJETO REALIZAR EL MANTENIMIENTO, LA INSTALACIÓN, REUBICACIÓN Y RECTIFICACIÓN DEL CABLEADO ESTRUCTURADO, EN LA ALCALDÍA LOCAL, JUNTA ADMINISTRADORA LOCAL E INSPECCIONES DE POLICÍA DE CHAPINERO.","Funcionamiento",null,null,null,null,"1310202010302",1,"901040640","IIS TECHNOLOGY SOLUTIONS SAS",null,null,null,null,0,null,1,40841994,{"$f":"+W308+X308+Z308","v":40841994},16600672]
[1,296,2020,"FDLCH-CPS-258-2020","https://community.secop.gov.co/Public/Tendering/OpportunityDetail/Index?noticeUID=CO1.NTC.1612179&isFromPublicArea=True&isModal=False","Contratos de prestación de servicios","Selección abreviada","Selección abreviada por menor cuantía ","ADICIÓN Y PRORROGA AL CONTRATO 258 DE 2020. REALIZAR EL MANTENIMIENTO PREVENTIVO Y CORRECTIVO DE EQUIPOS DE CÓMPUTO, ESCÁNER, IMPRESORAS, DISPOSITIVOS DE RED E INFRAESTRUCTURA TECNOLÓGICA DE PROPIEDAD DEL FONDO DE DESARROLLO PROPIEDAD DEL FONDO DE DESARROLLO LOCAL DE CHAPINERO Y PUESTA EN FUNCIONAMIENTO DE UNA UPS.","Funcionamiento",null,null,null,null,"1310202010302",1,"901040640","IIS TECHNOLOGY SOLUTIONS SAS",null,null,null,null,0,null,1,30000000,30000000,0]
[1,297,2020,"FDLCH-CPS-093-2020","https://community.secop.gov.co/Public/Tendering/OpportunityDetail/Index?noticeUID=CO1.NTC.1172708&isFromPublicArea=True&isModal=False","Seguros","Selección abreviada","Selección abreviada por menor cuantía ","ADICIÓN Y PRORROGA AL CONTRATO No FDLCH 93-2020 CONTRATAR LOS SEGUROS QUE AMPAREN LOS INTERESES PATRIMONIALES ACTUALES Y FUTUROS, ASÍ COMO LOS BIENES DE PROPIEDAD DEL FONDO DE DESARROLLO LOCAL DE CHAPINERO, QUE ESTEN BAJO SU RESPONSABILIDAD Y CUSTODIA Y AQUELLOS QUE SEAN ADQUIRIDOS PARA DESARROLLAR LAS FUNCIONES INHERENTES A SU ACTIVIDAD.","Funcionamiento",null,null,null,null,"131020202020107",1,"860002400","LA PREVISORA S A COMPAÑIA DE SEGUROS",null,null,null,null,0,null,2,{"$f":"1095859+2676033","v":3771892},3771892,1095859]
[1,298,2020,"FDLCH-CPS-093-2020","https://community.secop.gov.co/Public/Tendering/OpportunityDetail/Index?noticeUID=CO1.NTC.1172708&isFromPublicArea=True&isModal=False","Seguros","Selección abreviada","Selección abreviada por menor cuantía ","ADICIÓN Y PRORROGA AL CONTRATO No FDLCH 93-2020 CONTRATAR LOS SEGUROS QUE AMPAREN LOS INTERESES PATRIMONIALES ACTUALES Y FUTUROS, ASÍ COMO LOS BIENES DE PROPIEDAD DEL FONDO DE DESARROLLO LOCAL DE CHAPINERO, QUE ESTEN BAJO SU RESPONSABILIDAD Y CUSTODIA Y AQUELLOS QUE SEAN ADQUIRIDOS PARA DESARROLLAR LAS FUNCIONES INHERENTES A SU ACTIVIDAD.","Funcionamiento",null,null,null,null,"131020202020108",1,"860002400","LA PREVISORA S A COMPAÑIA DE SEGUROS",null,null,null,null,0,null,1,1744465,1744465,1744465]
[1,299,2021,"FDLCH-CPS-008-2021","https://community.secop.gov.co/Public/Tendering/OpportunityDetail/Index?noticeUID=CO1.NTC.1823951&isFromPublicArea=True&isModal=False","Seguros","Selección abreviada","Bolsas de productos","CONTRATAR LOS SEGUROS QUE AMPAREN LOS INTERESES PATRIMONIALES ACTUALES Y FUTUROS, ASÍ COMO LOS BIENES DE PROPIEDAD DEL FONDO DE DESARROLLO LOCAL DE CHAPINERO, QUE ESTEN BAJO SU RESPONSABILIDAD Y CUSTODIA Y AQUELLOS QUE SEAN ADQUIRIDOS PARA DESARROLLAR LAS FUNCIONES INHERENTES A SU ACTIVIDAD, ASI COMO CULQUIER OTRA PÓLIZA DE SEGUROS QUE REQUIERA LA ENTIDAD EN EL DESARROLLO DE SU ACTIVIDAD.","Funcionamiento",null,null,null,null,"131020202020108",1,"891700037","MAPFRE SEGUROS GENERALES DE COLOMBIA S.A .",null,null,null,null,13203814,null,3,15324860,28528674,6626507]
[1,300,2020,"FDLCH-CPS-260-2020","https://community.secop.gov.co/Public/Tendering/OpportunityDetail/Index?noticeUID=CO1.NTC.1612569&isFromPublicArea=True&isModal=False","Contratos de prestación de servicios","Selección abreviada","Selección abreviada por menor cuantía ","ADICIÓN Y PRÓRROGA DEL CONTRATO 260 DE 2020 QUE TIENE POR OBJETO: \"REALIZAR EL MANTENIMIENTO, LA INSTALACIÓN, REUBICACIÓN Y RECTIFICACIÓN DEL CABLEADO ESTRUCTURADO, EN LA ALCALDÍA LOCAL, JUNTA ADMINISTRADORA LOCAL E INSPECCIONES DE POLICÍA DE CHAPINERO\".","Funcionamiento",null,null,null,null,"131020202030603",1,"901040640","IIS TECHNOLOGY SOLUTIONS SAS",null,null,null,null,30000000,null,null,null,30000000,0]
[1,301,2020,"FDLCH-CO-259-2020","https://community.secop.gov.co/Public/Tendering/OpportunityDetail/Index?noticeUID=CO1.NTC.1605410&isFromPublicArea=True&isModal=False","Contratos de prestación de servicios","Selección abreviada","Selección abreviada por menor cuantía ","ADICIONAR EL CONTRATO 259 DE 2020 QUE TIENE POR OBJETO:\"REALIZAR EL MANTENIMIENTO PREVENTIVO Y CORRECTIVO, ASÍ COMO LAS REPARACIONES LOCATIVAS Y ACTIVIDADES EMERGENTES NECESARIAS, A LAS INSTALACIONES A CARGO DE LA ALCALDÍA LOCAL DE CHAPINERO\".","Funcionamiento",null,null,null,null,"131020202030612",1,"830005282","BB INGENIEROS S A S",null,null,null,null,61300000,null,null,null,61300000,0]
[1,302,null,"SENTENCIA",null,null,null,null,null,"Funcionamiento",null,null,null,null,"131050701",1,"860028244","ASOCIACION COLOMBIANA DE INGENIEROS DE P ETROLEOS",null,null,null,null,21548137,null,null,null,21548137,0]
[1,303,2021,"FDLCH-CA-086-2021","https://community.secop.gov.co/Public/Tendering/OpportunityDetail/Index?noticeUID=CO1.NTC.1875266&isFromPublicArea=True&isModal=true&asPopupView=true","Contratos de prestación de servicios","Contratación directa","El arrendamiento o adquisición de inmuebles","CONTRATAR EN ARRIENDO UNA BODEGA, CON EL PROPOSITO DE GUARDAR LOS ELEMENTOS DECOMISADOS DURANTE LOS OPERATIVOS DE CONTROL DE ESPACIO PÚBLICO, ADELANTADOS POR LA ALCALDÍA LOCAL DE CHAPINERO.","Funcionamiento",null,null,null,null,"131020202020201",1,"20185010","ANA GRACIELA GALAN DE ALVAREZ",null,null,null,null,42300000,null,2,12033333,54333333]
[1,304,2021,"FDLCH-CCV-250-2021","https://community.secop.gov.co/Public/Tendering/OpportunityDetail/Index?noticeUID=CO1.NTC.2392001&isFromPublicArea=True&isModal=true&asPopupView=true","Contratos de prestación de servicios","Contratación mínima cuantia","No aplica","Adquisición de desfibrilador externo automático (DEA) para la Alcaldía Local de Chapinero","Funcionamiento",null,null,null,null,"13102020208",1,"901065278","HEALTHCORP SAS",null,null,null,null,11594180,null,null,null,11594180,11597180]
[1,305,2021,"FDLCH-CCV-260-2021","https://colombiacompra.gov.co/tienda-virtual-del-estado-colombiano/ordenes-compra/81648","Contratos de prestación de servicios","Selección abreviada","Acuerdo marco de precios ","ADQUISICIÓN DE UN BOTIQUÍN Y UNA CAMILLA Y SERVICIO DE MANTENIMIENTO Y RECARGA DE LOS EXTINTORES CONTRA INCENDIO UBICADOS EN LAS INSTALACIONES DE LA ALCALDÍA LOCAL DE CHAPINERO Y LOS VEHÍCULOS DEL FONDO DE DESARROLLO LOCAL DE CHAPINERO EN LAS CONDICIONES DEL ACUERDO MARCO DE PRECIOS CCE-197-AMP-2021 - OC - 81649","Funcionamiento",null,null,null,null,"13102020208",1,"900353659","JM GRUPO EMPRESARIAL SAS",null,null,null,null,170250,null,null,null,170250,170250]
[1,306,2021,"FDLCH-CCV-261-2021","https://colombiacompra.gov.co/tienda-virtual-del-estado-colombiano/ordenes-compra/81649","Contratos de prestación de servicios","Selección abreviada","Acuerdo marco de precios ","ADQUISICIÓN DE UN BOTIQUÍN Y UNA CAMILLA Y SERVICIO DE MANTENIMIENTO Y RECARGA DE LOS EXTINTORES CONTRA INCENDIO UBICADOS EN LAS INSTALACIONES DE LA ALCALDÍA LOCAL DE CHAPINERO Y LOS VEHÍCULOS DEL FONDO DE DESARROLLO LOCAL DE CHAPINERO EN LAS CONDICIONES DEL ACUERDO MARCO DE PRECIOS CCE-197-AMP-2021- SEGÚN OC - 81652","Funcionamiento",null,null,null,null,"13102020208",1,"900353659","JM GRUPO EMPRESARIAL SAS",null,null,null,null,145750,null,null,null,145750,145750]
[1,307,2021,"FDLCH-CCV-262-2021","https://colombiacompra.gov.co/tienda-virtual-del-estado-colombiano/ordenes-compra/81652","Contratos de prestación de servicios","Selección abreviada","Acuerdo marco de precios ","ADQUISICIÓN DE UN BOTIQUÍN Y UNA CAMILLA Y SERVICIO DE MANTENIMIENTO Y RECARGA DE LOS EXTINTORES CONTRA INCENDIO UBICADOS EN LAS INSTALACIONES DE LA ALCALDÍA LOCAL DE CHAPINERO Y LOS VEHÍCULOS DEL FONDO DE DESARROLLO LOCAL DE CHAPINERO EN LAS CONDICIONES DEL ACUERDO MARCO DE PRECIOS CCE-197-AMP-2021 - SEGÚN OC 81648","Funcionamiento",null,null,null,null,"13102020208",1,"900353659","JM GRUPO EMPRESARIAL SAS",null,null,null,null,1041440,null,null,null,1041440,1041440]
[1,308,2020,"FDLCH-CO-259-2020","https://community.secop.gov.co/Public/Tendering/OpportunityDetail/Index?noticeUID=CO1.NTC.1605410&isFromPublicArea=True&isModal=False","Contratos de prestación de servicios","Selección abreviada","Selección abreviada por menor cuantía ",null,"Funcionamiento",null,null,null,null,"131020202030612",1,"830005282","BB INGENIEROS S A S",null,null,null,null,24500000,null,null,null,{"$f":"+W321+X321+Z321","v":24500000},0]
[1,309,2021,"Servicios de seguros de Salud ediles","N/A","Otros","Contratación directa",null,"Servicios de seguros de Salud ediles","Funcionamiento",null,null,null,null,"131020202020106",1,null,"Servicios de seguros de Salud ediles",null,null,null,null,80273000,null,null,null,80273000,80273000,null,null,null,null,null,null,null,null,null,null,null,null,"X"]
[1,310,2021,"Servicios de telefonía fija","N/A","Otros","Contratación directa",null,"Servicios de telefonía fija","Funcionamiento",null,null,null,null,"131020202030401",1,null,"Servicios de telefonía fija",null,null,null,null,21335950,-1585150,1,null,19750800,19750800,null,null,null,null,null,null,null,null,null,null,null,null,"X"]
[1,311,2021,"Energía","N/A","Otros","Contratación directa",null,"Energía","Funcionamiento",null,null,null,null,"131020202040101",1,"830037248","CODENSA",null,null,null,null,54662372,null,1,null,54662372,54662372,null,null,null,null,null,null,null,null,null,null,null,null,"X"]
[1,312,2021,"Acueducto y alcantarillado","N/A","Otros","Contratación directa",null,"Acueducto y alcantarillado","Funcionamiento",null,null,null,null,"131020202040102",1,"899999094","EMPRESA DE ACUEDUCTO Y ALCANTARILLADO DE BOGOTA ESP",null,null,null,null,6699435,null,1,null,6699435,6699435,null,null,null,null,null,null,null,null,null,null,null,null,"X"]
[1,313,2021,"Aseo","N/A","Otros","Contratación directa",null,"Aseo","Funcionamiento",null,null,null,null,"131020202040103",1,"901145808","PROMOAMBIENTAL DISTRITO S A S ESP",null,null,null,null,3785877,null,1,null,3785877,3785877,null,null,null,null,null,null,null,null,null,null,null,null,"X"]
[1,314,2021,"Honorarios Ediles",null,"Otros","Contratación directa",null,"HONORARIOS EDILES","Funcionamiento",null,null,null,null,"13101040102",1,null,"Honorarios Ediles",null,null,null,null,642550272,null,1,null,642550272,641785332,null,null,null,null,null,null,null,null,null,null,null,null,"X"]
[1,315,2021,"FDLCH-ccv-299-2021","https://community.secop.gov.co/Public/Tendering/OpportunityDetail/Index?noticeUID=CO1.NTC.2443319&isFromPublicArea=True&isModal=true&asPopupView=true","Otros","Selección abreviada","Subasta inversa ","ADQUISICIÓN, INSTALACIÓN, CONFIGURACIÓN Y PUESTA EN FUNCIONAMIENTO DE EQUIPOS TECNOLÓGICOS Y PERIFÉRICOS, LICENCIAS Y UN COMPONENTE TECNOLÓGICO PARA EL CENTRO DE INFORMACIÓN ESTRATÉGICA POLICIAL SECCIONAL (CIEPS) DE LA ESTACIÓN SEGUNDA DE POLICIA DE CHAPINERO.","Inversión",null,null,null,null,"133011603480000001740",1,"900235103","INNVECTOR SAS",null,null,null,null,257009000,null,null,null,257009000,0]
[1,316,2021,"Resoluciones Subsidio Tipo C",null,"Otros","Contratación directa",null,"RESOLUCIONES SUBSIDIO TIPO C","Inversión",null,null,null,null,"133011601010000001815",1,null,"RESOLUCIONES SUBSIDIO TIPO C",null,null,null,null,57744804,null,null,null,572744804,572744804,null,null,null,null,null,null,null,null,null,null,null,null,"X"]
[1,317,2021,"ResolucionesTransferencia monetaria",null,"Otros","Contratación directa",null,"RESOLUCIONES TRANSERENCIA MONETARIA","Inversión",null,null,null,null,"133011601010000001815",1,null,"RESOLUCIONES TRANSERENCIA MONETARIA",null,null,null,null,2232723787,null,null,null,2232723787,2745675030,null,null,null,null,null,null,null,null,null,null,null,null,"X"]
[1,318,2021,"Obligaciones por Pagar contratos 2020",null,"Otros","Contratación directa",null,"COMPAÑÍA MUNDIAL DE SEGUROS SA","Funcionamiento",null,null,null,null,"131020202020105",1,"860037013","COMPAÑIA MUNDIAL DE SEGUROS S.A.",null,null,null,null,2401137,null,1,null,2401137,2401137,null,null,null,null,null,null,null,null,null,null,null,null,"X"]
[1,319,2021,"Pago ARL Riesgo 4 y 5 Contratistas",null,"Otros","Contratación directa",null,"POSITIVA COMPAÑIA DE SEGUROS SA","Inversión",null,null,null,null,"133011605570000001741",1,"860011153","POSITIVA COMPAÑIA DE SEGUROS SA",null,null,null,null,23499700,-2148900,1,null,21350800,21350800,null,null,null,null,null,null,null,null,null,null,null,null,"X"]
[1,320,2021,"Pago ARL Riesgo 4 y 5 Contratistas",null,"Otros","Contratación directa",null,"POSITIVA COMPAÑIA DE SEGUROS SA","Inversión",null,null,null,null,"133011605570000001841",1,"860011153","POSITIVA COMPAÑIA DE SEGUROS SA",null,null,null,null,139200,null,1,null,139200,139200,null,null,null,null,null,null,null,null,null,null,null,null,"X"]
[1,321,2021,"Multas y Sanciones",null,"Otros","Contratación directa",null,"BOGOTA DISTRITO CAPITAL","Funcionamiento",null,null,null,null,"1310304",1,"899999061","BOGOTA DISTRITO CAPITAL",null,null,null,null,903651,null,1,null,903651,903651,null,null,null,null,null,null,null,null,null,null,null,null,"X"]
[null,null,null,null,null,null,null,null,null,null,null,null,null,null,null,null,null,null,null,null,null,null,{"$f":"SUM(W14:W334)","v":17497881708},{"$f":"SUM(X14:X334)","v":-117481298},{"$f":"SUM(Y14:Y334)","v":152},{"$f":"SUM(Z14:Z334)","v":982547649},{"$f":"SUM(AA14:AA334)","v":18877948059},{"$f":"SUM(AB14:AB334)","v":11388074988},null,null,null,null,null,null,null,null,null,null,null,null,null,null,{"$f":"SUM(AQ14:AQ307)","v":205.79858717532392}]
[]
[null,null,null,null,null,null,null,null,null,null,null,null,null,null,null,null,null,null,null,{"$f":"136-10","v":126}]

{"sheet":"BogData","index":1,"n_rows":57,"n_cols":12,"rows_kept":57,"cut":false,"hidden":false,"merged":[[2,4,2,6],[2,7,2,10],[2,11,3,11],[55,4,55,6],[56,4,56,6]]}
[]
[]
[null,null,null,null,"BOGDATA",null,null,"SUMATORIA FORMATO",null,null,null,"OBSERVACIONES"]
[null,null,null,null,"DISPONIBLE","COMPROMETIDO","GIROS ACUMULADOS","COMPROMETIDO","diferencia","GIROS ACUMULADOS","diferencia"]
[null,null,"131","GASTOS DE FUNCIONAMIENTO",2897365819,2843988780,2165695976,1431969946,{"$f":"+F5-H5","v":1412018834},586240943,{"$f":"+G5-J5","v":1579455033},"*Valor comprometido: hay diferencias en el rubro de FUNCIONAMIENTO falta $1.412.018.834 al sumar los  valores ralacionados en el formato.\n*Valor Giros:  hay diferencias en los giros del rubro de FUNCIONAMIENTO falta $1.579.455.033 al sumar los  valores ralacionados en el formato"]
[null,null,"13301","DIRECTA",16811914000,16674617967,9412708514,13728544912,{"$f":"+F6-H6","v":2946073055},6645543484,{"$f":"+G6-J6","v":2767165030},"*Valor comprometido: hay diferencias en el rubro de INVERSIÓN DIRECTA falta $2.946.073.055 al sumar los  valores ralacionados en el formato.\n*Valor Giros:  hay diferencias en los giros del rubro de FUNCIONAMIENTO falta $2.767.165.030 al sumar los  valores ralacionados en el formato"]
[null,null,"133011601","Hacer un nuevo contrato social con igualdad de oportunidades para la inclusión social, productiva y política",7410405804,7390997411,5856828462,4870164386,{"$f":"+F7-H7","v":2520833025},3330749436,{"$f":"+G7-J7","v":2526079026},"*Valor comprometido: hay diferencias en el rubro del PROPÓSITO 1 falta $2.520.833.025 al sumar los  valores ralacionados en el formato.\n*Valor Giros:  hay diferencias en los giros del rubro de PROPÓSITO 1 falta $2.526.079.026 al sumar los  valores ralacionados en el formato"]
[null,null,"13301160101","Subsidios y transferencias para la equidad",2877159804,2870784591,2802291030,86799333,2783985258,72749333,2729541697,"*Valor comprometido: hay diferencias en el rubro de PROGRAMA 1 faltando $2.783.985.258 al sumar los  valores ralacionados en el formato.\n*Valor Giros:  hay diferencias en los giros del rubro de PROGRAMA 1 faltando $2.729.541.697 al sumar los  valores ralacionados en el formato"]
[null,null,"133011601010000001815","Chapinero territorio de inclusión social y equidad",2877159804,2870784591,2802291030,86799333,2783985258,72749333,2729541697,"*Valor comprometido: hay diferencias en el rubro de PROYECTO 1815 faltando $2.783.985.258 al sumar los  valores ralacionados en el formato.\n*Valor Giros:  hay diferencias en los giros del rubro de  PROYECTO 1815  faltando $2.729.541.697 al sumar los  valores ralacionados en el formato"]
[null,null,"13301160106","Sistema Distrital del Cuidado",1758992000,1756797027,918063471,1558451323,198345704,698630138,219433333,"*Valor comprometido: hay diferencias en el rubro de PROGRAMA 6 faltando $198.345.704 al sumar los  valores ralacionados en el formato.\n*Valor Giros:  hay diferencias en los giros del rubro de PROGRAMA 6 faltando $329.433.333 al sumar los  valores ralacionados en el formato"]
[null,null,"133011601060000001671","Chapinero productivo y emprendedor",1004218000,1002198736,803880138,824153030,178045706,600580138,203300000,"*Valor comprometido: hay diferencias en el rubro de PROYECTO 1671 faltando $178.045.706 al sumar los  valores ralacionados en el formato.\n*Valor Giros:  hay diferencias en los giros del rubro de PROYECTO 1671 faltando $203.300.000 al sumar los  valores ralacionados en el formato"]
[null,null,"133011601060000001710","Chapinero construye infraestructura socia",262330000,262283392,50883333,262650060,{"$f":"+F12-H12","v":-366668},50883333,0,"*Valor comprometido: hay diferencias en el rubro de PROYECTO 1710 sobran $366.668 al sumar los  valores ralacionados en el formato.\n*Valor Giros:  CORRECTO"]
[null,null,"133011601060000002024","Chapinero promueve la inclusión y el cuidado de la salud",492444000,492314899,63300000,471648233,20666666,47166667,16133333,"*Valor comprometido: hay diferencias en el rubro de PROYECTO 2024 faltando $20.666.666 al sumar los  valores ralacionados en el formato.\n*Valor Giros:  hay diferencias en los giros del rubro de PROYECTO 2024 faltando $16.133.333 al sumar los  valores ralacionados en el formato"]
[null,null,"13301160112","Educación inicial: Bases sólidas para la vida",555955000,555799862,223337580,555799862,0,223337580,0,"CORRECTO"]
[null,null,"133011601120000001830","Chapinero es primera infancia",555955000,555799862,223337580,555799862,0,223337580,0,"CORRECTO"]
[null,null,"13301160117","Jóvenes con capacidades: Proyecto de vida para la ciudadanía, la innovación y el trabajo del siglo XXI",1281274000,1270749894,1250477394,1498517331,-227767437,1462813398,-212336004,"*Valor comprometido: hay diferencias en el rubro de PROGRAMA 17 sobran $227.767.437 al sumar los  valores ralacionados en el formato.\n*Valor Giros:  hay diferencias en los giros del rubro de PROGRAMA 17 sobran $212.336.004 al sumar los  valores ralacionados en el formato"]
[null,null,"133011601170000001695","Jóvenes comprometidos por Chapinero",248523000,248462261,239469761,85798365,162663896,73607765,165861996,"*Valor comprometido: hay diferencias en el rubro de PROYECTO 1695 faltando $162.663.896 al sumar los  valores ralacionados en el formato.\n*Valor Giros:  hay diferencias en los giros del rubro de PROYECTO 1695 faltando $165.861.996 al sumar los  valores ralacionados en el formato"]
[null,null,"133011601170000001743","Chapinero construye futuro",1032751000,1022287633,1011007633,1030120966,-7833333,1011007633,0,"*Valor comprometido: hay diferencias en el rubro de PROYECTO 1743 sobran $7.833.333 al sumar los  valores ralacionados en el formato."]
[null,null,"13301160120","Bogotá, referente en cultura, deporte, recreación y actividad física, con parques para el desarrollo y la salud",256807000,256805700,189322320,278436200,-21630500,189322320,0,"*Valor comprometido: hay diferencias en el rubro de PROGRAMA 20 sobran 21.630.500 al sumar los  valores ralacionados en el formato."]
[null,null,"133011601200000001845","Chapinero epicentro del deporte y la recreación",256807000,256805700,189322320,278436200,-21630500,189322320,0,"*Valor comprometido: hay diferencias en el rubro de PROYECTO 1845 sobran $21.630.500 al sumar los  valores ralacionados en el formato."]
[null,null,"13301160121","Creación y vida cotidiana: Apropiación ciudadana del arte, la cultura y el patrimonio, para la democracia cultural",198819000,198819000,181566667,597119000,-398300000,579866667,-398300000,"*Valor comprometido: hay diferencias en el rubro de PROGRAMA 21 sobran $398.300.000 al sumar los  valores ralacionados en el formato.\n*Valor Giros:  hay diferencias en los giros del rubro de PROGRAMA 21 sobran $398.300.000 al sumar los  valores ralacionados en el formato"]
[null,null,"133011601210000001848","Chapinero cultural y creativo",198819000,198819000,181566667,40819000,158000000,23566667,158000000,"*Valor comprometido: hay diferencias en el rubro de PROYECTO 1848 faltando $158.000.0007 al sumar los  valores ralacionados en el formato.\n*Valor Giros:  hay diferencias en los giros del rubro de PROYECTO 1848 faltando 158.000.000 al sumar los  valores ralacionados en el formato"]
[null,null,"13301160124","Bogotá región emprendedora e innovadora",481399000,481241337,291770000,286241337,195000000,96770000,195000000,"*Valor comprometido: hay diferencias en el rubro de PROGRAMA 24 faltando $195.000.000 al sumar los  valores ralacionados en el formato.\n*Valor Giros:  hay diferencias en los giros del rubro de PROGRAMA 24 faltando $195.000.000 al sumar los  valores ralacionados en el formato"]
[null,null,"133011601240000001631","Chapinero siembra esperanza",227353000,227241337,42720000,227241337,0,42720000,0,"CORRECTO"]
[null,null,"133011601240000001853","Chapinero construye tejido cultural",254046000,254000000,249050000,59000000,195000000,54050000,195000000,"*Valor comprometido: hay diferencias en el rubro de PROYECTO 1853 faltando $195.000.000 al sumar los  valores ralacionados en el formato.\n*Valor Giros:  hay diferencias en los giros del rubro de PROYECTO 1853 faltando $195.000.000 al sumar los  valores ralacionados en el formato"]
[null,null,"133011602","Cambiar nuestros hábitos de vida para reverdecer a Bogotá y adaptarnos y mitigar la crisis climática",2245179196,2215280314,220340000,2218991992,-3711678,220340000,0,"*Valor comprometido: hay diferencias en el rubro del PROPÓSITO 2 sobran $3.711.678 al sumar los  valores ralacionados en el formato."]
[null,null,"13301160228","Bogotá protectora de sus recursos naturales",231955000,231955000,42446667,408908000,-176953000,42446667,0,"*Valor comprometido: hay diferencias en el rubro de PROGRAMA 28 sobran $176.953.000 al sumar los  valores ralacionados en el formato."]
[null,null,"133011602280000001715","Chapinero restaurador y cuidador del territorio",231955000,231955000,42446667,51600000,180355000,42446667,0,"*Valor comprometido: hay diferencias en el rubro de PROYECTO 1715 faltando $180.355.000 al sumar los  valores ralacionados en el formato."]
[null,null,"13301160233","Más árboles y más y mejor espacio público",1397438196,1367839442,54816667,1367839442,0,54816667,0,"CORRECTO"]
[null,null,"133011602330000001723","Chapinero espacio para hábitos saludables",1397438196,1367839442,54816667,1367839442,0,54816667,0,"CORRECTO"]
[null,null,"13301160234","Bogotá protectora de los animales",388433000,388132872,75716666,391844550,-3711678,75716666,0,"*Valor comprometido: hay diferencias en el rubro de PROGRAMA 34 sobran $3.711.678 al sumar los  valores ralacionados en el formato."]
[null,null,"133011602340000001731","Chapinero dejando huella por los animales",388433000,388132872,75716666,391844550,-3711678,75716666,0,"*Valor comprometido: hay diferencias en el rubro de PROYECTO 1731 sobran $180.355.000 al sumar los  valores ralacionados en el formato."]
[null,null,"13301160238","Ecoeficiencia, reciclaje, manejo de residuos e inclusión de la población recicladora",227353000,227353000,47360000,50400000,176953000,47360000,0,"*Valor comprometido: hay diferencias en el rubro de PROGRAMA 38 faltando $176.953.000 al sumar los  valores ralacionados en el formato."]
[null,null,"133011602380000001728","Chapinero sostenible y consciente",227353000,227353000,47360000,50400000,176953000,47360000,0,"*Valor comprometido: hay diferencias en el rubro de PROYECTO 1728 faltando $176.953.000 al sumar los  valores ralacionados en el formato."]
[null,null,"133011603","Inspirar confianza y legitimidad para vivir sin miedo y ser epicentro de cultura ciudadana, paz y reconciliación",1653400000,1647365398,539536570,1285529995,361835403,539536570,0,"*Valor comprometido: hay diferencias en el rubro del PROPÓSITO 3 falta $361.835.403 al sumar los  valores ralacionados en el formato."]
[null,null,"13301160340","Más mujeres viven una vida libre de violencias, se sienten seguras y acceden con confianza al sistema de justicia",516376000,516359319,224477836,529162244,-12802925,224477836,0,"*Valor comprometido: hay diferencias en el rubro de PROGRAMA 40 sobran $12.802.925 al sumar los  valores ralacionados en el formato."]
[null,null,"133011603400000002035","En Chapinero todas contamos",516376000,516359319,224477836,529162244,-12802925,224477836,0,"*Valor comprometido: hay diferencias en el rubro de PROYECTO 2035 sobran $12.802.925 al sumar los  valores ralacionados en el formato."]
[null,null,"13301160343","Cultura ciudadana para la confianza, la convivencia y la participación desde la vida cotidiana",228273000,228180276,65498433,232343267,-4162991,65498433,0,"*Valor comprometido: hay diferencias en el rubro de PROGRAMA 43 sobran $4.162.991 al sumar los  valores ralacionados en el formato."]
[null,null,"133011603430000001735","Chapinero promueve y genera confianza ciudadana",228273000,228180276,65498433,232343267,-4162991,65498433,0,"*Valor comprometido: hay diferencias en el rubro de PROYECTO 1735 sobran $4.162.991 al sumar los  valores ralacionados en el formato."]
[null,null,"13301160345","Espacio público más seguro y construido colectivamente",189614000,189485113,106368066,190922294,-1437181,106368066,0,"*Valor comprometido: hay diferencias en el rubro de PROGRAMA 45 sobran $1.437.181 al sumar los  valores ralacionados en el formato."]
[null,null,"133011603450000001736","Chapinero es espacio publico incluyente y democrático",189614000,189485113,106368066,190922294,-1437181,106368066,0,"*Valor comprometido: hay diferencias en el rubro de PROYECTO 1736 sobran $1.437.181 al sumar los  valores ralacionados en el formato."]
[null,null,"13301160348","Plataforma institucional para la seguridad y justicia",719137000,713340690,143192235,333102190,380238500,143192235,0,"*Valor comprometido: hay diferencias en el rubro de PROGRAMA 48 faltando $380.238.500 al sumar los  valores ralacionados en el formato."]
[null,null,"133011603480000001738","Justicia accesible y oportuna para chapinero",243000000,241020575,95685568,250551075,-9530500,95685568,0,"*Valor comprometido: hay diferencias en el rubro de PROYECTO 1738 sobran $9.530.500 al sumar los  valores ralacionados en el formato."]
[null,null,"133011603480000001740","Chapinero territorio para vivir sin miedo",476137000,472320115,47506667,82551115,389769000,47506667,0,"*Valor comprometido: hay diferencias en el rubro de PROYECTO 1740 faltando $389.769.000 al sumar los  valores ralacionados en el formato."]
[null,null,"133011604","Hacer de Bogotá Región un modelo de movilidad multimodal, incluyente y sostenible",2563912000,2487192610,252745711,2493926777,-6734167,252745711,0,"*Valor comprometido: hay diferencias en el rubro del PROPÓSITO 2 sobran $6.734.167 al sumar los  valores ralacionados en el formato."]
[null,null,"13301160449","Movilidad segura, sostenible y accesible",2563912000,2487192610,252745711,2493926777,-6734167,252745711,0,"*Valor comprometido: hay diferencias en el rubro de PROGRAMA 28 sobran $6.734.167 al sumar los  valores ralacionados en el formato."]
[null,null,"133011604490000001734","Chapinero modelo de movilidad inteligente",2563912000,2487192610,252745711,2493926777,-6734167,252745711,0,"*Valor comprometido: hay diferencias en el rubro de PROYECTO 1734 sobran $6.734.167 al sumar los  valores ralacionados en el formato."]
[null,null,"133011605","Construir Bogotá Región con gobierno abierto, transparente y ciudadanía consciente",2939017000,2933782234,2543257771,2859931762,73850472,2302171767,241086004,"*Valor comprometido: hay diferencias en el rubro del PROPÓSITO 5 falta $73.850.472 al sumar los  valores ralacionados en el formato.  \n*Valor Giros:  hay diferencias en los giros del rubro de PROPÓSITO 5 faltando $241.086.004 al sumar los  valores ralacionados en el formato"]
[null,null,"13301160555","Fortalecimiento de Cultura Ciudadana y su institucionalidad",253125000,248076704,238015204,46740700,201336004,34479200,203536004,"*Valor comprometido: hay diferencias en el rubro de PROGRAMA 55 faltando $201.336.004 al sumar los  valores ralacionados en el formato.\n*Valor Giros:  hay diferencias en los giros del rubro de PROGRAMA55 faltando $203.536.004 al sumar los  valores ralacionados en el formato"]
[null,null,"133011605550000001739","Chapinero liderado por la ciudadanía",253125000,248076704,238015204,46740700,201336004,34479200,203536004,"*Valor comprometido: hay diferencias en el rubro de PROYECTO 1739 faltando $201.336.004 al sumar los  valores ralacionados en el formato.\n*Valor Giros:  hay diferencias en los giros del rubro de PROYECTO 1739 faltando $203.536.004 al sumar los  valores ralacionados en el formato"]
[null,null,"13301160557","Gestión Pública Local",2685892000,2685705530,2305242567,2821991062,{"$f":"+F51-H51","v":-136285532},2274952567,30290000,"*Valor comprometido: hay diferencias en el rubro de PROGRAMA 57 sobran $136.285.532 al sumar los  valores ralacionados en el formato.\n*Valor Giros:  hay diferencias en los giros del rubro de PROGRAMA 57 faltando $30.290.000 al sumar los  valores ralacionados en el formato"]
[null,null,"133011605570000001741","Chapinero ejemplo de gobierno abierto y transparencia local",1493901000,1493849665,1277150231,1562301731,-68452066,1255799431,21350800,"*Valor comprometido: hay diferencias en el rubro de PROYECTO 1741 sobran $68.452.066 al sumar los  valores ralacionados en el formato.\n*Valor Giros:  hay diferencias en los giros del rubro de PROYECTO 1741 faltando $21.350.800 al sumar los  valores ralacionados en el formato"]
[null,null,"133011605570000001841","Fortalecimiento del ejercicio de Inspección, Vigilancia y Control en Chapinero",1191991000,1191855865,1028092336,1272889331,-81033466,1027953136,139200,"*Valor comprometido: hay diferencias en el rubro de PROYECTO 1841 sobran $81.033.466 al sumar los  valores ralacionados en el formato.\n*Valor Giros:  hay diferencias en los giros del rubro de PROYECTO 1841 faltando $139.200 al sumar los  valores ralacionados en el formato"]
[]
[null,null,null,null,"OTRAS OBSERVACIONES:"]
[null,null,null,null,"Los contratos 119, 172, 173, 175 y 234 de 2021 afectan varios rubros presupuestales hay que relacionar el contrato por cada rubro y su valor en filas separadas,  como lo señala el instructivo",null,null,1283006000,null,925698000]
[null,null,null,null,"Se debe relacionar OTROS GASTOS o gastos no contractuales tanto de funcionamiento en una sola fila y de inversión detallando por cada rubro presupuestal"]

{"sheet":"2. PAA","index":2,"n_rows":13,"n_cols":7,"rows_kept":13,"cut":false,"hidden":false,"merged":[[9,1,9,6],[6,2,6,3],[6,5,6,6],[2,1,2,7],[3,1,3,7],[4,1,4,7],[5,2,5,3],[5,5,5,6]]}
[]
[]
[null,"PLAN ANUAL DE ADQUISIONES"]
[null,2021]
[]
[null,"Entidad","FONDO DE DESARROLLO LOCAL DE CHAPINERO",null,"Sector"]
[null,"Responsable diligenciamiento","Juan Camilo Sierra Rodríguez-Profesional Universitario",null,"Número contacto y correo electrónico","310-7721220 juan.sierra@gobiernobogota.gov.co"]
[]
[]
[null,"A continuación registre la información del Plan Anual de Adquisiciones vigencia 2021,  diligencie el presupuesto total,  el presupuesto programado y contratado del 1 de septiembre al 31 de diciembre de 2021, igualmente la fecha de la primera y ultima públicación del PAA en SECOP, y el número de modificaciones realizadas."]
[]
[null,"Presupuesto Total PAA","Presupuesto programado\nSeptiembre 1 a 31 de diciembre de 2021","Presupuesto contratado\nSeptiembre 1 a 31 de diciembre de 2021","Fecha Primera Publicación\nD/M/A","Última fecha de modificación\nD/M/A","Número modificaciones"]
[null,19256249210,5804390823,4080573313,"2021-01-25","2021-12-20",19]

{"sheet":"3. CONSOLIDADO","index":3,"n_rows":59,"n_cols":20,"rows_kept":59,"cut":false,"hidden":false,"merged":[[16,2,16,16],[17,17,17,19],[19,2,21,2],[19,3,21,3],[11,9,11,10],[17,2,17,16],[11,15,11,16],[19,4,19,17],[19,18,20,19],[20,4,20,5],[20,6,20,7],[20,8,20,9],[20,10,20,11],[20,12,20,13],[20,14,20,15],[20,16,20,17],[11,21,11,22],[1,4,1,18],[2,4,2,18],[7,2,8,16],[10,2,12,2],[10,3,12,3],[10,4,10,8],[10,9,10,16],[11,4,11,5],[11,6,11,8],[11,19,11,20],[11,11,11,12],[11,13,11,14],[11,17,11,18],[9,2,9,16],[4,2,5,16],[26,2,26,11],[28,2,30,2],[29,3,29,4],[29,5,29,6],[29,7,29,8],[28,3,28,8]]}
[]
[null,null,null,null,"GESTIÓN CONTRACTUAL "]
[null,null,null,null,"Período de Evaluación: Septiembre 1 a 31 de diciembre de 2021"]
[]
[null,null,"La información consolidada que registra en esta hoja debe coincidir con la información que reporta en las hojas 1 \"INFORMACION ACUMULADA\" y 2 \"INFORMACION II CUATRIMESTRE\". En relación con las adiciones a contratos de años anteriores con cargo al periodo a reportar deben registrarse en filas independientes en los numerales 1 (información general, naturaleza jurídica) y 2 (modalidad). Ej. vigencia =2019; No. Contratos Adicionados:3; Número de adiciones: 4"]
[]
[]
[null,null,"1. Diligenciar en Información General el total de contratos que la entidad suscribió del 1 de septiembre al 31 de diciembre de 2021 y el valor total de ellos, igual el número de contratos que presentaron adiciones, el número de adiciones y el valor total de ellas. Respecto a la Naturaleza jurídica del contratista, diligenciar el número total de contratos suscritos y su valor por: personas naturales, jurídicas, consorcios y uniones temporales"]
[]
[]
[null,null,"Entidad","Vigencia","Información General",null,null,null,null,"Naturaleza jurídica del contratista"]
[null,null,null,null,"Contratos Suscritos",null,"Adiciones",null,null,"Contratos suscritos con personas naturales",null,"Contratos suscritos con personas jurídicas",null,"Contratos suscritos con uniones temporales",null,"Contratos suscritos con consorcios"]
[null,null,null,null,"Número Contratos","Valor Total","Número Contratos Adicionados","Número de Adiciones","Valor Total","Número Contratos y/o adiciones","Valor Total","Número Contratos y/o adiciones","Valor Total","Número Contratos y/o adiciones","Valor Total","Número Contratos y/o adiciones","Valor Total"]
[null,null,"FONDO DE DESARROLLO LOCAL DE CHAPINERO",2021,126,8294724494,29,29,62129745,81,920264382,43,5089989111,2,1963220007,1,321250994]
[null,null,null,null,0,0,0,0,0,0,0,0,0,0,0,0,0]
[]
[]
[null,null,"2. Registrar el número y valor total de los contratos y/o adiciones que se suscribieron del 1 de septiembre al 31 de diciembre de 2021 por cada modalidad. Igualmente en la tipología de contratos de prestación de servicios profesionales y de apoyo a la gestión."]
[]
[null,null,"Entidad","Vigencia","Modalidad",null,null,null,null,null,null,null,null,null,null,null,null,null,"Contratos realizados mediante la tipología de contratos de prestación de servicios profesionales y de apoyo a la gestión"]
[null,null,null,null,"Concurso de méritos",null,"Contratación directa",null,"Contratación mínima cuantia",null,"Selección abreviada",null,"Licitación pública",null,"Régimen privado",null,"Régimen especial"]
[null,null,null,null,"Número Contratos","Valor Total","Número Contratos","Valor Total","Número Contratos","Valor Total","Número Contratos","Valor Total","Número Contratos","Valor Total","Número Contratos","Valor Total","Número Contratos","Valor Total","Número Contratos","Valor Total"]
[null,null,"FONDO DE DESARROLLO LOCAL DE CHAPINERO",2021,2,631450994,83,1737831797,16,208152792,28,2782439082,4,3562135818,0,0,0,0,79,1034391520]
[null,null,"FONDO DE DESARROLLO LOCAL DE CHAPINERO",2020,0,0,0,0,1,2401137,2,101609804,0,0,0,0,0,0,0,0]
[]
[]
[null,null,"3. Detalle cada uno de los procesos de selección adelantados en el cuatrimestre por la entidad de acuerdo a cada modalidad de selección (licitación pública, selección abreviada o concurso de méritos), y diligencie el número de proponentes que se presentaron en cada uno de ellos"]
[]
[null,null,"Entidad","Proponentes (que se presentaron a los proceso de selección)"]
[null,null,null,"Concurso de méritos",null,"Selección abreviada",null,"Licitación pública"]
[null,null,null,"Número del proceso contractual en SECOP","Número de proponentes","Número del proceso contractual en SECOP","Número de proponentes","Número del proceso contractual en SECOP","Número de proponentes"]
[null,null,"FONDO DE DESARROLLO LOCAL DE CHAPINERO","FDLCH-CIN-301-2021",1,"FDLCH-CPS-168-2021",4,"FDLCH-CPS-207-2021",5]
[null,null,"FONDO DE DESARROLLO LOCAL DE CHAPINERO","FDLCH-CPS-308-2021",32,"FDLCH-CCV-176-2021",5,"FDLCH-CPS-219-2021",3]
[null,null,"FONDO DE DESARROLLO LOCAL DE CHAPINERO",null,null,"FDLCH-CCV-177-2021",5,"FDLCH-COP-289-2021",18]
[null,null,"FONDO DE DESARROLLO LOCAL DE CHAPINERO",null,null,"FDLCH-CCV-178-2021",4,"FDLCH-COP-304-2021",29]
[null,null,"FONDO DE DESARROLLO LOCAL DE CHAPINERO",null,null,"FDLCH-CCV-179-2021",4]
[null,null,"FONDO DE DESARROLLO LOCAL DE CHAPINERO",null,null,"FDLCH-CPS-208-2021",5]
[null,null,"FONDO DE DESARROLLO LOCAL DE CHAPINERO",null,null,"FDLCH-CPS-224-2021",7]
[null,null,"FONDO DE DESARROLLO LOCAL DE CHAPINERO",null,null,"FDLCH-CPS-240-2021",3]
[null,null,"FONDO DE DESARROLLO LOCAL DE CHAPINERO",null,null,"FDLCH-CPS-244-2021",5]
[null,null,"FONDO DE DESARROLLO LOCAL DE CHAPINERO",null,null,"FDLCH-CPS-245-2021",5]
[null,null,"FONDO DE DESARROLLO LOCAL DE CHAPINERO",null,null,"FDLCH-CCV-250-2021",6]
[null,null,"FONDO DE DESARROLLO LOCAL DE CHAPINERO",null,null,"FDLCH-CPS-253-2021",5]
[null,null,"FONDO DE DESARROLLO LOCAL DE CHAPINERO",null,null,"FDLCH-CCV-254-2021",6]
[null,null,"FONDO DE DESARROLLO LOCAL DE CHAPINERO",null,null,"FDLCH-CCV-255-2021",6]
[null,null,"FONDO DE DESARROLLO LOCAL DE CHAPINERO",null,null,"FDLCH-CCV-256-2021",6]
[null,null,"FONDO DE DESARROLLO LOCAL DE CHAPINERO",null,null,"FDLCH-CSU-258-2021",2]
[null,null,"FONDO DE DESARROLLO LOCAL DE CHAPINERO",null,null,"FDLCH-CS-288-2021",1]
[null,null,"FONDO DE DESARROLLO LOCAL DE CHAPINERO",null,null,"FDLCH-CPS-294-2021",5]
[null,null,"FONDO DE DESARROLLO LOCAL DE CHAPINERO",null,null,"FDLCH-CPS-295-2021",5]
[null,null,"FONDO DE DESARROLLO LOCAL DE CHAPINERO",null,null,"FDLCH-CPS-296-2021",6]
[null,null,"FONDO DE DESARROLLO LOCAL DE CHAPINERO",null,null,"FDLCH-CPS-300-2021",6]
[null,null,"FONDO DE DESARROLLO LOCAL DE CHAPINERO",null,null,"FDLCH-CPS-303-2021",6]
[null,null,"FONDO DE DESARROLLO LOCAL DE CHAPINERO",null,null,"FDLCH-CPS-305-2021",4]
[null,null,"FONDO DE DESARROLLO LOCAL DE CHAPINERO"]
[null,null,"FONDO DE DESARROLLO LOCAL DE CHAPINERO"]
[null,null,"FONDO DE DESARROLLO LOCAL DE CHAPINERO"]
[null,null,"FONDO DE DESARROLLO LOCAL DE CHAPINERO"]
[null,null,"FONDO DE DESARROLLO LOCAL DE CHAPINERO"]

{"sheet":"4. INSTRUCTIVO","index":4,"n_rows":105,"n_cols":4,"rows_kept":105,"cut":false,"hidden":false,"merged":[[76,1,77,1],[76,2,77,2],[71,1,71,3],[103,1,103,3],[85,1,85,3],[86,1,87,1],[86,2,87,2],[100,1,100,3],[94,1,94,3],[72,1,74,1],[72,2,74,2],[79,2,82,2],[79,1,82,1],[57,1,60,1],[59,2,60,2],[63,1,68,1],[8,1,8,3],[12,1,12,3],[23,1,23,3],[52,1,54,1],[52,2,54,2],[33,2,34,2],[29,2,30,2],[27,1,28,1],[24,1,25,1],[24,2,25,2],[29,1,51,1],[10,1,10,3],[1,1,1,3],[2,1,2,3],[9,1,9,3],[3,1,3,3],[4,1,4,3],[5,1,5,3],[7,1,7,3],[6,1,6,3]]}
[]
[null,"INSTRUCTIVO FORMATO"]
[null,"Recomendamos leer cuidadosamente y poner en práctica las instrucciones que se explican en este instructivo. De la calidad de la información que se registre, depende en gran medida la calidad del informe de rendición de cuentas de la Gestión Contractual que presenta el Alcalde Mayor, consolidado por la Veeduría Distrital.\nEn este formato se deberán relacionar:\nHoja 1. \"INFORMACION ACUMULADA\", diligenciar en esta hoja la totalidad de la información contractual desde el 1 de enero al 31 de diciembre de 2021.\nHoja 2. “PLAN ANUAL DE ADQUISICIONES – PAA”, se pide información sobre el Plan Anual de Adquisiciones y sus modificaciones, por lo cual se deberá precisar el presupuesto total del plan; el programado del 1 de septiembre al 31 de diciembre de 2021; el efectivamente contratado en este período; la primera fecha de publicación del PAA; la última fecha de modificación y el número total de modificaciones realizadas durante este mismo período. \nHoja 3. “CONSOLIDADO”, se pide totalizar la información reportada en la hoja 1, sólo respecto a los contratos y adiciones suscritas entre el 1 de septiembre y el 31 de diciembre de 2021, por lo cual debe coincidir. Es así que en el numeral 1, se debe diligenciar el total de contratos suscritos por la entidad entre el 1 de septiembre y el 31 de diciembre de 2021, periodo de evaluación y su valor; el número total de contratos adicionados, el número total de adiciones y su valor; el número total de contratos celebrados con personas naturales, jurídicas, uniones temporales y consorcios, y su valor; en el numeral 2, se debe registrar en el periodo mencionado, el número total de contratos celebrados según la modalidad de selección y el valor total por cada modalidad; igualmente, es necesario precisar que se deberán relacionar los contratos celebrados mediante la tipología de prestación de servicios profesionales y de apoyo a la gestión y el valor total de ellos. En el numeral 3, se deberá indicar en las modalidades de licitación pública, concurso de méritos y selección abreviada, el número de procesos de selección en los que se presentaron 1 o más proponentes.\nHoja 4.“INSTRUCTIVO”, se dan las instrucciones para el diligenciamiento de la información, explicando paso a paso cada uno de los datos de la base y la manera de diligenciarla para efectos de que la información reportada sea veraz y no presente inconsistencias."]
[null,"La base en Excel a diligenciar NO debe modificarse, debe utilizar versión Excel 2010 o posteriores, la versión 2007 no habilita los macros. El formato está controlado y algunas celdas tienen opciones de selección y solo se debe escoger una de ellas.  El nombre de las hojas no se debe modificar o renombrar debido a que tiene macros. No incluya columnas con otro tipo de información que la Veeduría Distrital no está solicitando o que cambie el formato de celda establecido. Debe diliigencar la totalidad de las celdas, no combinarlas, registrar la información contractual en filas independientes. Las celdas donde se requieren relacionar valores, deben diligenciarse sin puntos, tildes, comas, ni caracteres especiales."]
[null,"Para insertar una o varias filas, en el encabezado del formato, se encuentra un botón denominado \"Insertar Filas\" en el cual se debe hacer click  y digite el número de filas a insertar. Si usted no sigue este procedimiento las filas que inserte no tomarán el formato de las filas anteriores. Se recomienda que antes de iniciar el registro de información inserte las filas que requiera, sin embargo, en cualquier momento que necesite puede hacer este paso"]
[null,"Si requiere insertar una o varias filas realícelo después de la fila A14 para que tomen el formato de las filas anteriores."]
[null,"Si necesita pegar información debe hacerlo por secciones debido a que hay columnas formuladas que están protegidas que no permiten realizar esta opción. Utilice la opción de pegado especial valores para no borrar las listas desplegables ni los formatos de las columnas. Si al pegar quedan textos en rojo,  verifique y ajuste la información, el dato que adiciono no se encuentra en la lista desplegable o no corresponde con el criterio definido en el columna."]
[null,"En primer lugar, diligencie toda la información correspondiente a los contratos suscritos con cargo la vigencia 2021."]
[null,"Una vez incluidos todos los contratos  de la vigencia 2021, a continuación diligencie el formato completo con la información correspondiente a las adiciones efectuadas con cargo a la vigencia 2021 de contratos suscritos en vigencias anteriores. La información general del contrato como: modalidad de selección, tipología contractual, objeto, entre otros, debe corresponder a la información del contrato adicionado o modificado. Respecto al valor, sólo se diligencia el valor en la columna adición, es decir, la columna de valor inicial debe quedar en blanco. No olvide registrar el número de adiciones realizadas en la columna correspondiente."]
[null,"La información que se registre en esta base de datos debe coincidir con los reportes en BOGDATA  y adicionalmente con SECOP.  Es así que la sumatoria del valor final de los contratos y adiciones, por eje/pilar/propósito, programa y proyecto registrada por la Entidad, debe coincidir con la ejecución presupuestal de la entidad, reporte de BOGDATA con corte a 31 de diciembre de 2021, es decir, se debe verificar su coincidencia por rubro con el total del compromiso acumulado; igualmente respecto al valor acumulado de los giros."]
[null,"En caso de haber realizado apropiaciones presupuestales en la vigencia a través de resoluciones, caja menor, honorarios ediles, servicios públicos, debe relacionar dicha información en una sola fila al final de la base, indicando de que se trata la apropiación y número de proyecto si hay lugar a ello. En el tipo de contrato se registra con la opción \"Otros gastos\"."]
[]
[null,"ENCABEZADO DEL FORMATO"]
[null,1,"Entidad","Indique el nombre completo de la Entidad."]
[null,2,"Sector","Seleccione el sector al cual pertenece la Entidad."]
[null,3,"Presupuesto Disponible Inversión Directa","Indique el valor total del presupuesto disponible de inversión directa, de acuerdo con el Informe de ejecución presupuestal de la entidad (BOGDATA), a 31 de diciembre de 2021."]
[null,4,"Presupuesto Comprometido de Inversión Directa ","Escriba el valor total del presupuesto comprometido de inversión directa, de acuerdo con el Informe de ejecución presupuestal de la entidad (BOGDATA), a 31 de diciembre de 2021."]
[null,5,"Presupuesto Disponible Funcionamiento","Indique el valor total del presupuesto de funcionamiento disponible, de acuerdo con el con el Informe de ejecución presupuestal de la entidad (BOGDATA), a 31 de diciembre de 2021."]
[null,6,"Presupuesto Comprometido funcionamiento ","Escriba el monto del presupuesto de funcionamiento, comprometido mediante contratos, de acuerdo con el Informe de ejecución presupuestal de la entidad (BOGDATA), a 31 de diciembre de 2021."]
[null,7,"Presupuesto Disponible Operación","Coloque el monto del presupuesto de operación disponible, de acuerdo con el Informe de ejecución presupuestal de la entidad (BOGDATA), a 31 de diciembre de 2021. Los gastos de operación corresponden solamente a aquellas entidades de régimen de contratación  privado."]
[null,8,"Presupuesto Comprometido operación mediante contratos","Escriba el monto del presupuesto de operación comprometido mediante contratos a 31 de diciembre de 2021."]
[null,9,"Nombre de quien diligencia el formato","Indique el nombre completo, cargo, número de teléfono con extensión y correo electrónico del profesional que diligencia el formato y que posteriormente realizará los ajustes y aclaraciones a que haya lugar por solicitud de la Veeduría Distrital."]
[]
[null,"1- INFORMACIÓN GENERAL"]
[null,1,"Número de Contrato","En estricto orden consecutivo registre el número del contrato, sin incluir los contratos que fueron anulados, ni comodatos."]
[null,null,null,"Una vez terminado el registro de los contratos celebrados con cargo a la vigencia 2021, en las siguientes filas registre la información correspondiente a las adiciones efectuadas con cargo a la vigencia 2021 de contratos suscritos en vigencias anteriores, especificando el año de suscripción en la columna dos."]
[null,2,"Año","Registre el año de celebración del contrato."]
[null,3,"Número de proceso en el SECOP","Relacione el número de proceso de selección con el cual se encuentra publicado el contrato en el SECOP, mas no el link o enlace. Ejemplo IDU-CMA-DTDP-240-2021"]
[null,null,"Link proceso SECOP","Registre el enlace del proceso en SECOP. Ejemplo  https://community.secop.gov.co/Public/xxxxxx"]
[null,4,"Tipo de Contrato","En esta columna seleccione de la lista, el tipo de contrato que corresponde al contrato suscrito. El formato no permite incluir tipo de contratos diferentes a los señaladas en la lista desplegable.  Se debe escoger de las tipologías contractuales que se relacionan a continuación:  "]
[null,null,null,"Para las adiciones a contratos suscritos en la vigencia 2021 y adiciones a contratos sucritos de años anteriores se debe diligenciar la tipología del contrato adicionado o modificado"]
[null,null,"Obra ","Son contratos de obra los que celebren las entidades estatales para la construcción, mantenimiento, instalación y, en general, para la realización de cualquier otro trabajo material sobre bienes inmuebles, cualquiera que sea la modalidad de ejecución y pago. Numeral 1 del artículo 32 de la Ley 80 de 1993"]
[null,null,"Consultoría","Aquellos que celebran las entidades estatales, referidos a los estudios necesarios para la ejecución de proyectos de inversión, de diagnósticos, prefactibilidad o factibilidad para programas o proyectos específicos, así como  las asesorías técnicas de coordinación, control y supervisión. Numeral 2 del artículo 32 de la Ley 80 de 1993"]
[null,null,"Interventoría","Son también  contratos de consultoría los que tienen por objeto la Interventoría, asesoría, gerencia de obras o de proyectos, dirección, programación y la ejecución de diseños, planos, anteproyectos y proyectos. Numeral 2 del artículo 32 de la Ley 80 de 1993"]
[null,null,null,"El contrato de Interventoría tiene por objeto la  supervisión, seguimiento y vigilancia a la ejecución material de un contrato principal"]
[null,null,"Contrato de Prestación de servicios","Son contratos de prestación de servicios los que celebren las entidades estatales para desarrollar actividades relacionadas con la administración o funcionamiento de la entidad. Numeral 3 del artículo 32 de la Ley 80 de 1993"]
[null,null,"Contrato de Prestación de servicios profesionales y de apoyo a la gestión","Corresponden a aquellos de naturaleza intelectual diferentes a los de consultoría que se derivan del cumplimiento de las funciones de la entidad estatal; así como los relacionados con actividades operativas, logísticas, o asistenciales. Art. 2.2.1.2.1.4.9. del Decreto 1082 de 2015"]
[null,null,"Compraventa de bienes muebles","Son aquellos contratos donde se transfiere el dominio de un bien mueble (aquellos susceptibles de ser trasladadas de un lugar a otro sin alterar ni su forma ni su esencia, tal es el caso del mobiliario y equipo de oficina, maquinaria, automóviles, etc.), cuya ejecución se agota de manera instantánea. Artículo 660, Código Civil"]
[null,null,"Compraventa de bienes inmuebles","Son aquellos contratos donde se transfiere el dominio de un bien inmueble (todos aquellos bienes considerados bienes raíces, por tener de común la circunstancia de estar íntimamente ligados al suelo, unidos de modo inseparable, física o jurídicamente, al terreno). Artículo 656, Código Civil"]
[null,null,"Arrendamiento de bienes muebles","Es un contrato que tiene por objeto, conceder el uso y goce de un bien mueble a cambio de un precio determinado. Artículo 1974, Código Civil"]
[null,null,"Arrendamiento de bienes inmuebles","Es un contrato que tiene por objeto, conceder el uso y goce de un bien inmueble a cambio de un precio determinado. Artículo 2.2.1.2.1.4.11 del Decreto 1082 de 2015"]
[null,null,"Seguros","El seguro es un contrato, en virtud del cual una persona jurídica llamada asegurador, asume, a cambio de una prima, un riesgo que le es trasladado por una persona natural o jurídica llamado tomador y en el cual éste tiene un interés asegurable, con el fin de indemnizarlo, en el evento de que ocurra la realización del riesgo amparado, de conformidad con el Título V, del Libro Cuarto del Código de Comercio"]
[null,null,"Suministro","El suministro es el contrato por el cual una parte se obliga, a cambio de una contraprestación, a cumplir en favor de otra, en forma independiente, prestaciones periódicas o continuadas de cosas o servicios. Artículo 968, Código de Comercio"]
[null,null,"Empréstitos","Son contratos de empréstito los que tienen por objeto proveer a la entidad estatal contratante de recursos en moneda nacional o extranjera con plazo para su pago. Artículo 7, Decreto 2681 de 1993"]
[null,null,"Fiducia mercantil o encargo fiduciario","Son contratos que tienen por objeto la administración o el manejo de los recursos vinculados a los contratos que tales entidades celebren. Numeral 5 del artículo 32 de la Ley 80 de 1993"]
[null,null,"Concesión","Este contrato tiene por objeto otorgar a una persona llamada concesionario la prestación, operación, explotación, organización o gestión, total o parcial, de un servicio público, o la construcción, explotación o conservación total o parcial, de una obra o bien destinados al servicio o uso público, así como todas aquellas actividades necesarias para la adecuada prestación o funcionamiento de la obra o servicio por cuenta y riesgo del concesionario, y bajo la vigilancia y control de la entidad concedente, a cambio de una remuneración que puede consistir en derechos, tarifas, tasas, valorización, o en la participación que se le otorgue en la explotación del bien, obra o servicio, o en una suma periódica, única o porcentual, y en general, en cualquier otra modalidad de contraprestación que las partes acuerden. Numeral 4 del artículo 32 de la Ley 80 de 1993"]
[null,null,"Convenios de cooperación","Son aquellos mediante los cuales se formaliza la asistencia, ayuda, auxilio, soporte o colaboración entre entidades de una misma nación, de distintos países o por parte de organizaciones internacionales de naturaleza pública o privada a favor de entidades públicas. Artículo 20 de la Ley 1150 de 2007"]
[null,null,"Convenios/Contratos interadministrativos","El convenio interadministrativo es el negocio jurídico en el cual están presentes dos entidades públicas en desarrollo de relaciones interadministrativas cuyo objeto es coordinar, cooperar, colaborar o distribuir competencias en la realización de funciones administrativas de interés común a los sujetos negociales. Artículo 95 de la Ley 489 de 1998"]
[null,null,"Convenios de Apoyo y/o Convenios de Asociación","Los contratos que en desarrollo de lo dispuesto en el segundo inciso del artículo 355 de la Constitución Política celebren la Nación, los Departamentos, Distritos y Municipios con entidades privadas sin ánimo de lucro y de reconocida idoneidad, con el propósito de impulsar programas y actividades de interés público. Reglamentado mediante Decreto 92 de 2017"]
[null,null,"Asociaciones Público Privadas","Los contratos con personas naturales o jurídicas que se celebran en desarrollo de lo dispuesto en la Ley 1508 de 2012"]
[null,null,"Otros","Los demás tipos de contratos que no se encuentren definidos en las anteriores tipologías"]
[null,null,"Otros gastos","Incluye los gastos no contractuales, estos se registran al final de la base, no cuentan con número de contrato, tipo, proceso o modalidad.  Estos gastos en los que no media un acuerdo de voluntades, en caso de ser del rubro de inversiòn, se deben discriminar por programa y proyecto. En el caso de ser del rubro de funcionamiento no requieren ser discriminados sino totalizados en una sola fila."]
[null,5,"Modalidad de Selección","Al ubicarse en la celda, se despliega una lista de modalidades de selección, de las cuales debe seleccionar la indicada"]
[null,null,null,"Para las adiciones a contratos suscritos en vigencias anteriores se debe diligenciar la modalidad de selección del contrato adicionado o modificado"]
[null,null,null,"La modalidad régimen especial se refiere a todos los contratos realizados en cumplimiento del Decreto 92 de 2017, convenios de asociación con ESAL. Régimen privado es para todas aquellas entidades que no se rigen por el Estatuto General de Contratación Pública (Ley 80 de 1993 y normas complementarias), caso en el que todos sus contratos deben ser identificados con esta modalidad"]
[null,6,"Procedimiento o causal","Esta columna solo se habilita y debe ser diligenciada, para las modalidades de selección abreviada y contratación directa. Al ubicarse en la celda, se despliega una lista de procedimientos o causales, de las cuales debe seleccionar la indicada. El formato no permite incluir procedimientos o causales diferentes a las señaladas en la lista desplegable.  "]
[null,7,"Objeto","Registre el objeto del contrato"]
[null,8,"Afectación ","Registre la afectación según la clasificación de cuentas del presupuesto de gastos. Funcionamiento, Inversión y Operación, esta última aplica únicamente para entidades de régimen privado. La celda solamente permite registrar estas tres opciones."]
[null,null,"Planes de Desarrollo Distrital","Seleccionar el PDD de acuerdo con los diferentes contratos suscritos, automáticamente en la columna K se activan  los números de programa de acuerdo al PDD."]
[null,null,"Número Programa","Si en la columna anterior “Afectación”,  indicó funcionamiento u operación deje en blanco el número de programa, es decir esta columna solamente aplica para gastos de Inversión."]
[null,null,null,"Identifíquelo de acuerdo con el código presupuestal del Plan de Desarrollo  \"Un Nuevo Contrato Social y Ambiental para la Bogotá del Siglo XXI\". Si un mismo contrato afecta más de un código presupuestal discrimine el contrato por cada código que afecte en filas separadas. Si se registra el número del programa, automáticamente en la columna L y M se despliega el nombre del programa y el  propósito según corresponda. "]
[null,9,"Número Proyecto","Indique el código presupuestal con el que se identifica el proyecto. Si un mismo contrato afecta más de un proyecto, discriminar el contrato por cada proyecto que afecte en filas separadas."]
[null,10,"Número de proponentes","Diligencie el número de proponentes que participaron en el proceso de selección adelantado que dio como resultado el contrato que se está diligenciando"]
[null,11,"Número de Identificación del contratista","Indicar el número de identificación del contratista persona natural o jurídica o contratistas plurales (uniones temporales y consorcios) con quien se suscribió el contrato, sin comas, tildes, puntos ni caracteres especiales, y si es NIT sin dígito de verificación"]
[null,null,"Nombre del Contratista","Indicar el nombre del contratista, persona natural o jurídica  o contratistas plurales (uniones temporales y consorcios) en mayúscula sostenida, sin comas, tildes, puntos ni caracteres especiales. Si se trata de personas jurídicas, diligenciar razón social y tipo societario, sin comas, tildes, puntos ni caracteres especiales. Si se trata de personas naturales diligenciar primero los nombres seguidos de los apellidos en la misma columna (nombre 1, nombre 2, apellido 1 y apellido 2)"]
[null,null,"Naturaleza Jurídica","Seleccione la naturaleza jurídica que corresponde al contratista, según las opciones"]
[null,null,"Número  de Identificación de los integrantes del Consorcio o U.T.\n(NIT sin digito de verificación)","Diligenciar este numeral sólo en los casos en que el contratista sea un Consorcio o Union Temporal, relacione en filas independientes (si son varios integrantes puede insertar filas adicionales), cada uno de los números de identificación de los integrantes de los consorcios o uniones temporales sin comas, tildes, puntos ni caracteres especiales, y si es NIT sin dígito de verificación. "]
[null,null,"Nombre del Integrante del Consorcio o U.T.","Diligenciar este numeral sólo en los casos en que el contratista sea un Consorcio o Union Temporal, relacione en filas independientes cada uno de los nombres de los integrantes de los consorcios o uniones temporales, si es persona jurídica la Razón social, es decir el nombre legal de la Empresa; si es persona natural relacione los nombres seguidos de los apellidos en mayúscula sostenida, sin comas, tildes, puntos ni caracteres especiales. Igualmente en el nombre relacione el Tipo societario de cada uno de ellos, entre los cuales se encuentra Sociedades por Acciones Simplificadas (SAS), Sociedad de Responsabilidad Limitada (LTDA), Sociedad en Comandita simple (SCS), Sociedad en Comandita por Acciones (SCA), Sociedad Colectiva, a manera de ejemplo: SOCIEDAD 1 LTDA"]
[null,null,"% Participación","Registre el porcentaje de participación de cada integrante del consorcio o unión temporal, registre sólo números, sin caracteres especiales"]
[]
[]
[null,"2- INFORMACIÓN FINANCIERA"]
[null,12,"Valor Inicial ","Registre el valor inicial del contrato con cargo al segundo cuatrimestre de la vigencia 2021. Esta columna sólo debe contener información numérica"]
[null,null,null,"En el caso de adiciones a contratos de años anteriores, no diligencie esta columna, registrar el valor en la columna 15 \"Valor Total Adiciones\".\nEn caso de adiciones a contratos suscritos en el primer cuatrimestre del 2021, no diligencie esta columna, registrar el valor en la columna 15 \"Valor Total Adiciones\""]
[null,null,null,"Excluya las reservas de apropiación y cuentas por pagar"]
[null,13,"Valor total reducciones (En valor negativo)","Registre el valor de la reducción del contrato en caso de haberse realizado, en negativo, durante la vigencia 2021"]
[null,14,"Número de adiciones ","Diligencie esta columna solo en el caso de adiciones al valor inicial que aumenten el valor del contrato con cargo a la vigencia."]
[null,null,null,"Registre en esta celda el número de adiciones que se realizaron al contrato"]
[null,15,"Valor total de adiciones","Registre el valor total de las adiciones que se realizaron al contrato,  el formato de celda no permite guiones, comas o texto. Esta columna solo debe contener información numérica."]
[null,16,"Valor Final","Esta columna se encuentra formulada por favor no modifique ni quite la fórmula; la fórmula suma las columnas valor inicial, valor de reducciones y valor de adiciones"]
[null,null,null,"La sumatoria de la columna 16 (valor final) para los contratos de Inversión Directa, de funcionamiento y/o operación, cuando aplique, deberán coincidir con el valor del rubro registrado en el encabezado 4, Presupuesto comprometido de inversión según BOGDATA, con el encabezado 6, Presupuesto Comprometido Funcionamiento según BOGDATA y con el encabezado 8, Presupuesto Comprometido Operación mediante contratos, respectivamente. A la vez, estos valores deben coincidir con los informes de ejecución presupuestal del BOGDATA.  "]
[null,null,null,"Si los valores no coinciden debe especificarse al final del formato en qué está representada la diferencia Otros gastos(discriminando los conceptos por Programa y Proyecto de inversión, si es el caso), con sus respectivos valores."]
[null,null,null,"Las bases donde dichos valores no coincidan serán devueltas por la Veeduría Distrital a cada entidad para los respectivos ajustes."]
[null,17,"Giros","Registre el valor total de los giros que se realizaron al contrato,  el formato de celda no permite guiones, comas o texto. Esta columna solo debe contener información numérica."]
[]
[null,"3- PLAZOS"]
[null,18,"Fecha de suscripción","Relacionar la fecha en que se suscribió el contrato original. La celda solo admite el formato Día/Mes/Año, por ejemplo: 17/02/2021"]
[null,null,null,"Para las adiciones a contratos de años anteriores se debe registrar en esta columna la fecha de suscripción de la adición en la vigencia 2021"]
[null,19,"Fecha de inicio","Indicar la fecha de inicio del contrato. Para las adiciones a contratos de años anteriores se debe diligenciar la fecha de inicio de la adición en la vigencia 2021. La celda solo admite el formato Día/Mes/Año así  13/03/2021."]
[null,20,"Fecha de terminación","Indicar la fecha efectiva de terminación del contrato. La celda solo admite el formato Día/Mes/Año así  15/02/2021."]
[null,21,"Plazo en días","Esta columna contiene el plazo inicial del contrato con el número total de días a ejecutar (sólo número de días, no mes, no texto). "]
[null,22,"Número de prórrogas","Registre en esta celda el número de prórrogas que se realizaron al contrato en la vigencia 2021."]
[null,23,"Prórroga en días","En caso de presentarse este evento, indicar en días, el tiempo por el cual se prorrogó el contrato a partir de la fecha inicial de terminación (sólo número de días, no mes, no texto)."]
[]
[null,"4- CESIÓN"]
[null,24,"Número  de Identificación del cesionario\n(NIT con digito de verificación)","Indicar el número de identificación del cesionario persona natural o jurídica con quien se suscribió la cesión, con digito de verificación (DV), el formato de celda no permite guiones o comas, solo números. Si hay más de una cesión adicione una fila y registre número de contrato, año, número proceso contractual SECOP y demás información que corresponda."]
[null,25,"Nombre cesionario","Indicar el nombre del cesionario, persona natural o jurídica."]
[null,26,"Fecha cesión","Relacionar la fecha en que se suscribió la cesión del contrato. La celda solo admite el formato Día/Mes/Año así  17/02/2021."]
[null,27,"Valor cesión","Registre el valor correspondiente a la cesión con cargo a la vigencia 2021, el formato de celda no permite guiones, comas o texto. Esta columna solo debe contener información numérica."]
[]
[null,"5- ESTADO A 31 DE DICIEMBRE DE 2021"]
[null,28,"Estado","Marque con una X en la respectiva columna si el contrato se encuentra a 31 de diciembre de 2021 Celebrado o por Iniciar, En Ejecución, Terminado o Liquidado."]
[]
[null,"5- PORCENTAJE DE AVANCE Y/O CUMPLIMIENTO"]
[null,29,"% Avance y/o cumplimiento","Indica el porcentaje de avance o de cumplimiento en términos presupuestales a 31 de diciembre de 2021, es decir lo efectivamente pagado al contratista. Si no se ha iniciado la ejecución, el % de avance es 0%. La celda se encuentra formulada y protegida. Es la relación entre el valor de los giros y el valor final del contrato. Si el porcentaje de avance no coincide, se debe revisar los valores que se registraron en estas columnas.  Este porcentaje no debe ser superior al 100%"]

{"sheet":"Proposito_programa","index":5,"n_rows":59,"n_cols":5,"rows_kept":59,"cut":false,"hidden":false,"merged":[]}
[]
[null,"PDD","No. Programa","Programa","Propósito"]
["Acuerdo 761 2020","Un Nuevo Contrato Social y Ambiental para la Bogotá del Siglo XXI",1,"Subsidios y transferencias para la equidad","Propósito 1: Hacer un nuevo contrato social para incrementar la inclusión social, productiva y política"]
["Pag. 51","Un Nuevo Contrato Social y Ambiental para la Bogotá del Siglo XXI",{"$f":"+C3+1","v":2},"Igualdad de oportunidades y desarrollo de capacidades para las mujeres","Propósito 1: Hacer un nuevo contrato social para incrementar la inclusión social, productiva y política"]
[null,"Un Nuevo Contrato Social y Ambiental para la Bogotá del Siglo XXI",{"$f":"+C4+1","v":3},"Movilidad social integral","Propósito 1: Hacer un nuevo contrato social para incrementar la inclusión social, productiva y política"]
[null,"Un Nuevo Contrato Social y Ambiental para la Bogotá del Siglo XXI",4,"Prevención de la exclusión por razones étnicas, religiosas, sociales, políticas y de orientación sexual","Propósito 1: Hacer un nuevo contrato social para incrementar la inclusión social, productiva y política"]
[null,"Un Nuevo Contrato Social y Ambiental para la Bogotá del Siglo XXI",5,"Promoción de la igualdad, el desarrollo de capacidades y el reconocimiento de las mujeres","Propósito 1: Hacer un nuevo contrato social para incrementar la inclusión social, productiva y política"]
[null,"Un Nuevo Contrato Social y Ambiental para la Bogotá del Siglo XXI",6,"Sistema Distrital de Cuidado","Propósito 1: Hacer un nuevo contrato social para incrementar la inclusión social, productiva y política"]
[null,"Un Nuevo Contrato Social y Ambiental para la Bogotá del Siglo XXI",7,"Mejora de la gestión de instituciones de salud","Propósito 1: Hacer un nuevo contrato social para incrementar la inclusión social, productiva y política"]
[null,"Un Nuevo Contrato Social y Ambiental para la Bogotá del Siglo XXI",8,"Prevención y atención de maternidad temprana","Propósito 1: Hacer un nuevo contrato social para incrementar la inclusión social, productiva y política"]
[null,"Un Nuevo Contrato Social y Ambiental para la Bogotá del Siglo XXI",9,"Prevención y cambios para mejorar la salud de la población","Propósito 1: Hacer un nuevo contrato social para incrementar la inclusión social, productiva y política"]
[null,"Un Nuevo Contrato Social y Ambiental para la Bogotá del Siglo XXI",10,"Salud para la vida y el bienestar","Propósito 1: Hacer un nuevo contrato social para incrementar la inclusión social, productiva y política"]
[null,"Un Nuevo Contrato Social y Ambiental para la Bogotá del Siglo XXI",11,"Salud y bienestar para niñas y niños","Propósito 1: Hacer un nuevo contrato social para incrementar la inclusión social, productiva y política"]
[null,"Un Nuevo Contrato Social y Ambiental para la Bogotá del Siglo XXI",12,"Educación inicial: Bases sólidas para la vida.","Propósito 1: Hacer un nuevo contrato social para incrementar la inclusión social, productiva y política"]
[null,"Un Nuevo Contrato Social y Ambiental para la Bogotá del Siglo XXI",13,"Educación para todos y todas: acceso y permanencia con equidad y énfasis en educación rural","Propósito 1: Hacer un nuevo contrato social para incrementar la inclusión social, productiva y política"]
[null,"Un Nuevo Contrato Social y Ambiental para la Bogotá del Siglo XXI",14,"Formación integral: más y mejor tiempo en los colegios","Propósito 1: Hacer un nuevo contrato social para incrementar la inclusión social, productiva y política"]
[null,"Un Nuevo Contrato Social y Ambiental para la Bogotá del Siglo XXI",15,"Plan Distrital de Lectura, Escritura y Oralidad: \"Leer para la vida\"","Propósito 1: Hacer un nuevo contrato social para incrementar la inclusión social, productiva y política"]
[null,"Un Nuevo Contrato Social y Ambiental para la Bogotá del Siglo XXI",16,"Transformación pedagógica y mejoramiento de la gestión educativa. Es con los maestros y maestras.","Propósito 1: Hacer un nuevo contrato social para incrementar la inclusión social, productiva y política"]
[null,"Un Nuevo Contrato Social y Ambiental para la Bogotá del Siglo XXI",17,"Jóvenes con capacidades: Proyecto de vida para la ciudadanía, la innovación y el trabajo del siglo XXI","Propósito 1: Hacer un nuevo contrato social para incrementar la inclusión social, productiva y política"]
[null,"Un Nuevo Contrato Social y Ambiental para la Bogotá del Siglo XXI",18,"Cierre de brechas para la inclusión productiva urbano rural","Propósito 1: Hacer un nuevo contrato social para incrementar la inclusión social, productiva y política"]
[null,"Un Nuevo Contrato Social y Ambiental para la Bogotá del Siglo XXI",19,"Vivienda y entornos dignos en el territorio urbano y rural","Propósito 1: Hacer un nuevo contrato social para incrementar la inclusión social, productiva y política"]
[null,"Un Nuevo Contrato Social y Ambiental para la Bogotá del Siglo XXI",20,"Bogotá, referente en cultura, deporte, recreación y actividad física, con parques para el desarrollo y la salud","Propósito 1: Hacer un nuevo contrato social para incrementar la inclusión social, productiva y política"]
[null,"Un Nuevo Contrato Social y Ambiental para la Bogotá del Siglo XXI",21,"Creación y vida cotidiana: Apropiación ciudadana del arte, la cultura y el patrimonio, para la democracia cultural","Propósito 1: Hacer un nuevo contrato social para incrementar la inclusión social, productiva y política"]
[null,"Un Nuevo Contrato Social y Ambiental para la Bogotá del Siglo XXI",22,"Transformación cultural para la conciencia ambiental y el cuidado de la fauna doméstica","Propósito 1: Hacer un nuevo contrato social para incrementar la inclusión social, productiva y política"]
[null,"Un Nuevo Contrato Social y Ambiental para la Bogotá del Siglo XXI",23,"Bogotá rural","Propósito 1: Hacer un nuevo contrato social para incrementar la inclusión social, productiva y política"]
[null,"Un Nuevo Contrato Social y Ambiental para la Bogotá del Siglo XXI",24,"Bogotá región emprendedora e innovadora","Propósito 1: Hacer un nuevo contrato social para incrementar la inclusión social, productiva y política"]
[null,"Un Nuevo Contrato Social y Ambiental para la Bogotá del Siglo XXI",25,"Bogotá región productiva y competitiva","Propósito 1: Hacer un nuevo contrato social para incrementar la inclusión social, productiva y política"]
[null,"Un Nuevo Contrato Social y Ambiental para la Bogotá del Siglo XXI",26,"Bogotá - región, el mejor destino para visitar","Propósito 1: Hacer un nuevo contrato social para incrementar la inclusión social, productiva y política"]
[null,"Un Nuevo Contrato Social y Ambiental para la Bogotá del Siglo XXI",27,"Cambio cultural para la gestión de la crisis climática","Propósito 2 : Cambiar Nuestros Hábitos de Vida para Reverdecer a Bogotá y Adaptarnos y Mitigar la Crisis Climática"]
[null,"Un Nuevo Contrato Social y Ambiental para la Bogotá del Siglo XXI",{"$f":"+C29+1","v":28},"Bogotá protectora de sus recursos naturales","Propósito 2 : Cambiar Nuestros Hábitos de Vida para Reverdecer a Bogotá y Adaptarnos y Mitigar la Crisis Climática"]
[null,"Un Nuevo Contrato Social y Ambiental para la Bogotá del Siglo XXI",{"$f":"+C30+1","v":29},"Asentamientos y entornos protectores","Propósito 2 : Cambiar Nuestros Hábitos de Vida para Reverdecer a Bogotá y Adaptarnos y Mitigar la Crisis Climática"]
[null,"Un Nuevo Contrato Social y Ambiental para la Bogotá del Siglo XXI",30,"Eficiencia en la atención de emergencias","Propósito 2 : Cambiar Nuestros Hábitos de Vida para Reverdecer a Bogotá y Adaptarnos y Mitigar la Crisis Climática"]
[null,"Un Nuevo Contrato Social y Ambiental para la Bogotá del Siglo XXI",31," Protección y valoración del patrimonio tangible e intangible en Bogotá y la región","Propósito 2 : Cambiar Nuestros Hábitos de Vida para Reverdecer a Bogotá y Adaptarnos y Mitigar la Crisis Climática"]
[null,"Un Nuevo Contrato Social y Ambiental para la Bogotá del Siglo XXI",32,"Revitalización urbana para la competitividad","Propósito 2 : Cambiar Nuestros Hábitos de Vida para Reverdecer a Bogotá y Adaptarnos y Mitigar la Crisis Climática"]
[null,"Un Nuevo Contrato Social y Ambiental para la Bogotá del Siglo XXI",33,"Más árboles y más y mejor espacio público","Propósito 2 : Cambiar Nuestros Hábitos de Vida para Reverdecer a Bogotá y Adaptarnos y Mitigar la Crisis Climática"]
[null,"Un Nuevo Contrato Social y Ambiental para la Bogotá del Siglo XXI",34,"Bogotá protectora de los animales","Propósito 2 : Cambiar Nuestros Hábitos de Vida para Reverdecer a Bogotá y Adaptarnos y Mitigar la Crisis Climática"]
[null,"Un Nuevo Contrato Social y Ambiental para la Bogotá del Siglo XXI",35,"Manejo y prevención de contaminación","Propósito 2 : Cambiar Nuestros Hábitos de Vida para Reverdecer a Bogotá y Adaptarnos y Mitigar la Crisis Climática"]
[null,"Un Nuevo Contrato Social y Ambiental para la Bogotá del Siglo XXI",36,"Manejo y saneamiento de los cuerpos de agua","Propósito 2 : Cambiar Nuestros Hábitos de Vida para Reverdecer a Bogotá y Adaptarnos y Mitigar la Crisis Climática"]
[null,"Un Nuevo Contrato Social y Ambiental para la Bogotá del Siglo XXI",37,"Provisión y mejoramiento de servicios públicos","Propósito 2 : Cambiar Nuestros Hábitos de Vida para Reverdecer a Bogotá y Adaptarnos y Mitigar la Crisis Climática"]
[null,"Un Nuevo Contrato Social y Ambiental para la Bogotá del Siglo XXI",38,"Ecoeficiencia, reciclaje, manejo de residuos e inclusión de la población recicladora","Propósito 2 : Cambiar Nuestros Hábitos de Vida para Reverdecer a Bogotá y Adaptarnos y Mitigar la Crisis Climática"]
[null,"Un Nuevo Contrato Social y Ambiental para la Bogotá del Siglo XXI",39,"Bogotá territorio de paz y atención integral a las víctimas del conflicto armado","Propósito 3: Inspirar confianza y legitimidad para vivir sin miedo y ser epicentro de cultura ciudadana, paz y reconciliación"]
[null,"Un Nuevo Contrato Social y Ambiental para la Bogotá del Siglo XXI",{"$f":"+C41+1","v":40},"Más mujeres viven una vida libre de violencias, se sienten seguras y acceden con confianza al sistema de justicia","Propósito 3: Inspirar confianza y legitimidad para vivir sin miedo y ser epicentro de cultura ciudadana, paz y reconciliación"]
[null,"Un Nuevo Contrato Social y Ambiental para la Bogotá del Siglo XXI",{"$f":"+C42+1","v":41},"Sin machismo ni violencias contra las mujeres, las niñas y los niños","Propósito 3: Inspirar confianza y legitimidad para vivir sin miedo y ser epicentro de cultura ciudadana, paz y reconciliación"]
[null,"Un Nuevo Contrato Social y Ambiental para la Bogotá del Siglo XXI",42,"Conciencia y cultura ciudadana para la seguridad, la convivencia y la construcción de confianza","Propósito 3: Inspirar confianza y legitimidad para vivir sin miedo y ser epicentro de cultura ciudadana, paz y reconciliación"]
[null,"Un Nuevo Contrato Social y Ambiental para la Bogotá del Siglo XXI",43,"Cultura ciudadana para la confianza, la convivencia y la participación desde la vida cotidiana","Propósito 3: Inspirar confianza y legitimidad para vivir sin miedo y ser epicentro de cultura ciudadana, paz y reconciliación"]
[null,"Un Nuevo Contrato Social y Ambiental para la Bogotá del Siglo XXI",44,"Autoconciencia, respeto y cuidado en el espacio público","Propósito 3: Inspirar confianza y legitimidad para vivir sin miedo y ser epicentro de cultura ciudadana, paz y reconciliación"]
[null,"Un Nuevo Contrato Social y Ambiental para la Bogotá del Siglo XXI",45,"Espacio público más seguro y construido colectivamente","Propósito 3: Inspirar confianza y legitimidad para vivir sin miedo y ser epicentro de cultura ciudadana, paz y reconciliación"]
[null,"Un Nuevo Contrato Social y Ambiental para la Bogotá del Siglo XXI",46,"Atención a jóvenes y adultos infractores con impacto en su proyecto de vida","Propósito 3: Inspirar confianza y legitimidad para vivir sin miedo y ser epicentro de cultura ciudadana, paz y reconciliación"]
[null,"Un Nuevo Contrato Social y Ambiental para la Bogotá del Siglo XXI",47,"Calidad de Vida y Derechos de la Población privada de la libertad","Propósito 3: Inspirar confianza y legitimidad para vivir sin miedo y ser epicentro de cultura ciudadana, paz y reconciliación"]
[null,"Un Nuevo Contrato Social y Ambiental para la Bogotá del Siglo XXI",48,"Plataforma institucional para la seguridad y justicia","Propósito 3: Inspirar confianza y legitimidad para vivir sin miedo y ser epicentro de cultura ciudadana, paz y reconciliación"]
[null,"Un Nuevo Contrato Social y Ambiental para la Bogotá del Siglo XXI",49,"Movilidad segura, sostenible y accesible","Propósito 4: Hacer de Bogotá Región un modelo de movilidad multimodal, incluyente y sostenible"]
[null,"Un Nuevo Contrato Social y Ambiental para la Bogotá del Siglo XXI",{"$f":"+C51+1","v":50},"Red de metros","Propósito 4: Hacer de Bogotá Región un modelo de movilidad multimodal, incluyente y sostenible"]
[null,"Un Nuevo Contrato Social y Ambiental para la Bogotá del Siglo XXI",51,"Gobierno Abierto","Propósito 5: Construir Bogotá - Región con gobierno abierto, transparente y ciudadanía consciente"]
[null,"Un Nuevo Contrato Social y Ambiental para la Bogotá del Siglo XXI",{"$f":"+C53+1","v":52},"Integración regional, distrital y local","Propósito 5: Construir Bogotá - Región con gobierno abierto, transparente y ciudadanía consciente"]
[null,"Un Nuevo Contrato Social y Ambiental para la Bogotá del Siglo XXI",{"$f":"+C54+1","v":53},"Información para la toma de decisiones","Propósito 5: Construir Bogotá - Región con gobierno abierto, transparente y ciudadanía consciente"]
[null,"Un Nuevo Contrato Social y Ambiental para la Bogotá del Siglo XXI",54,"Transformación digital y gestión de TIC para un territorio inteligente","Propósito 5: Construir Bogotá - Región con gobierno abierto, transparente y ciudadanía consciente"]
[null,"Un Nuevo Contrato Social y Ambiental para la Bogotá del Siglo XXI",55,"Fortalecimiento de cultura ciudadana y su institucionalidad","Propósito 5: Construir Bogotá - Región con gobierno abierto, transparente y ciudadanía consciente"]
[null,"Un Nuevo Contrato Social y Ambiental para la Bogotá del Siglo XXI",56,"Gestión pública efectiva","Propósito 5: Construir Bogotá - Región con gobierno abierto, transparente y ciudadanía consciente"]
[null,"Un Nuevo Contrato Social y Ambiental para la Bogotá del Siglo XXI",57,"Gestión pública local","Propósito 5: Construir Bogotá - Región con gobierno abierto, transparente y ciudadanía consciente"]

{"sheet":"Tipo","index":6,"n_rows":40,"n_cols":5,"rows_kept":40,"cut":false,"hidden":true,"merged":[]}
[null,"Tipo","Modalidad de Selección","afectacion","Naturaleza Jurídica"]
[1,"Obra pública","Concurso de méritos","Funcionamiento","Persona Natural"]
[2,"Consultoría","Contratación directa","Inversión","Persona Jurídica"]
[3,"Interventoría","Contratación mínima cuantia","Operación","Unión Temporal"]
[4,"Contratos de prestación de servicios","Selección abreviada",null,"Consorcio"]
[5,"Contratos de prestación de servicios profesionales y de apoyo a la gestión","Licitación pública"]
[6,"Compraventa de bienes muebles","Régimen privado"]
[7,"Compraventa de bienes inmuebles","Régimen especial"]
[8,"Arrendamiento de bienes muebles"]
[9,"Arrendamiento de bienes inmuebles"]
[10,"Seguros","Selección abreviada"]
[11,"Suministro","Subasta inversa "]
[12,"Empréstitos","Bolsas de productos"]
[13,"Fiducia mercantil o encargo fiduciario","Acuerdo marco de precios "]
[14,"Concesión ","Selección abreviada por menor cuantía "]
[15,"Convenios de cooperacion"]
[16,"Contratos interadministrativos","contratacion directa"]
[17,"Convenios de apoyo y/o convenios de asociación ","Urgencia manifiesta"]
[18,"Asociaciones público privadas","Contratación de empréstitos"]
[19,"Otros","Contratos interadministrativos"]
[20,"Otros gastos","Contratación de bienes y servicios en el sector Defensa y en el Departamento Administrativo de Seguridad, DAS"]
[null,"SECTOR","Contratos para el desarrollo de actividades científicas y tecnológicas"]
[1,"Gestión Pública","Contratos de encargo fiduciario que celebren las entidades territoriales cuando inician el Acuerdo de Reestructuración de Pasivos"]
[{"$f":"+A23+1","v":2},"Gobierno","Cuando no exista pluralidad de oferentes en el mercado"]
[{"$f":"+A24+1","v":3},"Hacienda","Prestación de servicios profesionales y de apoyo a la gestión, o para la ejecución de trabajos artísticos que sólo puedan encomendarse a determinadas personas naturales;"]
[4,"Planeación","El arrendamiento o adquisición de inmuebles"]
[5,"Desarrollo Económico, Industria y Turismo","Contratación de bienes y servicios de la Dirección Nacional de Inteligencia (DNI)"]
[6,"Educación"]
[7,"Salud"]
[8,"Integración Social","Decreto 92 de 2017"]
[9,"Cultura, Recreación y Deporte","No aplica"]
[10,"Ambiente"]
[11,"Movilidad","SECOP I"]
[12,"Hábitat","SECOP II"]
[13,"Mujeres"]
[14,"Seguridad, Convivencia y Justicia","Bogotá Mejor para Todos"]
[15,"Gestión Juridíca","Un Nuevo Contrato Social y Ambiental para la Bogotá del Siglo XXI"]
[16,"descentralizado territorialmente"]
[]
[null,"16 - AL"]

{"sheet":"Eje_Pilar_Prop1","index":7,"n_rows":104,"n_cols":5,"rows_kept":104,"cut":false,"hidden":true,"merged":[]}
[]
[null,"PDD","No. Programa","Programa","Pilar /Eje / propósito"]
[null,"Bogotá Mejor para Todos",1,"Prevención y atención de la maternidad y la paternidad tempranas","Pilar 1 Igualdad de Calidad de Vida"]
[null,"Bogotá Mejor para Todos",2,"Desarrollo integral desde la gestación hasta la adolescencia","Pilar 1 Igualdad de Calidad de Vida"]
[null,"Bogotá Mejor para Todos",3,"Igualdad y autonomía para una Bogotá incluyente","Pilar 1 Igualdad de Calidad de Vida"]
[null,"Bogotá Mejor para Todos",4,"Familias protegidas y adaptadas al cambio climático","Pilar 1 Igualdad de Calidad de Vida"]
[null,"Bogotá Mejor para Todos",5,"Desarrollo integral para la felicidad y el ejercicio de la ciudadanía","Pilar 1 Igualdad de Calidad de Vida"]
[null,"Bogotá Mejor para Todos",6,"Calidad educativa para todos","Pilar 1 Igualdad de Calidad de Vida"]
[null,"Bogotá Mejor para Todos",7,"Inclusión educativa para la equidad","Pilar 1 Igualdad de Calidad de Vida"]
[null,"Bogotá Mejor para Todos",8,"Acceso con calidad a la educación superior","Pilar 1 Igualdad de Calidad de Vida"]
[null,"Bogotá Mejor para Todos",9,"Atención integral y eficiente en salud","Pilar 1 Igualdad de Calidad de Vida"]
[null,"Bogotá Mejor para Todos",10,"Modernización de la infraestructura física y tecnológica en salud","Pilar 1 Igualdad de Calidad de Vida"]
[null,"Bogotá Mejor para Todos",11,"Mejores oportunidades para el desarrollo a través de la cultura, la recreación y el deporte","Pilar 1 Igualdad de Calidad de Vida"]
[null,"Bogotá Mejor para Todos",12,"Mujeres protagonistas, activas y empoderadas en el cierre de brechas de género","Pilar 1 Igualdad de Calidad de Vida"]
[null,"Bogotá Mejor para Todos",13,"Infraestructura para el desarrollo del hábitat","Pilar 2 Democracía Urbana"]
[null,"Bogotá Mejor para Todos",14,"Intervenciones integrales del hábitat","Pilar 2 Democracía Urbana"]
[null,"Bogotá Mejor para Todos",15,"Recuperación, incorporación, vida urbana y control de la ilegalidad","Pilar 2 Democracía Urbana"]
[null,"Bogotá Mejor para Todos",16,"Integración social para una ciudad de oportunidades","Pilar 2 Democracía Urbana"]
[null,"Bogotá Mejor para Todos",17,"Espacio público, derecho de todos","Pilar 2 Democracía Urbana"]
[null,"Bogotá Mejor para Todos",18,"Mejor movilidad para todos","Pilar 2 Democracía Urbana"]
[null,"Bogotá Mejor para Todos",19,"Seguridad y convivencia para todos","Pilar 3 Construcción de Comunidad y Cultura Ciudadana"]
[null,"Bogotá Mejor para Todos",20,"Fortalecimiento del Sistema de Protección Integral a Mujeres Víctimas de Violencia - SOFIA","Pilar 3 Construcción de Comunidad y Cultura Ciudadana"]
[null,"Bogotá Mejor para Todos",21,"Justicia para todos: consolidación del Sistema Distrital de Justicia","Pilar 3 Construcción de Comunidad y Cultura Ciudadana"]
[null,"Bogotá Mejor para Todos",22,"Bogotá vive los derechos humanos","Pilar 3 Construcción de Comunidad y Cultura Ciudadana"]
[null,"Bogotá Mejor para Todos",23,"Bogotá mejor para las víctimas, la paz y la reconciliación","Pilar 3 Construcción de Comunidad y Cultura Ciudadana"]
[null,"Bogotá Mejor para Todos",24,"Equipo por la educación para el reencuentro, la reconciliación y la paz","Pilar 3 Construcción de Comunidad y Cultura Ciudadana"]
[null,"Bogotá Mejor para Todos",25,"Cambio cultural y construcción del tejido social para la vida","Pilar 3 Construcción de Comunidad y Cultura Ciudadana"]
[null,"Bogotá Mejor para Todos",26,"Información relevante e integral para la planeación territorial","Eje Transversal 1 Nuevo Ordenamiento Territorial"]
[null,"Bogotá Mejor para Todos",27,"Proyectos urbanos integrales con visión de ciudad","Eje Transversal 1 Nuevo Ordenamiento Territorial"]
[null,"Bogotá Mejor para Todos",28,"Suelo para reducir el déficit habitacional de suelo urbanizable, vivienda y soportes urbanos","Eje Transversal 1 Nuevo Ordenamiento Territorial"]
[null,"Bogotá Mejor para Todos",29,"Articulación regional y planeación integral del transporte","Eje Transversal 1 Nuevo Ordenamiento Territorial"]
[null,"Bogotá Mejor para Todos",30,"Financiación para el Desarrollo Territorial","Eje Transversal 1 Nuevo Ordenamiento Territorial"]
[null,"Bogotá Mejor para Todos",31,"Fundamentar el desarrollo económico en la generación y uso del conocimiento para mejorar la competitividad de la Ciudad Región","Eje Transversal 2 Desarrollo Económico basado en el conocimiento"]
[null,"Bogotá Mejor para Todos",32,"Generar alternativas de ingreso y empleo de mejor calidad","Eje Transversal 2 Desarrollo Económico basado en el conocimiento"]
[null,"Bogotá Mejor para Todos",33,"Elevar la eficiencia de los mercados de la ciudad","Eje Transversal 2 Desarrollo Económico basado en el conocimiento"]
[null,"Bogotá Mejor para Todos",34,"Mejorar y fortalecer el recaudo tributario de la ciudad e impulsar el uso de mecanismos de vinculación de capital privado","Eje Transversal 2 Desarrollo Económico basado en el conocimiento"]
[null,"Bogotá Mejor para Todos",35,"Bogotá, ciudad inteligente","Eje Transversal 2 Desarrollo Económico basado en el conocimiento"]
[null,"Bogotá Mejor para Todos",36,"Bogotá, una ciudad digital","Eje Transversal 2 Desarrollo Económico basado en el conocimiento"]
[null,"Bogotá Mejor para Todos",37,"Consolidar el turismo como factor de desarrollo, confianza y felicidad para Bogotá Región","Eje Transversal 2 Desarrollo Económico basado en el conocimiento"]
[null,"Bogotá Mejor para Todos",38,"Recuperación y manejo de la Estructura Ecológica Principal","Eje Transversal 3 Sostenibilidad Ambiental basada en la eficiencia energética"]
[null,"Bogotá Mejor para Todos",39,"Ambiente sano para la equidad y disfrute del ciudadano","Eje Transversal 3 Sostenibilidad Ambiental basada en la eficiencia energética"]
[null,"Bogotá Mejor para Todos",40,"Gestión de la huella ambiental urbana","Eje Transversal 3 Sostenibilidad Ambiental basada en la eficiencia energética"]
[null,"Bogotá Mejor para Todos",41,"Desarrollo rural sostenible","Eje Transversal 3 Sostenibilidad Ambiental basada en la eficiencia energética"]
[null,"Bogotá Mejor para Todos",42,"Transparencia, gestión pública y servicio a la ciudadanía","Eje Transversal 4 Gobierno Legitimo, Fortalecimiento Local y Eficiencia"]
[null,"Bogotá Mejor para Todos",43,"Modernización institucional","Eje Transversal 4 Gobierno Legitimo, Fortalecimiento Local y Eficiencia"]
[null,"Bogotá Mejor para Todos",44,"Gobierno y ciudadanía digital","Eje Transversal 4 Gobierno Legitimo, Fortalecimiento Local y Eficiencia"]
[null,"Bogotá Mejor para Todos",45,"Gobernanza e influencia local, regional e internacional","Eje Transversal 4 Gobierno Legitimo, Fortalecimiento Local y Eficiencia"]
["Acuerdo 761 2020","Un Nuevo Contrato Social y Ambiental para la Bogotá del Siglo XXI","1.","Subsidios y transferencias para la equidad","Propósito 1: Hacer un nuevo contrato social para incrementar la inclusión social, productiva y política"]
["Pag. 51","Un Nuevo Contrato Social y Ambiental para la Bogotá del Siglo XXI","2.","Igualdad de oportunidades y desarrollo de capacidades para las mujeres","Propósito 1: Hacer un nuevo contrato social para incrementar la inclusión social, productiva y política"]
[null,"Un Nuevo Contrato Social y Ambiental para la Bogotá del Siglo XXI","3.","Movilidad social integral","Propósito 1: Hacer un nuevo contrato social para incrementar la inclusión social, productiva y política"]
[null,"Un Nuevo Contrato Social y Ambiental para la Bogotá del Siglo XXI","4.","Prevención de la exclusión por razones étnicas, religiosas, sociales, políticas y de orientación sexual","Propósito 1: Hacer un nuevo contrato social para incrementar la inclusión social, productiva y política"]
[null,"Un Nuevo Contrato Social y Ambiental para la Bogotá del Siglo XXI","5.","Promoción de la igualdad, el desarrollo de capacidades y el reconocimiento de las mujeres","Propósito 1: Hacer un nuevo contrato social para incrementar la inclusión social, productiva y política"]
[null,"Un Nuevo Contrato Social y Ambiental para la Bogotá del Siglo XXI","6.","Sistema Distrital de Cuidado","Propósito 1: Hacer un nuevo contrato social para incrementar la inclusión social, productiva y política"]
[null,"Un Nuevo Contrato Social y Ambiental para la Bogotá del Siglo XXI","7.","Mejora de la gestión de instituciones de salud","Propósito 1: Hacer un nuevo contrato social para incrementar la inclusión social, productiva y política"]
[null,"Un Nuevo Contrato Social y Ambiental para la Bogotá del Siglo XXI","8.","Prevención y atención de maternidad temprana","Propósito 1: Hacer un nuevo contrato social para incrementar la inclusión social, productiva y política"]
[null,"Un Nuevo Contrato Social y Ambiental para la Bogotá del Siglo XXI","9.","Prevención y cambios para mejorar la salud de la población","Propósito 1: Hacer un nuevo contrato social para incrementar la inclusión social, productiva y política"]
[null,"Un Nuevo Contrato Social y Ambiental para la Bogotá del Siglo XXI","10.","Salud para la vida y el bienestar","Propósito 1: Hacer un nuevo contrato social para incrementar la inclusión social, productiva y política"]
[null,"Un Nuevo Contrato Social y Ambiental para la Bogotá del Siglo XXI","11.","Salud y bienestar para niñas y niños","Propósito 1: Hacer un nuevo contrato social para incrementar la inclusión social, productiva y política"]
[null,"Un Nuevo Contrato Social y Ambiental para la Bogotá del Siglo XXI","12.","Educación inicial: Bases sólidas para la vida.","Propósito 1: Hacer un nuevo contrato social para incrementar la inclusión social, productiva y política"]
[null,"Un Nuevo Contrato Social y Ambiental para la Bogotá del Siglo XXI","13.","Educación para todos y todas: acceso y permanencia con equidad y énfasis en educación rural","Propósito 1: Hacer un nuevo contrato social para incrementar la inclusión social, productiva y política"]
[null,"Un Nuevo Contrato Social y Ambiental para la Bogotá del Siglo XXI","14.","Formación integral: más y mejor tiempo en los colegios","Propósito 1: Hacer un nuevo contrato social para incrementar la inclusión social, productiva y política"]
[null,"Un Nuevo Contrato Social y Ambiental para la Bogotá del Siglo XXI","15.","Plan Distrital de Lectura, Escritura y Oralidad: \"Leer para la vida\"","Propósito 1: Hacer un nuevo contrato social para incrementar la inclusión social, productiva y política"]
[null,"Un Nuevo Contrato Social y Ambiental para la Bogotá del Siglo XXI","16.","Transformación pedagógica y mejoramiento de la gestión educativa. Es con los maestros y maestras.","Propósito 1: Hacer un nuevo contrato social para incrementar la inclusión social, productiva y política"]
[null,"Un Nuevo Contrato Social y Ambiental para la Bogotá del Siglo XXI","17.","Jóvenes con capacidades: Proyecto de vida para la ciudadanía, la innovación y el trabajo del siglo XXI","Propósito 1: Hacer un nuevo contrato social para incrementar la inclusión social, productiva y política"]
[null,"Un Nuevo Contrato Social y Ambiental para la Bogotá del Siglo XXI","18.","Cierre de brechas para la inclusión productiva urbano rural","Propósito 1: Hacer un nuevo contrato social para incrementar la inclusión social, productiva y política"]
[null,"Un Nuevo Contrato Social y Ambiental para la Bogotá del Siglo XXI","19.","Vivienda y entornos dignos en el territorio urbano y rural","Propósito 1: Hacer un nuevo contrato social para incrementar la inclusión social, productiva y política"]
[null,"Un Nuevo Contrato Social y Ambiental para la Bogotá del Siglo XXI","20.","Bogotá, referente en cultura, deporte, recreación y actividad física, con parques para el desarrollo y la salud","Propósito 1: Hacer un nuevo contrato social para incrementar la inclusión social, productiva y política"]
[null,"Un Nuevo Contrato Social y Ambiental para la Bogotá del Siglo XXI","21.","Creación y vida cotidiana: Apropiación ciudadana del arte, la cultura y el patrimonio, para la democracia cultural","Propósito 1: Hacer un nuevo contrato social para incrementar la inclusión social, productiva y política"]
[null,"Un Nuevo Contrato Social y Ambiental para la Bogotá del Siglo XXI","22.","Transformación cultural para la conciencia ambiental y el cuidado de la fauna doméstica","Propósito 1: Hacer un nuevo contrato social para incrementar la inclusión social, productiva y política"]
[null,"Un Nuevo Contrato Social y Ambiental para la Bogotá del Siglo XXI","23.","Bogotá rural","Propósito 1: Hacer un nuevo contrato social para incrementar la inclusión social, productiva y política"]
[null,"Un Nuevo Contrato Social y Ambiental para la Bogotá del Siglo XXI","24.","Bogotá región emprendedora e innovadora","Propósito 1: Hacer un nuevo contrato social para incrementar la inclusión social, productiva y política"]
[null,"Un Nuevo Contrato Social y Ambiental para la Bogotá del Siglo XXI","25.","Bogotá región productiva y competitiva","Propósito 1: Hacer un nuevo contrato social para incrementar la inclusión social, productiva y política"]
[null,"Un Nuevo Contrato Social y Ambiental para la Bogotá del Siglo XXI","26.","Bogotá - región, el mejor destino para visitar","Propósito 1: Hacer un nuevo contrato social para incrementar la inclusión social, productiva y política"]
[null,"Un Nuevo Contrato Social y Ambiental para la Bogotá del Siglo XXI","27.","Cambio cultural para la gestión de la crisis climática","Propósito 2 : Cambiar Nuestros Hábitos de Vida para Reverdecer a Bogotá y Adaptarnos y Mitigar la Crisis Climática"]
[null,"Un Nuevo Contrato Social y Ambiental para la Bogotá del Siglo XXI","28.","Bogotá protectora de sus recursos naturales","Propósito 2 : Cambiar Nuestros Hábitos de Vida para Reverdecer a Bogotá y Adaptarnos y Mitigar la Crisis Climática"]
[null,"Un Nuevo Contrato Social y Ambiental para la Bogotá del Siglo XXI","29.","Asentamientos y entornos protectores","Propósito 2 : Cambiar Nuestros Hábitos de Vida para Reverdecer a Bogotá y Adaptarnos y Mitigar la Crisis Climática"]
[null,"Un Nuevo Contrato Social y Ambiental para la Bogotá del Siglo XXI","30.","Eficiencia en la atención de emergencias","Propósito 2 : Cambiar Nuestros Hábitos de Vida para Reverdecer a Bogotá y Adaptarnos y Mitigar la Crisis Climática"]
[null,"Un Nuevo Contrato Social y Ambiental para la Bogotá del Siglo XXI","31."," Protección y valoración del patrimonio tangible e intangible en Bogotá y la región","Propósito 2 : Cambiar Nuestros Hábitos de Vida para Reverdecer a Bogotá y Adaptarnos y Mitigar la Crisis Climática"]
[null,"Un Nuevo Contrato Social y Ambiental para la Bogotá del Siglo XXI","32.","Revitalización urbana para la competitividad","Propósito 2 : Cambiar Nuestros Hábitos de Vida para Reverdecer a Bogotá y Adaptarnos y Mitigar la Crisis Climática"]
[null,"Un Nuevo Contrato Social y Ambiental para la Bogotá del Siglo XXI","33.","Más árboles y más y mejor espacio público","Propósito 2 : Cambiar Nuestros Hábitos de Vida para Reverdecer a Bogotá y Adaptarnos y Mitigar la Crisis Climática"]
[null,"Un Nuevo Contrato Social y Ambiental para la Bogotá del Siglo XXI","34.","Bogotá protectora de los animales","Propósito 2 : Cambiar Nuestros Hábitos de Vida para Reverdecer a Bogotá y Adaptarnos y Mitigar la Crisis Climática"]
[null,"Un Nuevo Contrato Social y Ambiental para la Bogotá del Siglo XXI","35.","Manejo y prevención de contaminación","Propósito 2 : Cambiar Nuestros Hábitos de Vida para Reverdecer a Bogotá y Adaptarnos y Mitigar la Crisis Climática"]
[null,"Un Nuevo Contrato Social y Ambiental para la Bogotá del Siglo XXI","36.","Manejo y saneamiento de los cuerpos de agua","Propósito 2 : Cambiar Nuestros Hábitos de Vida para Reverdecer a Bogotá y Adaptarnos y Mitigar la Crisis Climática"]
[null,"Un Nuevo Contrato Social y Ambiental para la Bogotá del Siglo XXI","37.","Provisión y mejoramiento de servicios públicos","Propósito 2 : Cambiar Nuestros Hábitos de Vida para Reverdecer a Bogotá y Adaptarnos y Mitigar la Crisis Climática"]
[null,"Un Nuevo Contrato Social y Ambiental para la Bogotá del Siglo XXI","38.","Ecoeficiencia, reciclaje, manejo de residuos e inclusión de la población recicladora","Propósito 2 : Cambiar Nuestros Hábitos de Vida para Reverdecer a Bogotá y Adaptarnos y Mitigar la Crisis Climática"]
[null,"Un Nuevo Contrato Social y Ambiental para la Bogotá del Siglo XXI","39.","Bogotá territorio de paz y atención integral a las víctimas del conflicto armado","Propósito 3: Inspirar confianza y legitimidad para vivir sin miedo y ser epicentro de cultura ciudadana, paz y reconciliación"]
[null,"Un Nuevo Contrato Social y Ambiental para la Bogotá del Siglo XXI","40.","Más mujeres viven una vida libre de violencias, se sienten seguras y acceden con confianza al sistema de justicia","Propósito 3: Inspirar confianza y legitimidad para vivir sin miedo y ser epicentro de cultura ciudadana, paz y reconciliación"]
[null,"Un Nuevo Contrato Social y Ambiental para la Bogotá del Siglo XXI","41.","Sin machismo ni violencias contra las mujeres, las niñas y los niños","Propósito 3: Inspirar confianza y legitimidad para vivir sin miedo y ser epicentro de cultura ciudadana, paz y reconciliación"]
[null,"Un Nuevo Contrato Social y Ambiental para la Bogotá del Siglo XXI","42.","Conciencia y cultura ciudadana para la seguridad, la convivencia y la construcción de confianza","Propósito 3: Inspirar confianza y legitimidad para vivir sin miedo y ser epicentro de cultura ciudadana, paz y reconciliación"]
[null,"Un Nuevo Contrato Social y Ambiental para la Bogotá del Siglo XXI","43.","Cultura ciudadana para la confianza, la convivencia y la participación desde la vida cotidiana","Propósito 3: Inspirar confianza y legitimidad para vivir sin miedo y ser epicentro de cultura ciudadana, paz y reconciliación"]
[null,"Un Nuevo Contrato Social y Ambiental para la Bogotá del Siglo XXI","44.","Autoconciencia, respeto y cuidado en el espacio público","Propósito 3: Inspirar confianza y legitimidad para vivir sin miedo y ser epicentro de cultura ciudadana, paz y reconciliación"]
[null,"Un Nuevo Contrato Social y Ambiental para la Bogotá del Siglo XXI","45.","Espacio público más seguro y construido colectivamente","Propósito 3: Inspirar confianza y legitimidad para vivir sin miedo y ser epicentro de cultura ciudadana, paz y reconciliación"]
[null,"Un Nuevo Contrato Social y Ambiental para la Bogotá del Siglo XXI","46.","Atención a jóvenes y adultos infractores con impacto en su proyecto de vida","Propósito 3: Inspirar confianza y legitimidad para vivir sin miedo y ser epicentro de cultura ciudadana, paz y reconciliación"]
[null,"Un Nuevo Contrato Social y Ambiental para la Bogotá del Siglo XXI","47.","Calidad de Vida y Derechos de la Población privada de la libertad","Propósito 3: Inspirar confianza y legitimidad para vivir sin miedo y ser epicentro de cultura ciudadana, paz y reconciliación"]
[null,"Un Nuevo Contrato Social y Ambiental para la Bogotá del Siglo XXI","48.","Plataforma institucional para la seguridad y justicia","Propósito 3: Inspirar confianza y legitimidad para vivir sin miedo y ser epicentro de cultura ciudadana, paz y reconciliación"]
[null,"Un Nuevo Contrato Social y Ambiental para la Bogotá del Siglo XXI","49.","Movilidad segura, sostenible y accesible","Propósito 4: Hacer de Bogotá Región un modelo de movilidad multimodal, incluyente y sostenible"]
[null,"Un Nuevo Contrato Social y Ambiental para la Bogotá del Siglo XXI","50.","Red de metros","Propósito 4: Hacer de Bogotá Región un modelo de movilidad multimodal, incluyente y sostenible"]
[null,"Un Nuevo Contrato Social y Ambiental para la Bogotá del Siglo XXI","51.","Gobierno Abierto","Propósito 5: Construir Bogotá - Región con gobierno abierto, transparente y ciudadanía consciente"]
[null,"Un Nuevo Contrato Social y Ambiental para la Bogotá del Siglo XXI","52.","Integración regional, distrital y local","Propósito 5: Construir Bogotá - Región con gobierno abierto, transparente y ciudadanía consciente"]
[null,"Un Nuevo Contrato Social y Ambiental para la Bogotá del Siglo XXI","53.","Información para la toma de decisiones","Propósito 5: Construir Bogotá - Región con gobierno abierto, transparente y ciudadanía consciente"]
[null,"Un Nuevo Contrato Social y Ambiental para la Bogotá del Siglo XXI","54.","Transformación digital y gestión de TIC para un territorio inteligente","Propósito 5: Construir Bogotá - Región con gobierno abierto, transparente y ciudadanía consciente"]
[null,"Un Nuevo Contrato Social y Ambiental para la Bogotá del Siglo XXI","55.","Fortalecimiento de cultura ciudadana y su institucionalidad","Propósito 5: Construir Bogotá - Región con gobierno abierto, transparente y ciudadanía consciente"]
[null,"Un Nuevo Contrato Social y Ambiental para la Bogotá del Siglo XXI","56.","Gestión pública efectiva","Propósito 5: Construir Bogotá - Región con gobierno abierto, transparente y ciudadanía consciente"]
[null,"Un Nuevo Contrato Social y Ambiental para la Bogotá del Siglo XXI","57.","Gestión pública local","Propósito 5: Construir Bogotá - Región con gobierno abierto, transparente y ciudadanía consciente"]